Workbook

Sheet AER only (hidden)
B1: Data in these columns used for data validation and database purposes.
B2: Date last modified: | C2: 2017-01-16 | D2: added (Albury and Victora) for AGN
AC4: FOR ELECTRICITY BUSINESSES ONLY
AC5: Feeder Types | AG5: TasNetworks (D) | AH5: MAIFI flag | AI5: Feeder Names
AC6: CBD | AD6: Urban | AE6: Short rural | AF6: long rural | AG6: EXTRA
B7: dms_TradingName_List | C7: dms_TradingNameFull_List | D7: dms_ABN_List | E7: dms_JurisdictionList | F7: dms_Sector_List | G7: dms_Segment_List | H7: dms_FormControl_List | I7: dms_RPT_List | J7: dms_RPTMonth_List | K7: dms_CRCPlength_List | L7: dms_FRCPlength_List | M7: dms_663_List | N7: dms_DeterminationRef_List | O7: dms_Addr1_List | P7: dms_Addr2_List | Q7: dms_Suburb_List | R7: dms_State_List | S7: dms_PostCode_List | T7: dms_PAddr1_List | U7: dms_PAddr2_List | V7: dms_PSuburb_List | W7: dms_PState_List | X7: dms_PPostCode_List | Y7: dms_ContactName1_List | Z7: dms_ContactPh1_List | AA7: dms_ContactEmail_List | AC7: dms_CBD_flag | AD7: dms_Urban_flag | AE7: dms_ShortRural_flag | AF7: dms_LongRural_flag | AG7: dms_FeederType_5_flag | AH7: dms_MAIFI_flag_List | AI7: dms_FeederName_1 | AJ7: dms_FeederName_2 | AK7: dms_FeederName_3 | AL7: dms_FeederName_4 | AM7: dms_FeederName_5
B8: ActewAGL Distribution | C8: ActewAGL Distribution | D8: 76670568688 | E8: ACT | F8: Electricity | G8: Distribution | H8: Revenue cap | I8: Financial | J8: June | K8: 5 | L8: 5 | M8: 5 | N8: 2014-19 Distribution Determination | O8: 40 Bunda Street | Q8: CANBERRA | R8: ACT | S8: 2600 | T8: GPO BOX 366 | V8: CANBERRA | W8: ACT | X8: 2601 | Y8: Robert Walker | Z8: 02 6248 3847 | AA8: robert.walker@actewagle.com.au | AC8: NO | AD8: YES | AE8: YES | AF8: NO | AG8: NO | AI8: CBD | AJ8: Urban | AK8: Short rural | AL8: Long rural | AN8: ActewAGL Distribution
B9: ActewAGL Distribution (Tx Assets) | C9: ActewAGL Distribution (Tx Assets) | D9: 76670568688 | E9: ACT | F9: Electricity | G9: Distribution | H9: Revenue cap | I9: Financial | J9: June | K9: 5 | L9: 5 | M9: 5 | N9: distribution determination | O9: 40 Bunda Street | Q9: CANBERRA | R9: ACT | S9: 2600 | T9: GPO BOX 366 | V9: CANBERRA | W9: ACT | X9: 2601 | Y9: Robert Walker | Z9: 02 6248 3847 | AA9: robert.walker@actewagle.com.au | AI9: CBD | AJ9: Urban | AK9: Short rural | AL9: Long rural | AN9: ActewAGL Distribution (Tx Assets)
B10: ActewAGL Gas | C10: ActewAGL Gas | D10: 76670568688 | E10: ACT | F10: Gas | G10: Distribution | H10: Weighted average price cap | I10: Financial | J10: June | K10: 5 | L10: 5 | M10: x | O10: 40 Bunda Street | Q10: CANBERRA | R10: ACT | S10: 2600 | T10: GPO BOX 366 | V10: CANBERRA | W10: ACT | X10: 2601 | Y10: Philip Deamer | Z10: 02 6248 3438 | AA10: GasAAReview@actewagl.com.au | AN10: ActewAGL Gas
B11: AGN (Albury) | C11: Australian Gas Networks Limited (reporting data for Albury) | D11: 19078551685 | E11: Vic | F11: Gas | G11: Distribution | H11: Weighted average price cap | I11: Calendar | J11: December | K11: 5 | L11: 5 | M11: x | O11: Level 6 | P11: 400 King William Street | Q11: ADELAIDE | R11: SA | S11: 5000 | T11: PO Box 6468 | U11: Halifax Street | V11: ADELAIDE | W11: SA | X11: 5000 | Y11: Craig de Laine | Z11: 08 8418 1129 | AA11: craig.delaine@agn.com.au | AI11: CBD | AJ11: Urban | AK11: Short rural | AL11: Long rural | AN11: AGN (Albury)
B12: AGN (Albury and Victoria) | C12: Australian Gas Networks Limited (reporting data for Albury and Victoria) | D12: 19078551685 | E12: Vic | F12: Gas | G12: Distribution | H12: Weighted average price cap | I12: Calendar | J12: December | K12: 5 | L12: 5 | M12: x | O12: Level 6 | P12: 400 King William Street | Q12: ADELAIDE | R12: SA | S12: 5000 | T12: PO Box 6468 | U12: Halifax Street | V12: ADELAIDE | W12: SA | X12: 5000 | Y12: Craig de Laine | Z12: 08 8418 1129 | AA12: craig.delaine@agn.com.au | AI12: CBD | AJ12: Urban | AK12: Short rural | AL12: Long rural
B13: AGN (SA) | C13: Australian Gas Networks Limited (reporting data for SA) | D13: 19078551685 | E13: SA | F13: Gas | G13: Distribution | H13: Weighted average price cap | I13: Financial | J13: June | K13: 5 | L13: 5 | M13: 5 | N13: distribution determination | O13: Level 6 | P13: 400 King William Street | Q13: ADELAIDE | R13: SA | S13: 5000 | T13: PO Box 6468 | U13: Halifax Street | V13: ADELAIDE | W13: SA | X13: 5000 | Y13: Craig de Laine | Z13: 08 8418 1129 | AA13: craig.delaine@agn.com.au | AN13: AGN (SA)
B14: AGN (Victoria) | C14: Australian Gas Networks Limited (reporting data for Victoria) | D14: 19078551685 | E14: Vic | F14: Gas | G14: Distribution | H14: Weighted average price cap | I14: Calendar | J14: December | K14: 5 | L14: 5 | M14: x | AN14: AGN (Victoria)
B15: Amadeus | C15: APT Pipelines (NT) Pty Ltd | D15: 39009737393 | E15: NT | F15: Gas | G15: Transmission | H15: Weighted average price cap | I15: Financial | J15: June | K15: 5 | L15: 5 | M15: x | N15: n/a | O15: Level 19, HSBC Building | P15: 580 George Street | Q15: SYDNEY | R15: NSW | S15: 2000 | T15: Level 19, HSBC Building | U15: 580 George Street | V15: SYDNEY | W15: NSW | X15: 2000 | Y15: Alexandra Curran | Z15: 02 9275 0020 | AA15: alexandra.curran@apa.com.au | AN15: Amadeus
B16: APA GasNet | C16: APA GasNet Australia (Operations) Pty Ltd | D16: 065083009 | E16: Vic | F16: Gas | G16: Transmission | H16: Weighted average price cap | I16: Calendar | J16: December | K16: 5 | L16: 5 | M16: x | O16: Level 19, HSBC Building | P16: 580 George Street | Q16: SYDNEY | R16: NSW | S16: 2000 | T16: PO Box R41 | V16: ROYAL EXCHANGE | W16: NSW | X16: 1225 | Z16: 02 9693 0000 | AN16: APA GasNet
B17: Ausgrid | C17: Ausgrid | D17: 67505337385 | E17: NSW | F17: Electricity | G17: Distribution | H17: Revenue cap | I17: Financial | J17: June | K17: 5 | L17: 5 | M17: 5 | N17: 2014-19 Distribution Determination | O17: 570 George St | Q17: SYDNEY | R17: NSW | S17: 2000 | Y17: John Thomson | Z17: (02) 9269 2312 | AA17: john.thomson@ausgrid.com.au | AC17: YES | AD17: YES | AE17: YES | AF17: YES | AG17: NO | AI17: CBD | AJ17: Urban | AK17: Short rural | AL17: Long rural | AN17: Ausgrid
B18: Ausgrid (Tx Assets) | C18: Ausgrid (Tx Assets) | D18: 67505337385 | E18: NSW | F18: Electricity | G18: Distribution | H18: Revenue cap | I18: Financial | J18: June | K18: 5 | L18: 5 | M18: 5 | N18: distribution determination | R18: NSW | AI18: CBD | AJ18: Urban | AK18: Short rural | AL18: Long rural | AN18: Ausgrid (Tx Assets)
B19: AusNet (D) | C19: AusNet Services (D) | D19: 91064651118 | E19: Vic | F19: Electricity | G19: Distribution | H19: Revenue cap | I19: Calendar | J19: December | K19: 5 | L19: 5 | M19: 2 | N19: 2016-20 Distribution Determination | O19: Level 32 | P19: 2 Southbank Boulevard | Q19: SOUTHBANK | R19: Vic | S19: 3006 | T19: Locked Bag 14051 | V19: MELBOURNE CITY MAIL CENTRE | W19: VIC | X19: 8001 | Y19: Hannah Williams | Z19: 03 9683 4088 | AA19: hwilliams@powercor.com.au | AD19: YES | AE19: YES | AF19: YES | AG19: NO | AI19: CBD | AJ19: Urban | AK19: Short rural | AL19: Long rural | AN19: AusNet (D)
B20: AusNet (Gas) | C20: AusNet Gas Services | D20: 086015036 | E20: Vic | F20: Gas | G20: Distribution | H20: Weighted average price cap | I20: Calendar | J20: December | K20: 5 | L20: 5 | M20: X | AN20: AusNet (Gas)
B21: AusNet (T) | C21: Ausnet Services (Transmission) Ltd | D21: 48116124362 | E21: Vic | F21: Electricity | G21: Transmission | H21: Revenue cap | I21: Financial | J21: March | K21: 5 | L21: 5 | M21: 2 | N21: transmission determination | O21: Level 32 | P21: 2 Southbank Boulevard | Q21: SOUTHBANK | R21: Vic | S21: 3006 | T21: Locked Bag 14051 | V21: MELBOURNE CITY MAIL CENTRE | W21: Vic | X21: 8001 | Y21: Clare Thompson | Z21: 03 9695 6670 | AA21: clare.e.thompson@ausnetservices.com.au | AI21: CBD | AJ21: Urban | AK21: Short rural | AL21: Long rural | AN21: AusNet (T)
B22: Australian Distribution Co. | C22: Australian Distribution Co. | D22: 11222333444 | E22: - | F22: Electricity | G22: Distribution | H22: Revenue cap | I22: Financial | J22: June | K22: 5 | L22: 5 | M22: 2 | N22: distribution determination | O22: 123 Straight Street | Q22: SYDNEY | R22: NSW | S22: 2000 | T22: PO Box 123 | V22: SYDNEY | W22: NSW | X22: 2000 | Y22: Bob Smith | Z22: 02 1234 5678 | AA22: bob@auselec.net.au | AI22: CBD | AJ22: Urban | AK22: Short rural | AL22: Long rural | AN22: Australian Distribution Co.
B23: Australian Distribution Co. (Vic) | C23: Australian Distribution Co. (Victoria) | D23: 11222333444 | E23: Vic | F23: Electricity | G23: Distribution | H23: Revenue cap | I23: Calendar | J23: December | K23: 5 | L23: 5 | M23: 2 | N23: distribution determination | O23: 123 Straight Street | Q23: MELBOURNE | R23: Vic | S23: 3000 | T23: PO Box 123 | V23: MELBOURNE | W23: VIC | X23: 3000 | Y23: Bob Smith | Z23: 02 1234 5678 | AA23: bob@auselec.net.au | AI23: CBD | AJ23: Urban | AK23: Short rural | AL23: Long rural | AN23: Australian Distribution Co. (Vic)
B24: Australian Transmission Co. | C24: Australian Transmission Co. | D24: 11222333444 | E24: - | F24: Electricity | G24: Transmission | H24: Revenue cap | I24: Financial | J24: June | K24: 5 | L24: 5 | M24: 5 | N24: transmission determination | O24: 123 Straight Street | Q24: SYDNEY | R24: NSW | S24: 2000 | T24: PO Box 123 | V24: SYDNEY | W24: NSW | X24: 2000 | Y24: Bob Smith | Z24: 02 1234 5678 | AA24: bob@auselec.net.au | AI24: CBD | AJ24: Urban | AK24: Short rural | AL24: Long rural | AN24: Australian Transmission Co.
B25: CitiPower | C25: CitiPower | D25: 76064651056 | E25: Vic | F25: Electricity | G25: Distribution | H25: Revenue cap | I25: Calendar | J25: December | K25: 5 | L25: 5 | M25: 2 | N25: 2016-20 Distribution Determination | O25: 40 Market Street | Q25: MELBOURNE | R25: Vic | S25: 3000 | T25: Locked Bag 14090 | V25: MELBOURNE | W25: VIC | X25: 8001 | Y25: Hannah Williams | Z25: 03 9683 4088 | AA25: hwilliams@powercor.com.au | AC25: YES | AD25: YES | AE25: NO | AF25: NO | AG25: NO | AI25: CBD | AJ25: Urban | AK25: Short rural | AL25: Long rural | AN25: CitiPower
B26: Directlink | C26: Directlink | D26: 16779340889 | E26: Qld | F26: Electricity | G26: Transmission | H26: Revenue cap | I26: Financial | J26: June | K26: 9 | L26: 5 | M26: 5 | N26: transmission determination | R26: NSW | AI26: CBD | AJ26: Urban | AK26: Short rural | AL26: Long rural | AN26: Directlink
B27: ElectraNet | C27: ElectraNet | D27: 41094482416 | E27: SA | F27: Electricity | G27: Transmission | H27: Revenue cap | I27: Financial | J27: June | K27: 5 | L27: 5 | M27: 5 | N27: transmission determination | O27: 52-55 East Terrace | P27: Rymill Park | Q27: ADELAIDE | R27: SA | S27: 5000 | T27: PO Box 7096 | U27: Hutt Street Post Office | V27: ADELAIDE | W27: SA | X27: 5000 | Y27: Bill Jackson | Z27: 08 8404 7969 | AA27: jackson.bill@electranet.com.au | AI27: CBD | AJ27: Urban | AK27: Short rural | AL27: Long rural | AN27: ElectraNet
B28: Endeavour Energy | C28: Endeavour Energy | D28: 59253130878 | E28: NSW | F28: Electricity | G28: Distribution | H28: Revenue cap | I28: Financial | J28: June | K28: 5 | L28: 5 | M28: 5 | N28: 2014-19 Distribution Determination | O28: 51 Huntingwood Drive | Q28: HUNTINGWOOD | R28: NSW | S28: 2148 | T28: PO Box 811 | V28: SEVEN HILLS | W28: NSW | X28: 1730 | Y28: Jon Hocking | Z28: 02 9853 4386 / 0407 348 156 | AA28: Jon.Hocking@Endeavourenergy.com.au | AC28: NO | AD28: YES | AE28: YES | AF28: YES | AG28: NO | AI28: CBD | AJ28: Urban | AK28: Short rural | AL28: Long rural | AN28: Endeavour Energy
B29: Energex | C29: Energex | D29: 40078849055 | E29: Qld | F29: Electricity | G29: Distribution | H29: Revenue cap | I29: Financial | J29: June | K29: 5 | L29: 5 | M29: 5 | N29: 2015-20 Distribution Determination | O29: 26 Reddacliff Street | Q29: NEWSTEAD | R29: Qld | S29: 4006 | T29: 26 Reddacliff Street | V29: NEWSTEAD | W29: QLD | X29: 4006 | Y29: Nicola Roscoe | Z29: 07 3664 5891 | AA29: nicolaroscoe@energex.com.au | AC29: YES | AD29: YES | AE29: YES | AF29: NO | AG29: NO | AI29: CBD | AJ29: Urban | AK29: Short rural | AL29: Long rural | AN29: Energex
B30: Ergon Energy | C30: Ergon Energy | D30: 50087646062 | E30: Qld | F30: Electricity | G30: Distribution | H30: Revenue cap | I30: Financial | J30: June | K30: 5 | L30: 5 | M30: 5 | N30: 2015-20 Distribution Determination | O30: 22 Walker Street | Q30: TOWNSVILLE | R30: Qld | S30: 4810 | T30: Po Box 264 | V30: FORTITUDE VALLEY | W30: QLD | X30: 4006 | Y30: Jenny Doyle, Group Manager Regulatory Affairs | Z30: (07) 3851 6416 | AA30: jenny.doyle@ergon.com.au | AC30: NO | AD30: YES | AE30: YES | AF30: YES | AG30: NO | AI30: CBD | AJ30: Urban | AK30: Short rural | AL30: Long rural | AN30: Ergon Energy
B31: Essential Energy | C31: Essential Energy | D31: 37428185226 | E31: NSW | F31: Electricity | G31: Distribution | H31: Revenue cap | I31: Financial | J31: June | K31: 5 | L31: 5 | M31: 5 | N31: 2014-19 Distribution Determination | O31: 8 Buller Street | Q31: PORT MACQUARIE | R31: NSW | S31: 2444 | T31: PO Box 5730 | V31: PORT MACQUARIE | W31: NSW | X31: 2444 | Y31: Catherine Waddell | Z31: 02 6338 3553 | AA31: catherine.waddell@essentialenergy.com.au | AE31: YES | AF31: YES | AG31: NO | AI31: CBD | AJ31: Urban | AK31: Short rural | AL31: Long rural | AN31: Essential Energy
B32: Jemena Electricity | C32: Jemena Electricity | D32: 82064651083 | E32: Vic | F32: Electricity | G32: Distribution | H32: Revenue cap | I32: Calendar | J32: December | K32: 5 | L32: 5 | M32: 2 | N32: 2016-20 Distribution Determination | O32: Level 16 | P32: 567 Collins Street | Q32: MELBOURNE | R32: VIC | S32: 3000 | T32: PO Box 16182 | V32: MELBOURNE | W32: VIC | X32: 8001 | Y32: Robert McMillan | Z32: 03 9173 7000 | AA32: robert.mcmillan@jemena.com.au | AE32: YES | AF32: NO | AG32: NO | AI32: CBD | AJ32: Urban | AK32: Short rural | AL32: Long rural | AN32: Jemena Electricity
B33: JGN | C33: Jemena Gas Networks (NSW) Ltd | D33: 003 004 322 | E33: NSW | F33: Gas | G33: Distribution | H33: Weighted average price cap | I33: Financial | J33: June | K33: 5 | L33: 5 | AN33: JGN
B34: Multinet Gas | C34: Multinet Gas (DB No.1) Pty Ltd (ACN 086 026 986), Multinet Gas (DB No.2) Pty Ltd (ACN 086 230 122) | D34: 086026986 | E34: Vic | F34: Gas | G34: Distribution | H34: Weighted average price cap | I34: Calendar | J34: December | K34: 5 | L34: 5 | M34: x | O34: 6 Nexus Court | Q34: MULGRAVE | R34: Vic | S34: 3149 | Y34: Stephanie McDougall | Z34: 03 8846 9538 | AA34: Stephanie.McDougall@ue.com.au | AN34: Multinet Gas
B35: Murraylink | C35: Murraylink | D35: 79181207909 | E35: SA | F35: Electricity | G35: Transmission | H35: Revenue cap | I35: Financial | J35: June | K35: 5 | L35: 5 | M35: 5 | N35: transmission determination | AI35: CBD | AJ35: Urban | AK35: Short rural | AL35: Long rural | AN35: Murraylink
B36: Power and Water | C36: Power and Water Corporation | D36: 15947352360 | E36: NT | F36: Electricity | G36: Distribution | H36: Revenue cap | I36: Financial | J36: June | K36: 11 | L36: 5 | M36: x | N36: distribution determination | O36: GPO Box 1921 | Q36: DARWIN | R36: NT | S36: 0801 | T36: GPO Box 1921 | V36: DARWIN | W36: NT | X36: 0801 | Y36: Lucy Moon | Z36: 08 8924 5822 | AA36: Lucy.Moon@powerwater.com.au | AC36: YES | AD36: YES | AE36: YES | AF36: YES | AG36: NO
B37: Powercor Australia | C37: Powercor Australia | D37: 89064651109 | E37: Vic | F37: Electricity | G37: Distribution | H37: Revenue cap | I37: Calendar | J37: December | K37: 5 | L37: 5 | M37: 2 | N37: 2016-20 Distribution Determination | O37: 40 Market Street | Q37: MELBOURNE | R37: Vic | S37: 3000 | T37: Locked bag 14090 | V37: MELBOURNE | W37: VIC | X37: 8001 | Y37: Hannah Williams | Z37: 03 9683 4088 | AA37: hwilliams@powercor.com.au | AE37: YES | AF37: YES | AG37: NO | AI37: CBD | AJ37: Urban | AK37: Short rural | AL37: Long rural | AN37: Powercor Australia
B38: Powerlink | C38: Queensland Electricity Transmission Corporation Limited trading as Powerlink Queensland | D38: 82078849233 | E38: Qld | F38: Electricity | G38: Transmission | H38: Revenue cap | I38: Financial | J38: June | K38: 5 | L38: 5 | M38: 5 | N38: transmission determination | O38: 33 Harold St | Q38: VIRGINIA | R38: Qld | S38: 4014 | T38: PO Box 1193 | V38: VIRGINIA | W38: QLD | X38: 4014 | Y38: Jennifer Harris | Z38: 07 3860 2667 | AA38: jharris@powerlink.com.au | AI38: CBD | AJ38: Urban | AK38: Short rural | AL38: Long rural | AN38: Powerlink
B39: Roma to Brisbane Pipeline | C39: APT Petroleum Pipelines Limited t/a Roma to Brisbane Pipeline | D39: 009 737 393 | E39: Qld | F39: Gas | G39: Transmission | H39: Weighted average price cap | I39: Financial | J39: June | K39: 5 | L39: 5 | M39: x | N39: n/a | AI39: CBD | AJ39: Urban | AK39: Short rural | AL39: Long rural | AN39: Roma to Brisbane Pipeline
B40: SA Power Networks | C40: SA Power Networks | D40: 13332330749 | E40: SA | F40: Electricity | G40: Distribution | H40: Revenue cap | I40: Financial | J40: June | K40: 5 | L40: 5 | M40: 5 | N40: 2015-20 Distribution Determination | O40: 1 Anzac Highway | Q40: KESWICK | R40: SA | S40: 5035 | T40: GPO Box 77 | V40: ADELAIDE | W40: SA | X40: 5000 | Y40: Damien O'Connor | Z40: 08 8404 5066 | AA40: damien.oconnor@sapowernetworks.com.au | AE40: YES | AF40: YES | AG40: NO | AI40: CBD | AJ40: Urban | AK40: Short rural | AL40: Long rural | AN40: SA Power Networks
B41: TasNetworks (D) | C41: TasNetworks (D) | D41: 24167357299 | E41: Tas | F41: Electricity | G41: Distribution | H41: Revenue cap | I41: Financial | J41: June | K41: 5 | L41: 5 | M41: 5 | N41: distribution determination | O41: 21 Kirksway Place | Q41: HOBART | R41: Tas | S41: 7000 | T41: GPO Box 191 | V41: HOBART | W41: Tas | X41: 7000 | Y41: Leigh Mayne | Z41: 03 6270 3691 | AA41: rrp2012@auroraenergy.com.au | AE41: YES | AF41: YES | AG41: YES | AI41: Critical Infrastructure | AJ41: High density commercial | AK41: Urban | AL41: High density rural | AM41: Low density rural | AN41: TasNetworks (D)
B42: TasNetworks (T) | C42: TasNetworks (T) | D42: 24167357299 | E42: Tas | F42: Electricity | G42: Transmission | H42: Revenue cap | I42: Financial | J42: June | K42: 5 | L42: 5 | M42: 5 | N42: transmission determination | O42: 1-7 Maria Street | Q42: LENAH VALLEY | R42: Tas | S42: 7008 | T42: PO Box 606 | V42: MOONAH | W42: Tas | X42: 7009 | Y42: Heath Dillon | Z42: 03 6274 3664 | AA42: heath.dillon@transend.com.au | AI42: CBD | AJ42: Urban | AK42: Short rural | AL42: Long rural | AN42: TasNetworks (T)
B43: TransGrid | C43: NSW Electricity Networks Operations Pty Ltd trading as TransGrid | D43: 609169959 | E43: NSW | F43: Electricity | G43: Transmission | H43: Revenue cap | I43: Financial | J43: June | K43: 5 | L43: 4 | M43: 5 | N43: transmission determination | O43: 180 Thomas Street | Q43: SYDNEY | R43: NSW | S43: 2000 | T43: PO Box A1000 | V43: SYDNEY SOUTH | W43: NSW | X43: 1235 | Y43: Garrie Chubb | Z43: 0408 210 221 | AA43: garrie.chubb@transgrid.com.au | AI43: CBD | AJ43: Urban | AK43: Short rural | AL43: Long rural | AN43: TransGrid
B44: United Energy | C44: United Energy | D44: 70064651029 | E44: Vic | F44: Electricity | G44: Distribution | H44: Revenue cap | I44: Calendar | J44: December | K44: 5 | L44: 5 | M44: 2 | N44: 2016-20 Distribution Determination | O44: Level 3 | P44: 6 Nexus Court | Q44: MULGRAVE | R44: Vic | S44: 3149 | T44: PO Box 449 | V44: MOUNT WAVERLEY | W44: VIC | X44: 3170 | Y44: Mathew Abraham | Z44: 03 8846 9758 | AA44: mathew.abraham@ue.com.au | AE44: YES | AF44: NO | AG44: NO | AI44: CBD | AJ44: Urban | AK44: Short rural | AL44: Long rural | AN44: United Energy
B45: Western Power (D) | C45: Western Power (D) | D45: 18540492861 | E45: WA | F45: Electricity | G45: Distribution | H45: Revenue cap | I45: Financial | J45: June | K45: 12 | L45: 4 | M45: x | N45: distribution determination | O45: 363 Wellington Street | Q45: PERTH | R45: WA | S45: 6000 | T45: GPO Box L921 | V45: PERTH | W45: WA | X45: 6842 | Y45: Judy Hunter | Z45: 08 9326 6239 | AA45: judy.hunter@westernpower.com.au | AE45: YES | AF45: YES | AG45: NO | AH45: NO | AI45: CBD | AJ45: Urban | AK45: Short rural | AL45: Long rural | AN45: Western Power (D)
B46: Western Power (T) | C46: Western Power (T) | D46: 18540492861 | E46: WA | F46: Electricity | G46: Transmission | H46: Revenue cap | I46: Financial | J46: June | K46: 12 | L46: 4 | M46: x | N46: transmission determination | O46: 363 Wellington Street | Q46: PERTH | R46: WA | S46: 6000 | T46: GPO Box L921 | V46: PERTH | W46: WA | X46: 6842 | Y46: Judy Hunter | Z46: 08 9326 6239 | AA46: judy.hunter@westernpower.com.au | AE46: YES | AF46: YES | AG46: NO | AI46: CBD | AJ46: Urban | AK46: Short rural | AL46: Long rural | AN46: Western Power (T)
W49: For EB & Reset RINs only | AC49: For AARs only
B50: The Reg Year Ending (dms_RYE) must be set to the last year of the regulatory period. For forecast data is is usually (FRCP_y5) for actual it is a single year (CRY). For historical actual data the RYE will need to be set manually in the business details sheet by setting the dms_Multiyear_flag to 1 and putting the correct value in 'dms_Specified_FinalYear. See cells C67:C68 | G50: =IF(dms_RPT="financial",VALUE(LEFT(CRCP_y1,4)-1)&"-"&TEXT(VALUE(RIGHT(CRCP_y1,2)-1),"00"),VALUE(LEFT(CRCP_y1,4)-1)) -> 2007-08 | L50: Drop down selector box for CA & Reset RINs. | M50: For CA & Reset RINs only | W50: for DNSP only | AC50: For DNSPs only | AI50: Reason for interruption | AJ50: dms_Reason_Interruption_Detailed | AK50: dms_Reason_Interruption
B51: dms_Model_List | C51: DELETE NR 'CRY' IF NOT AN ANNUAL RIN (EB, CA , ARR) | E51: dms_RYE_Formula_Result | L51: dms_0203_ProjectType | M51: dms_020303_01_UOM | N51: dms_020501_01_UOM | O51: dms_020501_02_UOM | P51: dms_020501_03_UOM | Q51: dms_020501_04_UOM | R51: dms_020603_01_UOM | S51: dms_020701_01_UOM | T51: dms_020701_02_UOM | U51: dms_040102_01_UOM | V51: dms_040102_04_UOM | W51: dms_030601_01_UOM | X51: dms_030601_02_UOM | Y51: dms_030701_01_UOM | Z51: dms_030702_01_UOM | AA51: dms_030703_01_UOM | AC51: dms_030605_UOM | AD51: dms_03060703_UOM | AI51: Animal | AJ51: Animal impact | AK51: Animal
B52: ARR | C52: ANNUAL REPORTING STATEMENT | E52: =LEFT(dms_SingleYear_FinalYear_Result,2)&RIGHT(dms_SingleYear_FinalYear_Result,2) -> 2009 | F52: =LEFT(dms_SingleYear_FinalYear_Result,2)&RIGHT(dms_SingleYear_FinalYear_Result,2) | H52: Formula errors are OK | L52: New line on new route - single circuit | M52: Circuit line length in km | N52: 0's | O52: 0's | P52: 0's | Q52: 0's | R52: 0's | S52: km | T52: km | U52: 0's | V52: days | W52: minutes/customer | X52: minutes/customer | Y52: Customer / km | Z52: % | AA52: km | AC52: number | AD52: number | AJ52: Animal nesting/burrowing, etc and other | AK52: Asset failure
B53: CA | C53: CATEGORY ANALYSIS | E53: =LEFT(dms_SingleYear_FinalYear_Result,2)&RIGHT(dms_SingleYear_FinalYear_Result,2) -> 2009 | F53: =LEFT(dms_SingleYear_FinalYear_Result,2)&RIGHT(dms_SingleYear_FinalYear_Result,2) | H53: Formula errors are OK | L53: New line on new route - dual circuit | M53: Circuit line length in km | N53: 0's | O53: 0's | P53: 0's | Q53: 0's | R53: 0's | S53: 0's | T53: 0's | U53: 0's | V53: 0's | W53: minutes/customer | X53: minutes/customer | Y53: MWh/customer | Z53: Number of spans | AC53: number | AD53: number | AJ53: Other | AK53: Other
B54: CPI | C54: CPI | L54: New line on new route - other | M54: Circuit line length in km | N54: MVA added | O54: MVA added | P54: MVA added | Q54: MVA added | R54: 0's | S54: km | T54: km | U54: 0's | V54: $0s | W54: interruptions/customer | X54: interruptions/customer | Y54: kVA / customer | Z54: Number of spans | AC54: number | AD54: number | AI54: Asset failure | AJ54: LV | AK54: Overloads
B55: EB | C55: ECONOMIC BENCHMARKING | E55: =LEFT(dms_SingleYear_FinalYear_Result,2)&RIGHT(dms_SingleYear_FinalYear_Result,2) -> 2009 | F55: =LEFT(dms_SingleYear_FinalYear_Result,2)&RIGHT(dms_SingleYear_FinalYear_Result,2) | H55: Formula errors are OK | L55: Line rebuild over existing route - single circuit | M55: Circuit line length in km | N55: 0's | O55: 0's | P55: 0's | Q55: 0's | R55: 0's | S55: km | T55: km | U55: $0s | V55: 0's | W55: interruptions/customer | X55: interruptions/customer | Z55: Number of spans | AC55: number | AD55: number | AJ55: Distribution substation | AK55: Planned
B56: PTRM | C56: POST TAX REVENUE MODEL | E56: =LEFT(dms_MultiYear_FinalYear_Result,2)&RIGHT(dms_MultiYear_FinalYear_Result,2) -> 2017 | F56: =LEFT(dms_MultiYear_FinalYear_Result,2)&RIGHT(dms_MultiYear_FinalYear_Result,2) | L56: Line rebuild over existing route - dual circuit | M56: Number | N56: total spend $0s | O56: total spend $0s | P56: total spend $0s | Q56: total spend $0s | R56: (per cent) | S56: 0's | T56: 0's | Z56: Number of spans | AC56: number | AD56: (per cent) | AJ56: HV | AK56: Network business
B57: Reset | C57: REGULATORY REPORTING STATEMENT | E57: =LEFT(dms_MultiYear_FinalYear_Result,2)&RIGHT(dms_MultiYear_FinalYear_Result,2) -> 2017 | F57: =LEFT(dms_MultiYear_FinalYear_Result,2)&RIGHT(dms_MultiYear_FinalYear_Result,2) | H57: Formula errors are OK | L57: Reconductor - Single circuit | M57: Number | N57: net circuit km added | O57: net circuit km added | P57: net circuit km added | Q57: net circuit km added | S57: years | T57: years | Z57: Years | AC57: number | AJ57: Zone substation | AK57: Third party
B58: RFM | C58: ROLL FORWARD MODEL | E58: =LEFT(dms_CRCP_FinalYear_Result,2)&RIGHT(dms_CRCP_FinalYear_Result,2) -> 2017 | F58: =LEFT(dms_CRCP_FinalYear_Result,2)&RIGHT(dms_CRCP_FinalYear_Result,2) | L58: Reconductor - Dual circuit | M58: Number | N58: total spend $0s | O58: total spend $0s | P58: total spend $0s | Q58: total spend $0s | Z58: Years | AC58: number | AJ58: Subtransmission | AK58: Unknown
B59: WACC | C59: WEIGHTED AVERAGE COST OF CAPITAL | E59: =LEFT(dms_MultiYear_FinalYear_Result,2)&RIGHT(dms_MultiYear_FinalYear_Result,2) -> 2017 | F59: =LEFT(dms_MultiYear_FinalYear_Result,2)&RIGHT(dms_MultiYear_FinalYear_Result,2) | L59: Other | N59: net circuit km added | O59: net circuit km added | P59: net circuit km added | Q59: net circuit km added | Z59: Trees | AC59: number | AI59: Other | AJ59: insert description of 'other' | AK59: Vegetation
N60: total spend $0s | O60: total spend $0s | P60: total spend $0s | Q60: total spend $0s | Z60: Trees | AC60: number | AI60: Overloads | AJ60: - | AK60: Weather
B61: dms_DataQuality_List | N61: 0's | P61: $0s | Z61: Defects | AC61: number | AI61: Planned | AJ61: - | AK61: 2 - STPIS Exclusion (3.3)(a)
B62: Actual | N62: 0's | Z62: Defects | AC62: number | AI62: Network business | AJ62: Network error | AK62: 3 - STPIS Exclusion (3.3)(a)
B63: Estimate | N63: 0's | Z63: Spans | AC63: number | AJ63: Switching and protection error | AK63: 4 - STPIS Exclusion (3.3)(a)
B64: Consolidated | N64: $0s | Z64: km | AC64: (per cent) | AI64: Third party | AJ64: Fire | AK64: 5 - STPIS Exclusion (3.3)(a)
B65: Recast | Z65: Spans | AC65: (per cent) | AJ65: Other | AK65: 6 - STPIS Exclusion (3.3)(a)
B66: Public | AJ66: Dig-in | AK66: 7 - STPIS Exclusion (3.3)(a)
AJ67: Unauthorised access
B68: For all files either AER or business needs to be able to specify the type of submission | C68: For PTRM & RFM templates we must provide a choice in case they change their form of control - otherwise it is drawn from the business specific lookup table above. | O68: For PTRM files - this field set the text for the named range "DMS_Xfactor" which in all cases is simply the text "x factors" - this saves putting in each old gas PTRM file | W68: for TNSP only | AJ68: Vehicle impact
B69: dms_SourceList | C69: dms_FormControl_Choices | O69: DMS_Xfactor | W69: dms_030601_01_UOM | Y69: dms_030701_01_UOM | Z69: dms_030702_01_UOM | AI69: Unknown | AJ69: Unknown
B70: After appeal | C70: Revenue cap | O70: x factors | W70: % | Y70: Number of spans | Z70: km | AI70: Vegetation | AJ70: Blow-in/Fall-in - NSP responsibility
B71: Draft decision | C71: Revenue yield | W71: number | Y71: Years | Z71: % | AJ71: Grow-in - NSP responsibility
B72: Final decision | C72: Weighted average price cap | W72: number | Y72: Trees | Z72: km | AJ72: Blow-in/Fall-in - Other responsible party
B73: PTRM update 1 | W73: % | Y73: Defects | Z73: number | AJ73: Grow-in - Other responsible party
B74: PTRM update 2 | W74: number | Y74: Number of spans | AI74: Weather
B75: PTRM update 3 | W75: number | Y75: km | AI75: 2 - STPIS Exclusion (3.3)(a)
B76: PTRM update 4 | W76: % | Y76: km | AI76: 3 - STPIS Exclusion (3.3)(a)
B77: PTRM update 5 | W77: number | Y77: Number of spans | AI77: 4 - STPIS Exclusion (3.3)(a)
B78: PTRM update 6 | W78: number | AI78: 5 - STPIS Exclusion (3.3)(a)
B79: PTRM update 7 | W79: % | AI79: 6 - STPIS Exclusion (3.3)(a)
B80: Regulatory proposal | W80: number | AI80: 7 - STPIS Exclusion (3.3)(a)
B81: Reporting | W81: %
B82: Revised regulatory proposal | W82: number
W83: %
W84: number
B88: These are indeces and lookup values for various dates. All step from the value placed in FRCP_y1 on the business and other details worksheet | L88: These date tables are currently used in the Recast templates to provide column headings and conditional formatting
B89: dms_FRCPlength_Num_List | C89: dms_FinalYear_List | D89: dms_CRCPlength_Num_List | E89: dms_CFinalYear_List | F89: dms_FRCP_years | H89: dms_CRCP_years | J89: dms_CRCP_index | L89: CRY from input cell on business sheet | M89: CRY - financial | N89: dms_FinYears | O89: CRY calendar | P89: dms_CalYears
B90: 1 | C90: dms_FRCP_y1 | D90: 1 | E90: CRCP_y1 | F90: =FRCP_y1 -> 2019-20 | G90: dms_FRCP_y1 | H90: =IF(dms_RPT="financial",VALUE(LEFT(dms_FRCP_y1,4)-1)&"-"&TEXT(VALUE(MID(dms_FRCP_y1,3,2)),"00"),VALUE(LEFT(dms_FRCP_y1,4)-1)) -> 2018-19 | I90: dms_CRCP_yZ | J90: 1 | L90: =CRY -> 2008-09 | M90: =VALUE(LEFT(CRY,4))&"-"&TEXT(MID(CRY,3,2)+1,"00") -> 2008-09 | N90: dms_CRYf_y1 | O90: =VALUE(LEFT(CRY,4)+1) -> 2009 | P90: dms_CRYc_y1
B91: 2 | C91: dms_FRCP_y2 | D91: 2 | E91: CRCP_y2 | F91: =IF(dms_RPT="financial",VALUE(LEFT(dms_FRCP_y1,4)+1)&"-"&TEXT(VALUE(RIGHT(dms_FRCP_y1,2)+1),"00"),VALUE(LEFT(dms_FRCP_y1,4)+1)) -> 2020-21 | G91: dms_FRCP_y2 | H91: =IF(dms_RPT="financial",VALUE(LEFT(dms_CRCP_yZ,4)-1)&"-"&TEXT(VALUE(MID(dms_CRCP_yZ,3,2)),"00"),VALUE(LEFT(dms_CRCP_yZ,4)-1)) -> 2017-18 | I91: dms_CRCP_yY | J91: 2 | M91: =VALUE(LEFT(dms_CRYf_y1,4)+1)&"-"&TEXT(MID(dms_CRYf_y1,3,2)+2,"00") -> 2009-10 | N91: dms_CRYf_y2 | O91: =VALUE(LEFT(dms_CRYc_y1,4)+1) -> 2010 | P91: dms_CRYc_y2
B92: 3 | C92: dms_FRCP_y3 | D92: 3 | E92: CRCP_y3 | F92: =IF(dms_RPT="financial",VALUE(LEFT(dms_FRCP_y2,4)+1)&"-"&TEXT(VALUE(RIGHT(dms_FRCP_y2,2)+1),"00"),VALUE(LEFT(dms_FRCP_y2,4)+1)) -> 2021-22 | G92: dms_FRCP_y3 | H92: =IF(dms_RPT="financial",VALUE(LEFT(dms_CRCP_yY,4)-1)&"-"&TEXT(VALUE(MID(dms_CRCP_yY,3,2)),"00"),VALUE(LEFT(dms_CRCP_yY,4)-1)) -> 2016-17 | I92: dms_CRCP_yX | J92: 3 | M92: =VALUE(LEFT(dms_CRYf_y2,4)+1)&"-"&TEXT(MID(dms_CRYf_y2,3,2)+2,"00") -> 2010-11 | N92: dms_CRYf_y3 | O92: =VALUE(LEFT(dms_CRYc_y2,4)+1) -> 2011 | P92: dms_CRYc_y3
B93: 4 | C93: dms_FRCP_y4 | D93: 4 | E93: CRCP_y4 | F93: =IF(dms_RPT="financial",VALUE(LEFT(dms_FRCP_y3,4)+1)&"-"&TEXT(VALUE(RIGHT(dms_FRCP_y3,2)+1),"00"),VALUE(LEFT(dms_FRCP_y3,4)+1)) -> 2022-23 | G93: dms_FRCP_y4 | H93: =IF(dms_RPT="financial",VALUE(LEFT(dms_CRCP_yX,4)-1)&"-"&TEXT(VALUE(MID(dms_CRCP_yX,3,2)),"00"),VALUE(LEFT(dms_CRCP_yX,4)-1)) -> 2015-16 | I93: dms_CRCP_yW | J93: 4 | M93: =VALUE(LEFT(dms_CRYf_y3,4)+1)&"-"&TEXT(MID(dms_CRYf_y3,3,2)+2,"00") -> 2011-12 | N93: dms_CRYf_y4 | O93: =VALUE(LEFT(dms_CRYc_y3,4)+1) -> 2012 | P93: dms_CRYc_y4
B94: 5 | C94: dms_FRCP_y5 | D94: 5 | E94: CRCP_y5 | F94: =IF(dms_RPT="financial",VALUE(LEFT(dms_FRCP_y4,4)+1)&"-"&TEXT(VALUE(RIGHT(dms_FRCP_y4,2)+1),"00"),VALUE(LEFT(dms_FRCP_y4,4)+1)) -> 2023-24 | G94: dms_FRCP_y5 | H94: =IF(dms_RPT="financial",VALUE(LEFT(dms_CRCP_yW,4)-1)&"-"&TEXT(VALUE(MID(dms_CRCP_yW,3,2)),"00"),VALUE(LEFT(dms_CRCP_yW,4)-1)) -> 2014-15 | I94: dms_CRCP_yV | J94: 5 | M94: =VALUE(LEFT(dms_CRYf_y4,4)+1)&"-"&TEXT(MID(dms_CRYf_y4,3,2)+2,"00") -> 2012-13 | N94: dms_CRYf_y5 | O94: =VALUE(LEFT(dms_CRYc_y4,4)+1) -> 2013 | P94: dms_CRYc_y5
B95: 6 | C95: dms_FRCP_y6 | D95: 6 | E95: CRCP_y6 | F95: =IF(dms_RPT="financial",VALUE(LEFT(dms_FRCP_y5,4)+1)&"-"&TEXT(VALUE(RIGHT(dms_FRCP_y5,2)+1),"00"),VALUE(LEFT(dms_FRCP_y5,4)+1)) -> 2024-25 | G95: dms_FRCP_y6 | H95: =IF(dms_RPT="financial",VALUE(LEFT(dms_CRCP_yV,4)-1)&"-"&TEXT(VALUE(MID(dms_CRCP_yV,3,2)),"00"),VALUE(LEFT(dms_CRCP_yV,4)-1)) -> 2013-14 | I95: dms_CRCP_yU | J95: 6 | M95: =VALUE(LEFT(dms_CRYf_y5,4)+1)&"-"&TEXT(MID(dms_CRYf_y5,3,2)+2,"00") -> 2013-14 | N95: dms_CRYf_y6 | O95: =VALUE(LEFT(dms_CRYc_y5,4)+1) -> 2014 | P95: dms_CRYc_y6
B96: 7 | C96: dms_FRCP_y7 | D96: 7 | E96: CRCP_y7 | F96: =IF(dms_RPT="financial",VALUE(LEFT(dms_FRCP_y6,4)+1)&"-"&TEXT(VALUE(RIGHT(dms_FRCP_y6,2)+1),"00"),VALUE(LEFT(dms_FRCP_y6,4)+1)) -> 2025-26 | G96: dms_FRCP_y7 | H96: =IF(dms_RPT="financial",VALUE(LEFT(dms_CRCP_yU,4)-1)&"-"&TEXT(VALUE(MID(dms_CRCP_yU,3,2)),"00"),VALUE(LEFT(dms_CRCP_yU,4)-1)) -> 2012-13 | I96: dms_CRCP_yT | J96: 7 | M96: =VALUE(LEFT(dms_CRYf_y6,4)+1)&"-"&TEXT(MID(dms_CRYf_y6,3,2)+2,"00") -> 2014-15 | N96: dms_CRYf_y7 | O96: =VALUE(LEFT(dms_CRYc_y6,4)+1) -> 2015 | P96: dms_CRYc_y7
B97: 8 | C97: dms_FRCP_y8 | D97: 8 | E97: CRCP_y8 | F97: =IF(dms_RPT="financial",VALUE(LEFT(dms_FRCP_y7,4)+1)&"-"&TEXT(VALUE(RIGHT(dms_FRCP_y7,2)+1),"00"),VALUE(LEFT(dms_FRCP_y7,4)+1)) -> 2026-27 | G97: dms_FRCP_y8 | H97: =IF(dms_RPT="financial",VALUE(LEFT(dms_CRCP_yT,4)-1)&"-"&TEXT(VALUE(MID(dms_CRCP_yT,3,2)),"00"),VALUE(LEFT(dms_CRCP_yT,4)-1)) -> 2011-12 | I97: dms_CRCP_yS | J97: 8 | M97: =VALUE(LEFT(dms_CRYf_y7,4)+1)&"-"&TEXT(MID(dms_CRYf_y7,3,2)+2,"00") -> 2015-16 | N97: dms_CRYf_y8 | O97: =VALUE(LEFT(dms_CRYc_y7,4)+1) -> 2016 | P97: dms_CRYc_y8
B98: 9 | C98: dms_FRCP_y9 | D98: 9 | E98: CRCP_y9 | F98: =IF(dms_RPT="financial",VALUE(LEFT(dms_FRCP_y8,4)+1)&"-"&TEXT(VALUE(RIGHT(dms_FRCP_y8,2)+1),"00"),VALUE(LEFT(dms_FRCP_y8,4)+1)) -> 2027-28 | G98: dms_FRCP_y9 | H98: =IF(dms_RPT="financial",VALUE(LEFT(dms_CRCP_yS,4)-1)&"-"&TEXT(VALUE(MID(dms_CRCP_yS,3,2)),"00"),VALUE(LEFT(dms_CRCP_yS,4)-1)) -> 2010-11 | I98: dms_CRCP_yR | J98: 9 | M98: =VALUE(LEFT(dms_CRYf_y8,4)+1)&"-"&TEXT(MID(dms_CRYf_y8,3,2)+2,"00") -> 2016-17 | N98: dms_CRYf_y9 | O98: =VALUE(LEFT(dms_CRYc_y8,4)+1) -> 2017 | P98: dms_CRYc_y9
B99: 10 | C99: dms_FRCP_y10 | D99: 10 | E99: CRCP_y10 | F99: =IF(dms_RPT="financial",VALUE(LEFT(dms_FRCP_y9,4)+1)&"-"&TEXT(VALUE(RIGHT(dms_FRCP_y9,2)+1),"00"),VALUE(LEFT(dms_FRCP_y9,4)+1)) -> 2028-29 | G99: dms_FRCP_y10 | H99: =IF(dms_RPT="financial",VALUE(LEFT(dms_CRCP_yR,4)-1)&"-"&TEXT(VALUE(MID(dms_CRCP_yR,3,2)),"00"),VALUE(LEFT(dms_CRCP_yR,4)-1)) -> 2009-10 | I99: dms_CRCP_yQ | J99: 10 | M99: =VALUE(LEFT(dms_CRYf_y9,4)+1)&"-"&TEXT(MID(dms_CRYf_y9,3,2)+2,"00") -> 2017-18 | N99: dms_CRYf_y10 | O99: =VALUE(LEFT(dms_CRYc_y9,4)+1) -> 2018 | P99: dms_CRYc_y10
B100: 11 | C100: dms_FRCP_y11 | D100: 11 | E100: CRCP_y11 | F100: =IF(dms_RPT="financial",VALUE(LEFT(dms_FRCP_y10,4)+1)&"-"&TEXT(VALUE(RIGHT(dms_FRCP_y10,2)+1),"00"),VALUE(LEFT(dms_FRCP_y10,4)+1)) -> 2029-30 | G100: dms_FRCP_y11 | H100: =IF(dms_RPT="financial",VALUE(LEFT(dms_CRCP_yQ,4)-1)&"-"&TEXT(VALUE(MID(dms_CRCP_yQ,3,2)),"00"),VALUE(LEFT(dms_CRCP_yQ,4)-1)) -> 2008-09 | I100: dms_CRCP_yP | J100: 11 | M100: =VALUE(LEFT(dms_CRYf_y10,4)+1)&"-"&TEXT(MID(dms_CRYf_y10,3,2)+2,"00") -> 2018-19 | N100: dms_CRYf_y11 | O100: =VALUE(LEFT(dms_CRYc_y10,4)+1) -> 2019 | P100: dms_CRYc_y11
B101: 12 | C101: dms_FRCP_y12 | D101: 12 | E101: CRCP_y12 | F101: =IF(dms_RPT="financial",VALUE(LEFT(dms_FRCP_y11,4)+1)&"-"&TEXT(VALUE(RIGHT(dms_FRCP_y11,2)+1),"00"),VALUE(LEFT(dms_FRCP_y11,4)+1)) -> 2030-31 | G101: dms_FRCP_y12 | H101: =IF(dms_RPT="financial",VALUE(LEFT(dms_CRCP_yP,4)-1)&"-"&TEXT(VALUE(MID(dms_CRCP_yP,3,2)),"00"),VALUE(LEFT(dms_CRCP_yP,4)-1)) -> 2007-08 | I101: dms_CRCP_yO | J101: 12 | M101: =VALUE(LEFT(dms_CRYf_y11,4)+1)&"-"&TEXT(MID(dms_CRYf_y11,3,2)+2,"00") -> 2019-20 | N101: dms_CRYf_y12 | O101: =VALUE(LEFT(dms_CRYc_y11,4)+1) -> 2020 | P101: dms_CRYc_y12
B102: 13 | C102: dms_FRCP_y13 | D102: 13 | E102: CRCP_y13 | F102: =IF(dms_RPT="financial",VALUE(LEFT(dms_FRCP_y12,4)+1)&"-"&TEXT(VALUE(RIGHT(dms_FRCP_y12,2)+1),"00"),VALUE(LEFT(dms_FRCP_y12,4)+1)) -> 2031-32 | G102: dms_FRCP_y13 | H102: =IF(dms_RPT="financial",VALUE(LEFT(dms_CRCP_yO,4)-1)&"-"&TEXT(VALUE(MID(dms_CRCP_yO,3,2)),"00"),VALUE(LEFT(dms_CRCP_yO,4)-1)) -> 2006-07 | I102: dms_CRCP_yN | J102: 13 | M102: =VALUE(LEFT(dms_CRYf_y12,4)+1)&"-"&TEXT(MID(dms_CRYf_y12,3,2)+2,"00") -> 2020-21 | N102: dms_CRYf_y13 | O102: =VALUE(LEFT(dms_CRYc_y12,4)+1) -> 2021 | P102: dms_CRYc_y13
B103: 14 | C103: dms_FRCP_y14 | D103: 14 | E103: CRCP_y14 | F103: =IF(dms_RPT="financial",VALUE(LEFT(dms_FRCP_y13,4)+1)&"-"&TEXT(VALUE(RIGHT(dms_FRCP_y13,2)+1),"00"),VALUE(LEFT(dms_FRCP_y13,4)+1)) -> 2032-33 | G103: dms_FRCP_y14 | H103: =IF(dms_RPT="financial",VALUE(LEFT(dms_CRCP_yN,4)-1)&"-"&TEXT(VALUE(MID(dms_CRCP_yN,3,2)),"00"),VALUE(LEFT(dms_CRCP_yN,4)-1)) -> 2005-06 | I103: dms_CRCP_yM | J103: 14 | M103: =VALUE(LEFT(dms_CRYf_y13,4)+1)&"-"&TEXT(MID(dms_CRYf_y13,3,2)+2,"00") -> 2021-22 | N103: dms_CRYf_y14 | O103: =VALUE(LEFT(dms_CRYc_y13,4)+1) -> 2022 | P103: dms_CRYc_y14
B104: 15 | C104: dms_FRCP_y15 | D104: 15 | E104: CRCP_y15 | F104: =IF(dms_RPT="financial",VALUE(LEFT(dms_FRCP_y14,4)+1)&"-"&TEXT(VALUE(RIGHT(dms_FRCP_y14,2)+1),"00"),VALUE(LEFT(dms_FRCP_y14,4)+1)) -> 2033-34 | G104: dms_FRCP_y15 | H104: =IF(dms_RPT="financial",VALUE(LEFT(dms_CRCP_yM,4)-1)&"-"&TEXT(VALUE(MID(dms_CRCP_yM,3,2)),"00"),VALUE(LEFT(dms_CRCP_yM,4)-1)) -> 2004-05 | I104: dms_CRCP_yL | J104: 15 | M104: =VALUE(LEFT(dms_CRYf_y14,4)+1)&"-"&TEXT(MID(dms_CRYf_y14,3,2)+2,"00") -> 2022-23 | N104: dms_CRYf_y15 | O104: =VALUE(LEFT(dms_CRYc_y14,4)+1) -> 2023 | P104: dms_CRYc_y15
M105: =VALUE(LEFT(dms_CRYf_y15,4)+1)&"-"&TEXT(MID(dms_CRYf_y15,3,2)+2,"00") -> 2023-24 | N105: dms_CRYf_y16 | O105: =VALUE(LEFT(dms_CRYc_y15,4)+1) -> 2024 | P105: dms_CRYc_y16
B106: These are drop down lists for businesses to select the correct FRCP_y1 on the business and other details worksheet. This also populates the column headings in the worksheets | M106: =VALUE(LEFT(dms_CRYf_y16,4)+1)&"-"&TEXT(MID(dms_CRYf_y16,3,2)+2,"00") -> 2024-25 | N106: dms_CRYf_y17 | O106: =VALUE(LEFT(dms_CRYc_y16,4)+1) -> 2025 | P106: dms_CRYc_y17
B107: dms_RCP_fyear_list | C107: dms_CRY_ListF | D107: dms_CRY_ListC | E107: dms_RCP_cyear_list | F107: dms_FRCP_fyear_list | G107: dms_FRCP_ListF | H107: dms_FRCP_ListC | I107: dms_FRCP_cyear_list | M107: =VALUE(LEFT(dms_CRYf_y17,4)+1)&"-"&TEXT(MID(dms_CRYf_y17,3,2)+2,"00") -> 2025-26 | N107: dms_CRYf_y18 | O107: =VALUE(LEFT(dms_CRYc_y17,4)+1) -> 2026 | P107: dms_CRYc_y18
B108: dms_fy1 | C108: 2005-06 | D108: 2006 | E108: dms_cy1 | F108: dms_frcp_fy1 | G108: 2016-17 | H108: 2017 | I108: dms_crcp_cy1 | M108: =VALUE(LEFT(dms_CRYf_y18,4)+1)&"-"&TEXT(MID(dms_CRYf_y18,3,2)+2,"00") -> 2026-27 | N108: dms_CRYf_y19 | O108: =VALUE(LEFT(dms_CRYc_y18,4)+1) -> 2027 | P108: dms_CRYc_y19
B109: dms_fy2 | C109: 2006-07 | D109: 2007 | E109: dms_cy2 | F109: dms_frcp_fy2 | G109: 2017-18 | H109: 2018 | I109: dms_crcp_cy2 | M109: =VALUE(LEFT(dms_CRYf_y19,4)+1)&"-"&TEXT(MID(dms_CRYf_y19,3,2)+2,"00") -> 2027-28 | N109: dms_CRYf_y20 | O109: =VALUE(LEFT(dms_CRYc_y19,4)+1) -> 2028 | P109: dms_CRYc_y20
B110: dms_fy3 | C110: 2007-08 | D110: 2008 | E110: dms_cy3 | F110: dms_frcp_fy3 | G110: 2018-19 | H110: 2019 | I110: dms_crcp_cy3
B111: dms_fy4 | C111: 2008-09 | D111: 2009 | E111: dms_cy4 | F111: dms_frcp_fy4 | G111: 2019-20 | H111: 2020 | I111: dms_crcp_cy4
B112: dms_fy5 | C112: 2009-10 | D112: 2010 | E112: dms_cy5 | F112: dms_frcp_fy5 | G112: 2020-21 | H112: 2021 | I112: dms_crcp_cy5
B113: dms_fy6 | C113: 2010-11 | D113: 2011 | E113: dms_cy6 | F113: dms_frcp_fy6 | G113: 2021-22 | H113: 2022 | I113: dms_crcp_cy6
B114: dms_fy7 | C114: 2011-12 | D114: 2012 | E114: dms_cy7 | F114: dms_frcp_fy7 | G114: 2022-23 | H114: 2023 | I114: dms_crcp_cy7
B115: dms_fy8 | C115: 2012-13 | D115: 2013 | E115: dms_cy8 | F115: dms_frcp_fy8 | G115: 2023-24 | H115: 2024 | I115: dms_crcp_cy8 | L115: 2005-06 | M115: 2006
B116: dms_fy9 | C116: 2013-14 | D116: 2014 | E116: dms_cy9 | F116: dms_frcp_fy9 | G116: 2024-25 | H116: 2025 | I116: dms_crcp_cy9 | L116: 2006-07 | M116: 2007
B117: dms_fy10 | C117: 2014-15 | D117: 2015 | E117: dms_cy10 | F117: dms_frcp_fy10 | G117: 2025-26 | H117: 2026 | I117: dms_crcp_cy10 | L117: 2007-08 | M117: 2008
B118: dms_fy11 | C118: 2015-16 | D118: 2016 | E118: dms_cy11 | F118: dms_frcp_fy11 | G118: 2026-27 | H118: 2027 | I118: dms_crcp_cy11 | L118: 2008-09 | M118: 2009
B119: dms_fy12 | C119: 2016-17 | D119: 2017 | E119: dms_cy12 | F119: dms_frcp_fy12 | G119: 2027-28 | H119: 2028 | I119: dms_crcp_cy12 | L119: 2009-10 | M119: 2010
B120: dms_fy13 | C120: 2017-18 | D120: 2018 | E120: dms_cy13 | F120: dms_frcp_fy13 | G120: 2028-29 | H120: 2029 | I120: dms_crcp_cy13 | L120: 2010-11 | M120: 2011
B121: dms_fy14 | C121: 2018-19 | D121: 2019 | E121: dms_cy14 | F121: dms_frcp_fy14 | G121: 2029-30 | H121: 2030 | I121: dms_crcp_cy14 | L121: 2011-12 | M121: 2012
B122: dms_fy15 | C122: 2019-20 | D122: 2020 | E122: dms_cy15 | F122: dms_frcp_fy15 | G122: 2030-31 | H122: 2031 | I122: dms_crcp_cy15 | L122: 2012-13 | M122: 2013
B123: dms_fy16 | C123: 2019-20 | D123: 2020 | E123: dms_cy16 | L123: 2013-14 | M123: 2014
B124: dms_fy17 | C124: 2020-21 | D124: 2021 | E124: dms_cy17 | L124: 2014-15 | M124: 2015
B125: dms_fy18 | C125: 2021-22 | D125: 2022 | E125: dms_cy18 | L125: 2015-16 | M125: 2016
B126: dms_fy19 | C126: 2022-23 | D126: 2023 | E126: dms_cy19 | L126: 2016-17 | M126: 2017
B127: dms_fy20 | C127: 2023-24 | D127: 2024 | E127: dms_cy20 | L127: 2017-18 | M127: 2018
L128: 2018-19 | M128: 2019
L129: 2019-20 | M129: 2020
L130: 2020-21 | M130: 2021
L131: 2021-22 | M131: 2022
L132: 2022-23 | M132: 2023
L133: 2023-24 | M133: 2024
L134: 2024-25 | M134: 2025
L135: 2025-26 | M135: 2026
L136: 2026-27 | M136: 2027
L137: 2027-28 | M137: 2028
L138: 2028-29 | M138: 2029
L139: 2029-30 | M139: 2030
L140: 2030-31 | M140: 2031
L141: 2031-32 | M141: 2032
L142: 2032-33 | M142: 2033
L143: 2033-34 | M143: 2034
L144: 2034-35 | M144: 2035
L145: 2035-36 | M145: 2036

Sheet Contents
B1: REGULATORY REPORTING STATEMENT
B2: =INDEX(dms_TradingNameFull_List,MATCH(dms_TradingName,dms_TradingName_List)) -> Power and Water Corporation
B3: =CONCATENATE((LOOKUP(dms_Model,dms_Model_List,dms_Worksheet_List))&" "&CRY) -> CATEGORY ANALYSIS 2008-09
B4: CONTENTS
E7: 1. Business details | L7: 2. Expenditure
E27: 4. Alternative control services | L27: 5. Network information | S27: 6. Service & quality
L34: 8. Capex | S34: 9. TAX

Sheet Instructions
B2: =CONCATENATE(dms_Segment," Network Service Provider") -> Distribution Network Service Provider
B3: Historical Reporting RIN Template
C4: =CONCATENATE("This template is to be used by ",dms_TradingName," to fulfil its reporting obligations to the AER.") -> This template is to be used by Power and Water to fulfil its reporting obligations to the AER.
C5: INSTRUCTIONS
C6: Complete the Business & other details worksheet before entering data or values in any other worksheets. The Business & other details worksheet is linked to other worksheets within the workbook and automatically generates certain column headings and conditional formatting.
C8: Identifying CONFIDENTIAL INFORMATION: Please use the macro at the top of each worksheet to identify confidential information.
C9: -Do this by selecting the cell or cells that contain confidential information and then run the Mark selection CONFIDENTIAL macro. This will format the cells a specific colour that is identified by the AER's database which in turn marks that information as confidential. -To reverse this, select the cell or cells and run the Return selection to NON-CONFIDENTIAL macro.
C11: UNITS OF MEASURE All amounts are to be unrounded and reported on a one for one basis: that is 1000 is to be entered as '1000'. Applicable units of measure may be identified in the table column headings or row descriptors.
C13: COLOUR CODING OF INPUT / NON-INPUT CELLS:
D14: Yellow = Input cell (mandatory)
D15: Darker yellow = input cell (mandatory)
D16: Orange = input cell (if data available)
D17: Grey = Not applicable/No inputs required
D18: PLEASE DO NOT ENTER TEXT into cells that are to contain numeric data.
C21: WORKSHEET NAVIGATION Many tables in the worksheets have been "grouped" to allow for easy navigation. To ungroup or group data use the outline symbols in the left margin of excel (for Row groupings) or above the columns (for column groupings).
C23: RETURNING COMPLETED RESPONSES Please return two (2) files to the AER: 1. A confidential version which must contain a complete set of all responses with confidential information marked using the Mark selected cells CONFIDENTIAL macro and which has been completed using the locked template file provided by the AER. 2. A public version with confidential information either removed completely or aggregated in some form together with writtten consent to disclose the public version of the response. Use the drop down box on the Business and other details worksheet to identify the file as either confidential ('consolidated') or public.
C25: SUBMITTING AMENDED DATA TO THE AER If an NSP wishes to correct data previously submitted to the AER it should resubmit that data using the original completed submission as the starting point. Please make any necessary changes to the data. Data that is not being amended should be left unchanged. NSPs must identify the reason for the amendments in the Amendment Reason box on the Business and other details worksheet. NSPs may provide further details regarding any amendments in the Amendments worksheet. .
C26: NSP may use Amended Data macro to highlight cells that contain amended data. NB: if data is also CONFIDENTIAL, re-apply the Confidentiality macro after applying the Amended macro
C27: Please resubmit two (2) files - a confidential version and a public version of the amended submission to the AER

Sheet Business & other details
B1: REGULATORY REPORTING STATEMENT
B2: =INDEX(dms_TradingNameFull_List,MATCH(dms_TradingName,dms_TradingName_List)) -> Power and Water Corporation
B3: =(IF(dms_DataQuality="recast",INDEX(dms_Worksheet_List,MATCH(dms_Model,dms_Model_List))&" ",INDEX(dms_Worksheet_List,MATCH(dms_Model,dms_Model_List))))&" "&(IF(SUM(dms_SingleYear_Model)>0,CRY,CONCATENATE(" ",dms_CRCP_FirstYear_Result," to ",dms_CRCP_FinalYear_Result))) -> CATEGORY ANALYSIS 2008-09 to 2016-17
B4: BUSINESS & OTHER DETAILS
B7: Instructions
B8: Complete the following business details regulatory template before entering data or values in any other regulatory template. This regulatory template is linked to other cells within the spreadsheet and automatically generates column headings.
B10: SUBMISSION PARTICULARS INPUT SHEETS
B12: ENTITY DETAILS
B14: Short name | C14: Power and Water
B15: ACN / ABN | C15: =INDEX(dms_ABN_List,MATCH(dms_TradingName,dms_TradingName_List)) -> 15947352360
B18: Business address | C18: Address 1 | E18: =INDEX(dms_Addr1_List,MATCH(dms_TradingName,dms_TradingName_List)) -> GPO Box 1921
D19: Address 2 | E19: =IF(ISBLANK(INDEX(dms_Addr2_List,MATCH(dms_TradingName,dms_TradingName_List))),"",INDEX(dms_Addr2_List,MATCH(dms_TradingName,dms_TradingName_List))) -> 
C20: Suburb | E20: =INDEX(dms_Suburb_List,MATCH(dms_TradingName,dms_TradingName_List)) -> DARWIN
D21: State | E21: =INDEX(dms_State_List,MATCH(dms_TradingName,dms_TradingName_List)) -> NT | F21: p/code | G21: =INDEX(dms_PostCode_List,MATCH(dms_TradingName,dms_TradingName_List)) -> 0801
B23: Postal address | C23: Address 1 | E23: =INDEX(dms_PAddr1_List,MATCH(dms_TradingName,dms_TradingName_List)) -> GPO Box 1921
D24: Address 2 | E24: =IF(ISBLANK(INDEX(dms_PAddr2_List,MATCH(dms_TradingName,dms_TradingName_List))),"",INDEX(dms_PAddr2_List,MATCH(dms_TradingName,dms_TradingName_List))) -> 
C25: Suburb | E25: =INDEX(dms_PSuburb_List,MATCH(dms_TradingName,dms_TradingName_List)) -> DARWIN
D26: State | E26: =INDEX(dms_PState_List,MATCH(dms_TradingName,dms_TradingName_List)) -> NT | F26: p/code | G26: =INDEX(dms_PPostCode_List,MATCH(dms_TradingName,dms_TradingName_List)) -> 0801
B29: Contact name/s | C29: =INDEX(dms_ContactName1_List,MATCH(dms_TradingName,dms_TradingName_List)) -> Lucy Moon
B30: Contact phone/s | C30: =INDEX(dms_ContactPh1_List,MATCH(dms_TradingName,dms_TradingName_List)) -> 08 8924 5822
B31: Contact email address/s | C31: =INDEX(dms_ContactEmail_List,MATCH(dms_TradingName,dms_TradingName_List)) -> Lucy.Moon@powerwater.com.au
B33: REGULATORY CONTROL PERIODS
B35: Forthcoming regulatory control period | C35: 2019-20 | D35: =dms_FRCP_y2 -> 2020-21 | E35: =dms_FRCP_y3 -> 2021-22 | F35: =dms_FRCP_y4 -> 2022-23 | G35: =dms_FRCP_y5 -> 2023-24 | H35: =dms_FRCP_y6 -> 2024-25 | I35: =dms_FRCP_y7 -> 2025-26 | J35: =dms_FRCP_y8 -> 2026-27 | K35: =dms_FRCP_y9 -> 2027-28 | L35: =dms_FRCP_y10 -> 2028-29
B38: Current regulatory control period | C38: 2008-09 | D38: =IF(dms_RPT="financial",VALUE(LEFT(CRCP_y1,4)+1)&"-"&TEXT(MID(CRCP_y1,3,2)+2,"00"),VALUE(LEFT(CRCP_y1,4)+1)) -> 2009-10 | E38: =IF(dms_RPT="financial",VALUE(LEFT(CRCP_y2,4)+1)&"-"&TEXT(VALUE(MID(CRCP_y2,3,2)+2),"00"),VALUE(LEFT(CRCP_y2,4)+1)) -> 2010-11 | F38: =IF(dms_RPT="financial",VALUE(LEFT(CRCP_y3,4)+1)&"-"&TEXT(VALUE(MID(CRCP_y3,3,2)+2),"00"),VALUE(LEFT(CRCP_y3,4)+1)) -> 2011-12 | G38: =IF(dms_RPT="financial",VALUE(LEFT(CRCP_y4,4)+1)&"-"&TEXT(VALUE(MID(CRCP_y4,3,2)+2),"00"),VALUE(LEFT(CRCP_y4,4)+1)) -> 2012-13 | H38: =IF(dms_RPT="financial",VALUE(LEFT(CRCP_y5,4)+1)&"-"&TEXT(VALUE(MID(CRCP_y5,3,2)+2),"00"),VALUE(LEFT(CRCP_y5,4)+1)) -> 2013-14 | I38: =IF(dms_RPT="financial",VALUE(LEFT(CRCP_y6,4)+1)&"-"&TEXT(VALUE(MID(CRCP_y6,3,2)+2),"00"),VALUE(LEFT(CRCP_y6,4)+1)) -> 2014-15 | J38: =IF(dms_RPT="financial",VALUE(LEFT(CRCP_y7,4)+1)&"-"&TEXT(VALUE(MID(CRCP_y7,3,2)+2),"00"),VALUE(LEFT(CRCP_y7,4)+1)) -> 2015-16 | K38: =IF(dms_RPT="financial",VALUE(LEFT(CRCP_y8,4)+1)&"-"&TEXT(VALUE(MID(CRCP_y8,3,2)+2),"00"),VALUE(LEFT(CRCP_y8,4)+1)) -> 2016-17 | L38: =IF(dms_RPT="financial",VALUE(LEFT(CRCP_y9,4)+1)&"-"&TEXT(VALUE(MID(CRCP_y9,3,2)+2),"00"),VALUE(LEFT(CRCP_y9,4)+1)) -> 2017-18
B41: Previous regulatory control period | C41: =IF(dms_RPT="financial",VALUE(LEFT(PRCP_y2,4)-1)&"-"&TEXT(VALUE(MID(PRCP_y2,3,2)),"00"),VALUE(LEFT(PRCP_y2,4)-1)) -> 2003-04 | D41: =IF(dms_RPT="financial",VALUE(LEFT(PRCP_y3,4)-1)&"-"&TEXT(VALUE(MID(PRCP_y3,3,2)),"00"),VALUE(LEFT(PRCP_y3,4)-1)) -> 2004-05 | E41: =IF(dms_RPT="financial",VALUE(LEFT(PRCP_y4,4)-1)&"-"&TEXT(VALUE(MID(PRCP_y4,3,2)),"00"),VALUE(LEFT(PRCP_y4,4)-1)) -> 2005-06 | F41: =IF(dms_RPT="financial",VALUE(LEFT(PRCP_y5,4)-1)&"-"&TEXT(VALUE(RIGHT(PRCP_y5,2)-1),"00"),VALUE(LEFT(PRCP_y5,4)-1)) -> 2006-07 | G41: =IF(dms_RPT="financial",VALUE(LEFT(CRCP_y1,4)-1)&"-"&TEXT(VALUE(RIGHT(CRCP_y1,2)-1),"00"),VALUE(LEFT(CRCP_y1,4)-1)) -> 2007-08
B44: Commencing regulatory year | C44: 2008-09 | D44: CRY
B46: Last completed regulatory year | C46: 2016-17 | D46: dms_FinalYear
C48: DELETE NR 'CRY' IF NOT AN ANNUAL RIN (EB, CA , ARR)
C49: APPLY NR 'CRY' IF AN ANNUAL RIN (EB, CA , ARR) - including multi year annual RINs eg. Recast CA. EB
B51: Source | C51: Reporting | E51: Please select the correct submission type from the dropdown list.
B52: Data quality (actual, estimate, public, consolidated) | C52: Consolidated
B53: Amended RIN submission - amendment reason | C53: Revised Table 2.5.1 – amended cells J67, K67 & K69. See D18/79705. 29 May 2018
B54: Submission Date | C54: dd/mm/yyyy | D54: dms_SubmissionDate | E54: Please enter date this file submitted to AER (dd/mm/yyyy)
B55: EBSS - First application of scheme in forthcoming period? | C55: Yes
B56: Sector | C56: =INDEX(dms_Sector_List,MATCH(dms_TradingName,dms_TradingName_List)) -> Electricity | D56: dms_Sector | E56: =INDEX(dms_Sector_List,MATCH(dms_TradingName,dms_TradingName_List))
B57: Segment | C57: =INDEX(dms_Segment_List,MATCH(dms_TradingName,dms_TradingName_List)) -> Distribution | D57: dms_Segment | E57: =INDEX(dms_Segment_List,MATCH(dms_TradingName,dms_TradingName_List))
B58: Regulatory Year Ending | C58: =IF(dms_MultiYear_Flag=1,LEFT(dms_Specified_FinalYear,2)&RIGHT(dms_Specified_FinalYear,2),INDEX(dms_RYE_Formula_Result,MATCH(dms_Model,dms_Model_List))) -> 2017 | D58: dms_RYE | E58: =IF(dms_MultiYear_Flag=1,LEFT(dms_Specified_FinalYear,2)&RIGHT(dms_Specified_FinalYear,2),INDEX(dms_RYE_Formula_Result,MATCH(dms_Model,dms_Model_List)))
B59: Reporting Period Type | C59: =INDEX(dms_RPT_List,MATCH(dms_TradingName,dms_TradingName_List)) -> Financial | D59: dms_RPT | E59: =INDEX(dms_RPT_List,MATCH(dms_TradingName,dms_TradingName_List))
B60: Model or RIN Type | C60: CA | D60: dms_Model | E60: Drop down selection
B61: Security Classification | C61: Public | D61: dms_Classification | E61: Always Public
B62: Template - version no. | C62: 5 | D62: dms_TemplateNumber
B63: Dollar $ real month | C63: =INDEX(dms_RPTMonth_List,MATCH(dms_TradingName,dms_TradingName_List)) -> June | D63: dms_RPTMonth | E63: =INDEX(dms_RPTMonth_List,MATCH(dms_TradingName,dms_TradingName_List))
B64: Dollar $ real (the last month before the FRCP_y1) | C64: =CONCATENATE(dms_RPTMonth)&" "&VALUE((LEFT(dms_CRCP_FinalYear_Result,2)&RIGHT(dms_CRCP_FinalYear_Result,2))) -> June 2017 | D64: dms_DollarReal | E64: =IF(SUM(dms_SingleYear_Model)>0,CONCATENATE(dms_RPTMonth)&" "&VALUE((LEFT(CRY,2))&RIGHT(CRY,2)),CONCATENATE(dms_RPTMonth)&" "&VALUE((LEFT(dms_CRCP_FinalYear_Result,2)&RIGHT(dms_CRCP_FinalYear_Result,2))))
B65: Form of control | C65: =INDEX(dms_FormControl_List,MATCH(dms_TradingName,dms_TradingName_List)) -> Revenue cap | D65: dms_FormControl | E65: =INDEX(dms_FormControl_List,MATCH(dms_TradingName,dms_TradingName_List))
B66: Calendar Year for table 3.6 data | C66: =VALUE(dms_RYE)-1 -> 2016 | D66: dms_0306_Year | E66: =VALUE(dms_RYE)-1
B67: RIN response - version no. | C67: 1 | D67: dms_RINversion
B68: Jurisdiction | C68: =INDEX(dms_JurisdictionList,MATCH(dms_TradingName,dms_TradingName_List)) -> NT | D68: dms_Jurisdiction | E68: =INDEX(dms_JurisdictionList,MATCH(dms_TradingName,dms_TradingName_List))
B69: Backcast Multiyear EB, CA or ARR? | C69: 1 | D69: dms_MultiYear_Flag | E69: 1=y, 0-n
C70: =FRY -> 2016-17 | D70: dms_Specified_FinalYear | E70: The result here is returned to dms_CRCP_FinalYear_Result if dms_MultiYear_Flag is set to 1
B71: Single Year Model T/F | C71: =IF(dms_Model="EB",1,0) -> 0 | D71: dms_EB
C72: 0 | D72: dms_CA | E72: =dms_SingleYear_Model
C73: =IF(dms_Model="ARR",1,0) -> 0 | D73: dms_ARR
B74: Single Year Final Year Reference | C74: CRY | D74: dms_SingleYear_FinalYear_Ref | E74: This is the reference for EB, CA & ARR RINs
B75: Single Year Final Year Result | C75: =INDIRECT(dms_SingleYear_FinalYear_Ref) -> 2008-09 | D75: dms_SingleYear_FinalYear_Result | E75: =INDIRECT(dms_SingleYear_FinalYear_Ref) | I75: Formula errors OK
B76: FRCP length in years | C76: =INDEX(dms_FRCPlength_List,MATCH(dms_TradingName,dms_TradingName_List)) -> 5 | D76: dms_FRCPlength_Num | E76: =INDEX(dms_FRCPlength_List,MATCH(dms_TradingName,dms_TradingName_List))
B77: Multi Year Final Year Reference | C77: =INDEX(dms_FinalYear_List,MATCH(dms_FRCPlength_Num,dms_FRCPlength_Num_List)) -> dms_FRCP_y5 | D77: dms_MultiYear_FinalYear_Ref | E77: =INDEX(dms_FinalYear_List,MATCH(dms_FRCPlength_Num,dms_FRCPlength_Num_List))
B78: Multi Year Final Year Result | C78: =IF(dms_MultiYear_Flag=0,INDIRECT(dms_MultiYear_FinalYear_Ref),dms_Specified_FinalYear) -> 2016-17 | D78: dms_MultiYear_FinalYear_Result | E78: =IF(dms_MultiYear_Flag=0,INDIRECT(dms_MultiYear_FinalYear_Ref),dms_Specified_FinalYear) | I78: Formula errors OK
B79: CRCP length in years | C79: =INDEX(dms_CRCPlength_List,MATCH(dms_TradingName,dms_TradingName_List)) -> 11 | D79: dms_CRCPlength_Num | E79: =INDEX(dms_CRCPlength_List,MATCH(dms_TradingName,dms_TradingName_List))
B80: CRCP Final Year Reference | C80: =INDEX(dms_CFinalYear_List,MATCH(dms_CRCPlength_Num,dms_CRCPlength_Num_List)) -> CRCP_y11 | D80: dms_CRCP_FinalYear_Ref | E80: =INDEX(dms_CFinalYear_List,MATCH(dms_CRCPlength_Num,dms_CRCPlength_Num_List))
B81: CRCP First Year Result | C81: =INDEX(dms_CRCP_years,MATCH(dms_CRCPlength_Num,dms_CRCP_index)) -> 2008-09 | D81: dms_CRCP_FirstYear_Result | E81: =INDEX(dms_CRCP_years,MATCH(dms_CRCPlength_Num,dms_CRCP_index))
B82: CRCP Final Year Result | C82: =IF(dms_MultiYear_Flag=0,(IF(SUM(dms_SingleYear_Model)>0,CRY,dms_CRCP_yZ)),dms_Specified_FinalYear) -> 2016-17 | D82: dms_CRCP_FinalYear_Result | E82: =IF(dms_MultiYear_Flag=0,(IF(SUM(dms_SingleYear_Model)>0,CRY,dms_CRCP_yZ)),dms_Specified_FinalYear)
B83: Table 6.6.3 - Public lighting repair - no. business days | C83: =INDEX(dms_663_List,MATCH(dms_TradingName,dms_TradingName_List)) -> x | D83: dms_663
B84: Distribution Determination Reference | C84: =INDEX(dms_DeterminationRef_List,MATCH(dms_TradingName,dms_TradingName_List)) -> distribution determination
B85: Backcast templates only - unit of measure | C85: $0s | D85: dms_Backcast_UOM | E85: If the cover sheet is for Backcast data ensure to apply dms_Backcast_UOM named range to this field. Otherwise, do not apply this named range.
B86: EB/CA Unit of Measure for Monetary Values | C86: $0s | D86: dms_dollar_nom_UOM | E86: If the cover sheet is attached to an EB files make sure this field is set
B88: discard this record? | C88: NO | D88: dms_DISCARD | E88: If record is to be discarded from DB set this flag to YES
B89: CBD Feeder for this business | C89: =INDEX(dms_CBD_flag,MATCH(dms_TradingName,dms_TradingName_List)) -> YES | D89: dms_CBD_flag_NSP
B90: Urban Feeder for this business | C90: =INDEX(dms_Urban_flag,MATCH(dms_TradingName,dms_TradingName_List)) -> YES | D90: dms_Urban_flag_NSP
B91: Short rural Feeder for this business | C91: =INDEX(dms_ShortRural_flag,MATCH(dms_TradingName,dms_TradingName_List)) -> YES | D91: dms_ShortRural_flag_NSP
B92: Long rural Feeder for this business | C92: =INDEX(dms_LongRural_flag,MATCH(dms_TradingName,dms_TradingName_List)) -> YES | D92: dms_LongRural_flag_NSP
B94: USES NAMED RANGES FLAG | C94: yes | D94: dms_Defined_Names_Used

Sheet 2.1 Expenditure summary
B1: REGULATORY REPORTING STATEMENT
B2: =INDEX(dms_TradingNameFull_List,MATCH(dms_TradingName,dms_TradingName_List)) -> Power and Water Corporation
B3: =(IF(dms_DataQuality="recast",INDEX(dms_Worksheet_List,MATCH(dms_Model,dms_Model_List))&" ",INDEX(dms_Worksheet_List,MATCH(dms_Model,dms_Model_List))))&" "&(IF(SUM(dms_SingleYear_Model)>0,CRY,CONCATENATE(" ",dms_CRCP_FirstYear_Result," to ",dms_CRCP_FinalYear_Result))) -> CATEGORY ANALYSIS 2008-09 to 2016-17
B4: 2.1 EXPENDITURE SUMMARY & RECONCILIATION
B6: There are EIGHT tables on this worksheet - see the Instructions sheet on how to group or ungroup tables.
B8: 2.1.1 - STANDARD CONTROL SERVICES CAPEX
C9: EXPENDITURE ($0's)
C10: =IF(dms_RPT="financial",dms_fy4,dms_cy4) -> 2008-09 | D10: =IF(dms_RPT="financial",dms_fy5,dms_cy5) -> 2009-10 | E10: =IF(dms_RPT="financial",dms_fy6,dms_cy6) -> 2010-11 | F10: =IF(dms_RPT="financial",dms_fy7,dms_cy7) -> 2011-12 | G10: =IF(dms_RPT="financial",dms_fy8,dms_cy8) -> 2012-13 | H10: =IF(dms_RPT="financial",dms_fy9,dms_cy9) -> 2013-14 | I10: =IF(dms_RPT="financial",dms_fy10,dms_cy10) -> 2014-15 | J10: =IF(dms_RPT="financial",dms_fy11,dms_cy11) -> 2015-16 | K10: =IF(dms_RPT="financial",dms_fy12,dms_cy12) -> 2016-17
B11: Replacement expenditure | C11: 3459635.097 | D11: 9599747.896 | E11: 24944018.89 | F11: 37134981.99 | G11: 35820005.77 | H11: 43312650.48 | I11: 44435374.8 | J11: 42463704.35 | K11: 28254530.8
B12: Connections | C12: 9706738.641 | D12: 6450804.419 | E12: 6128113 | F12: 5546932.962 | G12: 6464612.398 | H12: 8988462.22 | I12: 7938355.573 | J12: 5993029.532 | K12: 3312648.461
B13: Augmentation Expenditure | C13: 31757977.44 | D13: 57479194 | E13: 52524992.48 | F13: 31745955.88 | G13: 62089144.16 | H13: 29658235.54 | I13: 23668510.7 | J13: 17562837.16 | K13: 12834467.99
B14: Non-network | C14: 4112260.296 | D14: 2350023.84 | E14: 1109922.523 | F14: 2228760.575 | G14: 2282000.579 | H14: 1362082.411 | I14: 1100488.339 | J14: 1258041.046 | K14: 3226421.873
B15: capitalised network overheads | C15: 0 | D15: 356444.9107 | E15: 378769.3676 | F15: 291913.2776 | G15: 1652330.496 | H15: 1174807.467 | I15: 191869.3673 | J15: 134830.0425 | K15: 7668305.277
B16: capitalised corporate overheads | C16: 0 | D16: 0 | E16: 0 | F16: 0 | G16: 0 | H16: 0 | I16: 0 | J16: 0 | K16: 3154804.868
B17: Metering | C17: 0 | D17: 0 | E17: 0 | F17: 0 | G17: 0 | H17: 0 | I17: 0 | J17: 0 | K17: 0
B18: Public Lighting | C18: 0 | D18: 0 | E18: 0 | F18: 0 | G18: 0 | H18: 0 | I18: 0 | J18: 0 | K18: 0
C19: 0 | D19: 0 | E19: 0 | F19: 0 | G19: 0 | H19: 0 | I19: 0 | J19: 0 | K19: 0
C20: 0 | D20: 0 | E20: 0 | F20: 0 | G20: 0 | H20: 0 | I20: 0 | J20: 0 | K20: 0
C21: 0 | D21: 0 | E21: 0 | F21: 0 | G21: 0 | H21: 0 | I21: 0 | J21: 0 | K21: 0
C22: 0 | D22: 0 | E22: 0 | F22: 0 | G22: 0 | H22: 0 | I22: 0 | J22: 0 | K22: 0
C23: 0 | D23: 0 | E23: 0 | F23: 0 | G23: 0 | H23: 0 | I23: 0 | J23: 0 | K23: 0
C24: 0 | D24: 0 | E24: 0 | F24: 0 | G24: 0 | H24: 0 | I24: 0 | J24: 0 | K24: 0
B25: balancing item | C25: 43366 | D25: -208274 | E25: 295959 | F25: -88490 | G25: -236565 | H25: -39592.1 | I25: -46853.07 | J25: -132401.44 | K25: 716751.21
B26: capcons (included in the above) | C26: 5734392.6 | D26: 2718945.73 | E26: 5580241.42 | F26: 10682686.93 | G26: 14609711.75 | H26: 7761415.49 | I26: 9142431.13 | J26: 9818549.18 | K26: 9358794.33
B27: TOTAL GROSS CAPEX (includes capcons) | C27: =+SUM(C11:C25) -> 49079977.47 | D27: 76027941.07 | E27: 85381775.26 | F27: 76860054.69 | G27: 108071528.4 | H27: 84456646.02 | I27: 77287745.71 | J27: 67280040.69 | K27: 59167930.49
B29: 2.1.2 - STANDARD CONTROL SERVICES OPEX
C30: EXPENDITURE ($0's)
C31: =IF(dms_RPT="financial",dms_fy4,dms_cy4) -> 2008-09 | D31: =IF(dms_RPT="financial",dms_fy5,dms_cy5) -> 2009-10 | E31: =IF(dms_RPT="financial",dms_fy6,dms_cy6) -> 2010-11 | F31: =IF(dms_RPT="financial",dms_fy7,dms_cy7) -> 2011-12 | G31: =IF(dms_RPT="financial",dms_fy8,dms_cy8) -> 2012-13 | H31: =IF(dms_RPT="financial",dms_fy9,dms_cy9) -> 2013-14 | I31: =IF(dms_RPT="financial",dms_fy10,dms_cy10) -> 2014-15 | J31: =IF(dms_RPT="financial",dms_fy11,dms_cy11) -> 2015-16 | K31: =IF(dms_RPT="financial",dms_fy12,dms_cy12) -> 2016-17
B32: Vegetation management | C32: 4503107.36 | D32: 5066481.55 | E32: 4982033.58 | F32: 4964522.98 | G32: 5022579.25 | H32: 5740013.72 | I32: 6144555.078 | J32: 5076893.938 | K32: 4625897.162
B33: Maintenance | C33: 8287620.84 | D33: 9522063.52 | E33: 9850207.43 | F33: 15947426.61 | G33: 22448780.31 | H33: 18476506 | I33: 20039540.77 | J33: 17364288.79 | K33: 16872267.18
B34: Emergency response | C34: 5910658.903 | D34: 6834643.903 | E34: 5817182.604 | F34: 13201870.67 | G34: 7925111.421 | H34: 7091771.06 | I34: 6679692.23 | J34: 6367052.57 | K34: 6458682.98
B35: Non-network | C35: 4689891.605 | D35: 5829672.707 | E35: 7380415.95 | F35: 8874839.635 | G35: 8714885.461 | H35: 6759561.235 | I35: 7098778.639 | J35: 6824552.869 | K35: 7332276.218
B36: network overheads | C36: 34263907.64 | D36: 28672835.41 | E36: 34991552.26 | F36: 31326768.28 | G36: 28112518.08 | H36: 30626396.01 | I36: 24797900.72 | J36: 29069251.82 | K36: 29058834.93
B37: corporate overheads | C37: 15653132.14 | D37: 12759327.51 | E37: 17695482.73 | F37: 18412244.29 | G37: 20390655.51 | H37: 13824768.62 | I37: 9895789.787 | J37: 16699876.79 | K37: 7749494.406
B38: Metering | C38: 0 | D38: 0 | E38: 0 | F38: 0 | G38: 0 | H38: 0 | I38: 0 | J38: 0 | K38: 0
B39: Public Lighting | C39: 0 | D39: 0 | E39: 0 | F39: 0 | G39: 0 | H39: 0 | I39: 0 | J39: 0 | K39: 0
C40: 0 | D40: 0 | E40: 0 | F40: 0 | G40: 0 | H40: 0 | I40: 0 | J40: 0 | K40: 0
C41: 0 | D41: 0 | E41: 0 | F41: 0 | G41: 0 | H41: 0 | I41: 0 | J41: 0 | K41: 0
C42: 0 | D42: 0 | E42: 0 | F42: 0 | G42: 0 | H42: 0 | I42: 0 | J42: 0 | K42: 0
C43: 0 | D43: 0 | E43: 0 | F43: 0 | G43: 0 | H43: 0 | I43: 0 | J43: 0 | K43: 0
C44: 0 | D44: 0 | E44: 0 | F44: 0 | G44: 0 | H44: 0 | I44: 0 | J44: 0 | K44: 0
C45: 0 | D45: 0 | E45: 0 | F45: 0 | G45: 0 | H45: 0 | I45: 0 | J45: 0 | K45: 0
B46: balancing item | C46: -93937 | D46: -130982 | E46: 298919 | F46: 603690 | G46: 158094 | H46: -410066 | I46: -52792 | J46: 77769 | K46: -153943
B47: TOTAL OPEX | C47: =+SUM(C32:C46) -> 73214381.48 | D47: 68554042.6 | E47: 81015793.55 | F47: 93331362.46 | G47: 92772624.03 | H47: 82108950.65 | I47: 74603465.22 | J47: 81479685.77 | K47: 71943509.87
B49: 2.1.3 - ALTERNATIVE CONTROL SERVICES CAPEX
C50: EXPENDITURE ($0's)
C51: =IF(dms_RPT="financial",dms_fy4,dms_cy4) -> 2008-09 | D51: =IF(dms_RPT="financial",dms_fy5,dms_cy5) -> 2009-10 | E51: =IF(dms_RPT="financial",dms_fy6,dms_cy6) -> 2010-11 | F51: =IF(dms_RPT="financial",dms_fy7,dms_cy7) -> 2011-12 | G51: =IF(dms_RPT="financial",dms_fy8,dms_cy8) -> 2012-13 | H51: =IF(dms_RPT="financial",dms_fy9,dms_cy9) -> 2013-14 | I51: =IF(dms_RPT="financial",dms_fy10,dms_cy10) -> 2014-15 | J51: =IF(dms_RPT="financial",dms_fy11,dms_cy11) -> 2015-16 | K51: =IF(dms_RPT="financial",dms_fy12,dms_cy12) -> 2016-17
B52: Connections | C52: 0 | D52: 0 | E52: 0 | F52: 0 | G52: 0 | H52: 0 | I52: 0 | J52: 0 | K52: 0
B53: capitalised network overheads | C53: 0 | D53: 20878.67407 | E53: 22186.32371 | F53: 17098.74934 | G53: 96784.85752 | H53: 68814.06204 | I53: 11238.70159 | J53: 7897.636992 | K53: 361462.1021
B54: capitalised corporate overheads | C54: 0 | D54: 0 | E54: 0 | F54: 0 | G54: 0 | H54: 0 | I54: 0 | J54: 0 | K54: 375698.9118
B55: Metering | C55: 928131.2633 | D55: 889251.1115 | E55: 486273.0037 | F55: 758828.0386 | G55: 614962.2777 | H55: 1052078.252 | I55: 1958515.736 | J55: 3117842.879 | K55: 2894353.609
B56: Public lighting | C56: 0 | D56: 0 | E56: 0 | F56: 0 | G56: 0 | H56: 0 | I56: 0 | J56: 0 | K56: 0
B57: Fee and quoted | C57: 14852789 | D57: 8003441 | E57: 2505917 | F57: 816017 | G57: 251726 | H57: 23182.36 | I57: 214641.82 | J57: 1362618.25 | K57: 257749.08
B58: Non-network | C58: 240874.6481 | D58: 137652.0756 | E58: 65013.44219 | F58: 130549.1094 | G58: 133667.6297 | H58: 79783.64639 | I58: 64460.83719 | J58: 73689.44873 | K58: 188986.8776
C59: 0 | D59: 0 | E59: 0 | F59: 0 | G59: 0 | H59: 0 | I59: 0 | J59: 0 | K59: 0
C60: 0 | D60: 0 | E60: 0 | F60: 0 | G60: 0 | H60: 0 | I60: 0 | J60: 0 | K60: 0
C61: 0 | D61: 0 | E61: 0 | F61: 0 | G61: 0 | H61: 0 | I61: 0 | J61: 0 | K61: 0
C62: 0 | D62: 0 | E62: 0 | F62: 0 | G62: 0 | H62: 0 | I62: 0 | J62: 0 | K62: 0
C63: 0 | D63: 0 | E63: 0 | F63: 0 | G63: 0 | H63: 0 | I63: 0 | J63: 0 | K63: 0
C64: 0 | D64: 0 | E64: 0 | F64: 0 | G64: 0 | H64: 0 | I64: 0 | J64: 0 | K64: 0
B65: TOTAL CAPEX | C65: =+SUM(C52:C64) -> 16021794.91 | D65: 9051222.861 | E65: 3079389.77 | F65: 1722492.897 | G65: 1097140.765 | H65: 1223858.32 | I65: 2248857.095 | J65: 4562048.215 | K65: 4078250.581
B67: 2.1.4 - ALTERNATIVE CONTROL SERVICES OPEX
C68: EXPENDITURE ($0's)
C69: =IF(dms_RPT="financial",dms_fy4,dms_cy4) -> 2008-09 | D69: =IF(dms_RPT="financial",dms_fy5,dms_cy5) -> 2009-10 | E69: =IF(dms_RPT="financial",dms_fy6,dms_cy6) -> 2010-11 | F69: =IF(dms_RPT="financial",dms_fy7,dms_cy7) -> 2011-12 | G69: =IF(dms_RPT="financial",dms_fy8,dms_cy8) -> 2012-13 | H69: =IF(dms_RPT="financial",dms_fy9,dms_cy9) -> 2013-14 | I69: =IF(dms_RPT="financial",dms_fy10,dms_cy10) -> 2014-15 | J69: =IF(dms_RPT="financial",dms_fy11,dms_cy11) -> 2015-16 | K69: =IF(dms_RPT="financial",dms_fy12,dms_cy12) -> 2016-17
B70: Connections | C70: 0 | D70: 0 | E70: 0 | F70: 0 | G70: 0 | H70: 453037.3616 | I70: 612653.3146 | J70: 560542.4314 | K70: 436299.1685
B71: network overheads | C71: 49418.56029 | D71: 55470.48149 | E71: 87775.10816 | F71: 206060.9604 | G71: 203546.4128 | H71: 2105137.261 | I71: 2446435.847 | J71: 2683458.158 | K71: 2470846.06
B72: corporate overheads | C72: 660830.447 | D72: 604037.1542 | E72: 844030.7043 | F72: 911247.1839 | G72: 777854.1218 | H72: 1280336.255 | I72: 1456837.342 | J72: 2270332.585 | K72: 922870.5856
B73: Metering | C73: 1285277.65 | D73: 1634036.82 | E73: 1753151.46 | F73: 1748806.15 | G73: 949673.42 | H73: 1270930.47 | I73: 1799792.13 | J73: 1704635.21 | K73: 1660960.781
B74: Public lighting | C74: 0 | D74: 0 | E74: 0 | F74: 0 | G74: 0 | H74: 0 | I74: 0 | J74: 0 | K74: 0
B75: Fee and quoted | C75: 1090542.35 | D75: 945309.45 | E75: 1177266.04 | F75: 1749799.29 | G75: 1601293.88 | H75: 2062361.718 | I75: 4238369.565 | J75: 3268734.395 | K75: 3149716.123
B76: Non-network | C76: 4832.691898 | D76: 6551.352447 | E76: 2029.387471 | F76: 3183.351964 | G76: 6683.078821 | H76: 432451.9494 | I76: 428876.8605 | J76: 589384.1486 | K76: 472193.4707
C77: 0 | D77: 0 | E77: 0 | F77: 0 | G77: 0 | H77: 0 | I77: 0 | J77: 0 | K77: 0
C78: 0 | D78: 0 | E78: 0 | F78: 0 | G78: 0 | H78: 0 | I78: 0 | J78: 0 | K78: 0
C79: 0 | D79: 0 | E79: 0 | F79: 0 | G79: 0 | H79: 0 | I79: 0 | J79: 0 | K79: 0
C80: 0 | D80: 0 | E80: 0 | F80: 0 | G80: 0 | H80: 0 | I80: 0 | J80: 0 | K80: 0
C81: 0 | D81: 0 | E81: 0 | F81: 0 | G81: 0 | H81: 0 | I81: 0 | J81: 0 | K81: 0
C82: 0 | D82: 0 | E82: 0 | F82: 0 | G82: 0 | H82: 0 | I82: 0 | J82: 0 | K82: 0
B83: TOTAL OPEX | C83: =+SUM(C70:C82) -> 3090901.699 | D83: 3245405.258 | E83: 3864252.7 | F83: 4619096.936 | G83: 3539050.913 | H83: 7604255.015 | I83: 10982965.06 | J83: 11077086.93 | K83: 9112886.188
B85: 2.1.5 - DUAL FUNCTION ASSETS CAPEX
C86: EXPENDITURE ($0's)
C87: =IF(dms_RPT="financial",dms_fy4,dms_cy4) -> 2008-09 | D87: =IF(dms_RPT="financial",dms_fy5,dms_cy5) -> 2009-10 | E87: =IF(dms_RPT="financial",dms_fy6,dms_cy6) -> 2010-11 | F87: =IF(dms_RPT="financial",dms_fy7,dms_cy7) -> 2011-12 | G87: =IF(dms_RPT="financial",dms_fy8,dms_cy8) -> 2012-13 | H87: =IF(dms_RPT="financial",dms_fy9,dms_cy9) -> 2013-14 | I87: =IF(dms_RPT="financial",dms_fy10,dms_cy10) -> 2014-15 | J87: =IF(dms_RPT="financial",dms_fy11,dms_cy11) -> 2015-16 | K87: =IF(dms_RPT="financial",dms_fy12,dms_cy12) -> 2016-17
B88: Replacement expenditure | C88: 0 | D88: 0 | E88: 0 | F88: 0 | G88: 0 | H88: 0 | I88: 0 | J88: 0 | K88: 0
B89: Connections | C89: 0 | D89: 0 | E89: 0 | F89: 0 | G89: 0 | H89: 0 | I89: 0 | J89: 0 | K89: 0
B90: Augmentation Expenditure | C90: 0 | D90: 0 | E90: 0 | F90: 0 | G90: 0 | H90: 0 | I90: 0 | J90: 0 | K90: 0
B91: Non-network | C91: 0 | D91: 0 | E91: 0 | F91: 0 | G91: 0 | H91: 0 | I91: 0 | J91: 0 | K91: 0
B92: Capitalised network overheads | C92: 0 | D92: 0 | E92: 0 | F92: 0 | G92: 0 | H92: 0 | I92: 0 | J92: 0 | K92: 0
B93: Capitalised corporate overheads | C93: 0 | D93: 0 | E93: 0 | F93: 0 | G93: 0 | H93: 0 | I93: 0 | J93: 0 | K93: 0
C94: 0 | D94: 0 | E94: 0 | F94: 0 | G94: 0 | H94: 0 | I94: 0 | J94: 0 | K94: 0
C95: 0 | D95: 0 | E95: 0 | F95: 0 | G95: 0 | H95: 0 | I95: 0 | J95: 0 | K95: 0
C96: 0 | D96: 0 | E96: 0 | F96: 0 | G96: 0 | H96: 0 | I96: 0 | J96: 0 | K96: 0
C97: 0 | D97: 0 | E97: 0 | F97: 0 | G97: 0 | H97: 0 | I97: 0 | J97: 0 | K97: 0
C98: 0 | D98: 0 | E98: 0 | F98: 0 | G98: 0 | H98: 0 | I98: 0 | J98: 0 | K98: 0
C99: 0 | D99: 0 | E99: 0 | F99: 0 | G99: 0 | H99: 0 | I99: 0 | J99: 0 | K99: 0
C100: 0 | D100: 0 | E100: 0 | F100: 0 | G100: 0 | H100: 0 | I100: 0 | J100: 0 | K100: 0
B101: capcons (included in the above) | C101: 0 | D101: 0 | E101: 0 | F101: 0 | G101: 0 | H101: 0 | I101: 0 | J101: 0 | K101: 0
B102: TOTAL GROSS CAPEX (includes capcons) | C102: =SUM(C88:C100) -> 0 | D102: 0 | E102: 0 | F102: 0 | G102: 0 | H102: 0 | I102: 0 | J102: 0 | K102: 0
B104: 2.1.6 - DUAL FUNCTION ASSETS OPEX
C105: EXPENDITURE ($0's)
C106: =IF(dms_RPT="financial",dms_fy4,dms_cy4) -> 2008-09 | D106: =IF(dms_RPT="financial",dms_fy5,dms_cy5) -> 2009-10 | E106: =IF(dms_RPT="financial",dms_fy6,dms_cy6) -> 2010-11 | F106: =IF(dms_RPT="financial",dms_fy7,dms_cy7) -> 2011-12 | G106: =IF(dms_RPT="financial",dms_fy8,dms_cy8) -> 2012-13 | H106: =IF(dms_RPT="financial",dms_fy9,dms_cy9) -> 2013-14 | I106: =IF(dms_RPT="financial",dms_fy10,dms_cy10) -> 2014-15 | J106: =IF(dms_RPT="financial",dms_fy11,dms_cy11) -> 2015-16 | K106: =IF(dms_RPT="financial",dms_fy12,dms_cy12) -> 2016-17
B107: Vegetation management | C107: 0 | D107: 0 | E107: 0 | F107: 0 | G107: 0 | H107: 0 | I107: 0 | J107: 0 | K107: 0
B108: Maintenance | C108: 0 | D108: 0 | E108: 0 | F108: 0 | G108: 0 | H108: 0 | I108: 0 | J108: 0 | K108: 0
B109: Emergency response | C109: 0 | D109: 0 | E109: 0 | F109: 0 | G109: 0 | H109: 0 | I109: 0 | J109: 0 | K109: 0
B110: Non-network | C110: 0 | D110: 0 | E110: 0 | F110: 0 | G110: 0 | H110: 0 | I110: 0 | J110: 0 | K110: 0
B111: Network overheads | C111: 0 | D111: 0 | E111: 0 | F111: 0 | G111: 0 | H111: 0 | I111: 0 | J111: 0 | K111: 0
B112: Corporate overheads | C112: 0 | D112: 0 | E112: 0 | F112: 0 | G112: 0 | H112: 0 | I112: 0 | J112: 0 | K112: 0
B113: Metering | C113: 0 | D113: 0 | E113: 0 | F113: 0 | G113: 0 | H113: 0 | I113: 0 | J113: 0 | K113: 0
B120: TOTAL OPEX | C120: =SUM(C107:C119) -> 0 | D120: 0 | E120: 0 | F120: 0 | G120: 0 | H120: 0 | I120: 0 | J120: 0 | K120: 0
B122: 2.1.7 - STANDARD CONTROL SERVICES CAPCONS
C123: EXPENDITURE ($0's)
C124: =IF(dms_RPT="financial",dms_fy4,dms_cy4) -> 2008-09 | D124: =IF(dms_RPT="financial",dms_fy5,dms_cy5) -> 2009-10 | E124: =IF(dms_RPT="financial",dms_fy6,dms_cy6) -> 2010-11 | F124: =IF(dms_RPT="financial",dms_fy7,dms_cy7) -> 2011-12 | G124: =IF(dms_RPT="financial",dms_fy8,dms_cy8) -> 2012-13 | H124: =IF(dms_RPT="financial",dms_fy9,dms_cy9) -> 2013-14 | I124: =IF(dms_RPT="financial",dms_fy10,dms_cy10) -> 2014-15 | J124: =IF(dms_RPT="financial",dms_fy11,dms_cy11) -> 2015-16 | K124: =IF(dms_RPT="financial",dms_fy12,dms_cy12) -> 2016-17
B125: Replacement expenditure | C125: 0 | D125: 0 | E125: 0 | F125: 0 | G125: 1288.55 | H125: 0 | I125: 0 | J125: 0 | K125: 0
B126: Connections | C126: 5721473.35 | D126: 2691815.73 | E126: 5575695.97 | F126: 8380277.38 | G126: 9344213.6 | H126: 6977415.49 | I126: 9088941.13 | J126: 9142503.73 | K126: 9349567.01
B127: Augmentation Expenditure | C127: 12919.25 | D127: 27130 | E127: 4545.45 | F127: 2302409.55 | G127: 5264209.6 | H127: 784000 | I127: 53490 | J127: 676045.45 | K127: 9227.32
B128: Non-network
B129: Capitalised network overheads
B130: Capitalised corporate overheads
B131: Metering
B132: Public Lighting
B140: TOTAL CAPCONS | C140: =+SUM(C125:C139) -> 5734392.6 | D140: 2718945.73 | E140: 5580241.42 | F140: 10682686.93 | G140: 14609711.75 | H140: 7761415.49 | I140: 9142431.13 | J140: 9818549.18 | K140: 9358794.33
B142: 2.1.8 - STANDARD CONTROL SERVICES CAPITALISED OVERHEADS
C143: EXPENDITURE ($0's)
C144: =IF(dms_RPT="financial",dms_fy4,dms_cy4) -> 2008-09 | D144: =IF(dms_RPT="financial",dms_fy5,dms_cy5) -> 2009-10 | E144: =IF(dms_RPT="financial",dms_fy6,dms_cy6) -> 2010-11 | F144: =IF(dms_RPT="financial",dms_fy7,dms_cy7) -> 2011-12 | G144: =IF(dms_RPT="financial",dms_fy8,dms_cy8) -> 2012-13 | H144: =IF(dms_RPT="financial",dms_fy9,dms_cy9) -> 2013-14 | I144: =IF(dms_RPT="financial",dms_fy10,dms_cy10) -> 2014-15 | J144: =IF(dms_RPT="financial",dms_fy11,dms_cy11) -> 2015-16 | K144: =IF(dms_RPT="financial",dms_fy12,dms_cy12) -> 2016-17
B145: Vegetation management | C145: 0 | D145: 0 | E145: 0 | F145: 0 | G145: 0 | H145: 0 | I145: 0 | J145: 0
B146: Maintenance | C146: 0 | D146: 0 | E146: 0 | F146: 0 | G146: 0 | H146: 0 | I146: 0 | J146: 0
B147: Emergency response | C147: 0 | D147: 0 | E147: 0 | F147: 0 | G147: 0 | H147: 0 | I147: 0 | J147: 0
B148: Non-network | C148: 0 | D148: 0 | E148: 0 | F148: 0 | G148: 0 | H148: 0 | I148: 0 | J148: 0
B149: Metering
B150: Public Lighting
B157: capcons (included in the above)
B158: TOTAL CAPITALISED OVERHEADS | C158: =+SUM(C145:C156) -> 0 | D158: =+SUM(D145:D156) -> 0 | E158: 0 | F158: 0 | G158: 0 | H158: 0 | I158: 0 | J158: 0 | K158: 0

Sheet 2.2 Repex
B1: REGULATORY REPORTING STATEMENT
B2: =INDEX(dms_TradingNameFull_List,MATCH(dms_TradingName,dms_TradingName_List)) -> Power and Water Corporation
B3: =(IF(dms_DataQuality="recast",INDEX(dms_Worksheet_List,MATCH(dms_Model,dms_Model_List))&" ",INDEX(dms_Worksheet_List,MATCH(dms_Model,dms_Model_List))))&" "&(IF(SUM(dms_SingleYear_Model)>0,CRY,CONCATENATE(" ",dms_CRCP_FirstYear_Result," to ",dms_CRCP_FinalYear_Result))) -> CATEGORY ANALYSIS 2008-09 to 2016-17
B4: 2.2 REPEX
B6: There are TWO tables on this worksheet. These tables have been 'grouped' (and sub-grouped) for ease of navigation. See the Instructions sheet on how to group or ungroup tables.
B8: 2.2.1 - REPLACEMENT EXPENDITURE, VOLUMES AND ASSET FAILURES BY ASSET CATEGORY
B9: EXPENDITURE
E10: EXPENDITURE ($0's)
B11: ASSET GROUP | C11: ASSET CATEGORY | E11: =IF(dms_RPT="financial",dms_fy4,dms_cy4) -> 2008-09 | F11: =IF(dms_RPT="financial",dms_fy5,dms_cy5) -> 2009-10 | G11: =IF(dms_RPT="financial",dms_fy6,dms_cy6) -> 2010-11 | H11: =IF(dms_RPT="financial",dms_fy7,dms_cy7) -> 2011-12 | I11: =IF(dms_RPT="financial",dms_fy8,dms_cy8) -> 2012-13 | J11: =IF(dms_RPT="financial",dms_fy9,dms_cy9) -> 2013-14 | K11: =IF(dms_RPT="financial",dms_fy10,dms_cy10) -> 2014-15 | L11: =IF(dms_RPT="financial",dms_fy11,dms_cy11) -> 2015-16 | M11: =IF(dms_RPT="financial",dms_fy12,dms_cy12) -> 2016-17
B12: POLES BY: HIGHEST OPERATING VOLTAGE ; MATERIAL TYPE | C12: ˂ = 1 kV; Wood - replacement of staked pole | J12: 0 | K12: 0 | L12: 0 | M12: 0
C13: ˂ = 1 kV; Wood - replacement of unstaked pole | J13: 0 | K13: 0 | L13: 0 | M13: 0
C14: > 1 kV & < = 11 kV; Wood - replacement of staked pole | J14: 0 | K14: 0 | L14: 0 | M14: 0
C15: > 1 kV & < = 11 kV; Wood - replacement of unstaked pole | J15: 0 | K15: 0 | L15: 0 | M15: 0
C16: ˃ 11 kV & < = 22 kV; Wood - replacement of staked pole | J16: 0 | K16: 0 | L16: 0 | M16: 0
C17: ˃ 11 kV & < = 22 kV; Wood - replacement of unstaked pole | J17: 0 | K17: 0 | L17: 0 | M17: 0
C18: > 22 kV & < = 66 kV; Wood - replacement of staked pole | J18: 0 | K18: 0 | L18: 0 | M18: 0
C19: > 22 kV & < = 66 kV; Wood - replacement of unstaked pole | J19: 0 | K19: 0 | L19: 0 | M19: 0
C20: > 66 kV & < = 132 kV; Wood - replacement of staked pole | J20: 0 | K20: 0 | L20: 0 | M20: 0
C21: > 66 kV & < = 132 kV; Wood - replacement of unstaked pole | J21: 0 | K21: 0 | L21: 0 | M21: 0
C22: > 132 kV; Wood - replacement of staked pole | J22: 0 | K22: 0 | L22: 0 | M22: 0
C23: > 132 kV; Wood - replacement of unstaked pole | J23: 0 | K23: 0 | L23: 0 | M23: 0
C24: ˂ = 1 kV; Concrete | J24: 0 | K24: 0 | L24: 0 | M24: 0
C25: > 1 kV & < = 11 kV; Concrete | J25: 0 | K25: 0 | L25: 0 | M25: 0
C26: ˃ 11 kV & < = 22 kV; Concrete | J26: 0 | K26: 0 | L26: 0 | M26: 0
C27: > 22 kV & < = 66 kV; Concrete | J27: 0 | K27: 0 | L27: 0 | M27: 0
C28: > 66 kV & < = 132 kV; Concrete | J28: 0 | K28: 0 | L28: 0 | M28: 0
C29: > 132 kV; Concrete | J29: 0 | K29: 0 | L29: 0 | M29: 0
C30: ˂ = 1 kV; Steel | J30: 393620.4299 | K30: 822228.2016 | L30: 2321132.979 | M30: 1099148.65
C31: > 1 kV & < = 11 kV; Steel | J31: 51196.51 | K31: 176257.94 | L31: 14062.72 | M31: 2253426.99
C32: ˃ 11 kV & < = 22 kV; Steel | J32: 65451.545 | K32: 169144.8369 | L32: 69171.12684 | M32: 307890.5164
C33: > 22 kV & < = 66 kV; Steel | J33: 104711.3572 | K33: 464833.8513 | L33: 165145.3018 | M33: 56116.78938
C34: > 66 kV & < = 132 kV; Steel | J34: 0 | K34: 0 | L34: 0 | M34: 0
C35: > 132 kV; Steel | J35: 0 | K35: 0 | L35: 0 | M35: 0
C36: Other | J36: 0 | K36: 0 | L36: 0 | M36: 0
B37: POLE TOP STRUCTURES BY: HIGHEST OPERATING VOLTAGE | C37: ˂ = 1 kV | J37: 0 | K37: 0 | L37: 0 | M37: 0
C38: > 1 kV & < = 11 kV | J38: 79907.89293 | K38: 162589.1729 | L38: 415027.9185 | M38: 371936.7556
C39: ˃ 11 kV & < = 22 kV | J39: 343141.9139 | K39: 271046.6022 | L39: 418953.947 | M39: 392825.9292
C40: > 22 kV & < = 66 kV | J40: 14176.97 | K40: 0 | L40: 321 | M40: 1314.44
C41: > 66 kV & < = 132 kV | J41: 84081.26 | K41: 45932.72 | L41: 33948.12 | M41: 4495.01
C42: > 132 kV | J42: 0 | K42: 0 | L42: 0 | M42: 0
C43: Other | J43: 0 | K43: 0 | L43: 0 | M43: 0
B44: STAKING WOODEN POLES BY: HIGHEST OPERATING VOLTAGE | C44: ˂ = 1 Kv | J44: 0 | K44: 0 | L44: 0 | M44: 0
C45: > 1 kV & < = 11 kV | J45: 0 | K45: 0 | L45: 0 | M45: 0
C46: ˃ 11 kV & < = 22 kV | J46: 0 | K46: 0 | L46: 0 | M46: 0
C47: > 22 kV & < = 66 kV | J47: 0 | K47: 0 | L47: 0 | M47: 0
C48: > 66 kV & < = 132 kV | J48: 0 | K48: 0 | L48: 0 | M48: 0
C49: > 132 kV | J49: 0 | K49: 0 | L49: 0 | M49: 0
B50: OVERHEAD CONDUCTORS BY: HIGHEST OPERATING VOLTAGE; NUMBER OF PHASES (AT HV) | C50: ˂ = 1 kV | J50: 72151.2152 | K50: 41367.39801 | L50: 2478.5 | M50: 60270.11
C51: > 1 kV & < = 11 kV | J51: 45918.76396 | K51: 153379.2226 | L51: 134506.4279 | M51: 204151.1476
C52: ˃ 11 kV & < = 22 kV ; SWER | J52: 0 | K52: 0 | L52: 0 | M52: 0
C53: ˃ 11 kV & < = 22 kV ; Single-Phase | J53: 0 | K53: 0 | L53: 0 | M53: 0
C54: ˃ 11 kV & < = 22 kV ; Multiple-Phase | J54: 136540.4434 | K54: 161923.1872 | L54: 65830.51891 | M54: 105263.2862
C55: > 22 kV & < = 66 kV | J55: 921.3336364 | K55: 54138.27596 | L55: 402153.8511 | M55: 197727.1706
C56: > 66 kV & < = 132 kV | J56: 0 | K56: 0 | L56: 0 | M56: 0
C57: > 132 kV | J57: 0 | K57: 0 | L57: 0 | M57: 0
C58: Other | J58: 0 | K58: 0 | L58: 0 | M58: 0
B59: UNDERGROUND CABLES BY: HIGHEST OPERATING VOLTAGE | C59: ˂ = 1 kV | J59: 1176.676324 | K59: 196585.1424 | L59: 124234.5705 | M59: 179377.1717
C60: > 1 kV & < = 11 kV | J60: 2415562.81 | K60: 2635992.828 | L60: 1844241.271 | M60: 1526853.088
C61: > 11 kV & < = 22 kV | J61: 297727.8118 | K61: 1313564.111 | L61: 574313.3536 | M61: 350205.1004
C62: > 22 kV & < = 33 kV | J62: 0 | K62: 0 | L62: 0 | M62: 0
C63: > 33 kV & < = 66 kV | J63: 1213510.084 | K63: 519669.4046 | L63: 2121185.66 | M63: 957347.158
C64: > 66 kV & < = 132 kV | J64: 114776.9318 | K64: 24449.1458 | L64: 16523.2124 | M64: 0
C65: > 132 kV | J65: 0 | K65: 0 | L65: 0 | M65: 0
C66: Other | J66: 0 | K66: 0 | L66: 0 | M66: 0
B67: SERVICE LINES BY: CONNECTION VOLTAGE; CUSTOMER TYPE; CONNECTION COMPLEXITY | C67: ˂ = 11 kV ; Residential ; Simple Type | J67: 0 | K67: 70518.77 | L67: 186613.41 | M67: 625414.45
C68: ˂ = 11 kV ; Commercial & Industrial ; Simple Type | J68: 0 | K68: 0 | L68: 0 | M68: 0
C69: ˂ = 11 kV ; Residential ; Complex Type | J69: 0 | K69: 0 | L69: 0 | M69: 0
C70: ˂ = 11 kV ; Commercial & Industrial ; Complex Type | J70: 0 | K70: 0 | L70: 0 | M70: 0
C71: ˂ = 11 kV ; Subdivision ; Complex Type | J71: 0 | K71: 0 | L71: 0 | M71: 0
C72: > 11 kV & < = 22 kV ; Commercial & Industrial | J72: 0 | K72: 0 | L72: 0 | M72: 0
C73: > 11 kV & < = 22 kV ; Subdivision | J73: 0 | K73: 0 | L73: 0 | M73: 0
C74: > 22 kV & < = 33 kV ; Commercial & Industrial | J74: 0 | K74: 0 | L74: 0 | M74: 0
C75: > 22 kV & < = 33 kV ; Subdivision | J75: 0 | K75: 0 | L75: 0 | M75: 0
C76: > 33 kV & < = 66 kV ; Commercial & Industrial | J76: 0 | K76: 0 | L76: 0 | M76: 0
C77: > 33 kV & < = 66 kV ; Subdivision | J77: 0 | K77: 0 | L77: 0 | M77: 0
C78: > 66 kV & < = 132 kV ; Commercial & Industrial | J78: 0 | K78: 0 | L78: 0 | M78: 0
C79: > 66 kV & < = 132 kV ; Subdivision | J79: 0 | K79: 0 | L79: 0 | M79: 0
C80: > 132 kV ; Commercial & Industrial | J80: 0 | K80: 0 | L80: 0 | M80: 0
C81: > 132 kV ; Subdivision | J81: 0 | K81: 0 | L81: 0 | M81: 0
C82: Other | J82: 0 | K82: 0 | L82: 0 | M82: 0
B83: TRANSFORMERS BY: MOUNTING TYPE; HIGHEST OPERATING VOLTAGE ; AMPERE RATING; NUMBER OF PHASES (AT LV) | C83: Pole Mounted ; < = 22kV ; < = 60 kVA ; Single Phase | J83: 0 | K83: 0 | L83: 0 | M83: 0
C84: Pole Mounted ; < = 22kV ; > 60 kVA and < = 600 kVA ; Single Phase | J84: 10933 | K84: 88849 | L84: 0 | M84: 0
C85: Pole Mounted ; < = 22kV ; > 600 kVA ; Single Phase | J85: 0 | K85: 0 | L85: 0 | M85: 0
C86: Pole Mounted ; < = 22kV ; < = 60 kVA ; Multiple Phase | J86: 48836.42958 | K86: 3688.714903 | L86: -499.4225574 | M86: 71421.17765
C87: Pole Mounted ; < = 22kV ; > 60 kVA and < = 600 kVA ; Multiple Phase | J87: 533325.2158 | K87: 884996.8113 | L87: 1492549.275 | M87: 762375.5075
C88: Pole Mounted ; < = 22kV ; > 600 kVA ; Multiple Phase | J88: 0 | K88: 0 | L88: 0 | M88: 0
C89: Kiosk Mounted ; < = 22kV ; < = 60 kVA ; Single Phase | J89: 9078.27 | K89: 0 | L89: 0 | M89: 7344.34
C90: Kiosk Mounted ; < = 22kV ; > 60 kVA and < = 600 kVA ; Single Phase | J90: 281551.41 | K90: 40904.86 | L90: 43526.41 | M90: 101757.82
C91: Kiosk Mounted ; < = 22kV ; > 600 kVA ; Single Phase | J91: 0 | K91: 0 | L91: 0 | M91: 0
C92: Kiosk Mounted ; < = 22kV ; < = 60 kVA ; Multiple Phase | J92: 0 | K92: 0 | L92: 0 | M92: 0
C93: Kiosk Mounted ; < = 22kV ; > 60 kVA and < = 600 kVA ; Multiple Phase | J93: 1108344.87 | K93: 1516462.497 | L93: 1287566.366 | M93: 1097398.691
C94: Kiosk Mounted ; < = 22kV ; > 600 kVA ; Multiple Phase | J94: 38273.21407 | K94: 320625.904 | L94: 39874.06983 | M94: 155074.2325
C95: Ground Outdoor / Indoor Chamber Mounted; ˂ 22 kV ; < = 60 kVA ; Single Phase | J95: 0 | K95: 0 | L95: 0 | M95: 0
C96: Ground Outdoor / Indoor Chamber Mounted; ˂ 22 kV ; > 60 kVA and < = 600 kVA ; Single Phase | J96: 0 | K96: 0 | L96: 0 | M96: 0
C97: Ground Outdoor / Indoor Chamber Mounted; ˂ 22 kV ; > 600 kVA ; Single Phase | J97: 0 | K97: 0 | L97: 0 | M97: 0
C98: Ground Outdoor / Indoor Chamber Mounted; ˂ 22 kV ; < = 60 kVA ; Multiple Phase | J98: 0 | K98: 0 | L98: 0 | M98: 0
C99: Ground Outdoor / Indoor Chamber Mounted; ˂ 22 kV ; > 60 kVA and < = 600 kVA ; Multiple Phase | J99: 95301.9715 | K99: 491270.4185 | L99: 111594.4469 | M99: 203482.2881
C100: Ground Outdoor / Indoor Chamber Mounted; ˂ 22 kV ; > 600 kVA ; Multiple Phase | J100: 18504.66948 | K100: 369726.2609 | L100: 726930.7047 | M100: 205374.52
C101: Ground Outdoor / Indoor Chamber Mounted; > = 22 kV & < = 33 kV ; < = 15 MVA | J101: 9099.913787 | K101: 72751.22482 | L101: 49738.97869 | M101: 91718.94819
C102: Ground Outdoor / Indoor Chamber Mounted; > = 22 kV & < = 33 kV ; > 15 MVA and < = 40 MVA | J102: 0 | K102: 0 | L102: 0 | M102: 0
C103: Ground Outdoor / Indoor Chamber Mounted; > = 22 kV & < = 33 kV ; > 40 MVA | J103: 0 | K103: 0 | L103: 0 | M103: 0
C104: Ground Outdoor / Indoor Chamber Mounted; > 33 kV & < = 66 kV ; < = 15 MVA | J104: 79728.12001 | K104: 227149.3311 | L104: 223743.4935 | M104: 86302.15739
C105: Ground Outdoor / Indoor Chamber Mounted; > 33 kV & < = 66 kV ; > 15 MVA and < = 40 MVA | J105: 668503.4354 | K105: 1520798.999 | L105: 3065051.937 | M105: 1444199.923
C106: Ground Outdoor / Indoor Chamber Mounted; > 33 kV & < = 66 kV ; > 40 MVA | J106: 0 | K106: 0 | L106: 0 | M106: 0
C107: Ground Outdoor / Indoor Chamber Mounted; > 66 kV & < = 132 kV ; < = 100 MVA | J107: 1857774.754 | K107: 395732.8803 | L107: 267444.0445 | M107: 0
C108: Ground Outdoor / Indoor Chamber Mounted; > 66 kV & < = 132 kV ; > 100 MVA | J108: 20508.94 | K108: 2497.2 | L108: 0 | M108: 0
C109: Ground Outdoor / Indoor Chamber Mounted; > 132 kV ; < = 100 MVA | J109: 0 | K109: 0 | L109: 0 | M109: 0
C110: Ground Outdoor / Indoor Chamber Mounted; > 132 kV ; > 100 MVA | J110: 0 | K110: 0 | L110: 0 | M110: 0
C111: Other | J111: 0 | K111: 0 | L111: 0 | M111: 0
B112: SWITCHGEAR BY: HIGHEST OPERATING VOLTAGE ; SWITCH FUNCTION | C112: ˂ = 11 kV ; FUSE | J112: 0 | K112: 0 | L112: 0 | M112: 0
C113: ˂ = 11 kV ; Switch | J113: 2160403.82 | K113: 2577714.676 | L113: 3788149.611 | M113: 3759735.422
C114: ˂ = 11 kV ; Circuit Breaker | J114: 2764049.45 | K114: 1433899.876 | L114: 587811.1853 | M114: 362338.5951
C115: > 11 kV & < = 22 kV ; Switch | J115: 407765.3506 | K115: 733232.7424 | L115: 459256.5947 | M115: 594416.4587
C116: > 11 kV & < = 22 kV ; Circuit Breaker | J116: 613628.949 | K116: 2566743.816 | L116: 1744830.396 | M116: 740316.4946
C117: > 22 kV & < = 33 kV ; Switch | J117: 0 | K117: 0 | L117: 0 | M117: 0
C118: > 22 kV & < = 33 kV ; Circuit Breaker | J118: 0 | K118: 0 | L118: 0 | M118: 0
C119: > 33 kV & < = 66 kV ; Switch | J119: 43329.39835 | K119: 268772.7759 | L119: 553497.9973 | M119: 246258.7507
C120: > 33 kV & < = 66 kV ; Circuit Breaker | J120: 3610682.252 | K120: 1850482.394 | L120: 2633200.847 | M120: 1106039.878
C121: > 66 kV & < = 132 kV ; Switch | J121: 0 | K121: 0 | L121: 0 | M121: 0
C122: > 66 kV & < = 132 kV ; Circuit Breaker | J122: 311957.12 | K122: 1318034.26 | L122: 241935.19 | M122: 115369.12
C123: > 132 kV ; Switch | J123: 0 | K123: 0 | L123: 0 | M123: 0
C124: > 132 kV ; Circuit Breaker | J124: 0 | K124: 0 | L124: 0 | M124: 0
C125: Other | J125: 0 | K125: 0 | L125: 0 | M125: 0
B126: PUBLIC LIGHTING BY: ASSET TYPE ; LIGHTING OBLIGATION | C126: Luminaires ; Major Road
C127: Luminaires ; Minor Road
C128: Brackets ; Major Road
C129: Brackets ; Minor Road
C130: Lamps ; Major Road
C131: Lamps ; Minor Road
C132: Poles / Columns ; Major Road
C133: Poles / Columns ; Minor Road
C134: Other
B135: SCADA, NETWORK CONTROL AND PROTECTION SYSTEMS BY: FUNCTION | C135: Field Devices | J135: 2550084.539 | K135: 2726507.093 | L135: 3574482.289 | M135: 2344892.033
C136: Local Network Wiring Assets | J136: 3511441.216 | K136: 3106296.744 | L136: 1338100.268 | M136: 390423.7973
C137: Communications Network Assets | J137: 1227452.74 | K137: 1127048.588 | L137: 920354.5825 | M137: 743462.5657
C138: Master Station Assets | J138: 348801.27 | K138: 151128.17 | L138: 1043.25 | M138: 0
C139: Communications Site Infrastructure | J139: 255.421836 | K139: 0 | L139: 0 | M139: 0
C140: Communications Linear Assets | J140: 1589.60945 | K140: 1403.986787 | L140: 0 | M140: 0
C141: AFLC | J141: 0 | K141: 0 | L141: 0 | M141: 0
C142: Other | J142: 0 | K142: 0 | L142: 0 | M142: 0
B143: OTHER BY: DNSP DEFINED | C143: Buildings | J143: 6033080.383 | K143: 5317988.057 | L143: 5465306.32 | M143: 2252971.427
C144: Instrument Transformers | J144: 154397.5381 | K144: 417758.7265 | L144: 439137.5241 | M144: 77101.93649
C145: Metering Units | J145: 44432.51545 | K145: 48900.27504 | L145: 108796.1684 | M145: 58865.03906
C146: Pillars | J146: 1302847.539 | K146: 1058046.52 | L146: 698812.2259 | M146: 851167.075
C147: Substation Auxiliary Plant | J147: 570291.0765 | K147: 1211806.351 | L147: 303343.768 | M147: 388768.5728
C148: Voltage Regulators | J148: 0 | K148: 281068.3382 | L148: 620.9777227 | M148: -1018.19593
C149: Civil and Grounds | J149: 5021693.375 | K149: 3844727.954 | L149: 2231795.077 | M149: 656016.6582
C150: Fire Systems | J150: 247427.8571 | K150: 303748.3858 | L150: 627364.5577 | M150: 286698.7315
C151: Capacitor Banks | J151: 852869.7036 | K151: 655603.43 | L151: 279105.5335 | M151: 61753.22729
C152: Cable Tunnels | J152: 4519.831838 | K152: 26712.69968 | L152: 1570.260996 | M152: 4436.710244
C153: Power Transformer Refurbishment | J153: 306207.89 | K153: 158873.52 | L153: 9565.35 | M153: 18808.51
C154: Power Transformer Spares | J154: 1002880.22 | K154: 0 | L154: 27147.8 | M154: 0
C155: Pole Refurbishment | J155: 6223.250061 | K155: 13316.50837 | L155: 15776.12121 | M155: 6684.120357
C156: Tower Refurbishment | J156: 0 | K156: 16484 | L156: 16811.7 | M156: 253499.68
C157: EDO Refurbishment | J157: 0 | K157: 0 | L157: 178524.56 | M157: 15310.83
J158: 0 | K158: 0 | L158: 0 | M158: 0
B161: ASSET REPLACEMENTS
E162: VOLUMES (0's)
B163: ASSET GROUP | C163: ASSET CATEGORY | E163: =IF(dms_RPT="financial",dms_fy4,dms_cy4) -> 2008-09 | F163: =IF(dms_RPT="financial",dms_fy5,dms_cy5) -> 2009-10 | G163: =IF(dms_RPT="financial",dms_fy6,dms_cy6) -> 2010-11 | H163: =IF(dms_RPT="financial",dms_fy7,dms_cy7) -> 2011-12 | I163: =IF(dms_RPT="financial",dms_fy8,dms_cy8) -> 2012-13 | J163: =IF(dms_RPT="financial",dms_fy9,dms_cy9) -> 2013-14 | K163: =IF(dms_RPT="financial",dms_fy10,dms_cy10) -> 2014-15 | L163: =IF(dms_RPT="financial",dms_fy11,dms_cy11) -> 2015-16 | M163: =IF(dms_RPT="financial",dms_fy12,dms_cy12) -> 2016-17
B164: POLES BY: HIGHEST OPERATING VOLTAGE ; MATERIAL TYPE | C164: ˂ = 1 kV; Wood - Staked | J164: 0 | K164: 0 | L164: 0 | M164: 0
C165: ˂ = 1 kV; Wood - Unstaked | J165: 0 | K165: 0 | L165: 0 | M165: 0
C166: > 1 kV & < = 11 kV; Wood - Staked | J166: 0 | K166: 0 | L166: 0 | M166: 0
C167: > 1 kV & < = 11 kV; Wood - Unstaked | J167: 0 | K167: 0 | L167: 0 | M167: 0
C168: ˃ 11 kV & < = 22 kV; Wood - Staked | J168: 0 | K168: 0 | L168: 0 | M168: 0
C169: ˃ 11 kV & < = 22 kV; Wood - Unstaked | J169: 0 | K169: 0 | L169: 0 | M169: 0
C170: > 22 kV & < = 66 kV; Wood - Staked | J170: 0 | K170: 0 | L170: 0 | M170: 0
C171: > 22 kV & < = 66 kV; Wood - Unstaked | J171: 0 | K171: 0 | L171: 0 | M171: 0
C172: > 66 kV & < = 132 kV; Wood - Staked | J172: 0 | K172: 0 | L172: 0 | M172: 0
C173: > 66 kV & < = 132 kV; Wood - Untaked | J173: 0 | K173: 0 | L173: 0 | M173: 0
C174: > 132 kV; Wood - Staked | J174: 0 | K174: 0 | L174: 0 | M174: 0
C175: > 132 kV; Wood - Unstaked | J175: 0 | K175: 0 | L175: 0 | M175: 0
C176: ˂ = 1 kV; Concrete | J176: 0 | K176: 0 | L176: 0 | M176: 0
C177: > 1 kV & < = 11 kV; Concrete | J177: 0 | K177: 0 | L177: 0 | M177: 0
C178: ˃ 11 kV & < = 22 kV; Concrete | J178: 0 | K178: 0 | L178: 0 | M178: 0
C179: > 22 kV & < = 66 kV; Concrete | J179: 0 | K179: 0 | L179: 0 | M179: 0
C180: > 66 kV & < = 132 kV; Concrete | J180: 0 | K180: 0 | L180: 0 | M180: 0
C181: > 132 kV; Concrete | J181: 0 | K181: 0 | L181: 0 | M181: 0
C182: ˂ = 1 kV; Steel | J182: 1 | K182: 57 | L182: 60 | M182: 100
C183: > 1 kV & < = 11 kV; Steel | J183: 2 | K183: 1 | L183: 6 | M183: 29
C184: ˃ 11 kV & < = 22 kV; Steel | J184: 15 | K184: 6 | L184: 2 | M184: 24
C185: > 22 kV & < = 66 kV; Steel | J185: 0 | K185: 0 | L185: 0 | M185: 7
C186: > 66 kV & < = 132 kV; Steel | J186: 0 | K186: 0 | L186: 0 | M186: 0
C187: > 132 kV; Steel | J187: 0 | K187: 0 | L187: 0 | M187: 0
C188: Other | J188: 0 | K188: 0 | L188: 0 | M188: 0
B189: POLE TOP STRUCTURES BY: HIGHEST OPERATING VOLTAGE | C189: ˂ = 1 kV | J189: 0 | K189: 0 | L189: 0 | M189: 0
C190: > 1 kV & < = 11 kV | J190: 86 | K190: 73 | L190: 231 | M190: 259
C191: ˃ 11 kV & < = 22 kV | J191: 322 | K191: 26 | L191: 308 | M191: 68
C192: > 22 kV & < = 66 kV | J192: 19 | K192: 0 | L192: 0 | M192: 0
C193: > 66 kV & < = 132 kV | J193: 4 | K193: 4 | L193: 4 | M193: 1
C194: > 132 kV | J194: 0 | K194: 0 | L194: 0 | M194: 0
C195: Other | J195: 0 | K195: 0 | L195: 0 | M195: 0
B196: STAKING WOODEN POLES BY: HIGHEST OPERATING VOLTAGE | C196: ˂ = 1 Kv | J196: 0 | K196: 0 | L196: 0 | M196: 0
C197: > 1 kV & < = 11 kV | J197: 0 | K197: 0 | L197: 0 | M197: 0
C198: ˃ 11 kV & < = 22 kV | J198: 0 | K198: 0 | L198: 0 | M198: 0
C199: > 22 kV & < = 66 kV | J199: 0 | K199: 0 | L199: 0 | M199: 0
C200: > 66 kV & < = 132 kV | J200: 0 | K200: 0 | L200: 0 | M200: 0
C201: > 132 kV | J201: 0 | K201: 0 | L201: 0 | M201: 0
B202: OVERHEAD CONDUCTORS BY: HIGHEST OPERATING VOLTAGE; NUMBER OF PHASES (AT HV) | C202: ˂ = 1 kV | J202: 0.5356488317 | K202: 0.24 | L202: 0 | M202: 0.226
C203: > 1 kV & < = 11 kV | J203: 0.051 | K203: 0.063 | L203: 2.822 | M203: 0.161
C204: ˃ 11 kV & < = 22 kV ; SWER | J204: 0 | K204: 0 | L204: 0 | M204: 0
... 304 more rows

Sheet 2.3(a) Augex
B1: REGULATORY REPORTING STATEMENT
B2: =INDEX(dms_TradingNameFull_List,MATCH(dms_TradingName,dms_TradingName_List)) -> Power and Water Corporation
B3: =(IF(dms_DataQuality="recast",INDEX(dms_Worksheet_List,MATCH(dms_Model,dms_Model_List))&" ",INDEX(dms_Worksheet_List,MATCH(dms_Model,dms_Model_List))))&" "&(IF(SUM(dms_SingleYear_Model)>0,CRY,CONCATENATE(" ",dms_CRCP_FirstYear_Result," to ",dms_CRCP_FinalYear_Result))) -> CATEGORY ANALYSIS 2008-09 to 2016-17
B4: 2.3 AUGEX PROJECT DATA
B7: There are TWO tables on this worksheet - each has been 'grouped' (and sub-grouped) for easy navigation. Both rows and columns have been grouped. See the Instructions sheet on how to group or ungroup tables.
B9: 2.3.1 - AUGEX ASSET DATA - SUBTRANSMISSION SUBSTATIONS, SWITCHING STATIONS AND ZONE SUBSTATIONS
B10: NOTE: DNSP MUST PROVIDE EXPENDITURE INFORMATION ON A PROJECT CLOSE BASIS.
B11: AUG231_1 | C11: AUG231_2 | D11: AUG231_3 | E11: AUG231_4 | F11: AUG231_5 | G11: AUG231_6 | H11: ED_AUG231_00001 | I11: ED_AUG231_00002 | J11: ED_AUG231_00003 | K11: ED_AUG231_00004 | L11: ED_AUG231_00005 | M11: ED_AUG231_00006 | N11: ED_AUG231_00007 | O11: ED_AUG231_00008 | P11: ED_AUG231_00009 | Q11: ED_AUG231_00010 | R11: ED_AUG231_00011 | U11: ED_AUG231_00012 | V11: ED_AUG231_00013 | W11: ED_AUG231_00014 | X11: ED_AUG231_00015 | Y11: ED_AUG231_00016 | Z11: ED_AUG231_00017 | AA11: ED_AUG231_00018 | AB11: ED_AUG231_00019 | AC11: ED_AUG231_00020 | AD11: ED_AUG231_00021 | AE11: ED_AUG231_00022 | AF11: ED_AUG231_00023
B12: PROJECT DESCRIPTION AND CHANGES | L12: PLANT AND EQUIPMENT EXPENDITURE AND VOLUME | X12: OTHER EXPENDITURE | Z12: TOTAL DIRECT EXPENDITURE ($0's) | AA12: YEARS INCURRED | AB12: ALL RELATED PARTY CONTRACTS | AD12: ALL NON RELATED PARTYCONTRACTS | AE12: LAND AND EASEMENTS
B13: SUBSTATION ID | C13: SUBSTATION TYPE (drop down) | D13: PROJECT ID | E13: PROJECT TYPE (drop down) | F13: PROJECT TRIGGER (drop down) | G13: VOLTAGE (KV) | H13: SUBSTATION RATING NORMAL CYCLIC (MVA) | J13: SUBSTATION RATING N-1 EMERGENCY (MVA) | L13: TRANSFORMERS | O13: SWITCHGEAR | Q13: CAPACITORS | U13: OTHER PLANT ITEM | V13: INSTALLATION (LABOUR) | X13: CIVIL WORKS | Y13: OTHER DIRECT | AB13: RELATED PARTY MARGINS | AC13: TOTAL | AE13: LAND PURCHASE | AF13: EASEMENTS
H14: PRE | I14: POST | J14: PRE | K14: POST | L14: UNITS ADDED | M14: MVA ADDED | N14: EXPENDITURE ($0's) | O14: UNITS ADDED | P14: EXPENDITURE ($0's) | Q14: MVAR ADDED | R14: EXPENDITURE ($0's) | U14: EXPENDITURE ($0's) | V14: VOLUME | W14: EXPENDITURE ($0's) | X14: EXPENDITURE ($0's) | AB14: EXPENDITURE ($0's) | AE14: EXPENDITURE ($0's)
B15: Leanyer (LE) - RD | C15: Zone substation | D15: PRD39500 | E15: New substation establishment | F15: Demand growth | G15: 66/11 | H15: 0 | I15: 54 | J15: 0 | K15: 27 | L15: 2 | M15: 54 | N15: 1405586.146 | O15: 31 | P15: 1132048.782 | Q15: 12 | R15: 457646.4849 | U15: 1467779.996 | V15: 105713.2904 | W15: 9860697.406 | X15: 15539999.16 | Y15: 0 | Z15: =SUM(N15,P15,R15,U15,W15,X15,Y15) -> 29863757.98 | AA15: 2010-2017 | AB15: 0 | AC15: 0 | AD15: 21918008.68 | AE15: 565067.9405 | AF15: 0
B16: Frances Bay (FB) - SB | C16: Zone substation | D16: PRD39700 | E16: Substation upgrade - capacity | F16: Demand growth | G16: 66/11 | H16: 44.3 | I16: 88.6 | J16: 0 | K16: 44.3 | L16: 1 | M16: 38 | N16: 711435.9484 | O16: 16 | P16: 3058129.518 | Q16: 12 | R16: 0 | U16: 1266593.792 | V16: 117884.83 | W16: 11143701.3 | X16: 1642458.094 | Y16: 0 | Z16: 17822318.65 | AA16: 2010-2016 | AB16: 0 | AC16: 0 | AD16: 9340269.337 | AE16: 0 | AF16: 0
B17: 2 Spare Mobile Substations | C17: Other | D17: PRD39738 | E17: Other | F17: Other | G17: 66/22 - 11 | H17: 0 | I17: 0 | J17: 0 | K17: 0 | L17: 2 | M17: 24 | N17: 8207341.289 | O17: 0 | P17: 0 | Q17: 0 | R17: 0 | U17: 0 | V17: 79807.18331 | W17: 1464918.322 | X17: 0 | Y17: 0 | Z17: 9672259.611 | AA17: 2011-2014 | AB17: 0 | AC17: 0 | AD17: 1307706.551 | AE17: 0 | AF17: 0
Z18: 0
Z19: 0
Z20: 0
Z21: =SUM(N21,P21,R21,U21,W21,X21,Y21) -> 0
Z22: 0
Z23: 0
Z24: 0
Z25: 0
Z26: 0
Z27: 0
Z28: 0
Z29: 0
Z30: 0
Z31: 0
Z32: 0
Z33: 0
Z34: 0
Z35: 0
Z36: 0
Z37: 0
Z38: 0
Z39: 0
Z40: 0
Z41: 0
Z42: 0
Z43: 0
Z44: 0
Z45: 0
Z46: 0
Z47: =SUM(N47,P47,R47,U47,W47,X47,Y47) -> 0
Z48: 0
Z49: 0
Z50: 0
Z51: 0
Z52: 0
Z53: 0
Z54: 0
Z55: 0
Z56: 0
Z57: 0
Z58: 0
Z59: 0
Z60: 0
Z61: 0
Z62: 0
Z63: 0
Z64: 0
Z65: 0
Z66: 0
D67: Non material projects - [actual] | Z67: 40057500.36 | AA67: 2010-2017
B70: AUG232_1 | C70: AUG232_2 | D70: AUG232_3 | E70: AUG232_4 | F70: AUG232_5 | G70: AUG232_6 | H70: ED_AUG232_00001 | I70: ED_AUG232_00002 | J70: ED_AUG232_00003 | K70: ED_AUG232_00004 | L70: ED_AUG232_00005 | M70: ED_AUG232_00006 | N70: ED_AUG232_00007 | O70: ED_AUG232_00008 | P70: ED_AUG232_00009 | Q70: ED_AUG232_00010 | R70: ED_AUG232_00011 | S70: ED_AUG232_00012 | T70: ED_AUG232_00013 | U70: ED_AUG232_00014 | V70: ED_AUG232_00015 | W70: ED_AUG232_00016 | X70: ED_AUG232_00017 | Y70: ED_AUG232_00018 | Z70: ED_AUG232_00019 | AA70: ED_AUG232_00020 | AB70: ED_AUG232_00021
B71: 2.3.2 - AUGEX ASSET DATA - SUBTRANSMISSION LINES
B72: NOTE: DNSP MUST PROVIDE EXPENDITURE INFORMATION ON A PROJECT CLOSE BASIS.
B73: PROJECT DESCRIPTION AND CHANGES | L73: PLANT AND EQUIPMENT EXPENDITURE AND VOLUME | X73: OTHER EXPENDITURE | Z73: TOTAL DIRECT EXPENDITURE ($0's) | AA73: YEARS INCURRED | AB73: ALL RELATED PARTY CONTRACTS | AD73: ALL NON RELATED PARTYCONTRACTS | AE73: LAND AND EASEMENTS
B74: LINE ID | C74: PROJECT ID | D74: PROJECT TYPE | E74: PROJECT TRIGGER | F74: PROJECT TRIGGER (drop down) | G74: VOLTAGE (KV) | H74: ROUTE LINE LENGTH ADDED | L74: POLES/TOWERS (INCLUDING STRUCTURES, AND CIVIL WORKS) | O74: OVERHEAD LINES | R74: UNDERGROUND CABLES | U74: OTHER PLANT ITEM | V74: INSTALLATION (LABOUR) | X74: CIVIL WORKS | Y74: OTHER DIRECT | AB74: RELATED PARTY MARGINS | AC74: TOTAL | AE74: LAND PURCHASE | AF74: EASEMENTS
H75: KM ADDED | L75: POLES/TOWERS ADDED | M75: POLES/TOWERS UPGRADED | N75: EXPENDITURE ($0's) | O75: CIRCUIT KM ADDED | P75: CIRCUIT KM UPGRADED | Q75: EXPENDITURE ($0's) | R75: CIRCUIT KM ADDED | S75: CIRCUIT KM UPGRADED | T75: EXPENDITURE ($0's) | U75: EXPENDITURE ($0's) | V75: VOLUME | W75: EXPENDITURE ($0's) | X75: EXPENDITURE ($0's) | AB75: EXPENDITURE ($0's) | AE75: EXPENDITURE ($0's)
B76: Construct 66 kV line from Weddell - Archer - Hudson Creek (PXD39102) | C76: PRD39102 | D76: New line on new route - single circuit | F76: Demand growth | G76: 66 | I76: 16.779 | L76: 109 | M76: 0 | N76: 6349883.155 | O76: 14.636 | P76: 0 | Q76: 3999143.359 | R76: 2.143 | S76: 0 | T76: 1460324.205 | U76: 213153.6169 | V76: 112444.2212 | W76: 3222612 | X76: 0 | Y76: 0 | Z76: =SUM(N76,Q76,T76,U76,W76,X76,Y76) -> 15245116.34 | AA76: 2008-2014 | AB76: 0 | AC76: 0 | AD76: 11711964.97 | AE76: 0 | AF76: 0 | AH76: New line on new route - single circuit
B77: Darwin - Weddell - Archer 66 kV Rebuild | C77: PRD30002 | D77: Line rebuild over existing route - single circuit | F77: Demand growth | G77: 66 | I77: 0 | L77: 0 | M77: 49 | N77: 1644100.583 | O77: 0 | P77: 5.38 | Q77: 1004223.329 | R77: 0 | S77: 2.26 | T77: 5143245.77 | U77: 0 | V77: 97477.575 | W77: 5301911.412 | X77: 0 | Y77: 0 | Z77: 13093481.09 | AA77: 2012-2014 | AB77: 0 | AC77: 0 | AD77: 10251731.1 | AE77: 0 | AF77: 0 | AH77: New line on new route - dual circuit
Z78: 0 | AH78: New line on new route - other
Z79: 0 | AH79: Line rebuild over existing route - single circuit
Z80: 0 | AH80: Line rebuild over existing route - dual circuit
Z81: 0 | AH81: Reconductor - Single circuit
Z82: 0 | AH82: Reconductor - Dual circuit
Z83: 0 | AH83: Reconductor - Other
Z84: 0 | AH84: Line upgrade - raising/retensoring
Z85: 0 | AH85: Line upgrade - voltage upgrade
Z86: 0 | AH86: Line upgrade - capacity
Z87: 0 | AH87: String spare circuit
Z88: 0 | AH88: Other
Z89: 0
Z90: 0
Z91: 0
Z92: 0
Z93: 0
Z94: 0
Z95: 0
Z96: 0
Z97: 0
Z98: 0
Z99: 0
Z100: 0
Z101: 0
Z102: 0
Z103: 0
Z104: 0
Z105: 0
Z106: 0
Z107: 0
Z108: =SUM(N108,Q108,T108,U108,W108,X108,Y108) -> 0
Z109: 0
Z110: 0
Z111: 0
Z112: 0
Z113: 0
Z114: 0
Z115: 0
Z116: 0
Z117: 0
Z118: 0
Z119: 0
Z120: 0
Z121: 0
Z122: 0
Z123: 0
Z124: 0
Z125: 0
Z126: 0
Z127: 0
Z128: 0
Z129: 0
C130: Non material projects - [actual] | Z130: 1599814.293 | AA130: 2014-2017

Sheet 2.3(b) Augex
B1: REGULATORY REPORTING STATEMENT
B2: =INDEX(dms_TradingNameFull_List,MATCH(dms_TradingName,dms_TradingName_List)) -> Power and Water Corporation
B3: =(IF(dms_DataQuality="recast",INDEX(dms_Worksheet_List,MATCH(dms_Model,dms_Model_List))&" ",INDEX(dms_Worksheet_List,MATCH(dms_Model,dms_Model_List))))&" "&(IF(SUM(dms_SingleYear_Model)>0,CRY,CONCATENATE(" ",dms_CRCP_FirstYear_Result," to ",dms_CRCP_FinalYear_Result))) -> CATEGORY ANALYSIS 2008-09 to 2016-17
B4: 2.3 AUGEX PROJECT DATA
B6: There are FOUR tables on this worksheet. These tables have been 'grouped' (and sub-grouped) for easy navigation. See the Instructions sheet on how to group or ungroup tables.
B8: NOTE: DNSP MUST PROVIDE EXPENDITURE INFORMATION ON AN AS INCURRED BASIS.
B9: 2.3.3 - AUGEX DATA - HV/LV FEEDERS AND DISTRIBUTION SUBSTATIONS
B10: PROJECT TYPE | C10: Units | D10: VOLUME (0's)
D11: =IF(dms_RPT="financial",dms_fy4,dms_cy4) -> 2008-09 | E11: =IF(dms_RPT="financial",dms_fy5,dms_cy5) -> 2009-10 | F11: =IF(dms_RPT="financial",dms_fy6,dms_cy6) -> 2010-11 | G11: =IF(dms_RPT="financial",dms_fy7,dms_cy7) -> 2011-12 | H11: =IF(dms_RPT="financial",dms_fy8,dms_cy8) -> 2012-13 | I11: =IF(dms_RPT="financial",dms_fy9,dms_cy9) -> 2013-14 | J11: =IF(dms_RPT="financial",dms_fy10,dms_cy10) -> 2014-15 | K11: =IF(dms_RPT="financial",dms_fy11,dms_cy11) -> 2015-16 | L11: =IF(dms_RPT="financial",dms_fy12,dms_cy12) -> 2016-17
B12: DESCRIPTOR METRICS - UNITS ADDED
B13: HV Feeder Augmentations - Overhead Lines | C13: Circuit Line Length in KM | I13: 0.033 | J13: 5.587 | K13: 3.078 | L13: 2.846
B14: HV Feeder Augmentations - Underground Cables | C14: Circuit Line Length in KM | I14: 2.188 | J14: 7.291 | K14: 19.66 | L14: 6.157
B15: LV Feeder Augmentations - Overhead Lines | C15: Circuit Line Length in KM | I15: 0 | J15: 0 | K15: 0.001 | L15: 0
B16: LV Feeder Augmentations - Underground Cables | C16: Circuit Line Length in KM | I16: 0 | J16: 0 | K16: 0 | L16: 0
B17: Distribution Substation Augmentations - Pole Mounted | C17: Number | I17: 1 | J17: 1 | K17: 0 | L17: 0
B18: Distribution Substation Augmentations - Ground Mounted | C18: Number | I18: 18 | J18: 3 | K18: 1 | L18: 2
B19: Distribution Substation Augmentations - Indoor | C19: Number | I19: 0 | J19: 0 | K19: 0 | L19: 0
B20: DESCRIPTOR METRICS - UNITS UPGRADED
B21: HV Feeder Augmentations - Overhead Lines | C21: Circuit Line Length in KM | I21: 0 | J21: 0 | K21: 0 | L21: 0
B22: HV Feeder Augmentations - Underground Cables | C22: Circuit Line Length in KM | I22: 0 | J22: 0 | K22: 0 | L22: 0
B23: LV Feeder Augmentations - Overhead Lines | C23: Circuit Line Length in KM | I23: 0 | J23: 0 | K23: 0 | L23: 0
B24: LV Feeder Augmentations - Underground Cables | C24: Circuit Line Length in KM | I24: 0 | J24: 0 | K24: 0 | L24: 0
B25: Distribution Substation Augmentations - Pole Mounted | C25: Number | I25: 1 | J25: 1 | K25: 0 | L25: 0
B26: Distribution Substation Augmentations - Ground Mounted | C26: Number | I26: 0 | J26: 0 | K26: 0 | L26: 0
B27: Distribution Substation Augmentations - Indoor | C27: Number | I27: 1 | J27: 0 | K27: 0 | L27: 0
B29: COST METRICS
B30: TOTAL DIRECT EXPENDITURE - Project Type | D30: EXPENDITURE ($0's)
D31: =IF(dms_RPT="financial",dms_fy4,dms_cy4) -> 2008-09 | E31: =IF(dms_RPT="financial",dms_fy5,dms_cy5) -> 2009-10 | F31: =IF(dms_RPT="financial",dms_fy6,dms_cy6) -> 2010-11 | G31: =IF(dms_RPT="financial",dms_fy7,dms_cy7) -> 2011-12 | H31: =IF(dms_RPT="financial",dms_fy8,dms_cy8) -> 2012-13 | I31: =IF(dms_RPT="financial",dms_fy9,dms_cy9) -> 2013-14 | J31: =IF(dms_RPT="financial",dms_fy10,dms_cy10) -> 2014-15 | K31: =IF(dms_RPT="financial",dms_fy11,dms_cy11) -> 2015-16 | L31: =IF(dms_RPT="financial",dms_fy12,dms_cy12) -> 2016-17
B32: HV Feeder Augmentations - Overhead Lines | I32: 1319033.648 | J32: 1244113.327 | K32: 983141.1757 | L32: 56080.2795
B33: HV Feeder Augmentations - Underground Cables | I33: 3529858.828 | J33: 4820020.872 | K33: 1328891.568 | L33: 81772.68515
B34: HV Feeder Non-Material Projects | I34: 1619655.483 | J34: 1704940.034 | K34: 1922505.149 | L34: 1495719.02
B35: LV Feeder Augmentations - Overhead Lines | I35: 19367.20115 | J35: 5871.060557 | K35: 7584.926543 | L35: 0
B36: LV Feeder Augmentations - Underground Cables | I36: 349858.197 | J36: 0 | K36: 0 | L36: 0
B37: LV Feeder Non-Material Projects | I37: 9351.77 | J37: 57181.05 | K37: 140736.86 | L37: 114925.7
B38: Distribution Substation Augmentations - Pole Mounted | I38: 136329.9051 | J38: 12807.28 | K38: 0 | L38: 36482.65
B39: Distribution Substation Augmentations - Ground Mounted | I39: 432253.8342 | J39: 130848.5313 | K39: 19068.8207 | L39: 702.5980631
B40: Distribution Substation Augmentations - Indoor | I40: 16699.05 | J40: 0 | K40: 0 | L40: 0
B44: 2.3.4 - AUGEX - TOTAL EXPENDITURE
B45: AUGMENTATION CAPEX (as incurred) | D45: EXPENDITURE ($0's)
D46: =IF(dms_RPT="financial",dms_fy4,dms_cy4) -> 2008-09 | E46: =IF(dms_RPT="financial",dms_fy5,dms_cy5) -> 2009-10 | F46: =IF(dms_RPT="financial",dms_fy6,dms_cy6) -> 2010-11 | G46: =IF(dms_RPT="financial",dms_fy7,dms_cy7) -> 2011-12 | H46: =IF(dms_RPT="financial",dms_fy8,dms_cy8) -> 2012-13 | I46: =IF(dms_RPT="financial",dms_fy9,dms_cy9) -> 2013-14 | J46: =IF(dms_RPT="financial",dms_fy10,dms_cy10) -> 2014-15 | K46: =IF(dms_RPT="financial",dms_fy11,dms_cy11) -> 2015-16 | L46: =IF(dms_RPT="financial",dms_fy12,dms_cy12) -> 2016-17
B47: Subtransmission Substations, Switching Stations, Zone Substations | I47: 15854403.97 | J47: 10794227.49 | K47: 7447024.138 | L47: 9119911.751
B48: Subtransmission Lines | I48: 2982714.739 | J48: 2603966.464 | K48: 4807840.709 | L48: 1822282.251
B49: HV Feeders | I49: 6468547.959 | J49: 7769074.233 | K49: 4234537.893 | L49: 1633571.985
B50: HV Feeders - Land Purchases and Easements | I50: 0 | J50: 0 | K50: 0 | L50: 0
B51: Distribution Substations | I51: 585282.7893 | J51: 143655.8113 | K51: 19068.8207 | L51: 37185.24806
B52: Distribution Substations - Land Purchases And Easements | I52: 0 | J52: 0 | K52: 0 | L52: 0
B53: LV Feeders | I53: 378577.1681 | J53: 63052.11056 | K53: 148321.7865 | L53: 114925.7
B54: LV Feeders - Land Purchases And Easements | I54: 0 | J54: 0 | K54: 0 | L54: 0
B55: Other Assets | I55: 3388708.915 | J55: 2294534.588 | K55: 906043.8143 | L55: 106591.0589
B58: 2.3.5 - AUGEX - BY DRIVER
B59: AUGMENTATION CAPEX (as incurred) | D59: EXPENDITURE ($0's)
D60: =IF(dms_RPT="financial",dms_fy4,dms_cy4) -> 2008-09 | E60: =IF(dms_RPT="financial",dms_fy5,dms_cy5) -> 2009-10 | F60: =IF(dms_RPT="financial",dms_fy6,dms_cy6) -> 2010-11 | G60: =IF(dms_RPT="financial",dms_fy7,dms_cy7) -> 2011-12 | H60: =IF(dms_RPT="financial",dms_fy8,dms_cy8) -> 2012-13 | I60: =IF(dms_RPT="financial",dms_fy9,dms_cy9) -> 2013-14 | J60: =IF(dms_RPT="financial",dms_fy10,dms_cy10) -> 2014-15 | K60: =IF(dms_RPT="financial",dms_fy11,dms_cy11) -> 2015-16 | L60: =IF(dms_RPT="financial",dms_fy12,dms_cy12) -> 2016-17
B61: "Greenfield" driven augex (network expansion capex) | I61: 14975148.69 | J61: 10310669.07 | K61: 7175876.405 | L61: 4145338.633
B62: Reinforcement driven augex (augmentation of the existing network) | I62: 14683086.85 | J62: 13357841.63 | K62: 10386960.76 | L62: 8689129.36
B65: 2.3.6 - AUGEX - GREENFIELDS DRIVER
B66: AUGMENTATION CAPEX (as incurred) | D66: EXPENDITURE ($0's)
D67: =IF(dms_RPT="financial",dms_fy4,dms_cy4) -> 2008-09 | E67: =IF(dms_RPT="financial",dms_fy5,dms_cy5) -> 2009-10 | F67: =IF(dms_RPT="financial",dms_fy6,dms_cy6) -> 2010-11 | G67: =IF(dms_RPT="financial",dms_fy7,dms_cy7) -> 2011-12 | H67: =IF(dms_RPT="financial",dms_fy8,dms_cy8) -> 2012-13 | I67: =IF(dms_RPT="financial",dms_fy9,dms_cy9) -> 2013-14 | J67: =IF(dms_RPT="financial",dms_fy10,dms_cy10) -> 2014-15 | K67: =IF(dms_RPT="financial",dms_fy11,dms_cy11) -> 2015-16 | L67: =IF(dms_RPT="financial",dms_fy12,dms_cy12) -> 2016-17
B68: Subtransmission Substations, Switching Stations, Zone Substations | I68: 9374108.25 | J68: 2950781.927 | K68: 3400218.998 | L68: 3923499.601
B69: Subtransmission Lines | I69: 1336688.75 | J69: 397516.3772 | K69: 632155.3143 | L69: 58550.4906
B70: HV Feeders | I70: 3619759.898 | J70: 6563169.762 | K70: 2962618.355 | L70: 142943.715
B71: HV Feeders - Land Purchases and Easements | I71: 0 | J71: 0 | K71: 0 | L71: 0
B72: Distribution Substations | I72: 562.6021543 | J72: 20438.36058 | K72: 13304.32215 | L72: 702.5980631
B73: Distribution Substations - Land Purchases And Easements | I73: 0 | J73: 0 | K73: 0 | L73: 0
B74: LV Feeders | I74: 0 | J74: 0 | K74: 0 | L74: 0
B75: LV Feeders - Land Purchases And Easements | I75: 0 | J75: 0 | K75: 0 | L75: 0
B76: Other Assets | I76: 644029.1918 | J76: 378762.643 | K76: 167579.4149 | L76: 19642.22888

Sheet 2.5 Connections
B1: REGULATORY REPORTING STATEMENT
B2: =INDEX(dms_TradingNameFull_List,MATCH(dms_TradingName,dms_TradingName_List)) -> Power and Water Corporation
B3: =(IF(dms_DataQuality="recast",INDEX(dms_Worksheet_List,MATCH(dms_Model,dms_Model_List))&" ",INDEX(dms_Worksheet_List,MATCH(dms_Model,dms_Model_List))))&" "&(IF(SUM(dms_SingleYear_Model)>0,CRY,CONCATENATE(" ",dms_CRCP_FirstYear_Result," to ",dms_CRCP_FinalYear_Result))) -> CATEGORY ANALYSIS 2008-09 to 2016-17
B4: 2.5 CONNECTIONS
B6: There are THREE tables on this worksheet - each has been 'grouped' (and sub-grouped) for easy navigation. See the Instructions sheet on how to group or ungroup tables.
B8: 2.5.1 - DESCRIPTOR METRICS
B9: VOLUMES AND EXPENDITURE - ALL
E10: VOLUMES AND EXPENDITURE
D11: Units | E11: =IF(dms_RPT="financial",dms_fy4,dms_cy4) -> 2008-09 | F11: =IF(dms_RPT="financial",dms_fy5,dms_cy5) -> 2009-10 | G11: =IF(dms_RPT="financial",dms_fy6,dms_cy6) -> 2010-11 | H11: =IF(dms_RPT="financial",dms_fy7,dms_cy7) -> 2011-12 | I11: =IF(dms_RPT="financial",dms_fy8,dms_cy8) -> 2012-13 | J11: =IF(dms_RPT="financial",dms_fy9,dms_cy9) -> 2013-14 | K11: =IF(dms_RPT="financial",dms_fy10,dms_cy10) -> 2014-15 | L11: =IF(dms_RPT="financial",dms_fy11,dms_cy11) -> 2015-16 | M11: =IF(dms_RPT="financial",dms_fy12,dms_cy12) -> 2016-17
B12: RESIDENTIAL | C12: Underground connections | D12: 0's | J12: 202 | K12: 720 | L12: 655 | M12: 356
C13: Overhead connections | D13: 0's | J13: 643 | K13: 428 | L13: 268 | M13: 223
C14: Distribution substation installed (MVA added) | D14: MVA | J14: 9.044 | K14: 8.004 | L14: 6.266 | M14: 1.413
C15: Distribution substations installed | D15: 0's | J15: 0 | K15: 0 | L15: 1 | M15: 0
C16: Distribution substation installed (total spend $0's) | D16: total spend $0s | J16: 2045055.92 | K16: 2613167.765 | L16: 857048.5116 | M16: 203741.13
C17: Augmentation HV (net circuit KM added) | D17: KM | J17: 0.74 | K17: 7.422017579 | L17: 1.011 | M17: 0
C18: Augmentation HV (total spend $0's) | D18: total spend $0s | J18: 1021247.016 | K18: 559929.7094 | L18: 204950.2837 | M18: 0
C19: Augmentation LV (net circuit KM added) | D19: KM | J19: 23.695 | K19: 32.12764711 | L19: 25.103 | M19: 15.392
C20: Augmentation LV (total spend $0's) | D20: total spend $0s | J20: 1208955.063 | K20: 1086101.007 | L20: 853236.2214 | M20: 496509.8806
C21: Mean days to connect residential customer with LV single phase connection | D21: 0's | J21: 3.97456765 | K21: 3.582684825 | L21: 2.678866588 | M21: 3.237730061
C22: Volume of GSL breaches for residential customers | D22: 0's | J22: 66 | K22: 1751 | L22: 2041 | M22: 1212
C23: Volume of customer complaints relating to connection services | D23: 0's | J23: 0 | K23: 3 | L23: 7 | M23: 7
C24: GSL payments | D24: $0s | J24: 0 | K24: 146620 | L24: 194090 | M24: 117670
B25: COMMERCIAL/INDUSTRIAL | C25: Underground connections | D25: 0's | J25: 32 | K25: 194 | L25: 173 | M25: 116
C26: Overhead connections | D26: 0's | J26: 86 | K26: 165 | L26: 97 | M26: 52
C27: Distribution substation installed (MVA added) | D27: MVA | J27: 16.021 | K27: 10.196 | L27: 13.167 | M27: 7.015
C28: Distribution substations installed (0's) | D28: 0's | J28: 0 | K28: 0 | L28: 1 | M28: 0
C29: Distribution substation installed (total spend ($0's) | D29: total spend $0s | J29: 1961044.823 | K29: 1625059.771 | L29: 1805396.928 | M29: 855584.6583
C30: Augmentation HV (net circuit KM added) | D30: KM | J30: 5.134 | K30: 1.259 | L30: 3.425 | M30: 3.9065
C31: Augmentation HV (total spend $0's) | D31: total spend $0s | J31: 1129335.123 | K31: 413873.5526 | L31: 675893.6351 | M31: 261586.4082
C32: Augmentation LV (net circuit KM added) | D32: KM | J32: 3.727 | K32: 9.128 | L32: 5.564 | M32: 5.025
C33: Augmentation LV (total spend $0's) | D33: total spend $0s | J33: 229623.3929 | K33: 247225.7185 | L33: 391410.2016 | M33: 359043.2842
B34: SUBDIVISION | C34: Underground connections | D34: 0's | J34: 700 | K34: 1104 | L34: 801 | M34: 524
C35: Overhead connections | D35: 0's | J35: 29 | K35: 106 | L35: 19 | M35: 9
C36: Distribution substation installed (MVA added) | D36: MVA | J36: 2.337 | K36: 1.975 | L36: 1.363 | M36: 2.7
C37: Distribution substations installed | D37: 0's | J37: 0 | K37: 0 | L37: 0 | M37: 2
C38: Distribution substation installed (total spend $0's) | D38: total spend $0s | J38: 404208.3408 | K38: 351713.3909 | L38: 397888.9338 | M38: 360151.1765
C39: Augmentation HV (net circuit KM added) | D39: KM | J39: 1.115 | K39: 3.056 | L39: 0.4770960757 | M39: 2.099
C40: Augmentation HV (total spend $0's) | D40: total spend $0s | J40: 498528.4358 | K40: 219705.6622 | L40: 120071.5521 | M40: 260138.6956
C41: Augmentation LV (net circuit KM added) | D41: KM | J41: 19.44 | K41: 31.62332 | L41: 21.268 | M41: 14.784
C42: Augmentation LV (total spend $0's) | D42: total spend $0s | J42: 490464.1049 | K42: 821578.9962 | L42: 687133.2642 | M42: 515893.2275
C43: Cost per lot ($) | D43: $0s | J43: 19622.54763 | K43: 25327.23726 | L43: 10856.70045 | M43: 8233.210867
B44: EMBEDDED GENERATION | C44: Underground connections | D44: 0's | J44: 414 | K44: 463 | L44: 461 | M44: 717
C45: Overhead connections | D45: 0's | J45: 417 | K45: 400 | L45: 388 | M45: 885
C46: Distribution substation installed (MVA added) | D46: MVA | J46: 0 | K46: 0 | L46: 0 | M46: 0
C47: Distribution substations installed | D47: 0's | J47: 0 | K47: 0 | L47: 0 | M47: 0
C48: Distribution substation installed (total spend $0's) | D48: total spend $0s | J48: 0 | K48: 0 | L48: 0 | M48: 0
C49: Augmentation HV (net circuit KM added) | D49: KM | J49: 0 | K49: 0 | L49: 0 | M49: 0
C50: Augmentation HV (total spend $0's) | D50: total spend $0s | J50: 0 | K50: 0 | L50: 0 | M50: 0
C51: Augmentation LV (net circuit KM added) | D51: KM | J51: 0 | K51: 0 | L51: 0 | M51: 0
C52: Augmentation LV (total spend $0's) | D52: total spend $0s | J52: 0 | K52: 0 | L52: 0 | M52: 0
B54: VOLUMES AND EXPENDITURE - STANDARD CONTROL SERVICES
E55: VOLUMES AND EXPENDITURE
D56: Units | E56: =IF(dms_RPT="financial",dms_fy4,dms_cy4) -> 2008-09 | F56: =IF(dms_RPT="financial",dms_fy5,dms_cy5) -> 2009-10 | G56: =IF(dms_RPT="financial",dms_fy6,dms_cy6) -> 2010-11 | H56: =IF(dms_RPT="financial",dms_fy7,dms_cy7) -> 2011-12 | I56: =IF(dms_RPT="financial",dms_fy8,dms_cy8) -> 2012-13 | J56: =IF(dms_RPT="financial",dms_fy9,dms_cy9) -> 2013-14 | K56: =IF(dms_RPT="financial",dms_fy10,dms_cy10) -> 2014-15 | L56: =IF(dms_RPT="financial",dms_fy11,dms_cy11) -> 2015-16 | M56: =IF(dms_RPT="financial",dms_fy12,dms_cy12) -> 2016-17
B57: RESIDENTIAL | C57: Underground connections | D57: 0's | J57: 202 | K57: 720 | L57: 655 | M57: 356
C58: Overhead connections | D58: 0's | J58: 643 | K58: 428 | L58: 268 | M58: 223
C59: Distribution substation installed (MVA added) | D59: MVA | J59: 9.044 | K59: 8.004 | L59: 6.266 | M59: 1.413
C60: Distribution substations installed | D60: 0's | J60: 0 | K60: 0 | L60: 1 | M60: 0
C61: Distribution substation installed (total spend $0's) | D61: total spend $0s | J61: 2045055.92 | K61: 2613167.765 | L61: 857048.5116 | M61: 203741.13
C62: Augmentation HV (net circuit KM added) | D62: KM | J62: 0.74 | K62: 7.422017579 | L62: 1.011 | M62: 0
C63: Augmentation HV (total spend $0's) | D63: total spend $0s | J63: 1021247.016 | K63: 559929.7094 | L63: 204950.2837 | M63: 0
C64: Augmentation LV (net circuit KM added) | D64: KM | J64: 23.695 | K64: 32.12764711 | L64: 25.103 | M64: 15.392
C65: Augmentation LV (total spend $0's) | D65: total spend $0s | J65: 1208955.063 | K65: 1086101.007 | L65: 853236.2214 | M65: 496509.8806
C66: Mean days to connect residential customer with LV single phase connection | D66: 0's | J66: 3.97456765 | K66: 3.582684825 | L66: 2.678866588 | M66: 3.237730061
C67: Volume of GSL breaches for residential customers | D67: 0's | J67: 66 | K67: 1751 | L67: 2041 | M67: 1212
C68: Volume of customer complaints relating to connection services | D68: 0's | J68: 0 | K68: 3 | L68: 7 | M68: 7
C69: GSL payments | D69: $0s | J69: 0 | K69: 146620 | L69: 194090 | M69: 117670
B70: COMMERCIAL/INDUSTRIAL | C70: Underground connections | D70: 0's | J70: 32 | K70: 194 | L70: 173 | M70: 116
C71: Overhead connections | D71: 0's | J71: 86 | K71: 165 | L71: 97 | M71: 52
C72: Distribution substation installed (MVA added) | D72: MVA | J72: 16.021 | K72: 10.196 | L72: 13.167 | M72: 7.015
C73: Distribution substations installed (0's) | D73: 0's | J73: 0 | K73: 0 | L73: 1 | M73: 0
C74: Distribution substation installed (total spend ($0's) | D74: total spend $0s | J74: 1961044.823 | K74: 1625059.771 | L74: 1805396.928 | M74: 855584.6583
C75: Augmentation HV (net circuit KM added) | D75: KM | J75: 5.134 | K75: 1.259 | L75: 3.425 | M75: 3.9065
C76: Augmentation HV (total spend $0's) | D76: total spend $0s | J76: 1129335.123 | K76: 413873.5526 | L76: 675893.6351 | M76: 261586.4082
C77: Augmentation LV (net circuit KM added) | D77: KM | J77: 3.727 | K77: 9.128 | L77: 5.564 | M77: 5.025
C78: Augmentation LV (total spend $0's) | D78: total spend $0s | J78: 229623.3929 | K78: 247225.7185 | L78: 391410.2016 | M78: 359043.2842
B79: SUBDIVISION | C79: Underground connections | D79: 0's | J79: 700 | K79: 1104 | L79: 801 | M79: 524
C80: Overhead connections | D80: 0's | J80: 29 | K80: 106 | L80: 19 | M80: 9
C81: Distribution substation installed (MVA added) | D81: MVA | J81: 2.337 | K81: 1.975 | L81: 1.363 | M81: 2.7
C82: Distribution substations installed | D82: 0's | J82: 0 | K82: 0 | L82: 0 | M82: 2
C83: Distribution substation installed (total spend $0's) | D83: total spend $0s | J83: 404208.3408 | K83: 351713.3909 | L83: 397888.9338 | M83: 360151.1765
C84: Augmentation HV (net circuit KM added) | D84: KM | J84: 1.115 | K84: 3.056 | L84: 0.4770960757 | M84: 2.099
C85: Augmentation HV (total spend $0's) | D85: total spend $0s | J85: 498528.4358 | K85: 219705.6622 | L85: 120071.5521 | M85: 260138.6956
C86: Augmentation LV (net circuit KM added) | D86: KM | J86: 19.44 | K86: 31.62332 | L86: 21.268 | M86: 14.784
C87: Augmentation LV (total spend $0's) | D87: total spend $0s | J87: 490464.1049 | K87: 821578.9962 | L87: 687133.2642 | M87: 515893.2275
C88: Cost per lot ($) | D88: $0s | J88: 19622.54763 | K88: 25327.23726 | L88: 10856.70045 | M88: 8233.210867
B89: EMBEDDED GENERATION | C89: Underground connections | D89: 0's | J89: 414 | K89: 463 | L89: 461 | M89: 717
C90: Overhead connections | D90: 0's | J90: 417 | K90: 400 | L90: 388 | M90: 885
C91: Distribution substation installed (MVA added) | D91: MVA | J91: 0 | K91: 0 | L91: 0 | M91: 0
C92: Distribution substations installed | D92: 0's | J92: 0 | K92: 0 | L92: 0 | M92: 0
C93: Distribution substation installed (total spend $0's) | D93: total spend $0s | J93: 0 | K93: 0 | L93: 0 | M93: 0
C94: Augmentation HV (net circuit KM added) | D94: KM | J94: 0 | K94: 0 | L94: 0 | M94: 0
C95: Augmentation HV (total spend $0's) | D95: total spend $0s | J95: 0 | K95: 0 | L95: 0 | M95: 0
C96: Augmentation LV (net circuit KM added) | D96: KM | J96: 0 | K96: 0 | L96: 0 | M96: 0
C97: Augmentation LV (total spend $0's) | D97: total spend $0s | J97: 0 | K97: 0 | L97: 0 | M97: 0
B100: 2.5.2 - COST METRICS BY CONNECTION CLASSIFICATION
B101: EXPENDITURE - ALL
E102: EXPENDITURE ($0's)
E103: =IF(dms_RPT="financial",dms_fy4,dms_cy4) -> 2008-09 | F103: =IF(dms_RPT="financial",dms_fy5,dms_cy5) -> 2009-10 | G103: =IF(dms_RPT="financial",dms_fy6,dms_cy6) -> 2010-11 | H103: =IF(dms_RPT="financial",dms_fy7,dms_cy7) -> 2011-12 | I103: =IF(dms_RPT="financial",dms_fy8,dms_cy8) -> 2012-13 | J103: =IF(dms_RPT="financial",dms_fy9,dms_cy9) -> 2013-14 | K103: =IF(dms_RPT="financial",dms_fy10,dms_cy10) -> 2014-15 | L103: =IF(dms_RPT="financial",dms_fy11,dms_cy11) -> 2015-16 | M103: =IF(dms_RPT="financial",dms_fy12,dms_cy12) -> 2016-17
B104: RESIDENTIAL | C104: Simple connection LV | J104: 830015.2186 | K104: 882781.8183 | L104: 803279.8701 | M104: 496397.4406
C105: Complex connection LV | J105: 261520.74 | K105: 159153.6133 | L105: 27471.12667 | M105: 112.44
C106: Complex connection HV | J106: 3183722.04 | K106: 3217263.05 | L106: 1084484.02 | M106: 203741.13
B107: COMMERCIAL/INDUSTRIAL | C107: Simple connection LV | J107: 101927.1497 | K107: 242524.3321 | L107: 378990.9176 | M107: 319837.8082
C108: Complex connection HV (customer connected at LV, minor HV works) | J108: 2775536.22 | K108: 1735295.56 | L108: 2270909.318 | M108: 1045197.742
C109: Complex connection HV (customer connected at LV, upstream asset works) | J109: 0 | K109: 0 | L109: 0 | M109: 0
C110: Complex connection HV (customer connected at HV) | J110: 442539.97 | K110: 308339.15 | L110: 222800.53 | M110: 111178.8
C111: Complex connection sub-transmission | J111: 0 | K111: 0 | L111: 0 | M111: 0
B112: SUBDIVISION | C112: Complex connection LV | J112: 438422.8115 | K112: 760897.3493 | L112: 663170.8502 | M112: 426307.0497
C113: Complex connection HV (no upstream asset works) | J113: 699176.48 | K113: 622216.31 | L113: 485067.08 | M113: 709876.05
C114: Complex connection HV (with upstream asset works) | J114: 255601.59 | K114: 9884.39 | L114: 56855.82 | M114: 0
B115: EMBEDDED GENERATION | C115: Simple connection LV | J115: 0 | K115: 0 | L115: 0 | M115: 0
C116: Complex connection HV (small capacity) | J116: 0 | K116: 0 | L116: 0 | M116: 0
C117: Complex connection HV (large capacity) | J117: 0 | K117: 0 | L117: 0 | M117: 0
B119: EXPENDITURE - STANDARD CONTROL SERVICES
E120: EXPENDITURE ($0's)
E121: =IF(dms_RPT="financial",dms_fy4,dms_cy4) -> 2008-09 | F121: =IF(dms_RPT="financial",dms_fy5,dms_cy5) -> 2009-10 | G121: =IF(dms_RPT="financial",dms_fy6,dms_cy6) -> 2010-11 | H121: =IF(dms_RPT="financial",dms_fy7,dms_cy7) -> 2011-12 | I121: =IF(dms_RPT="financial",dms_fy8,dms_cy8) -> 2012-13 | J121: =IF(dms_RPT="financial",dms_fy9,dms_cy9) -> 2013-14 | K121: =IF(dms_RPT="financial",dms_fy10,dms_cy10) -> 2014-15 | L121: =IF(dms_RPT="financial",dms_fy11,dms_cy11) -> 2015-16 | M121: =IF(dms_RPT="financial",dms_fy12,dms_cy12) -> 2016-17
B122: RESIDENTIAL | C122: Simple connection LV | J122: 830015.2186 | K122: 882781.8183 | L122: 803279.8701 | M122: 496397.4406
C123: Complex connection LV | J123: 261520.74 | K123: 159153.6133 | L123: 27471.12667 | M123: 112.44
C124: Complex connection HV | J124: 3183722.04 | K124: 3217263.05 | L124: 1084484.02 | M124: 203741.13
B125: COMMERCIAL/INDUSTRIAL | C125: Simple connection LV | J125: 101927.1497 | K125: 242524.3321 | L125: 378990.9176 | M125: 319837.8082
C126: Complex connection HV (customer connected at LV, minor HV works) | J126: 2775536.22 | K126: 1735295.56 | L126: 2270909.318 | M126: 1045197.742
C127: Complex connection HV (customer connected at LV, upstream asset works) | J127: 0 | K127: 0 | L127: 0 | M127: 0
C128: Complex connection HV (customer connected at HV) | J128: 442539.97 | K128: 308339.15 | L128: 222800.53 | M128: 111178.8
C129: Complex connection sub-transmission | J129: 0 | K129: 0 | L129: 0 | M129: 0
B130: SUBDIVISION | C130: Complex connection LV | J130: 438422.8115 | K130: 760897.3493 | L130: 663170.8502 | M130: 426307.0497
C131: Complex connection HV (no upstream asset works) | J131: 699176.48 | K131: 622216.31 | L131: 485067.08 | M131: 709876.05
C132: Complex connection HV (with upstream asset works) | J132: 255601.59 | K132: 9884.39 | L132: 56855.82 | M132: 0
B133: EMBEDDED GENERATION | C133: Simple connection LV | J133: 0 | K133: 0 | L133: 0 | M133: 0
C134: Complex connection HV (small capacity) | J134: 0 | K134: 0 | L134: 0 | M134: 0
C135: Complex connection HV (large capacity) | J135: 0 | K135: 0 | L135: 0 | M135: 0
B137: EXPENDITURE - STANDARD CONTROL SERVICES - CAPITAL CONTRIBUTIONS
E138: EXPENDITURE ($0's)
E139: =IF(dms_RPT="financial",dms_fy4,dms_cy4) -> 2008-09 | F139: =IF(dms_RPT="financial",dms_fy5,dms_cy5) -> 2009-10 | G139: =IF(dms_RPT="financial",dms_fy6,dms_cy6) -> 2010-11 | H139: =IF(dms_RPT="financial",dms_fy7,dms_cy7) -> 2011-12 | I139: =IF(dms_RPT="financial",dms_fy8,dms_cy8) -> 2012-13 | J139: =IF(dms_RPT="financial",dms_fy9,dms_cy9) -> 2013-14 | K139: =IF(dms_RPT="financial",dms_fy10,dms_cy10) -> 2014-15 | L139: =IF(dms_RPT="financial",dms_fy11,dms_cy11) -> 2015-16 | M139: =IF(dms_RPT="financial",dms_fy12,dms_cy12) -> 2016-17
B140: RESIDENTIAL | C140: Simple connection LV | J140: 31593.27 | K140: 7555 | L140: 307 | M140: 0
C141: Complex connection LV | J141: 89750.36255 | K141: 28884.085 | L141: 111074.2591 | M141: 1542.405428
C142: Complex connection HV | J142: 1392871.892 | K142: 929943.6623 | L142: 1914096.457 | M142: 398746.9327
B143: COMMERCIAL/INDUSTRIAL | C143: Simple connection LV | J143: 20280.75003 | K143: 0 | L143: 55285.23 | M143: 107182.48
C144: Complex connection HV (customer connected at LV, minor HV works) | J144: 1030442.252 | K144: 898742.447 | L144: 1077720.839 | M144: 1303790.691
C145: Complex connection HV (customer connected at LV, upstream asset works) | J145: 0 | K145: 188337.2655 | L145: 329626.6987 | M145: 2447078.014
C146: Complex connection HV (customer connected at HV) | J146: 380000 | K146: 226975 | L146: 215268.2707 | M146: 0
C147: Complex connection sub-transmission | J147: 0 | K147: 0 | L147: 0 | M147: 0
B148: SUBDIVISION | C148: Complex connection LV | J148: 301499.2383 | K148: 230683.374 | L148: 408787.5755 | M148: 7744.102956
C149: Complex connection HV (no upstream asset works) | J149: 1393887.896 | K149: 1114738.257 | L149: 1192381.385 | M149: 1988349.432
C150: Complex connection HV (with upstream asset works) | J150: 2337089.829 | K150: 5463082.039 | L150: 3837956.015 | M150: 3095132.951
B151: EMBEDDED GENERATION | C151: Simple connection LV | J151: 0 | K151: 0 | L151: 0 | M151: 0
C152: Complex connection HV (small capacity) | J152: 0 | K152: 0 | L152: 0 | M152: 0
C153: Complex connection HV (large capacity) | J153: 0 | K153: 0 | L153: 0 | M153: 0
B156: 2.5.3 - VOLUMES BY CONNECTION CLASSIFICATION
B157: NEW CONNECTIONS - ALL
E158: VOLUMES (0's)
E159: =IF(dms_RPT="financial",dms_fy4,dms_cy4) -> 2008-09 | F159: =IF(dms_RPT="financial",dms_fy5,dms_cy5) -> 2009-10 | G159: =IF(dms_RPT="financial",dms_fy6,dms_cy6) -> 2010-11 | H159: =IF(dms_RPT="financial",dms_fy7,dms_cy7) -> 2011-12 | I159: =IF(dms_RPT="financial",dms_fy8,dms_cy8) -> 2012-13 | J159: =IF(dms_RPT="financial",dms_fy9,dms_cy9) -> 2013-14 | K159: =IF(dms_RPT="financial",dms_fy10,dms_cy10) -> 2014-15 | L159: =IF(dms_RPT="financial",dms_fy11,dms_cy11) -> 2015-16 | M159: =IF(dms_RPT="financial",dms_fy12,dms_cy12) -> 2016-17
B160: RESIDENTIAL | C160: Simple connection LV | J160: 809 | K160: 1119 | L160: 902 | M160: 572
C161: Complex connection LV | J161: 9 | K161: 7 | L161: 0 | M161: 1
C162: Complex connection HV | J162: 27 | K162: 22 | L162: 21 | M162: 6
B163: COMMERCIAL/INDUSTRIAL | C163: Simple connection LV | J163: 74 | K163: 331 | L163: 238 | M163: 151
C164: Complex connection HV (customer connected at LV, minor HV works) | J164: 38 | K164: 27 | L164: 29 | M164: 16
C165: Complex connection HV (customer connected at LV, upstream asset works) | J165: 0 | K165: 0 | L165: 0 | M165: 0
C166: Complex connection HV (customer connected at HV) | J166: 6 | K166: 1 | L166: 3 | M166: 1
C167: Complex connection sub-transmission | J167: 0 | K167: 0 | L167: 0 | M167: 0
B168: SUBDIVISION | C168: Complex connection LV | J168: 717 | K168: 1197 | L168: 813 | M168: 523
C169: Complex connection HV (no upstream asset works) | J169: 12 | K169: 12 | L169: 6 | M169: 10
C170: Complex connection HV (with upstream asset works) | J170: 0 | K170: 1 | L170: 1 | M170: 0
B171: EMBEDDED GENERATION | C171: Simple connection LV | J171: 831 | K171: 863 | L171: 849 | M171: 1602
C172: Complex connection HV (small capacity) | J172: 0 | K172: 0 | L172: 0 | M172: 0
C173: Complex connection HV (large capacity) | J173: 0 | K173: 0 | L173: 0 | M173: 0
B175: NEW CONNECTIONS - STANDARD CONTROL SERVICES
E176: VOLUMES (0's)
E177: =IF(dms_RPT="financial",dms_fy4,dms_cy4) -> 2008-09 | F177: =IF(dms_RPT="financial",dms_fy5,dms_cy5) -> 2009-10 | G177: =IF(dms_RPT="financial",dms_fy6,dms_cy6) -> 2010-11 | H177: =IF(dms_RPT="financial",dms_fy7,dms_cy7) -> 2011-12 | I177: =IF(dms_RPT="financial",dms_fy8,dms_cy8) -> 2012-13 | J177: =IF(dms_RPT="financial",dms_fy9,dms_cy9) -> 2013-14 | K177: =IF(dms_RPT="financial",dms_fy10,dms_cy10) -> 2014-15 | L177: =IF(dms_RPT="financial",dms_fy11,dms_cy11) -> 2015-16 | M177: =IF(dms_RPT="financial",dms_fy12,dms_cy12) -> 2016-17
B178: RESIDENTIAL | C178: Simple connection LV | J178: 809 | K178: 1119 | L178: 902 | M178: 572
C179: Complex connection LV | J179: 9 | K179: 7 | L179: 0 | M179: 1
C180: Complex connection HV | J180: 27 | K180: 22 | L180: 21 | M180: 6
B181: COMMERCIAL/INDUSTRIAL | C181: Simple connection LV | J181: 74 | K181: 331 | L181: 238 | M181: 151
C182: Complex connection HV (customer connected at LV, minor HV works) | J182: 38 | K182: 27 | L182: 29 | M182: 16
C183: Complex connection HV (customer connected at LV, upstream asset works) | J183: 0 | K183: 0 | L183: 0 | M183: 0
C184: Complex connection HV (customer connected at HV) | J184: 6 | K184: 1 | L184: 3 | M184: 1
C185: Complex connection sub-transmission | J185: 0 | K185: 0 | L185: 0 | M185: 0
B186: SUBDIVISION | C186: Complex connection LV | J186: 717 | K186: 1197 | L186: 813 | M186: 523
C187: Complex connection HV (no upstream asset works) | J187: 12 | K187: 12 | L187: 6 | M187: 10
C188: Complex connection HV (with upstream asset works) | J188: 0 | K188: 1 | L188: 1 | M188: 0
B189: EMBEDDED GENERATION | C189: Simple connection LV | J189: 831 | K189: 863 | L189: 849 | M189: 1602
C190: Complex connection HV (small capacity) | J190: 0 | K190: 0 | L190: 0 | M190: 0
C191: Complex connection HV (large capacity) | J191: 0 | K191: 0 | L191: 0 | M191: 0
B193: EXISTING CONNECTIONS
E194: VOLUMES (0's)
E195: =IF(dms_RPT="financial",dms_fy4,dms_cy4) -> 2008-09 | F195: =IF(dms_RPT="financial",dms_fy5,dms_cy5) -> 2009-10 | G195: =IF(dms_RPT="financial",dms_fy6,dms_cy6) -> 2010-11 | H195: =IF(dms_RPT="financial",dms_fy7,dms_cy7) -> 2011-12 | I195: =IF(dms_RPT="financial",dms_fy8,dms_cy8) -> 2012-13 | J195: =IF(dms_RPT="financial",dms_fy9,dms_cy9) -> 2013-14 | K195: =IF(dms_RPT="financial",dms_fy10,dms_cy10) -> 2014-15 | L195: =IF(dms_RPT="financial",dms_fy11,dms_cy11) -> 2015-16 | M195: =IF(dms_RPT="financial",dms_fy12,dms_cy12) -> 2016-17
B196: RESIDENTIAL | C196: Simple connection LV
C197: Complex connection LV
C198: Complex connection HV
B199: COMMERCIAL/INDUSTRIAL | C199: Simple connection LV
C200: Complex connection HV (customer connected at LV, minor HV works)
C201: Complex connection HV (customer connected at LV, upstream asset works)
C202: Complex connection HV (customer connected at HV)
C203: Complex connection sub-transmission
B204: SUBDIVISION | C204: Complex connection LV
C205: Complex connection HV (no upstream asset works)
C206: Complex connection HV (with upstream asset works)
B207: EMBEDDED GENERATION | C207: Simple connection LV
C208: Complex connection HV (small capacity)
C209: Complex connection HV (large capacity)

Sheet 2.6 Non-network
B1: REGULATORY REPORTING STATEMENT
B2: =INDEX(dms_TradingNameFull_List,MATCH(dms_TradingName,dms_TradingName_List)) -> Power and Water Corporation
B3: =(IF(dms_DataQuality="recast",INDEX(dms_Worksheet_List,MATCH(dms_Model,dms_Model_List))&" ",INDEX(dms_Worksheet_List,MATCH(dms_Model,dms_Model_List))))&" "&(IF(SUM(dms_SingleYear_Model)>0,CRY,CONCATENATE(" ",dms_CRCP_FirstYear_Result," to ",dms_CRCP_FinalYear_Result))) -> CATEGORY ANALYSIS 2008-09 to 2016-17
B4: 2.6 NON NETWORK EXPENDITURE
B6: There are THREE tables on this worksheet - each has been 'grouped' (and sub-grouped) for easy navigation. See the Instructions sheet on how to group or ungroup tables.
B8: 2.6.1 - NON-NETWORK EXPENDITURE
F9: EXPENDITURE ($0's)
B10: SERVICE SUBCATEGORY | C10: ASSET CATEGORY | F10: =IF(dms_RPT="financial",dms_fy4,dms_cy4) -> 2008-09 | G10: =IF(dms_RPT="financial",dms_fy5,dms_cy5) -> 2009-10 | H10: =IF(dms_RPT="financial",dms_fy6,dms_cy6) -> 2010-11 | I10: =IF(dms_RPT="financial",dms_fy7,dms_cy7) -> 2011-12 | J10: =IF(dms_RPT="financial",dms_fy8,dms_cy8) -> 2012-13 | K10: =IF(dms_RPT="financial",dms_fy9,dms_cy9) -> 2013-14 | L10: =IF(dms_RPT="financial",dms_fy10,dms_cy10) -> 2014-15 | M10: =IF(dms_RPT="financial",dms_fy11,dms_cy11) -> 2015-16 | N10: =IF(dms_RPT="financial",dms_fy12,dms_cy12) -> 2016-17
B11: OPEX
B12: IT & COMMUNICATIONS | C12: Total | K12: 1482877.269 | L12: 1804418.813 | M12: 1891104.8 | N12: 1850279.216
B13: MOTOR VEHICLES | C13: Car | K13: 672482.6286 | L13: 614740.6602 | M13: 615336.6155 | N13: 666099.9999
C14: Light commercial vehicle | K14: 1777186.598 | L14: 1792716.33 | M14: 1771740.617 | N14: 1962199.761
C15: Elevated work platform (LCV) | K15: 0 | L15: 0 | M15: 0 | N15: 0
C16: Elevated work platform (HCV) | K16: 978621.8782 | L16: 965673.2125 | M16: 896615.2459 | N16: 918257.5922
C17: Heavy commercial vehicle | K17: 879376.7744 | L17: 887817.4473 | M17: 842943.0761 | N17: 922641.7381
B18: BUILDINGS AND PROPERTY | C18: Total buildings and property expenditure | K18: 1401468.037 | L18: 1462289.036 | M18: 1396196.663 | N18: 1484991.383
B19: OTHER | C19: Other expenditure | K19: 0 | L19: 0 | M19: 0 | N19: 0
B20: OTHER - DNSP nominated | K20: 0 | L20: 0 | M20: 0 | N20: 0
K21: 0 | L21: 0 | M21: 0 | N21: 0
K22: 0 | L22: 0 | M22: 0 | N22: 0
K23: 0 | L23: 0 | M23: 0 | N23: 0
K24: 0 | L24: 0 | M24: 0 | N24: 0
K25: 0 | L25: 0 | M25: 0 | N25: 0
K26: 0 | L26: 0 | M26: 0 | N26: 0
K27: 0 | L27: 0 | M27: 0 | N27: 0
K28: 0 | L28: 0 | M28: 0 | N28: 0
K29: 0 | L29: 0 | M29: 0 | N29: 0
K30: 0 | L30: 0 | M30: 0 | N30: 0
B31: CAPEX
B32: IT & COMMUNICATIONS | C32: Total | K32: 606936.1469 | L32: 419953.9115 | M32: 894928.4949 | N32: 2736704.409
B33: MOTOR VEHICLES | C33: Car | K33: 0 | L33: 0 | M33: 0 | N33: 0
C34: Light commercial vehicle | K34: 39285.6805 | L34: 55178.63462 | M34: 5311.885466 | N34: 0
C35: Elevated work platform (LCV) | K35: 0 | L35: 0 | M35: 0 | N35: 0
C36: Elevated work platform (HCV) | K36: 0 | L36: 0 | M36: 0 | N36: 0
C37: Heavy commercial vehicle | K37: 128327.4068 | L37: 16501.24119 | M37: 4041.656877 | N37: 0
B38: BUILDINGS AND PROPERTY | C38: Total buildings and property expenditure | K38: 86862.6784 | L38: 74718.19747 | M38: 115750.8709 | N38: 225680.0593
B39: OTHER | C39: Other expenditure | K39: 0 | L39: 0 | M39: 0 | N39: 0
B40: OTHER - DNSP nominated | C40: Test Equipment | K40: 467880.6703 | L40: 421138.5105 | M40: 195490.4902 | N40: 331189.5906
C41: Oil Plant | K41: 38656.43613 | L41: 15629.37025 | M41: 10419.58017 | N41: 76612.30739
C42: Tools | K42: 24951.30316 | L42: 67259.31828 | M42: 54428.05352 | N42: 35095.36269
C43: Other | K43: 48965.7349 | L43: 94569.99247 | M43: 51359.46279 | N43: 10127.02176
K44: 0 | L44: 0 | M44: 0 | N44: 0
K45: 0 | L45: 0 | M45: 0 | N45: 0
K46: 0 | L46: 0 | M46: 0 | N46: 0
K47: 0 | L47: 0 | M47: 0 | N47: 0
K48: 0 | L48: 0 | M48: 0 | N48: 0
K49: 0 | L49: 0 | M49: 0 | N49: 0
K50: 0 | L50: 0 | M50: 0 | N50: 0
B54: 2.6.3 - ANNUAL DESCRIPTOR METRICS
B55: IT & COMMUNICATIONS
F56: VOLUMES (0's)
F57: =IF(dms_RPT="financial",dms_fy4,dms_cy4) -> 2008-09 | G57: =IF(dms_RPT="financial",dms_fy5,dms_cy5) -> 2009-10 | H57: =IF(dms_RPT="financial",dms_fy6,dms_cy6) -> 2010-11 | I57: =IF(dms_RPT="financial",dms_fy7,dms_cy7) -> 2011-12 | J57: =IF(dms_RPT="financial",dms_fy8,dms_cy8) -> 2012-13 | K57: =IF(dms_RPT="financial",dms_fy9,dms_cy9) -> 2013-14 | L57: =IF(dms_RPT="financial",dms_fy10,dms_cy10) -> 2014-15 | M57: =IF(dms_RPT="financial",dms_fy11,dms_cy11) -> 2015-16 | N57: =IF(dms_RPT="financial",dms_fy12,dms_cy12) -> 2016-17
B58: Employee numbers | K58: =SUM('2.11 Labour'!I12:I40) -> 382.2792558 | L58: =SUM('2.11 Labour'!J12:J40) -> 344.6575772 | M58: =SUM('2.11 Labour'!K12:K40) -> 387.8886373 | N58: =SUM('2.11 Labour'!L12:L40) -> 437.1659156
B59: User numbers | K59: 685.6324696 | L59: 636.3791572 | M59: 631.7230885 | N59: 680.1373239
B60: Number of devices | K60: 509.0384603 | L60: 511.4186057 | M60: 607.2390905 | N60: 744.1833396
B62: MOTOR VEHICLES
F63: VOLUMES / %
B64: ASSET CATEGORY | C64: DESCRIPTOR METRIC | E64: Units | F64: =IF(dms_RPT="financial",dms_fy4,dms_cy4) -> 2008-09 | G64: =IF(dms_RPT="financial",dms_fy5,dms_cy5) -> 2009-10 | H64: =IF(dms_RPT="financial",dms_fy6,dms_cy6) -> 2010-11 | I64: =IF(dms_RPT="financial",dms_fy7,dms_cy7) -> 2011-12 | J64: =IF(dms_RPT="financial",dms_fy8,dms_cy8) -> 2012-13 | K64: =IF(dms_RPT="financial",dms_fy9,dms_cy9) -> 2013-14 | L64: =IF(dms_RPT="financial",dms_fy10,dms_cy10) -> 2014-15 | M64: =IF(dms_RPT="financial",dms_fy11,dms_cy11) -> 2015-16 | N64: =IF(dms_RPT="financial",dms_fy12,dms_cy12) -> 2016-17
B65: CAR | C65: Average kilometres travelled | E65: 0's | K65: 16337.19603 | L65: 14400.5551 | M65: 14449.5677 | N65: 15558.23129
C66: Number purchased | E66: 0's | K66: 0 | L66: 0 | M66: 0 | N66: 0
C67: Number leased | E67: 0's | K67: 67.16666667 | L67: 61.25 | M67: 70.16666667 | N67: 73.5
C68: Number in fleet | E68: 0's | K68: 67.16666667 | L68: 61.25 | M68: 70.16666667 | N68: 73.5
C69: Proportion of total fleet expenditure allocated as regulatory expenditure | E69: (per cent) | K69: 0.5868321883 | L69: 0.5552476869 | M69: 0.7019979121 | N69: 0.7128408644
B70: LIGHT COMMERCIAL VEHICLE | C70: Average kilometres travelled | E70: 0's | K70: 19389.55727 | L70: 18606.47143 | M70: 20007.16803 | N70: 19261.83422
C71: Number purchased | E71: 0's | K71: 1 | L71: 1 | M71: 1.333333333 | N71: 0
C72: Number leased | E72: 0's | K72: 139.4166667 | L72: 139 | M72: 143.5833333 | N72: 141.75
C73: Number in fleet | E73: 0's | K73: 140.4166667 | L73: 140 | M73: 144.9166667 | N73: 141.75
C74: Proportion of total fleet expenditure allocated as regulatory expenditure | E74: (per cent) | K74: 0.5173459342 | L74: 0.5233377907 | M74: 0.5715790477 | N74: 0.5688939219
B75: ELEVATED WORK PLATFORM (LCV) | C75: Average kilometres travelled | E75: 0's | K75: 0 | L75: 0 | M75: 0 | N75: 0
C76: Number purchased | E76: 0's | K76: 0 | L76: 0 | M76: 0 | N76: 0
C77: Number leased | E77: 0's | K77: 0 | L77: 0 | M77: 0 | N77: 0
C78: Number in fleet | E78: 0's | K78: 0 | L78: 0 | M78: 0 | N78: 0
C79: Proportion of total fleet expenditure allocated as regulatory expenditure | E79: (per cent) | K79: 0 | L79: 0 | M79: 0 | N79: 0
B80: ELEVATED WORK PLATFORM (HCV) | C80: Average kilometres travelled | E80: 0's | K80: 17321.36471 | L80: 15563.2623 | M80: 16120.62353 | N80: 16352.57143
C81: Number purchased | E81: 0's | K81: 0 | L81: 0 | M81: 0 | N81: 0
C82: Number leased | E82: 0's | K82: 21.25 | L82: 20.33333333 | M82: 19.83333333 | N82: 18.66666667
C83: Number in fleet | E83: 0's | K83: 21.25 | L83: 20.33333333 | M83: 19.83333333 | N83: 18.66666667
C84: Proportion of total fleet expenditure allocated as regulatory expenditure | E84: (per cent) | K84: 1 | L84: 1 | M84: 1 | N84: 1
B85: HEAVY COMMERCIAL VEHICLE | C85: Average kilometres travelled | E85: 0's | K85: 11304.3354 | L85: 10455.98734 | M85: 11440.02 | N85: 11202.26706
C86: Number purchased | E86: 0's | K86: 1 | L86: 1 | M86: 1 | N86: 1
C87: Number leased | E87: 0's | K87: 25.83333333 | L87: 25.33333333 | M87: 25.66666667 | N87: 27.08333333
C88: Number in fleet | E88: 0's | K88: 26.83333333 | L88: 26.33333333 | M88: 26.66666667 | N88: 28.08333333
C89: Proportion of total fleet expenditure allocated as regulatory expenditure | E89: (per cent) | K89: 0.743094546 | L89: 0.7690190862 | M89: 0.797336131 | N89: 0.7962887393
B93: 2.6.4 - INFORMATION & COMMUNICATIONS TECHNOLOGY - CAPEX BY PURPOSE
F94: EXPENDITURE ($0's)
F95: =IF(dms_RPT="financial",dms_fy4,dms_cy4) -> 2008-09 | G95: =IF(dms_RPT="financial",dms_fy5,dms_cy5) -> 2009-10 | H95: =IF(dms_RPT="financial",dms_fy6,dms_cy6) -> 2010-11 | I95: =IF(dms_RPT="financial",dms_fy7,dms_cy7) -> 2011-12 | J95: =IF(dms_RPT="financial",dms_fy8,dms_cy8) -> 2012-13 | K95: =IF(dms_RPT="financial",dms_fy9,dms_cy9) -> 2013-14 | L95: =IF(dms_RPT="financial",dms_fy10,dms_cy10) -> 2014-15 | M95: =IF(dms_RPT="financial",dms_fy11,dms_cy11) -> 2015-16 | N95: =IF(dms_RPT="financial",dms_fy12,dms_cy12) -> 2016-17
B96: ICT CAPABILITY GROWTH
B97: GIS Integration Tools | K97: 0 | L97: 0 | M97: 82368.4503 | N97: 119104.0905
B98: Outage Management Systems | K98: 606936.1469 | L98: 417769.091 | M98: 576.9120498 | N98: 242905.6093
B99: Business Analytics | K99: 0 | L99: 0 | M99: 3516.448899 | N99: 0
B100: Portable Radio | K100: 0 | L100: 0 | M100: 0 | N100: 2156.68056
B101: Mobility | K101: 0 | L101: 2184.820553 | M101: 1882.875898 | N101: 11150.23541
K102: 0 | L102: 0 | M102: 0 | N102: 23035.66447
B103: ICT ASSET EXTENSIONS
B110: ICT ASSET REMEDIATION
B117: ICT ASSET REPLACEMENT
B118: 400MHZ Band Relocation | K118: 0 | L118: 0 | M118: 806583.8078 | N118: 2338352.129

Sheet 2.7 Vegetation management
B1: REGULATORY REPORTING STATEMENT
B2: =INDEX(dms_TradingNameFull_List,MATCH(dms_TradingName,dms_TradingName_List)) -> Power and Water Corporation
B3: =(IF(dms_DataQuality="recast",INDEX(dms_Worksheet_List,MATCH(dms_Model,dms_Model_List))&" ",INDEX(dms_Worksheet_List,MATCH(dms_Model,dms_Model_List))))&" "&(IF(SUM(dms_SingleYear_Model)>0,CRY,CONCATENATE(" ",dms_CRCP_FirstYear_Result," to ",dms_CRCP_FinalYear_Result))) -> CATEGORY ANALYSIS 2008-09 to 2016-17
B4: 2.7 VEGETATION MANAGEMENT
B6: There are THREE tables on this worksheet. Each has been 'grouped' (and sub-grouped) for easy navigation. See the Instructions sheet on how to group and ungroup data.
B8: 2.7.1 - DESCRIPTOR METRICS BY ZONE
B9: URBAN AND CBD
B10: ZONES | C10: ASSET | D10: Units | E10: VOLUMES (0's)
E11: =IF(dms_RPT="financial",dms_fy4,dms_cy4) -> 2008-09 | F11: =IF(dms_RPT="financial",dms_fy5,dms_cy5) -> 2009-10 | G11: =IF(dms_RPT="financial",dms_fy6,dms_cy6) -> 2010-11 | H11: =IF(dms_RPT="financial",dms_fy7,dms_cy7) -> 2011-12 | I11: =IF(dms_RPT="financial",dms_fy8,dms_cy8) -> 2012-13 | J11: =IF(dms_RPT="financial",dms_fy9,dms_cy9) -> 2013-14 | K11: =IF(dms_RPT="financial",dms_fy10,dms_cy10) -> 2014-15 | L11: =IF(dms_RPT="financial",dms_fy11,dms_cy11) -> 2015-16 | M11: =IF(dms_RPT="financial",dms_fy12,dms_cy12) -> 2016-17
B12: Darwin Region | C12: Route line length within zone | D12: KM | J12: 246.602941 | K12: 246.8037387 | L12: 252.7957057 | M12: 257.956
C13: Number of maintenance spans | D13: 0's | J13: 1750 | K13: 1563 | L13: 2017 | M13: 2542
C14: Total length of maintenance spans | D14: KM | J14: 79.31682 | K14: 81.64497 | L14: 98.33824 | M14: 120.38467
C15: Length of vegetation corridors | D15: KM | J15: 1.8 | K15: 0 | L15: 0 | M15: 9.55
C16: Average number of trees per maintenance span | D16: 0's | J16: 3.127428571 | K16: 2.948176583 | L16: 3.433812593 | M16: 3.555468135
C17: Average frequency of cutting cycle | D17: years | J17: 0.5 | K17: 0.5 | L17: 0.5 | M17: 0.5
B18: Katherine Region | C18: Route line length within zone | D18: KM | J18: 34.42549056 | K18: 34.4747143 | L18: 34.543 | M18: 34.543
C19: Number of maintenance spans | D19: 0's | J19: 0 | K19: 350 | L19: 140 | M19: 310
C20: Total length of maintenance spans | D20: KM | J20: 0 | K20: 14.64771 | L20: 5.53703 | M20: 12.85623
C21: Length of vegetation corridors | D21: KM | J21: 0 | K21: 0 | L21: 0 | M21: 0
C22: Average number of trees per maintenance span | D22: 0's | J22: 0 | K22: 2.608571429 | L22: 1.4 | M22: 2.283870968
C23: Average frequency of cutting cycle | D23: years | J23: 0 | K23: 0.5 | L23: 0.5 | M23: 0.5
B24: Tennant Creek Region | C24: Route line length within zone | D24: KM | J24: 33.65354596 | K24: 33.78976258 | L24: 34.006 | M24: 34.006
C25: Number of maintenance spans | D25: 0's | J25: 0 | K25: 130 | L25: 0 | M25: 174
C26: Total length of maintenance spans | D26: KM | J26: 0 | K26: 5.38044 | L26: 0 | M26: 7.49605
C27: Length of vegetation corridors | D27: KM | J27: 0 | K27: 0 | L27: 0 | M27: 0
C28: Average number of trees per maintenance span | D28: 0's | J28: 0 | K28: 1.846153846 | L28: 0 | M28: 2.396551724
C29: Average frequency of cutting cycle | D29: years | J29: 1.5 | K29: 1.5 | L29: 1.5 | M29: 1.5
B30: Alice Springs Region | C30: Route line length within zone | D30: KM | J30: 73.92313532 | K30: 73.92313532 | L30: 74.1091804 | M30: 75.37
C31: Number of maintenance spans | D31: 0's | J31: 417 | K31: 194 | L31: 237 | M31: 960
C32: Total length of maintenance spans | D32: KM | J32: 18.04471 | K32: 7.98426 | L32: 10.14145 | M32: 31.35187
C33: Length of vegetation corridors | D33: KM | J33: 0 | K33: 0 | L33: 0 | M33: 0
C34: Average number of trees per maintenance span | D34: 0's | J34: 2.529976019 | K34: 1.494845361 | L34: 1.869198312 | M34: 1.819791667
C35: Average frequency of cutting cycle | D35: years | J35: 1 | K35: 1 | L35: 1 | M35: 1
B36: ZONE 5 | C36: Route line length within zone | D36: KM
C37: Number of maintenance spans | D37: 0's
C38: Total length of maintenance spans | D38: KM
C39: Length of vegetation corridors | D39: KM
C40: Average number of trees per maintenance span | D40: 0's
C41: Average frequency of cutting cycle | D41: years
B42: ZONE 6 | C42: Route line length within zone | D42: KM
C43: Number of maintenance spans | D43: 0's
C44: Total length of maintenance spans | D44: KM
C45: Length of vegetation corridors | D45: KM
C46: Average number of trees per maintenance span | D46: 0's
C47: Average frequency of cutting cycle | D47: years
B48: ZONE 7 | C48: Route line length within zone | D48: KM
C49: Number of maintenance spans | D49: 0's
C50: Total length of maintenance spans | D50: KM
C51: Length of vegetation corridors | D51: KM
C52: Average number of trees per maintenance span | D52: 0's
C53: Average frequency of cutting cycle | D53: years
B54: ZONE 8 | C54: Route line length within zone | D54: KM
C55: Number of maintenance spans | D55: 0's
C56: Total length of maintenance spans | D56: KM
C57: Length of vegetation corridors | D57: KM
C58: Average number of trees per maintenance span | D58: 0's
C59: Average frequency of cutting cycle | D59: years
B60: ZONE 9 | C60: Route line length within zone | D60: KM
C61: Number of maintenance spans | D61: 0's
C62: Total length of maintenance spans | D62: KM
C63: Length of vegetation corridors | D63: KM
C64: Average number of trees per maintenance span | D64: 0's
C65: Average frequency of cutting cycle | D65: years
B66: ZONE 10 | C66: Route line length within zone | D66: KM
C67: Number of maintenance spans | D67: 0's
C68: Total length of maintenance spans | D68: KM
C69: Length of vegetation corridors | D69: KM
C70: Average number of trees per maintenance span | D70: 0's
C71: Average frequency of cutting cycle | D71: years
B72: ZONE 11 | C72: Route line length within zone | D72: KM
C73: Number of maintenance spans | D73: 0's
C74: Total length of maintenance spans | D74: KM
C75: Length of vegetation corridors | D75: KM
C76: Average number of trees per maintenance span | D76: 0's
C77: Average frequency of cutting cycle | D77: years
B78: ZONE 12 | C78: Route line length within zone | D78: KM
C79: Number of maintenance spans | D79: 0's
C80: Total length of maintenance spans | D80: KM
C81: Length of vegetation corridors | D81: KM
C82: Average number of trees per maintenance span | D82: 0's
C83: Average frequency of cutting cycle | D83: years
B84: ZONE 13 | C84: Route line length within zone | D84: KM
C85: Number of maintenance spans | D85: 0's
C86: Total length of maintenance spans | D86: KM
C87: Length of vegetation corridors | D87: KM
C88: Average number of trees per maintenance span | D88: 0's
C89: Average frequency of cutting cycle | D89: years
B90: ZONE 14 | C90: Route line length within zone | D90: KM
C91: Number of maintenance spans | D91: 0's
C92: Total length of maintenance spans | D92: KM
C93: Length of vegetation corridors | D93: KM
C94: Average number of trees per maintenance span | D94: 0's
C95: Average frequency of cutting cycle | D95: years
B96: ZONE 15 | C96: Route line length within zone | D96: KM
C97: Number of maintenance spans | D97: 0's
C98: Total length of maintenance spans | D98: KM
C99: Length of vegetation corridors | D99: KM
C100: Average number of trees per maintenance span | D100: 0's
C101: Average frequency of cutting cycle | D101: years
B102: ZONE 16 | C102: Route line length within zone | D102: KM
C103: Number of maintenance spans | D103: 0's
C104: Total length of maintenance spans | D104: KM
C105: Length of vegetation corridors | D105: KM
C106: Average number of trees per maintenance span | D106: 0's
C107: Average frequency of cutting cycle | D107: years
B108: ZONE 17 | C108: Route line length within zone | D108: KM
C109: Number of maintenance spans | D109: 0's
C110: Total length of maintenance spans | D110: KM
C111: Length of vegetation corridors | D111: KM
C112: Average number of trees per maintenance span | D112: 0's
C113: Average frequency of cutting cycle | D113: years
B114: ZONE 18 | C114: Route line length within zone | D114: KM
C115: Number of maintenance spans | D115: 0's
C116: Total length of maintenance spans | D116: KM
C117: Length of vegetation corridors | D117: KM
C118: Average number of trees per maintenance span | D118: 0's
C119: Average frequency of cutting cycle | D119: years
B121: RURAL
B122: ZONES | C122: ASSET | D122: Units | E122: VOLUMES (0's)
E123: =IF(dms_RPT="financial",dms_fy4,dms_cy4) -> 2008-09 | F123: =IF(dms_RPT="financial",dms_fy5,dms_cy5) -> 2009-10 | G123: =IF(dms_RPT="financial",dms_fy6,dms_cy6) -> 2010-11 | H123: =IF(dms_RPT="financial",dms_fy7,dms_cy7) -> 2011-12 | I123: =IF(dms_RPT="financial",dms_fy8,dms_cy8) -> 2012-13 | J123: =IF(dms_RPT="financial",dms_fy9,dms_cy9) -> 2013-14 | K123: =IF(dms_RPT="financial",dms_fy10,dms_cy10) -> 2014-15 | L123: =IF(dms_RPT="financial",dms_fy11,dms_cy11) -> 2015-16 | M123: =IF(dms_RPT="financial",dms_fy12,dms_cy12) -> 2016-17
B124: =IF(ISBLANK(B12),"",B12) -> Darwin Region | C124: Route line length within zone | D124: KM | J124: 2239.6973 | K124: 2261.761888 | L124: 2287.757882 | M124: 2306.423
C125: Number of maintenance spans | D125: 0's | J125: 5866 | K125: 4769 | L125: 5473 | M125: 7588
C126: Total length of maintenance spans | D126: KM | J126: 558.29924 | K126: 481.30609 | L126: 566.68805 | M126: 755.50256
C127: Length of vegetation corridors | D127: KM | J127: 583.5 | K127: 561.7 | L127: 178 | M127: 132.7
C128: Average number of trees per maintenance span | D128: 0's | J128: 3.127428571 | K128: 2.948176583 | L128: 3.433812593 | M128: 3.615181866
C129: Average frequency of cutting cycle | D129: years | J129: 0.5 | K129: 0.5 | L129: 0.5 | M129: 0.5
B130: =IF(ISBLANK(B18),"",B18) -> Katherine Region | C130: Route line length within zone | D130: KM | J130: 1119.034702 | K130: 1119.203143 | L130: 1121.311908 | M130: 1121.324
C131: Number of maintenance spans | D131: 0's | J131: 0 | K131: 1539 | L131: 821 | M131: 1105
C132: Total length of maintenance spans | D132: KM | J132: 0 | K132: 184.22213 | L132: 86.85965 | M132: 136.78758
C133: Length of vegetation corridors | D133: KM | J133: 337.7 | K133: 490.8 | L133: 298 | M133: 0
C134: Average number of trees per maintenance span | D134: 0's | J134: 0 | K134: 3.417153996 | L134: 2.523751523 | M134: 3.193665158
C135: Average frequency of cutting cycle | D135: years | J135: 0 | K135: 0.5 | L135: 0.5 | M135: 0.5
B136: =IF(ISBLANK(B24),"",B24) -> Tennant Creek Region | C136: Route line length within zone | D136: KM | J136: 326.2402476 | K136: 326.2402476 | L136: 326.5094594 | M136: 326.886
C137: Number of maintenance spans | D137: 0's | J137: 0 | K137: 142 | L137: 0 | M137: 270
C138: Total length of maintenance spans | D138: KM | J138: 0 | K138: 6.62897 | L138: 0 | M138: 35.4707
C139: Length of vegetation corridors | D139: KM | J139: 0 | K139: 0 | L139: 0 | M139: 0
C140: Average number of trees per maintenance span | D140: 0's | J140: 0 | K140: 1.73943662 | L140: 0 | M140: 5.207407407
C141: Average frequency of cutting cycle | D141: years | J141: 1.5 | K141: 1.5 | L141: 1.5 | M141: 1.5
B142: =IF(ISBLANK(B30),"",B30) -> Alice Springs Region | C142: Route line length within zone | D142: KM | J142: 348.7424302 | K142: 349.3127037 | L142: 422.0313217 | M142: 423.06
C143: Number of maintenance spans | D143: 0's | J143: 721 | K143: 293 | L143: 345 | M143: 1109
C144: Total length of maintenance spans | D144: KM | J144: 44.41731 | K144: 17.72347 | L144: 14.42497 | M144: 59.66165
C145: Length of vegetation corridors | D145: KM | J145: 0 | K145: 0 | L145: 0 | M145: 0
C146: Average number of trees per maintenance span | D146: 0's | J146: 2.72260749 | K146: 1.822525597 | L146: 1.942028986 | M146: 1.753832281
C147: Average frequency of cutting cycle | D147: years | J147: 1 | K147: 1 | L147: 1 | M147: 1
B148: =IF(ISBLANK(B36),"",B36) -> ZONE 5 | C148: Route line length within zone | D148: KM
C149: Number of maintenance spans | D149: 0's
C150: Total length of maintenance spans | D150: KM
C151: Length of vegetation corridors | D151: KM
C152: Average number of trees per maintenance span | D152: 0's
C153: Average frequency of cutting cycle | D153: years
B154: =IF(ISBLANK(B42),"",B42) -> ZONE 6 | C154: Route line length within zone | D154: KM
C155: Number of maintenance spans | D155: 0's
C156: Total length of maintenance spans | D156: KM
C157: Length of vegetation corridors | D157: KM
C158: Average number of trees per maintenance span | D158: 0's
C159: Average frequency of cutting cycle | D159: years
B160: =IF(ISBLANK(B48),"",B48) -> ZONE 7 | C160: Route line length within zone | D160: KM
C161: Number of maintenance spans | D161: 0's
C162: Total length of maintenance spans | D162: KM
C163: Length of vegetation corridors | D163: KM
C164: Average number of trees per maintenance span | D164: 0's
C165: Average frequency of cutting cycle | D165: years
B166: =IF(ISBLANK(B54),"",B54) -> ZONE 8 | C166: Route line length within zone | D166: KM
C167: Number of maintenance spans | D167: 0's
C168: Total length of maintenance spans | D168: KM
C169: Length of vegetation corridors | D169: KM
C170: Average number of trees per maintenance span | D170: 0's
C171: Average frequency of cutting cycle | D171: years
B172: =IF(ISBLANK(B60),"",B60) -> ZONE 9 | C172: Route line length within zone | D172: KM
C173: Number of maintenance spans | D173: 0's
C174: Total length of maintenance spans | D174: KM
C175: Length of vegetation corridors | D175: KM
C176: Average number of trees per maintenance span | D176: 0's
C177: Average frequency of cutting cycle | D177: years
B178: =IF(ISBLANK(B66),"",B66) -> ZONE 10 | C178: Route line length within zone | D178: KM
C179: Number of maintenance spans | D179: 0's
C180: Total length of maintenance spans | D180: KM
C181: Length of vegetation corridors | D181: KM
C182: Average number of trees per maintenance span | D182: 0's
C183: Average frequency of cutting cycle | D183: years
B184: =IF(ISBLANK(B72),"",B72) -> ZONE 11 | C184: Route line length within zone | D184: KM
C185: Number of maintenance spans | D185: 0's
C186: Total length of maintenance spans | D186: KM
C187: Length of vegetation corridors | D187: KM
C188: Average number of trees per maintenance span | D188: 0's
C189: Average frequency of cutting cycle | D189: years
B190: =IF(ISBLANK(B78),"",B78) -> ZONE 12 | C190: Route line length within zone | D190: KM
C191: Number of maintenance spans | D191: 0's
C192: Total length of maintenance spans | D192: KM
C193: Length of vegetation corridors | D193: KM
C194: Average number of trees per maintenance span | D194: 0's
C195: Average frequency of cutting cycle | D195: years
B196: =IF(ISBLANK(B84),"",B84) -> ZONE 13 | C196: Route line length within zone | D196: KM
C197: Number of maintenance spans | D197: 0's
C198: Total length of maintenance spans | D198: KM
C199: Length of vegetation corridors | D199: KM
C200: Average number of trees per maintenance span | D200: 0's
C201: Average frequency of cutting cycle | D201: years
B202: =IF(ISBLANK(B90),"",B90) -> ZONE 14 | C202: Route line length within zone | D202: KM
C203: Number of maintenance spans | D203: 0's
... 200 more rows

Sheet 2.8 Maintenance
B1: REGULATORY REPORTING STATEMENT
B2: =INDEX(dms_TradingNameFull_List,MATCH(dms_TradingName,dms_TradingName_List)) -> Power and Water Corporation
B3: =(IF(dms_DataQuality="recast",INDEX(dms_Worksheet_List,MATCH(dms_Model,dms_Model_List))&" ",INDEX(dms_Worksheet_List,MATCH(dms_Model,dms_Model_List))))&" "&(IF(SUM(dms_SingleYear_Model)>0,CRY,CONCATENATE(" ",dms_CRCP_FirstYear_Result," to ",dms_CRCP_FinalYear_Result))) -> CATEGORY ANALYSIS 2008-09 to 2016-17
B4: 2.8 MAINTENANCE
B6: There are TWO tables on this worksheet. It has been 'grouped' (and sub-grouped) for easy navigation. See the Instructions sheet on how to group or ungroup data.
B8: 2.8.1 - DESCRIPTOR METRICS FOR ROUTINE AND NON-ROUTINE MAINTENANCE
B9: ASSET QUANTITY AT YEAR END
F10: VOLUME | P10: AVERAGE AGE OF ASSET GROUP | Q10: INSPECTION CYCLE (YEARS) | R10: MAINTENANCE CYCLE (YEARS)
F11: (0's)
B12: MAINTENANCE ACTIVITY | C12: MAINTENANCE ASSET CATEGORY | D12: ASSET QUANTITY | E12: Units | F12: =IF(dms_RPT="financial",dms_fy4,dms_cy4) -> 2008-09 | G12: =IF(dms_RPT="financial",dms_fy5,dms_cy5) -> 2009-10 | H12: =IF(dms_RPT="financial",dms_fy6,dms_cy6) -> 2010-11 | I12: =IF(dms_RPT="financial",dms_fy7,dms_cy7) -> 2011-12 | J12: =IF(dms_RPT="financial",dms_fy8,dms_cy8) -> 2012-13 | K12: =IF(dms_RPT="financial",dms_fy9,dms_cy9) -> 2013-14 | L12: =IF(dms_RPT="financial",dms_fy10,dms_cy10) -> 2014-15 | M12: =IF(dms_RPT="financial",dms_fy11,dms_cy11) -> 2015-16 | N12: =IF(dms_RPT="financial",dms_fy12,dms_cy12) -> 2016-17 | P12: =dms_CRCP_FinalYear_Result -> 2016-17
B13: Pole top, overhead line & service line maintenance | C13: Pole tops and overhead lines | D13: Number of poles | E13: Number | K13: 43551 | L13: 43989 | M13: 44324 | N13: 44631 | P13: 30.11274675 | Q13: 3 | R13: 0
C14: Service lines | D14: Number of customers | E14: Number | K14: 52214 | L14: 53397 | M14: 54548 | N14: 55073 | P14: 27.74679062 | Q14: 0 | R14: 0
B15: Pole inspection and treatment | C15: All poles | D15: Number of poles | E15: Number | K15: 43551 | L15: 43989 | M15: 44324 | N15: 44631 | P15: 30.11274675 | Q15: 3 | R15: 0
B16: Overhead asset inspection | C16: All overhead assets | D16: Line patrolled (route KM) | E16: KM | K16: 5203.837027 | L16: 5331.381659 | M16: 5366.581949 | N16: 5405.053491 | P16: 29.57451641 | Q16: 3 | R16: 0
B17: Network underground cable maintenance: by voltage | C17: LV - 11 to 22 KV | D17: Length (KM) | E17: KM | K17: 1415.82864 | L17: 1468.745381 | M17: 1532.460588 | N17: 1563.964619 | P17: 22.18102169 | Q17: 0 | R17: 0
C18: 33 KV and above | D18: Length (KM) | E18: KM | K18: 40.096 | L18: 41.08371469 | M18: 42.11711469 | N18: 42.21197469 | P18: 23.34085414 | Q18: 0 | R18: 0
B19: Network underground cable maintenance: by location | C19: Cbd | D19: Length (KM) | E19: KM | K19: 56.04401371 | L19: 58.15102371 | M19: 61.74346428 | N19: 62.52757873 | P19: 30.80083106 | Q19: 0 | R19: 0
C20: Non-CBD | D20: Length (KM) | E20: KM | K20: 1399.880627 | L20: 1451.678072 | M20: 1512.834239 | N20: 1543.649015 | P20: 22.26437318 | Q20: 0 | R20: 0
B21: Distribution substation equipment & property maintenance | C21: Distribution substation transformers | D21: Number of installed transformers | E21: Number | K21: 4380 | L21: 4485 | M21: 4588 | N21: 4653 | P21: 17.84863303 | Q21: 3 | R21: 0
C22: Distribution substation switchgear (within-substations and stand-alone switchgear) | D22: Number of switches | E22: Number | K22: 5939 | L22: 6073 | M22: 6222 | N22: 6302 | P22: 24.32000679 | Q22: 3 | R22: 0
C23: Distribution substation - other equipment | D23: Earth mat | E23: Number | K23: 1770 | L23: 1817 | M23: 1853 | N23: 1883 | P23: 20.65836492 | Q23: 3 | R23: 6
C24: Distribution substation - property | D24: Number of distribution substation properties maintained | E24: Number | K24: 302 | L24: 310 | M24: 326 | N24: 333 | P24: 21.92993631 | Q24: 3 | R24: 0
B25: Zone substation equipment maintenance | C25: Transformers - zone substation | D25: Number | E25: Number | K25: 64 | L25: 65 | M25: 65 | N25: 67 | P25: 22.57142857 | Q25: 0.08333333333 | R25: 6
C26: Transformers - distribution | D26: Number of distribution transformers within zone substation | E26: Number | K26: 0 | L26: 0 | M26: 0 | N26: 0 | Q26: 0 | R26: 0
C27: Transformers - HV | D27: Number of HV transformers | E27: Number | K27: 0 | L27: 0 | M27: 0 | N27: 0 | Q27: 0 | R27: 0
C28: Zone substation - other equipment | D28: <DNSP to nominate> | E28: =D28 -> <DNSP to nominate> | K28: 1082 | L28: 1109 | M28: 1136 | N28: 1224 | P28: 18.61201773 | Q28: 0.08333333333 | R28: 3
B29: Zone substation property maintenance | C29: All zone substation properties | D29: Number of zone substation properties maintained | E29: Number | K29: 34 | L29: 34 | M29: 36 | N29: 38 | P29: 28.27777778 | Q29: 0.08333333333 | R29: 0.08333333333
B30: Public lighting maintenance | C30: Minor roads | D30: Number of public lights maintained | E30: Number | K30: 0 | L30: 0 | M30: 0 | N30: 0 | Q30: 0 | R30: 0
C31: Major roads | D31: Number of public lights maintained | E31: Number | K31: 0 | L31: 0 | M31: 0 | N31: 0
B32: SCADA & network control maintenance | C32: SCADA & network control | D32: Number of systems | E32: Number | K32: 85 | L32: 94 | M32: 102 | N32: 105 | P32: 9.466666667 | Q32: 3 | R32: 1
B33: Protection systems maintenance | C33: Protection systems | D33: Number of systems | E33: Number | K33: 932 | L33: 1001 | M33: 1251 | N33: 1305 | P33: 12.80689655 | Q33: 0 | R33: 3
B34: Subtransmission asset maintenance | C34: Subtransmission asset maintenance - for DNSPs with dual function assets | D34: <DNSP to nominate> | E34: =D34 -> <DNSP to nominate> | K34: 0 | L34: 0 | M34: 0 | N34: 0
B35: Various assets | C35: includes rates, electricity, communications equip, metering | D35: Various | E35: Number | K35: 0 | L35: 0 | M35: 0 | N35: 0 | R35: 0
B36: Ground clearance - access tracks | C36: Access tracks | D36: Number | E36: Number | K36: 0 | L36: 0 | M36: 0 | N36: 0 | Q36: 0 | R36: 0
B37: Other | C37: Pillars | D37: Number | K37: 6424 | L37: 6829 | M37: 7207 | N37: 7332 | P37: 18.81792144 | Q37: 10 | R37: 0
C38: Communications | D38: Number | K38: 592 | L38: 656 | M38: 692 | N38: 734 | P38: 10.60490463 | Q38: 3 | R38: 0
B48: ASSET QUANTITY INSPECTED / MAINTAINED
F49: VOLUME
F50: (0's)
B51: MAINTENANCE ACTIVITY | C51: MAINTENANCE ASSET CATEGORY | D51: ASSET QUANTITY | E51: Units | F51: =IF(dms_RPT="financial",dms_fy4,dms_cy4) -> 2008-09 | G51: =IF(dms_RPT="financial",dms_fy5,dms_cy5) -> 2009-10 | H51: =IF(dms_RPT="financial",dms_fy6,dms_cy6) -> 2010-11 | I51: =IF(dms_RPT="financial",dms_fy7,dms_cy7) -> 2011-12 | J51: =IF(dms_RPT="financial",dms_fy8,dms_cy8) -> 2012-13 | K51: =IF(dms_RPT="financial",dms_fy9,dms_cy9) -> 2013-14 | L51: =IF(dms_RPT="financial",dms_fy10,dms_cy10) -> 2014-15 | M51: =IF(dms_RPT="financial",dms_fy11,dms_cy11) -> 2015-16 | N51: =IF(dms_RPT="financial",dms_fy12,dms_cy12) -> 2016-17
B52: Pole top, overhead line & service line maintenance | C52: Pole tops and overhead lines | D52: Number of poles | E52: Number | K52: 14637 | L52: 14842 | M52: 14938.66667 | N52: 15300
C53: Service lines | D53: Number of customers | E53: Number | K53: 6 | L53: 26 | M53: 29 | N53: 8
B54: Pole inspection and treatment | C54: All poles | D54: Number of poles | E54: Number | K54: 14517 | L54: 14663 | M54: 14774.66667 | N54: 14877
B55: Overhead asset inspection | C55: All overhead assets | D55: Line patrolled (route KM) | E55: KM | K55: 5203.837027 | L55: 5331.381659 | M55: 5366.581949 | N55: 1801.684497
B56: Network underground cable maintenance: by voltage | C56: LV - 11 to 22 KV | D56: Length (KM) | E56: KM | K56: 81 | L56: 90 | M56: 49 | N56: 46
C57: 33 KV and above | D57: Length (KM) | E57: KM | K57: 1 | L57: 4 | M57: 4 | N57: 0
B58: Network underground cable maintenance: by location | C58: Cbd | D58: Length (KM) | E58: KM | K58: 1 | L58: 17 | M58: 1 | N58: 3
C59: Non-CBD | D59: Length (KM) | E59: KM | K59: 81 | L59: 77 | M59: 52 | N59: 43
B60: Distribution substation equipment & property maintenance | C60: Distribution substation transformers | D60: Number of installed transformers | E60: Number | K60: 4698 | L60: 4889 | M60: 4942 | N60: 1957
C61: Distribution substation switchgear (within-substations and stand-alone switchgear) | D61: Number of switches | E61: Number | K61: 6190 | L61: 6314 | M61: 6444 | N61: 2437.666667
C62: Distribution substation - other equipment | D62: Earth mat | E62: Number | K62: 1 | L62: 5 | M62: 1 | N62: 76
C63: Distribution substation - property | D63: Number of distribution substation properties maintained | E63: Number | K63: 312 | L63: 335 | M63: 339 | N63: 133
B64: Zone substation equipment maintenance | C64: Transformers - zone substation | D64: Number | E64: Number | K64: 1031 | L64: 1031 | M64: 1028 | N64: 1132
C65: Transformers - distribution | D65: Number of distribution transformers within zone substation | E65: Number | K65: 0 | L65: 0 | M65: 0 | N65: 0
C66: Transformers - HV | D66: Number of HV transformers | E66: Number | K66: 0 | L66: 0 | M66: 0 | N66: 0
C67: Zone substation - other equipment | D67: =IF(ISBLANK(D28),"",D28) -> <DNSP to nominate> | E67: =IF(ISBLANK(E28),"",E28) -> <DNSP to nominate> | K67: 13642 | L67: 13978 | M67: 14221 | N67: 15182
B68: Zone substation property maintenance | C68: All zone substation properties | D68: Number of zone substation properties maintained | E68: Number | K68: 105 | L68: 636 | M68: 695 | N68: 749
B69: Public lighting maintenance | C69: Minor roads | D69: Number of public lights maintained | E69: Number | K69: 0 | L69: 0 | M69: 0 | N69: 0
C70: Major roads | D70: Number of public lights maintained | E70: Number | K70: 0 | L70: 0 | M70: 0 | N70: 0
B71: SCADA & network control maintenance | C71: SCADA & network control | D71: Number of systems | E71: Number | K71: 151 | L71: 189 | M71: 208 | N71: 186
B72: Protection systems maintenance | C72: Protection systems | D72: Number of systems | E72: Number | K72: 135 | L72: 170 | M72: 196 | N72: 139
B73: Subtransmission asset maintenance | C73: Subtransmission asset maintenance - for DNSPs with dual function assets | D73: =IF(ISBLANK(D34),"",D34) -> <DNSP to nominate> | E73: =IF(ISBLANK(E34),"",E34) -> <DNSP to nominate> | K73: 0 | L73: 0 | M73: 0 | N73: 0
B74: Various assets | C74: includes rates, electricity, communications equip, metering | D74: Various | E74: Number | K74: 0 | L74: 0 | M74: 0 | N74: 0
B75: Ground clearance - access tracks | C75: Access tracks | D75: Number | E75: Number | K75: 0 | L75: 0 | M75: 0 | N75: 0
B76: Other | C76: =IF(ISBLANK(C37),"",C37) -> Pillars | D76: Number | K76: 25 | L76: 1407 | M76: 1601 | N76: 885
C77: Communications | D77: Number | K77: 366.3333333 | L77: 507.6666667 | M77: 466.6666667 | N77: 355.6666667
B89: 2.8.2 - COST METRICS FOR ROUTINE AND NON-ROUTINE MAINTENANCE
B90: ROUTINE MAINTENANCE
F91: EXPENDITURE
F92: ($0'S)
B93: MAINTENANCE ACTIVITY | C93: MAINTENANCE ASSET CATEGORY | D93: ASSET QUANTITY | E93: Units | F93: =IF(dms_RPT="financial",dms_fy4,dms_cy4) -> 2008-09 | G93: =IF(dms_RPT="financial",dms_fy5,dms_cy5) -> 2009-10 | H93: =IF(dms_RPT="financial",dms_fy6,dms_cy6) -> 2010-11 | I93: =IF(dms_RPT="financial",dms_fy7,dms_cy7) -> 2011-12 | J93: =IF(dms_RPT="financial",dms_fy8,dms_cy8) -> 2012-13 | K93: =IF(dms_RPT="financial",dms_fy9,dms_cy9) -> 2013-14 | L93: =IF(dms_RPT="financial",dms_fy10,dms_cy10) -> 2014-15 | M93: =IF(dms_RPT="financial",dms_fy11,dms_cy11) -> 2015-16 | N93: =IF(dms_RPT="financial",dms_fy12,dms_cy12) -> 2016-17
B94: Pole top, overhead line & service line maintenance | C94: Pole tops and overhead lines | D94: Number of poles | E94: Number | K94: 521494.1968 | L94: 348208.0207 | M94: 308037.4229 | N94: 267650.5093
C95: Service lines | D95: Number of customers | E95: Number | K95: 0 | L95: 0 | M95: 0 | N95: 0
B96: Pole inspection and treatment | C96: All poles | D96: Number of poles | E96: Number | K96: 31587.45 | L96: 44509.945 | M96: 51884.9025 | N96: 63258.5425
B97: Overhead asset inspection | C97: All overhead assets | D97: Line patrolled (route KM) | E97: KM | K97: 228678.79 | L97: 273841.855 | M97: 273788.5975 | N97: 200876.3275
B98: Network underground cable maintenance: by voltage | C98: LV - 11 to 22 KV | D98: Length (KM) | E98: KM | K98: 147698.1987 | L98: 26574.52645 | M98: 51894.82419 | N98: 77617.88892
C99: 33 KV and above | D99: Length (KM) | E99: KM | K99: 0 | L99: 0 | M99: 0 | N99: 0
B100: Network underground cable maintenance: by location | C100: Cbd | D100: Length (KM) | E100: KM | K100: 768.5322378 | L100: 63.87760664 | M100: 82.66000351 | N100: 75.80274102
C101: Non-CBD | D101: Length (KM) | E101: KM | K101: 146929.6664 | L101: 26510.64884 | M101: 51812.16419 | N101: 77542.08618
B102: Distribution substation equipment & property maintenance | C102: Distribution substation transformers | D102: Number of installed transformers | E102: Number | K102: 1654243.166 | L102: 489373.3644 | M102: 829910.3677 | N102: 557410.7522
C103: Distribution substation switchgear (within-substations and stand-alone switchgear) | D103: Number of switches | E103: Number | K103: 1543952.641 | L103: 470276.5105 | M103: 795761.5873 | N103: 596490.2614
C104: Distribution substation - other equipment | D104: Earth mat | E104: Number | K104: 335114.6354 | L104: 45785.76433 | M104: 81040.37533 | N104: 248290.2625
C105: Distribution substation - property | D105: Number of distribution substation properties maintained | E105: Number | K105: 68308.2725 | L105: 70963.9675 | M105: 96081.005 | N105: 32593.415
B106: Zone substation equipment maintenance | C106: Transformers - zone substation | D106: Number | E106: Number | K106: 560532.3777 | L106: 812382.4574 | M106: 389721.115 | N106: 745359.835
C107: Transformers - distribution | D107: Number of distribution transformers within zone substation | E107: Number | K107: 0 | L107: 0 | M107: 0 | N107: 0
C108: Transformers - HV | D108: Number of HV transformers | E108: Number | K108: 0 | L108: 0 | M108: 0 | N108: 0
C109: Zone substation - other equipment | D109: =IF(ISBLANK(D28),"",D28) -> <DNSP to nominate> | E109: =IF(ISBLANK(E28),"",E28) -> <DNSP to nominate> | K109: 1000059.578 | L109: 1696636.51 | M109: 1016671.125 | N109: 1193348.926
B110: Zone substation property maintenance | C110: All zone substation properties | D110: Number of zone substation properties maintained | E110: Number | K110: 227381.503 | L110: 908831.6324 | M110: 870979.7859 | N110: 533088.7832
B111: Public lighting maintenance | C111: Minor roads | D111: Number of public lights maintained | E111: Number | K111: 0 | L111: 0 | M111: 0 | N111: 0
C112: Major roads | D112: Number of public lights maintained | E112: Number | K112: 0 | L112: 0 | M112: 0 | N112: 0
B113: SCADA & network control maintenance | C113: SCADA & network control | D113: Number of systems | E113: Number | K113: 96917.4265 | L113: 82247.84644 | M113: 47589.77779 | N113: 56014.18344
B114: Protection systems maintenance | C114: Protection systems | D114: Number of systems | E114: Number | K114: 233703.2027 | L114: 640869.5498 | M114: 509560.3009 | N114: 391062.1767
B115: Subtransmission asset maintenance | C115: Subtransmission asset maintenance - for DNSPs with dual function assets | D115: =IF(ISBLANK(D34),"",D34) -> <DNSP to nominate> | E115: =IF(ISBLANK(E34),"",E34) -> <DNSP to nominate> | K115: 0 | L115: 0 | M115: 0 | N115: 0
B116: Various assets | C116: includes rates, electricity, communications equip, metering | D116: Various | E116: Number | K116: 0 | L116: 0 | M116: 0 | N116: 0
B117: Ground clearance - access tracks | C117: Access tracks | D117: Number | E117: Number | K117: 0 | L117: 0 | M117: 0 | N117: 0
B118: Other | C118: =IF(ISBLANK(C37),"",C37) -> Pillars | D118: =IF(ISBLANK(D37),"",D37) -> Number | K118: 602185.4055 | L118: 241939.1779 | M118: 258069.3911 | N118: 174058.15
C119: =IF(ISBLANK(C38),"",C38) -> Communications | D119: Number | K119: 674441.9261 | L119: 391657.9621 | M119: 302818.0717 | N119: 143634.696
B129: NON-ROUTINE MAINTENANCE
F130: EXPENDITURE
F131: ($0'S)
B132: MAINTENANCE ACTIVITY | C132: MAINTENANCE ASSET CATEGORY | D132: ASSET QUANTITY | E132: Units | F132: =IF(dms_RPT="financial",dms_fy4,dms_cy4) -> 2008-09 | G132: =IF(dms_RPT="financial",dms_fy5,dms_cy5) -> 2009-10 | H132: =IF(dms_RPT="financial",dms_fy6,dms_cy6) -> 2010-11 | I132: =IF(dms_RPT="financial",dms_fy7,dms_cy7) -> 2011-12 | J132: =IF(dms_RPT="financial",dms_fy8,dms_cy8) -> 2012-13 | K132: =IF(dms_RPT="financial",dms_fy9,dms_cy9) -> 2013-14 | L132: =IF(dms_RPT="financial",dms_fy10,dms_cy10) -> 2014-15 | M132: =IF(dms_RPT="financial",dms_fy11,dms_cy11) -> 2015-16 | N132: =IF(dms_RPT="financial",dms_fy12,dms_cy12) -> 2016-17
B133: Pole top, overhead line & service line maintenance | C133: Pole tops and overhead lines | D133: Number of poles | E133: Number | K133: 1163561.729 | L133: 1679669.21 | M133: 1640153.694 | N133: 1502241.15
C134: Service lines | D134: Number of customers | E134: Number | K134: 26511.94354 | L134: 111024.9967 | M134: 90791.66466 | N134: 75537.89525
B135: Pole inspection and treatment | C135: All poles | D135: Number of poles | E135: Number | K135: 0 | L135: 0 | M135: 0 | N135: 0
B136: Overhead asset inspection | C136: All overhead assets | D136: Line patrolled (route KM) | E136: KM | K136: 0 | L136: 0 | M136: 0 | N136: 0
B137: Network underground cable maintenance: by voltage | C137: LV - 11 to 22 KV | D137: Length (KM) | E137: KM | K137: 1749422.603 | L137: 1751355.128 | M137: 1063998.579 | N137: 761362.948
C138: 33 KV and above | D138: Length (KM) | E138: KM | K138: 6248.725064 | L138: 20476.47151 | M138: 13335.82644 | N138: 2896.129174
B139: Network underground cable maintenance: by location | C139: Cbd | D139: Length (KM) | E139: KM | K139: 21276.62104 | L139: 172259.1205 | M139: 73858.07112 | N139: 82352.54742
C140: Non-CBD | D140: Length (KM) | E140: KM | K140: 1734394.707 | L140: 1599572.479 | M140: 1003476.335 | N140: 681906.5297
B141: Distribution substation equipment & property maintenance | C141: Distribution substation transformers | D141: Number of installed transformers | E141: Number | K141: 1606041.244 | L141: 1876977.788 | M141: 1861583.455 | N141: 2145377.245
C142: Distribution substation switchgear (within-substations and stand-alone switchgear) | D142: Number of switches | E142: Number | K142: 668003.7043 | L142: 762195.9305 | M142: 926452.3869 | N142: 1010116.782
C143: Distribution substation - other equipment | D143: Earth mat | E143: Number | K143: 15352.94865 | L143: 17242.96601 | M143: 14613.02422 | N143: 117211.1409
C144: Distribution substation - property | D144: Number of distribution substation properties maintained | E144: Number | K144: 52760.59399 | L144: 124409.16 | M144: 148065.5809 | N144: 129589.8275
B145: Zone substation equipment maintenance | C145: Transformers - zone substation | D145: Number | E145: Number | K145: 1167844.754 | L145: 1302260.141 | M145: 1298630.624 | N145: 1220655.771
C146: Transformers - distribution | D146: Number of distribution transformers within zone substation | E146: Number | K146: 0 | L146: 0 | M146: 0 | N146: 0
C147: Transformers - HV | D147: Number of HV transformers | E147: Number | K147: 0 | L147: 0 | M147: 0 | N147: 0
C148: Zone substation - other equipment | D148: =IF(ISBLANK(D28),"",D28) -> <DNSP to nominate> | E148: =IF(ISBLANK(E28),"",E28) -> <DNSP to nominate> | K148: 1457891.956 | L148: 1858843.895 | M148: 1236241.863 | N148: 1138639.122
B149: Zone substation property maintenance | C149: All zone substation properties | D149: Number of zone substation properties maintained | E149: Number | K149: 407532.3966 | L149: 859947.8018 | M149: 520006.3258 | N149: 389117.2511
B150: Public lighting maintenance | C150: Minor roads | D150: Number of public lights maintained | E150: Number | K150: 0 | L150: 0 | M150: 0 | N150: 0
C151: Major roads | D151: Number of public lights maintained | E151: Number | K151: 0 | L151: 0 | M151: 0 | N151: 0
B152: SCADA & network control maintenance | C152: SCADA & network control | D152: Number of systems | E152: Number | K152: 1026857.957 | L152: 1202613.877 | M152: 937503.1963 | N152: 815651.4337
B153: Protection systems maintenance | C153: Protection systems | D153: Number of systems | E153: Number | K153: 259491.9816 | L153: 437753.7556 | M153: 723172.0406 | N153: 748681.8152
B154: Subtransmission asset maintenance | C154: Subtransmission asset maintenance - for DNSPs with dual function assets | D154: =IF(ISBLANK(D34),"",D34) -> <DNSP to nominate> | E154: =IF(ISBLANK(E34),"",E34) -> <DNSP to nominate> | K154: 0 | L154: 0 | M154: 0 | N154: 0
B155: Various assets | C155: includes rates, electricity, communications equip, metering | D155: Various | E155: Number | K155: 0 | L155: 0 | M155: 0 | N155: 0
B156: Ground clearance - access tracks | C156: Access tracks | D156: Number | E156: Number | K156: 0 | L156: 0 | M156: 0 | N156: 0
B157: Other | C157: =IF(ISBLANK(C37),"",C37) -> Pillars | D157: Number | K157: 246970.8488 | L157: 510305.849 | M157: 446505.5728 | N157: 999845.198
C158: Communications | D158: Number | K158: 695713.8443 | L158: 980364.7096 | M158: 559426.3065 | N158: 534588.761

Sheet 2.9 Emergency Response
B1: REGULATORY REPORTING STATEMENT
B2: =INDEX(dms_TradingNameFull_List,MATCH(dms_TradingName,dms_TradingName_List)) -> Power and Water Corporation
B3: =(IF(dms_DataQuality="recast",INDEX(dms_Worksheet_List,MATCH(dms_Model,dms_Model_List))&" ",INDEX(dms_Worksheet_List,MATCH(dms_Model,dms_Model_List))))&" "&(IF(SUM(dms_SingleYear_Model)>0,CRY,CONCATENATE(" ",dms_CRCP_FirstYear_Result," to ",dms_CRCP_FinalYear_Result))) -> CATEGORY ANALYSIS 2008-09 to 2016-17
B4: 2.9 EMERGENCY RESPONSE
B6: There is ONE table on this worksheet. It has been 'sub-grouped' for easy navigation. See the Instructions sheet on how to group or ungroup data.
B8: 2.9.1 - EMERGENCY RESPONSE EXPENDITURE (OPEX)
D9: EXPENDITURE ($0's)
D10: =IF(dms_RPT="financial",dms_fy4,dms_cy4) -> 2008-09 | E10: =IF(dms_RPT="financial",dms_fy5,dms_cy5) -> 2009-10 | F10: =IF(dms_RPT="financial",dms_fy6,dms_cy6) -> 2010-11 | G10: =IF(dms_RPT="financial",dms_fy7,dms_cy7) -> 2011-12 | H10: =IF(dms_RPT="financial",dms_fy8,dms_cy8) -> 2012-13 | I10: =IF(dms_RPT="financial",dms_fy9,dms_cy9) -> 2013-14 | J10: =IF(dms_RPT="financial",dms_fy10,dms_cy10) -> 2014-15 | K10: =IF(dms_RPT="financial",dms_fy11,dms_cy11) -> 2015-16 | L10: =IF(dms_RPT="financial",dms_fy12,dms_cy12) -> 2016-17
B11: (A) TOTAL EMERGENCY RESPONSE EXPENDITURE | C11: Total Expenditure | I11: ='2.1 Expenditure summary'!H34 -> 7091771.06 | J11: ='2.1 Expenditure summary'!I34 -> 6679692.23 | K11: ='2.1 Expenditure summary'!J34 -> 6367052.57 | L11: ='2.1 Expenditure summary'!K34 -> 6458682.98
B12: (B) MAJOR EVENTS O&M EXPENDITURE | C12: Darwin System Black | I12: 132373.25
C13: Lovegrove Switchboard Failure | L13: 7829.65
B55: (C) MAJOR EVENT DAYS O&M EXPENDITURE | C55: 2014-03-12 | I55: 97719.35
C56: 2014-03-13 | I56: 20108.21
C57: 2014-03-14 | I57: 1043.25
C58: 2014-03-17 | I58: 2273.75
C59: 2014-03-18 | I59: 1979.5
C60: 2014-03-19 | I60: 53.5
C61: 2014-03-20 | I61: 3539.916667
C62: 2014-03-21 | I62: 945.1666667
C63: 2014-03-24 | I63: 428
C64: 2014-03-25 | I64: 963
C65: 2014-03-26 | I65: 856
C66: 2014-04-02 | I66: 618.08
C67: 2014-04-04 | I67: 642
C68: 2014-04-07 | I68: 214
C69: 2014-04-10 | I69: 214
C70: 2014-04-14 | I70: 856
C71: 2014-04-29 | I71: 725
C72: 2014-05-02 | I72: -805.71
C73: 2017-05-10 | L73: 3585.75
C74: 2017-05-11 | L74: 3522.4
C75: 2017-05-12 | L75: 721.5

Sheet 2.10 network overheads
B1: REGULATORY REPORTING STATEMENT
B2: Power and Water Corporation
B3: CATEGORY ANALYSIS 2008-09 to 2016-17
B4: 2.10 OVERHEADS
B6: There are TWO tables on this worksheet. Each table has been 'grouped' (and sub-grouped) for easy navigation. See the Instructions sheet on how to group or ungroup data.
B8: 2.10.1 - NETWORK OVERHEADS EXPENDITURE
D9: EXPENDITURE ($0's)
D10: 2008-09 | E10: 2009-10 | F10: 2010-11 | G10: 2011-12 | H10: 2012-13 | I10: 2013-14 | J10: 2014-15 | K10: 2015-16 | L10: 2016-17
B11: OPEX
B12: Standard Control Services | C12: Total | D12: 34263907.64 | E12: 28672835.41 | F12: 34991552.26 | G12: 31326768.28 | H12: 28112518.08 | I12: 30626396.01 | J12: 24797900.72 | K12: 29069251.82 | L12: 29058834.93
B13: Alternative Control Services | C13: Total | D13: 49418.56029 | E13: 55470.48149 | F13: 87775.10816 | G13: 206060.9604 | H13: 203546.4128 | I13: 2105137.261 | J13: 2446435.847 | K13: 2683458.158 | L13: 2470846.06
B14: CAPEX
B15: Standard Control Services | C15: Total | D15: 0 | E15: 356444.9107 | F15: 378769.3676 | G15: 291913.2776 | H15: 1652330.496 | I15: 1174807.467 | J15: 191869.3673 | K15: 134830.0425 | L15: 7668305.277
B16: Alternative Control Services | C16: Total | D16: 0 | E16: 20878.67407 | F16: 22186.32371 | G16: 17098.74934 | H16: 96784.85752 | I16: 68814.06204 | J16: 11238.70159 | K16: 7897.636992 | L16: 361462.1021
B17: OTHER DISTRIBUTION SERVICES
B18: Negotiated Services | C18: Total | D18: 0 | E18: 0 | F18: 0 | G18: 0 | H18: 0 | I18: 0 | J18: 0 | K18: 0 | L18: 0
B19: Unregulated Services | C19: Total | D19: 1256124.534 | E19: 1366768.976 | F19: 811229.7795 | G19: 1401747.202 | H19: 1078998.507 | I19: 1553029.845 | J19: 1592962.036 | K19: 1733098.405 | L19: 1576883.802
B23: 2.10.2 - CORPORATE OVERHEADS EXPENDITURE
D24: EXPENDITURE ($0's)
D25: 2008-09 | E25: 2009-10 | F25: 2010-11 | G25: 2011-12 | H25: 2012-13 | I25: 2013-14 | J25: 2014-15 | K25: 2015-16 | L25: 2016-17
B26: OPEX
B27: Standard Control Services | C27: Total | D27: 15653132.14 | E27: 12759327.51 | F27: 17695482.73 | G27: 18412244.29 | H27: 20390655.51 | I27: 13824768.62 | J27: 9895789.787 | K27: 16699876.79 | L27: 7749494.406
B28: Alternative Control Services | C28: Total | D28: 660830.447 | E28: 604037.1542 | F28: 844030.7043 | G28: 911247.1839 | H28: 777854.1218 | I28: 1280336.255 | J28: 1456837.342 | K28: 2270332.585 | L28: 922870.5856
B29: CAPEX
B30: Standard Control Services | C30: Total | D30: 0 | E30: 0 | F30: 0 | G30: 0 | H30: 0 | I30: 0 | J30: 0 | K30: 0 | L30: 3154804.868
B31: Alternative Control Services | C31: Total | D31: 0 | E31: 0 | F31: 0 | G31: 0 | H31: 0 | I31: 0 | J31: 0 | K31: 0 | L31: 375698.9118
B32: OTHER DISTRIBUTION SERVICES
B33: Negotiated Services | C33: Total | D33: 0 | E33: 0 | F33: 0 | G33: 0 | H33: 0 | I33: 0 | J33: 0 | K33: 0 | L33: 0
B34: Unregulated Services | C34: Total | D34: 1105611.627 | E34: 943817.5082 | F34: 959034.6274 | G34: 1078101.946 | H34: 1270848.249 | I34: 988652.0118 | J34: 917047.771 | K34: 1628660.067 | L34: 765022.0586

Sheet 2.11 Labour
B1: REGULATORY REPORTING STATEMENT
B2: =INDEX(dms_TradingNameFull_List,MATCH(dms_TradingName,dms_TradingName_List)) -> Power and Water Corporation
B3: =(IF(dms_DataQuality="recast",INDEX(dms_Worksheet_List,MATCH(dms_Model,dms_Model_List))&" ",INDEX(dms_Worksheet_List,MATCH(dms_Model,dms_Model_List))))&" "&(IF(SUM(dms_SingleYear_Model)>0,CRY,CONCATENATE(" ",dms_CRCP_FirstYear_Result," to ",dms_CRCP_FinalYear_Result))) -> CATEGORY ANALYSIS 2008-09 to 2016-17
B4: 2.11 LABOUR
B6: There are TWO tables on this worksheet. Each table has been 'grouped' (and sub-grouped) for easy navigation. See the Instructions sheet on how to group or ungroup data.
B8: 2.11.1 - COST METRICS PER ANNUM
B9: AVERAGE STAFFING LEVEL (ASL)
D10: VOLUME (0's)
B11: INTERNAL LABOUR | D11: =IF(dms_RPT="financial",dms_fy4,dms_cy4) -> 2008-09 | E11: =IF(dms_RPT="financial",dms_fy5,dms_cy5) -> 2009-10 | F11: =IF(dms_RPT="financial",dms_fy6,dms_cy6) -> 2010-11 | G11: =IF(dms_RPT="financial",dms_fy7,dms_cy7) -> 2011-12 | H11: =IF(dms_RPT="financial",dms_fy8,dms_cy8) -> 2012-13 | I11: =IF(dms_RPT="financial",dms_fy9,dms_cy9) -> 2013-14 | J11: =IF(dms_RPT="financial",dms_fy10,dms_cy10) -> 2014-15 | K11: =IF(dms_RPT="financial",dms_fy11,dms_cy11) -> 2015-16 | L11: =IF(dms_RPT="financial",dms_fy12,dms_cy12) -> 2016-17
B12: CORPORATE OVERHEADS | C12: Executive manager | I12: 4.460607327 | J12: 4.0002655 | K12: 5.326685337 | L12: 13.21908241
C13: Senior manager | I13: 0.403258503 | J13: 0.1810934184 | K13: 0.2624553122 | L13: 0.3059514597
C14: Manager | I14: 3.255287404 | J14: 3.627715275 | K14: 4.260791045 | L14: 0.9664019953
C15: Professional | I15: 3.395383124 | J15: 2.27719171 | K15: 2.966745481 | L15: 2.513058819
C16: Semi professional | I16: 9.026167642 | J16: 8.069781966 | K16: 10.89784068 | L16: 19.88106338
C17: Support staff | I17: 14.08547778 | J17: 10.91487106 | K17: 12.6813564 | L17: 31.94705554
C18: Intern, junior staff, apprentice | I18: 0.06856331491 | J18: 0.02089539443 | K18: 0.1735737009 | L18: 0
B19: NETWORK OVERHEADS | C19: Executive manager | I19: 22.6186342 | J19: 19.0584558 | K19: 21.60100886 | L19: 21.74735745
C20: Senior manager | I20: 19.4446401 | J20: 18.35472422 | K20: 19.84699385 | L20: 20.02132208
C21: Manager | I21: 2.936880513 | J21: 1.701081342 | K21: 2.038863448 | L21: 0.3230877984
C22: Professional | I22: 60.03768806 | J22: 58.2294734 | K22: 65.24085793 | L22: 66.42126511
C23: Semi professional | I23: 20.36907665 | J23: 10.10259172 | K23: 10.19247047 | L23: 15.21577883
C24: Support staff | I24: 61.61776962 | J24: 59.9053735 | K24: 73.82000954 | L24: 76.45465358
C25: Intern, junior staff, apprentice | I25: 1.308098929 | J25: 0.09300235043 | K25: 0.3390715313 | L25: 1.234376885
B26: NON-NETWORK LABOUR | C26: Executive manager | I26: 0 | J26: 0 | K26: 0 | L26: 0
C27: Senior manager | I27: 0 | J27: 0 | K27: 0 | L27: 0
C28: Manager | I28: 0 | J28: 0 | K28: 0 | L28: 0
C29: Professional | I29: 0 | J29: 0 | K29: 0 | L29: 0
C30: Semi professional | I30: 0 | J30: 0 | K30: 0 | L30: 0
C31: Support staff | I31: 0 | J31: 0 | K31: 0 | L31: 0
C32: Intern, junior staff, apprentice | I32: 0 | J32: 0 | K32: 0 | L32: 0
B33: DIRECT OPEX LABOUR | C33: Skilled electrical worker | I33: 69.64496854 | J33: 63.50526178 | K33: 66.60437165 | L33: 73.27812907
C34: Skilled non electical worker | I34: 0 | J34: 0 | K34: 0 | L34: 0
C35: Apprentice | I35: 27.10590002 | J35: 20.64314774 | K35: 18.87717942 | L35: 22.11270205
C36: Unskilled worker | I36: 0 | J36: 0 | K36: 0 | L36: 0
B37: DIRECT CAPEX LABOUR | C37: Skilled electrical worker | I37: 44.99050068 | J37: 48.27898676 | K37: 56.6908879 | L37: 54.94438978
C38: Skilled non electical worker | I38: 0 | J38: 0 | K38: 0 | L38: 0
C39: Apprentice | I39: 17.51035342 | J39: 15.69366425 | K39: 16.06747479 | L39: 16.58023937
C40: Unskilled worker | I40: 0 | J40: 0 | K40: 0 | L40: 0
B42: TOTAL LABOUR EXPENDITURE
D43: EXPENDITURE ($0's)
B44: INTERNAL LABOUR | D44: =IF(dms_RPT="financial",dms_fy4,dms_cy4) -> 2008-09 | E44: =IF(dms_RPT="financial",dms_fy5,dms_cy5) -> 2009-10 | F44: =IF(dms_RPT="financial",dms_fy6,dms_cy6) -> 2010-11 | G44: =IF(dms_RPT="financial",dms_fy7,dms_cy7) -> 2011-12 | H44: =IF(dms_RPT="financial",dms_fy8,dms_cy8) -> 2012-13 | I44: =IF(dms_RPT="financial",dms_fy9,dms_cy9) -> 2013-14 | J44: =IF(dms_RPT="financial",dms_fy10,dms_cy10) -> 2014-15 | K44: =IF(dms_RPT="financial",dms_fy11,dms_cy11) -> 2015-16 | L44: =IF(dms_RPT="financial",dms_fy12,dms_cy12) -> 2016-17
B45: CORPORATE OVERHEADS | C45: Executive manager | I45: 1731546 | J45: 1321280 | K45: 2433625 | L45: 1789458
C46: Senior manager | I46: 127844 | J46: 44676 | K46: 90288 | L46: 30446
C47: Manager | I47: 897484 | J47: 780566 | K47: 1228452 | L47: 88486
C48: Professional | I48: 867715 | J48: 422513 | K48: 745081 | L48: 183528
C49: Semi professional | I49: 2065023 | J49: 1522711 | K49: 2782988 | L49: 1450122
C50: Support staff | I50: 2430208 | J50: 1527709 | K50: 2530234 | L50: 1940942
C51: Intern, junior staff, apprentice | I51: 13516 | J51: 2981 | K51: 28560 | L51: 0
B52: NETWORK OVERHEADS | C52: Executive manager | I52: 3733176 | J52: 3153161 | K52: 3830839 | L52: 3105873
C53: Senior manager | I53: 2963773 | J53: 2658667 | K53: 2999083 | L53: 2486678
C54: Manager | I54: 297148 | J54: 207448 | K54: 287494 | L54: 34866
C55: Professional | I55: 7812944 | J55: 7175491 | K55: 8482418 | L55: 6816998
C56: Semi professional | I56: 2546491 | J56: 1126437 | K56: 1233640 | L56: 1483000
C57: Support staff | I57: 5949311 | J57: 5603998 | K57: 6759219 | L57: 5651122
C58: Intern, junior staff, apprentice | I58: 83627 | J58: 6144 | K58: 21083 | L58: 63323
B59: NON-NETWORK LABOUR | C59: Executive manager | I59: 0 | J59: 0 | K59: 0 | L59: 0
C60: Senior manager | I60: 0 | J60: 0 | K60: 0 | L60: 0
C61: Manager | I61: 0 | J61: 0 | K61: 0 | L61: 0
C62: Professional | I62: 0 | J62: 0 | K62: 0 | L62: 0
C63: Semi professional | I63: 0 | J63: 0 | K63: 0 | L63: 0
C64: Support staff | I64: 0 | J64: 0 | K64: 0 | L64: 0
C65: Intern, junior staff, apprentice | I65: 0 | J65: 0 | K65: 0 | L65: 0
B66: DIRECT OPEX LABOUR | C66: Skilled electrical worker | I66: 14900018 | J66: 16381232 | K66: 15935745 | L66: 16216156
C67: Skilled non electical worker | I67: 0 | J67: 0 | K67: 0 | L67: 0
C68: Apprentice | I68: 3352392 | J68: 3318234 | K68: 2716636 | L68: 2762851
C69: Unskilled worker | I69: 0 | J69: 0 | K69: 0 | L69: 0
B70: DIRECT CAPEX LABOUR | C70: Skilled electrical worker | I70: 9625380 | J70: 12453602 | K70: 13563847 | L70: 12158973
C71: Skilled non electical worker | I71: 0 | J71: 0 | K71: 0 | L71: 0
C72: Apprentice | I72: 2165638 | J72: 2522641 | K72: 2312288 | L72: 2071602
C73: Unskilled worker | I73: 0 | J73: 0 | K73: 0 | L73: 0
B75: AVERAGE PRODUCTIVE WORK HOURS PER ASL
D76: VOLUME (0's)
B77: INTERNAL LABOUR | D77: =IF(dms_RPT="financial",dms_fy4,dms_cy4) -> 2008-09 | E77: =IF(dms_RPT="financial",dms_fy5,dms_cy5) -> 2009-10 | F77: =IF(dms_RPT="financial",dms_fy6,dms_cy6) -> 2010-11 | G77: =IF(dms_RPT="financial",dms_fy7,dms_cy7) -> 2011-12 | H77: =IF(dms_RPT="financial",dms_fy8,dms_cy8) -> 2012-13 | I77: =IF(dms_RPT="financial",dms_fy9,dms_cy9) -> 2013-14 | J77: =IF(dms_RPT="financial",dms_fy10,dms_cy10) -> 2014-15 | K77: =IF(dms_RPT="financial",dms_fy11,dms_cy11) -> 2015-16 | L77: =IF(dms_RPT="financial",dms_fy12,dms_cy12) -> 2016-17
B78: CORPORATE OVERHEADS | C78: Executive manager
C79: Senior manager
C80: Manager
C81: Professional
C82: Semi professional
C83: Support staff
C84: Intern, junior staff, apprentice
B85: NETWORK OVERHEADS | C85: Executive manager
C86: Senior manager
C87: Manager
C88: Professional
C89: Semi professional
C90: Support staff
C91: Intern, junior staff, apprentice
B92: NON-NETWORK LABOUR | C92: Executive manager
C93: Senior manager
C94: Manager
C95: Professional
C96: Semi professional
C97: Support staff
C98: Intern, junior staff, apprentice
B99: DIRECT OPEX LABOUR | C99: Skilled electrical worker
C100: Skilled non electical worker
C101: Apprentice
C102: Unskilled worker
B103: DIRECT CAPEX LABOUR | C103: Skilled electrical worker
C104: Skilled non electical worker
C105: Apprentice
C106: Unskilled worker
B108: STAND DOWN OCCURRENCES PER ASL
D109: VOLUME (0's)
B110: INTERNAL LABOUR | D110: =IF(dms_RPT="financial",dms_fy4,dms_cy4) -> 2008-09 | E110: =IF(dms_RPT="financial",dms_fy5,dms_cy5) -> 2009-10 | F110: =IF(dms_RPT="financial",dms_fy6,dms_cy6) -> 2010-11 | G110: =IF(dms_RPT="financial",dms_fy7,dms_cy7) -> 2011-12 | H110: =IF(dms_RPT="financial",dms_fy8,dms_cy8) -> 2012-13 | I110: =IF(dms_RPT="financial",dms_fy9,dms_cy9) -> 2013-14 | J110: =IF(dms_RPT="financial",dms_fy10,dms_cy10) -> 2014-15 | K110: =IF(dms_RPT="financial",dms_fy11,dms_cy11) -> 2015-16 | L110: =IF(dms_RPT="financial",dms_fy12,dms_cy12) -> 2016-17
B111: CORPORATE OVERHEADS | C111: Executive manager
C112: Senior manager
C113: Manager
C114: Professional
C115: Semi professional
C116: Support staff
C117: Intern, junior staff, apprentice
B118: NETWORK OVERHEADS | C118: Executive manager
C119: Senior manager
C120: Manager
C121: Professional
C122: Semi professional
C123: Support staff
C124: Intern, junior staff, apprentice
B125: NON-NETWORK LABOUR | C125: Executive manager
C126: Senior manager
C127: Manager
C128: Professional
C129: Semi professional
C130: Support staff
C131: Intern, junior staff, apprentice
B132: DIRECT OPEX LABOUR | C132: Skilled electrical worker
C133: Skilled non electical worker
C134: Apprentice
C135: Unskilled worker
B136: DIRECT CAPEX LABOUR | C136: Skilled electrical worker
C137: Skilled non electical worker
C138: Apprentice
C139: Unskilled worker
B143: 2.11.2 - EXTRA DESCRIPTOR METRICS FOR CURRENT YEAR
B144: AVERAGE PRODUCTIVE WORK HOURS PER ASL
D145: ORDINARY TIME | F145: OVERTIME
D146: PER ASL (0s) | E146: HOURLY RATE PER ASL | F146: PER ASL (0s) | G146: HOURLY RATE PER ASL
D147: =dms_CRCP_FinalYear_Result -> 2016-17 | E147: =dms_CRCP_FinalYear_Result -> 2016-17 | F147: =dms_CRCP_FinalYear_Result -> 2016-17 | G147: =dms_CRCP_FinalYear_Result -> 2016-17
B148: CORPORATE OVERHEADS | C148: Executive manager
C149: Senior manager
C150: Manager
C151: Professional
C152: Semi professional
C153: Support staff
C154: Intern, junior staff, apprentice
B155: NETWORK OVERHEADS | C155: Executive manager
C156: Senior manager
C157: Manager
C158: Professional
C159: Semi professional
C160: Support staff
C161: Intern, junior staff, apprentice
B162: NON-NETWORK LABOUR | C162: Executive manager
C163: Senior manager
C164: Manager
C165: Professional
C166: Semi professional
C167: Support staff
C168: Intern, junior staff, apprentice
B169: DIRECT OPEX LABOUR | C169: Skilled electrical worker
C170: Skilled non electical worker
C171: Apprentice
C172: Unskilled worker
B173: DIRECT CAPEX LABOUR | C173: Skilled electrical worker
C174: Skilled non electical worker
C175: Apprentice
C176: Unskilled worker

Sheet 2.12 Input tables
B1: REGULATORY REPORTING STATEMENT
B2: =INDEX(dms_TradingNameFull_List,MATCH(dms_TradingName,dms_TradingName_List)) -> Power and Water Corporation
B3: =(IF(dms_DataQuality="recast",INDEX(dms_Worksheet_List,MATCH(dms_Model,dms_Model_List))&" ",INDEX(dms_Worksheet_List,MATCH(dms_Model,dms_Model_List))))&" "&(IF(SUM(dms_SingleYear_Model)>0,CRY,CONCATENATE(" ",dms_CRCP_FirstYear_Result," to ",dms_CRCP_FinalYear_Result))) -> CATEGORY ANALYSIS 2008-09 to 2016-17
B4: 2.12 INPUT TABLES
B6: There are SIX tables on this worksheet. Each table has been 'grouped' (and sub-grouped) for easy navigation. See the Instructions sheet on how to group or ungroup data.
B8: 2.12 INPUT TABLES
B9: 2.12.1 - DIRECT MATERIALS EXPENDITURE
D10: EXPENDITURE
D11: Actual ($0's)
D12: =IF(dms_RPT="financial",dms_fy4,dms_cy4) -> 2008-09 | E12: =IF(dms_RPT="financial",dms_fy5,dms_cy5) -> 2009-10 | F12: =IF(dms_RPT="financial",dms_fy6,dms_cy6) -> 2010-11 | G12: =IF(dms_RPT="financial",dms_fy7,dms_cy7) -> 2011-12 | H12: =IF(dms_RPT="financial",dms_fy8,dms_cy8) -> 2012-13 | I12: =IF(dms_RPT="financial",dms_fy9,dms_cy9) -> 2013-14 | J12: =IF(dms_RPT="financial",dms_fy10,dms_cy10) -> 2014-15 | K12: =IF(dms_RPT="financial",dms_fy11,dms_cy11) -> 2015-16 | L12: =IF(dms_RPT="financial",dms_fy12,dms_cy12) -> 2016-17
B13: VEGETATION MANAGEMENT | C13: All zones | I13: 1297.4 | J13: 882.95 | K13: 10.18 | L13: 774.77
B14: MAINTENANCE | C14: All maintenance expenditure | I14: 1184889.86 | J14: 1416034.78 | K14: 607337.02 | L14: 768101.68
B15: OVERHEADS | C15: Network overheads - opex | I15: 641083.0189 | J15: 558956.0018 | K15: 700813.6242 | L15: 739171.93
C16: Network overheads - capex | I16: 0 | J16: 0 | K16: 0 | L16: 0
C17: Corporate overheads - opex | I17: 4140.906169 | J17: 7819.145274 | K17: 5084.124589 | L17: 1806.359391
C18: Corporate overheads - capex | I18: 0 | J18: 0 | K18: 0 | L18: 735.3655735
B19: AUGMENTATION | C19: All augex | I19: 4560227.783 | J19: 2944245.535 | K19: 1679301.739 | L19: 1205047.278
B20: CONNECTIONS | C20: Simple and complex customer connections | I20: 3200200.072 | J20: 2497284.988 | K20: 2006665.552 | L20: 1087843.379
B21: EMERGENCY RESPONSE | C21: All major storms and major event days | I21: 1029186.81 | J21: 716603.6 | K21: 810759.98 | L21: 566742.7
B22: PUBLIC LIGHTING | C22: All public lighting services | I22: 0 | J22: 0 | K22: 0 | L22: 0
B23: METERING | C23: All metering services | I23: 785841.0633 | J23: 1046606.583 | K23: 1658632.726 | L23: 1017768.026
B24: FEE-BASED SERVICES | C24: All fee-based services | I24: 2845.11 | J24: 1896.82 | K24: 28498.43 | L24: 24207.6769
B25: QUOTED SERVICES | C25: All quoted services | I25: 303660.35 | J25: 734013.52 | K25: 873935.39 | L25: 508856.0142
B26: REPLACEMENT | C26: All replacement expenditure | I26: 4854403.274 | J26: 7523050.967 | K26: 6107926.908 | L26: 6252862.985
B27: NON-NETWORK EXPENDITURE | C27: Opex | I27: 0 | J27: 0 | K27: 0 | L27: 0
C28: Capex | I28: 592706.5121 | J28: 657559.6509 | K28: 745701.0838 | L28: 429177.5611
B30: 2.12.2 - DIRECT LABOUR EXPENDITURE
D31: EXPENDITURE
D32: Actual ($0's)
D33: =IF(dms_RPT="financial",dms_fy4,dms_cy4) -> 2008-09 | E33: =IF(dms_RPT="financial",dms_fy5,dms_cy5) -> 2009-10 | F33: =IF(dms_RPT="financial",dms_fy6,dms_cy6) -> 2010-11 | G33: =IF(dms_RPT="financial",dms_fy7,dms_cy7) -> 2011-12 | H33: =IF(dms_RPT="financial",dms_fy8,dms_cy8) -> 2012-13 | I33: =IF(dms_RPT="financial",dms_fy9,dms_cy9) -> 2013-14 | J33: =IF(dms_RPT="financial",dms_fy10,dms_cy10) -> 2014-15 | K33: =IF(dms_RPT="financial",dms_fy11,dms_cy11) -> 2015-16 | L33: =IF(dms_RPT="financial",dms_fy12,dms_cy12) -> 2016-17
B34: VEGETATION MANAGEMENT | C34: All zones | I34: 93878.15 | J34: 200723.2778 | K34: 195065.6977 | L34: 238971.0218
B35: MAINTENANCE | C35: All maintenance expenditure | I35: 12902451.13 | J35: 14146261.3 | K35: 13282200.67 | L35: 13396230.33
B36: OVERHEADS | C36: Network overheads - opex | I36: 25081818.52 | J36: 21916673.41 | K36: 25846451.14 | L36: 21563101.16
C37: Network overheads - capex | I37: 229419.93 | J37: 0 | K37: 0 | L37: 7916914.343
C38: Corporate overheads - opex | I38: 8886578.62 | J38: 6450159.795 | K38: 11176861.08 | L38: 6135939.731
C39: Corporate overheads - capex | I39: 0 | J39: 0 | K39: 0 | L39: 2497929.738
B40: AUGMENTATION | C40: All augex | I40: 4102847.227 | J40: 4828965.366 | K40: 4114628.58 | L40: 2662334.317
B41: CONNECTIONS | C41: Simple and complex customer connections | I41: 2466219.713 | J41: 3261638.847 | K41: 2802734.156 | L41: 1654704.83
B42: EMERGENCY RESPONSE | C42: All major storms and major event days | I42: 5107081.31 | J42: 5349897.15 | K42: 5168462.04 | L42: 5342068.37
B43: PUBLIC LIGHTING | C43: All public lighting services | I43: 0 | J43: 0 | K43: 0 | L43: 0
B44: METERING | C44: All metering services | I44: 172944.3854 | J44: 682018.5945 | K44: 858787.7438 | L44: 944762.5513
B45: FEE-BASED SERVICES | C45: All fee-based services | I45: 754851.55 | J45: 1494388.87 | K45: 1131938.856 | L45: 1179912.85
B46: QUOTED SERVICES | C46: All quoted services | I46: 1032847.41 | J46: 1758147.9 | K46: 1606023.56 | L46: 1484383.01
B47: REPLACEMENT | C47: All replacement expenditure | I47: 4994608.32 | J47: 6746787.115 | K47: 8723428.844 | L47: 9336480.37
B48: NON-NETWORK EXPENDITURE | C48: Opex | I48: 0 | J48: 0 | K48: 0 | L48: 0
C49: Capex | I49: 227342.4924 | J49: 138851.8671 | K49: 235343.5088 | L49: 577055.7692
B51: 2.12.3 - CONTRACT EXPENDITURE
B52: MATERIALS INPUT
D53: EXPENDITURE
D54: Actual ($0's)
D55: =IF(dms_RPT="financial",dms_fy4,dms_cy4) -> 2008-09 | E55: =IF(dms_RPT="financial",dms_fy5,dms_cy5) -> 2009-10 | F55: =IF(dms_RPT="financial",dms_fy6,dms_cy6) -> 2010-11 | G55: =IF(dms_RPT="financial",dms_fy7,dms_cy7) -> 2011-12 | H55: =IF(dms_RPT="financial",dms_fy8,dms_cy8) -> 2012-13 | I55: =IF(dms_RPT="financial",dms_fy9,dms_cy9) -> 2013-14 | J55: =IF(dms_RPT="financial",dms_fy10,dms_cy10) -> 2014-15 | K55: =IF(dms_RPT="financial",dms_fy11,dms_cy11) -> 2015-16 | L55: =IF(dms_RPT="financial",dms_fy12,dms_cy12) -> 2016-17
B56: VEGETATION MANAGEMENT | C56: All zones | I56: 22879.38731 | J56: 24087.67522 | K56: 19786.7508 | L56: 17777.73834
B57: MAINTENANCE | C57: All maintenance expenditure | I57: 302458.4781 | J57: 308528.0713 | K57: 239445.9828 | L57: 186604.5019
B58: OVERHEADS | C58: Network overheads - opex | I58: 0 | J58: 0 | K58: 0 | L58: 0
C59: Network overheads - capex | I59: 0 | J59: 0 | K59: 0 | L59: 0
C60: Corporate overheads - opex | I60: 0 | J60: 0 | K60: 0 | L60: 0
C61: Corporate overheads - capex | I61: 0 | J61: 0 | K61: 0 | L61: 0
B62: AUGMENTATION | C62: All augex | I62: 8357665.488 | J62: 6327534.308 | K62: 4684917.098 | L62: 3569580.161
B63: CONNECTIONS | C63: Simple and complex customer connections | I63: 1539069.844 | J63: 1009709.458 | K63: 548364.1481 | L63: 264121.8838
B64: EMERGENCY RESPONSE | C64: All major storms and major event days | I64: 123877.8076 | J64: 79498.25479 | K64: 50280.95283 | L64: 71289.08119
B65: PUBLIC LIGHTING | C65: All public lighting services | I65: 0 | J65: 0 | K65: 0 | L65: 0
B66: METERING | C66: All metering services | I66: 141377.3908 | J66: 389713.8337 | K66: 537949.4228 | L66: 812045.3432
B67: FEE-BASED SERVICES | C67: All fee-based services | I67: 37.94460528 | J67: 90.73787835 | K67: 431.1115207 | L67: 453.2825261
B68: QUOTED SERVICES | C68: All quoted services | I68: 105326.1892 | J68: 276097.4601 | K68: 645891.5043 | L68: 222903.5588
B69: REPLACEMENT | C69: All replacement expenditure | I69: 15178557.34 | J69: 13682592.33 | K69: 12533579.77 | L69: 5744721.145
B70: NON-NETWORK EXPENDITURE | C70: Opex | I70: 0 | J70: 0 | K70: 0 | L70: 0
C71: Capex | I71: 418453.3421 | J71: 248008.3397 | K71: 235994.9557 | L71: 1621260.63
B73: LABOUR INPUT
D74: EXPENDITURE
D75: Actual ($0's)
D76: =IF(dms_RPT="financial",dms_fy4,dms_cy4) -> 2008-09 | E76: =IF(dms_RPT="financial",dms_fy5,dms_cy5) -> 2009-10 | F76: =IF(dms_RPT="financial",dms_fy6,dms_cy6) -> 2010-11 | G76: =IF(dms_RPT="financial",dms_fy7,dms_cy7) -> 2011-12 | H76: =IF(dms_RPT="financial",dms_fy8,dms_cy8) -> 2012-13 | I76: =IF(dms_RPT="financial",dms_fy9,dms_cy9) -> 2013-14 | J76: =IF(dms_RPT="financial",dms_fy10,dms_cy10) -> 2014-15 | K76: =IF(dms_RPT="financial",dms_fy11,dms_cy11) -> 2015-16 | L76: =IF(dms_RPT="financial",dms_fy12,dms_cy12) -> 2016-17
B77: VEGETATION MANAGEMENT | C77: All zones | I77: 5621958.783 | J77: 5918861.175 | K77: 4862031.309 | L77: 4368373.632
B78: MAINTENANCE | C78: All maintenance expenditure | I78: 4086706.532 | J78: 4168716.619 | K78: 3235305.117 | L78: 2521330.668
B79: OVERHEADS | C79: Network overheads - opex | I79: 297909.16 | J79: 332056.6304 | K79: 692866.8406 | L79: 3266601.435
C80: Network overheads - capex | I80: 1014201.599 | J80: 203108.0689 | K80: 142727.6795 | L80: 112853.0361
C81: Corporate overheads - opex | I81: 0 | J81: 0 | K81: 0 | L81: 0
C82: Corporate overheads - capex | I82: 0 | J82: 0 | K82: 0 | L82: 0
B83: AUGMENTATION | C83: All augex | I83: 12637495.04 | J83: 9567765.492 | K83: 7083989.746 | L83: 5397506.237
B84: CONNECTIONS | C84: Simple and complex customer connections | I84: 1782972.591 | J84: 1169722.281 | K84: 635265.6767 | L84: 305978.3682
B85: EMERGENCY RESPONSE | C85: All major storms and major event days | I85: 831625.1324 | J85: 533693.2252 | K85: 337549.5972 | L85: 478582.8288
B86: PUBLIC LIGHTING | C86: All public lighting services | I86: 0 | J86: 0 | K86: 0 | L86: 0
B87: METERING | C87: All metering services | I87: 1222845.882 | J87: 1639968.854 | K87: 1767108.196 | L87: 1780738.47
B88: FEE-BASED SERVICES | C88: All fee-based services | I88: 3012.615395 | J88: 7204.142122 | K88: 34228.13848 | L88: 35988.40747
B89: QUOTED SERVICES | C89: All quoted services | I89: 336000.2708 | J89: 793825.2499 | K89: 866483.6557 | L89: 380177.4712
B90: REPLACEMENT | C90: All replacement expenditure | I90: 18285081.55 | J90: 16482944.39 | K90: 15098768.82 | L90: 6920466.305
B91: NON-NETWORK EXPENDITURE | C91: Opex | I91: 0 | J91: 0 | K91: 0 | L91: 0
C92: Capex | I92: 203363.7105 | J92: 120529.3186 | K92: 114690.9465 | L92: 787914.7905
B94: OTHER INPUT
D95: EXPENDITURE
D96: Actual ($0's)
D97: =IF(dms_RPT="financial",dms_fy4,dms_cy4) -> 2008-09 | E97: =IF(dms_RPT="financial",dms_fy5,dms_cy5) -> 2009-10 | F97: =IF(dms_RPT="financial",dms_fy6,dms_cy6) -> 2010-11 | G97: =IF(dms_RPT="financial",dms_fy7,dms_cy7) -> 2011-12 | H97: =IF(dms_RPT="financial",dms_fy8,dms_cy8) -> 2012-13 | I97: =IF(dms_RPT="financial",dms_fy9,dms_cy9) -> 2013-14 | J97: =IF(dms_RPT="financial",dms_fy10,dms_cy10) -> 2014-15 | K97: =IF(dms_RPT="financial",dms_fy11,dms_cy11) -> 2015-16 | L97: =IF(dms_RPT="financial",dms_fy12,dms_cy12) -> 2016-17
B98: VEGETATION MANAGEMENT | C98: All zones | I98: 0 | J98: 0 | K98: 0 | L98: 0
B99: MAINTENANCE | C99: All maintenance expenditure | I99: 0 | J99: 0 | K99: 0 | L99: 0
B100: OVERHEADS | C100: Network overheads - opex | I100: 206665.3322 | J100: 203497.7264 | K100: 205751.5098 | L100: 212612.8012
C101: Network overheads - capex | I101: 0 | J101: 0 | K101: 0 | L101: 0
C102: Corporate overheads - opex | I102: 0 | J102: 0 | K102: 0 | L102: 0
C103: Corporate overheads - capex | I103: 0 | J103: 0 | K103: 0 | L103: 0
B104: AUGMENTATION | C104: All augex | I104: 0 | J104: 0 | K104: 0 | L104: 0
B105: CONNECTIONS | C105: Simple and complex customer connections | I105: 0 | J105: 0 | K105: 0 | L105: 0
B106: EMERGENCY RESPONSE | C106: All major storms and major event days | I106: 0 | J106: 0 | K106: 0 | L106: 0
B107: PUBLIC LIGHTING | C107: All public lighting services | I107: 0 | J107: 0 | K107: 0 | L107: 0
B108: METERING | C108: All metering services | I108: 0 | J108: 0 | K108: 0 | L108: 0
B109: FEE-BASED SERVICES | C109: All fee-based services | I109: 0 | J109: 0 | K109: 0 | L109: 0
B110: QUOTED SERVICES | C110: All quoted services | I110: 0 | J110: 0 | K110: 0 | L110: 0
B111: REPLACEMENT | C111: All replacement expenditure | I111: 0 | J111: 0 | K111: 0 | L111: 0
B112: NON-NETWORK EXPENDITURE | C112: Opex | I112: 0 | J112: 0 | K112: 0 | L112: 0
C113: Capex | I113: 0 | J113: 0 | K113: 0 | L113: 0
B116: 2.12.4 - OTHER EXPENDITURE
D117: EXPENDITURE
D118: Actual ($0's)
D119: =IF(dms_RPT="financial",dms_fy4,dms_cy4) -> 2008-09 | E119: =IF(dms_RPT="financial",dms_fy5,dms_cy5) -> 2009-10 | F119: =IF(dms_RPT="financial",dms_fy6,dms_cy6) -> 2010-11 | G119: =IF(dms_RPT="financial",dms_fy7,dms_cy7) -> 2011-12 | H119: =IF(dms_RPT="financial",dms_fy8,dms_cy8) -> 2012-13 | I119: =IF(dms_RPT="financial",dms_fy9,dms_cy9) -> 2013-14 | J119: =IF(dms_RPT="financial",dms_fy10,dms_cy10) -> 2014-15 | K119: =IF(dms_RPT="financial",dms_fy11,dms_cy11) -> 2015-16 | L119: =IF(dms_RPT="financial",dms_fy12,dms_cy12) -> 2016-17
B120: VEGETATION MANAGEMENT | C120: All zones | I120: 0 | J120: 0 | K120: 0 | L120: 0
B121: MAINTENANCE | C121: All maintenance expenditure | I121: 0 | J121: 0 | K121: 0 | L121: 0
B122: OVERHEADS | C122: Network overheads - opex | I122: 6504057.242 | J122: 4233152.795 | K122: 4306826.861 | L122: 5748193.656
C123: Network overheads - capex | I123: 0 | J123: 0 | K123: 0 | L123: 0
C124: Corporate overheads - opex | I124: 6214385.352 | J124: 4894648.189 | K124: 7788264.173 | L124: 2534618.901
C125: Corporate overheads - capex | I125: 0 | J125: 0 | K125: 0 | L125: 1031838.676
B126: AUGMENTATION | C126: All augex | I126: 0 | J126: 0 | K126: 0 | L126: 0
B127: CONNECTIONS | C127: Simple and complex customer connections | I127: 0 | J127: 0 | K127: 0 | L127: 0
B128: EMERGENCY RESPONSE | C128: All major storms and major event days | I128: 0 | J128: 0 | K128: 0 | L128: 0
B129: PUBLIC LIGHTING | C129: All public lighting services | I129: 0 | J129: 0 | K129: 0 | L129: 0
B130: METERING | C130: All metering services | I130: 0 | J130: 0 | K130: 0 | L130: 0
B131: FEE-BASED SERVICES | C131: All fee-based services | I131: 0 | J131: 0 | K131: 4464.43 | L131: 6882.1
B132: QUOTED SERVICES | C132: All quoted services | I132: 0 | J132: 0 | K132: 0 | L132: 0
B133: REPLACEMENT | C133: All replacement expenditure | I133: 0 | J133: 0 | K133: 0 | L133: 0
B134: NON-NETWORK EXPENDITURE | C134: Opex | I134: 7192013.185 | J134: 7527655.5 | K134: 7413937.017 | L134: 7804469.689
C135: Capex | I135: 0 | J135: 0 | K135: 0 | L135: 0
B137: 2.12.5 - RELATED PARTY CONTRACT EXPENDITURE
D138: EXPENDITURE
D139: Actual ($0's)
D140: =IF(dms_RPT="financial",dms_fy4,dms_cy4) -> 2008-09 | E140: =IF(dms_RPT="financial",dms_fy5,dms_cy5) -> 2009-10 | F140: =IF(dms_RPT="financial",dms_fy6,dms_cy6) -> 2010-11 | G140: =IF(dms_RPT="financial",dms_fy7,dms_cy7) -> 2011-12 | H140: =IF(dms_RPT="financial",dms_fy8,dms_cy8) -> 2012-13 | I140: =IF(dms_RPT="financial",dms_fy9,dms_cy9) -> 2013-14 | J140: =IF(dms_RPT="financial",dms_fy10,dms_cy10) -> 2014-15 | K140: =IF(dms_RPT="financial",dms_fy11,dms_cy11) -> 2015-16 | L140: =IF(dms_RPT="financial",dms_fy12,dms_cy12) -> 2016-17
B141: VEGETATION MANAGEMENT | C141: All zones | I141: 0 | J141: 0 | K141: 0 | L141: 0
B142: MAINTENANCE | C142: All maintenance expenditure | I142: 0 | J142: 0 | K142: 0 | L142: 0
B143: OVERHEADS | C143: Network overheads - opex | I143: 0 | J143: 0 | K143: 0 | L143: 0
C144: Network overheads - capex | I144: 0 | J144: 0 | K144: 0 | L144: 0
C145: Corporate overheads - opex | I145: 0 | J145: 0 | K145: 0 | L145: 0
C146: Corporate overheads - capex | I146: 0 | J146: 0 | K146: 0 | L146: 0
B147: AUGMENTATION | C147: All augex | I147: 0 | J147: 0 | K147: 0 | L147: 0
B148: CONNECTIONS | C148: Simple and complex customer connections | I148: 0 | J148: 0 | K148: 0 | L148: 0
B149: EMERGENCY RESPONSE | C149: All major storms and major event days | I149: 0 | J149: 0 | K149: 0 | L149: 0
B150: PUBLIC LIGHTING | C150: All public lighting services | I150: 0 | J150: 0 | K150: 0 | L150: 0
B151: METERING | C151: All metering services | I151: 0 | J151: 0 | K151: 0 | L151: 0
B152: FEE-BASED SERVICES | C152: All fee-based services | I152: 0 | J152: 0 | K152: 0 | L152: 0
B153: QUOTED SERVICES | C153: All quoted services | I153: 0 | J153: 0 | K153: 0 | L153: 0
B154: REPLACEMENT | C154: All replacement expenditure | I154: 0 | J154: 0 | K154: 0 | L154: 0
B155: NON-NETWORK EXPENDITURE | C155: Opex | I155: 0 | J155: 0 | K155: 0 | L155: 0
C156: Capex | I156: 0 | J156: 0 | K156: 0 | L156: 0
B158: 2.12.6 - RELATED PARTY CONTRACT MARGIN EXPENDITURE
D159: EXPENDITURE
D160: Actual ($0's)
D161: =IF(dms_RPT="financial",dms_fy4,dms_cy4) -> 2008-09 | E161: =IF(dms_RPT="financial",dms_fy5,dms_cy5) -> 2009-10 | F161: =IF(dms_RPT="financial",dms_fy6,dms_cy6) -> 2010-11 | G161: =IF(dms_RPT="financial",dms_fy7,dms_cy7) -> 2011-12 | H161: =IF(dms_RPT="financial",dms_fy8,dms_cy8) -> 2012-13 | I161: =IF(dms_RPT="financial",dms_fy9,dms_cy9) -> 2013-14 | J161: =IF(dms_RPT="financial",dms_fy10,dms_cy10) -> 2014-15 | K161: =IF(dms_RPT="financial",dms_fy11,dms_cy11) -> 2015-16 | L161: =IF(dms_RPT="financial",dms_fy12,dms_cy12) -> 2016-17
B162: VEGETATION MANAGEMENT | C162: All zones | I162: 0 | J162: 0 | K162: 0 | L162: 0
B163: MAINTENANCE | C163: All maintenance expenditure | I163: 0 | J163: 0 | K163: 0 | L163: 0
B164: OVERHEADS | C164: Network overheads - opex | I164: 0 | J164: 0 | K164: 0 | L164: 0
C165: Network overheads - capex | I165: 0 | J165: 0 | K165: 0 | L165: 0
C166: Corporate overheads - opex | I166: 0 | J166: 0 | K166: 0 | L166: 0
C167: Corporate overheads - capex | I167: 0 | J167: 0 | K167: 0 | L167: 0
B168: AUGMENTATION | C168: All augex | I168: 0 | J168: 0 | K168: 0 | L168: 0
B169: CONNECTIONS | C169: Simple and complex customer connections | I169: 0 | J169: 0 | K169: 0 | L169: 0
B170: EMERGENCY RESPONSE | C170: All major storms and major event days | I170: 0 | J170: 0 | K170: 0 | L170: 0
B171: PUBLIC LIGHTING | C171: All public lighting services | I171: 0 | J171: 0 | K171: 0 | L171: 0
B172: METERING | C172: All metering services | I172: 0 | J172: 0 | K172: 0 | L172: 0
B173: FEE-BASED SERVICES | C173: All fee-based services | I173: 0 | J173: 0 | K173: 0 | L173: 0
B174: QUOTED SERVICES | C174: All quoted services | I174: 0 | J174: 0 | K174: 0 | L174: 0
B175: REPLACEMENT | C175: All replacement expenditure | I175: 0 | J175: 0 | K175: 0 | L175: 0
B176: NON-NETWORK EXPENDITURE | C176: Opex | I176: 0 | J176: 0 | K176: 0 | L176: 0
C177: Capex | I177: 0 | J177: 0 | K177: 0 | L177: 0

Sheet 4.2 Metering
B1: REGULATORY REPORTING STATEMENT
B2: =INDEX(dms_TradingNameFull_List,MATCH(dms_TradingName,dms_TradingName_List)) -> Power and Water Corporation
B3: =(IF(dms_DataQuality="recast",INDEX(dms_Worksheet_List,MATCH(dms_Model,dms_Model_List))&" ",INDEX(dms_Worksheet_List,MATCH(dms_Model,dms_Model_List))))&" "&(IF(SUM(dms_SingleYear_Model)>0,CRY,CONCATENATE(" ",dms_CRCP_FirstYear_Result," to ",dms_CRCP_FinalYear_Result))) -> CATEGORY ANALYSIS 2008-09 to 2016-17
B4: 4.2 METERING
B6: There are TWO tables on this worksheet. Each table has been 'grouped' (and 'sub-grouped') for easy navigation. See the Instructions sheet on how to group or ungroup data.
B8: 4.2.1 - METERING DESCRIPTOR METRIC
D9: VOLUMES (0's)
B10: ASSET CATEGORY | C10: ASSET SUBCATEGORY | D10: =IF(dms_RPT="financial",dms_fy4,dms_cy4) -> 2008-09 | E10: =IF(dms_RPT="financial",dms_fy5,dms_cy5) -> 2009-10 | F10: =IF(dms_RPT="financial",dms_fy6,dms_cy6) -> 2010-11 | G10: =IF(dms_RPT="financial",dms_fy7,dms_cy7) -> 2011-12 | H10: =IF(dms_RPT="financial",dms_fy8,dms_cy8) -> 2012-13 | I10: =IF(dms_RPT="financial",dms_fy9,dms_cy9) -> 2013-14 | J10: =IF(dms_RPT="financial",dms_fy10,dms_cy10) -> 2014-15 | K10: =IF(dms_RPT="financial",dms_fy11,dms_cy11) -> 2015-16 | L10: =IF(dms_RPT="financial",dms_fy12,dms_cy12) -> 2016-17
B11: Meter Type 1 | C11: Single phase meter population | I11: 0 | J11: 0 | K11: 0 | L11: 0
C12: Multi phase meter population | I12: 0 | J12: 0 | K12: 0 | L12: 0
C13: Current transformer connected meter population | I13: 0 | J13: 0 | K13: 0 | L13: 0
C14: Direct connect meter population | I14: 0 | J14: 0 | K14: 0 | L14: 0
B15: Meter Type 2 | C15: Single phase meter population | I15: 0 | J15: 0 | K15: 0 | L15: 0
C16: Multi phase meter population | I16: 8.019 | J16: 8.91 | K16: 9.9 | L16: 11
C17: Current transformer connected meter population | I17: 8.019 | J17: 8.91 | K17: 9.9 | L17: 11
C18: Direct connect meter population | I18: 0 | J18: 0 | K18: 0 | L18: 0
B19: Meter Type 3 | C19: Single phase meter population | I19: 0 | J19: 0 | K19: 0 | L19: 0
C20: Multi phase meter population | I20: 240.634152 | J20: 243.0648 | K20: 245.52 | L20: 248
C21: Current transformer connected meter population | I21: 240.634152 | J21: 243.0648 | K21: 245.52 | L21: 248
C22: Direct connect meter population | I22: 0 | J22: 0 | K22: 0 | L22: 0
B23: Meter Type 4 | C23: Single phase meter population | I23: 801 | J23: 801 | K23: 1301 | L23: 1801
C24: Multi phase meter population | I24: 747 | J24: 948 | K24: 1125 | L24: 2007
C25: Current transformer connected meter population | I25: 1520 | J25: 1578 | K25: 1595 | L25: 1719
C26: Direct connect meter population | I26: 28 | J26: 171 | K26: 831 | L26: 2089
B27: Meter Type 5 | C27: Single phase meter population | I27: 0 | J27: 0 | K27: 0 | L27: 0
C28: Multi phase meter population | I28: 0 | J28: 0 | K28: 0 | L28: 0
C29: Current transformer connected meter population | I29: 0 | J29: 0 | K29: 0 | L29: 0
C30: Direct connect meter population | I30: 0 | J30: 0 | K30: 0 | L30: 0
B31: Meter Type 6 | C31: Single phase meter population | I31: 91690.28501 | J31: 93674.27995 | K31: 94995.06006 | L31: 95968
C32: Multi phase meter population | I32: 6473.963938 | J32: 6614.047609 | K32: 6707.303757 | L32: 6776
C33: Current transformer connected meter population | I33: 970.7124205 | J33: 991.7167017 | K33: 1005.699619 | L33: 1016
C34: Direct connect meter population | I34: 97193.53653 | J34: 99296.61086 | K34: 100696.6642 | L34: 101728
B37: 4.2.2 - COST METRICS
B38: EXPENDITURE
D39: EXPENDITURE ($0's)
B40: SERVICE SUBCATEGORY | C40: METER TYPE | D40: =IF(dms_RPT="financial",dms_fy4,dms_cy4) -> 2008-09 | E40: =IF(dms_RPT="financial",dms_fy5,dms_cy5) -> 2009-10 | F40: =IF(dms_RPT="financial",dms_fy6,dms_cy6) -> 2010-11 | G40: =IF(dms_RPT="financial",dms_fy7,dms_cy7) -> 2011-12 | H40: =IF(dms_RPT="financial",dms_fy8,dms_cy8) -> 2012-13 | I40: =IF(dms_RPT="financial",dms_fy9,dms_cy9) -> 2013-14 | J40: =IF(dms_RPT="financial",dms_fy10,dms_cy10) -> 2014-15 | K40: =IF(dms_RPT="financial",dms_fy11,dms_cy11) -> 2015-16 | L40: =IF(dms_RPT="financial",dms_fy12,dms_cy12) -> 2016-17
B41: Meter purchase | C41: Meter Type 1
C42: Meter Type 2
C43: Meter Type 3
C44: Meter Type 4
C45: Meter Type 5
C46: Meter Type 6
B47: Meter testing | C47: Meter Type 1
C48: Meter Type 2
C49: Meter Type 3
C50: Meter Type 4
C51: Meter Type 5
C52: Meter Type 6
B53: Meter investigation | C53: Meter Type 1
C54: Meter Type 2
C55: Meter Type 3
C56: Meter Type 4
C57: Meter Type 5
C58: Meter Type 6
B59: Scheduled meter reading | C59: Meter Type 1
C60: Meter Type 2
C61: Meter Type 3
C62: Meter Type 4
C63: Meter Type 5
C64: Meter Type 6
B65: Special meter reading | C65: Meter Type 1
C66: Meter Type 2
C67: Meter Type 3
C68: Meter Type 4
C69: Meter Type 5
C70: Meter Type 6
B71: New meter installation | C71: Meter Type 1
C72: Meter Type 2
C73: Meter Type 3
C74: Meter Type 4
C75: Meter Type 5
C76: Meter Type 6
B77: Meter replacement | C77: Meter Type 4
C78: Meter Type 5
C79: Meter Type 6
B80: Meter maintenance | C80: Meter Type 1
C81: Meter Type 2
C82: Meter Type 3
C83: Meter Type 4
C84: Meter Type 5
C85: Meter Type 6
B86: Remote meter reading | C86: Meter Type 4
B87: Remote meter re-configuration | C87: Meter Type 4
B88: Other metering | C88: Meter Type 1
C89: Meter Type 2
C90: Meter Type 3
C91: Meter Type 4
C92: Meter Type 5
C93: Meter Type 6
C94: Meter Type 7
B95: IT infrastructure capex | C95: Meter Type 4
B96: IT infrastructure opex | C96: Meter Type 4
B97: Communications infrastructure capex | C97: Meter Type 4
B98: Communications infrastructure opex | C98: Meter Type 4
B100: VOLUMES
D101: VOLUMES (0's)
D102: =IF(dms_RPT="financial",dms_fy4,dms_cy4) -> 2008-09 | E102: =IF(dms_RPT="financial",dms_fy5,dms_cy5) -> 2009-10 | F102: =IF(dms_RPT="financial",dms_fy6,dms_cy6) -> 2010-11 | G102: =IF(dms_RPT="financial",dms_fy7,dms_cy7) -> 2011-12 | H102: =IF(dms_RPT="financial",dms_fy8,dms_cy8) -> 2012-13 | I102: =IF(dms_RPT="financial",dms_fy9,dms_cy9) -> 2013-14 | J102: =IF(dms_RPT="financial",dms_fy10,dms_cy10) -> 2014-15 | K102: =IF(dms_RPT="financial",dms_fy11,dms_cy11) -> 2015-16 | L102: =IF(dms_RPT="financial",dms_fy12,dms_cy12) -> 2016-17
B103: Meter purchase | C103: Meter Type 1
C104: Meter Type 2
C105: Meter Type 3
C106: Meter Type 4
C107: Meter Type 5
C108: Meter Type 6
B109: Meter testing | C109: Meter Type 1
C110: Meter Type 2
C111: Meter Type 3
C112: Meter Type 4
C113: Meter Type 5
C114: Meter Type 6
B115: Meter investigation | C115: Meter Type 1
C116: Meter Type 2
C117: Meter Type 3
C118: Meter Type 4
C119: Meter Type 5
C120: Meter Type 6
B121: Scheduled meter reading | C121: Meter Type 1
C122: Meter Type 2
C123: Meter Type 3
C124: Meter Type 4
C125: Meter Type 5
C126: Meter Type 6
B127: Special meter reading | C127: Meter Type 1
C128: Meter Type 2
C129: Meter Type 3
C130: Meter Type 4
C131: Meter Type 5
C132: Meter Type 6
B133: New meter installation | C133: Meter Type 1
C134: Meter Type 2
C135: Meter Type 3
C136: Meter Type 4
C137: Meter Type 5
C138: Meter Type 6
B139: Meter replacement | C139: Meter Type 1
C140: Meter Type 2
C141: Meter Type 3
C142: Meter Type 4
C143: Meter Type 5
C144: Meter Type 6
B145: Meter maintenance | C145: Meter Type 1
C146: Meter Type 2
C147: Meter Type 3
C148: Meter Type 4
C149: Meter Type 5
C150: Meter Type 6
B151: Remote meter reading | C151: Meter Type 4
B152: Remote meter re-configuration | C152: Meter Type 4

Sheet 4.3 Fee-based services
B1: REGULATORY REPORTING STATEMENT
B2: =INDEX(dms_TradingNameFull_List,MATCH(dms_TradingName,dms_TradingName_List)) -> Power and Water Corporation
B3: =(IF(dms_DataQuality="recast",INDEX(dms_Worksheet_List,MATCH(dms_Model,dms_Model_List))&" ",INDEX(dms_Worksheet_List,MATCH(dms_Model,dms_Model_List))))&" "&(IF(SUM(dms_SingleYear_Model)>0,CRY,CONCATENATE(" ",dms_CRCP_FirstYear_Result," to ",dms_CRCP_FinalYear_Result))) -> CATEGORY ANALYSIS 2008-09 to 2016-17
B4: 4.3 ANCILLARY SERVICES - FEE BASED SERVICES
B6: There is ONE table on this worksheet. The COLUMNS AND ROWS have been 'grouped' for easy navigation. See the Instructions sheet on how to group or ungroup data.
B8: 4.3.1 - COST METRICS FOR FEE-BASED SERVICES
B9: COMMON FEE-BASED SERVICES
C10: EXPENDITURE ($0's) | L10: VOLUMES (0's)
B11: SERVICE SUBCATEGORY | C11: =IF(dms_RPT="financial",dms_fy4,dms_cy4) -> 2008-09 | D11: =IF(dms_RPT="financial",dms_fy5,dms_cy5) -> 2009-10 | E11: =IF(dms_RPT="financial",dms_fy6,dms_cy6) -> 2010-11 | F11: =IF(dms_RPT="financial",dms_fy7,dms_cy7) -> 2011-12 | G11: =IF(dms_RPT="financial",dms_fy8,dms_cy8) -> 2012-13 | H11: =IF(dms_RPT="financial",dms_fy9,dms_cy9) -> 2013-14 | I11: =IF(dms_RPT="financial",dms_fy10,dms_cy10) -> 2014-15 | J11: =IF(dms_RPT="financial",dms_fy11,dms_cy11) -> 2015-16 | K11: =IF(dms_RPT="financial",dms_fy12,dms_cy12) -> 2016-17 | L11: =IF(dms_RPT="financial",dms_fy4,dms_cy4) -> 2008-09 | M11: =IF(dms_RPT="financial",dms_fy5,dms_cy5) -> 2009-10 | N11: =IF(dms_RPT="financial",dms_fy6,dms_cy6) -> 2010-11 | O11: =IF(dms_RPT="financial",dms_fy7,dms_cy7) -> 2011-12 | P11: =IF(dms_RPT="financial",dms_fy8,dms_cy8) -> 2012-13 | Q11: =IF(dms_RPT="financial",dms_fy9,dms_cy9) -> 2013-14 | R11: =IF(dms_RPT="financial",dms_fy10,dms_cy10) -> 2014-15 | S11: =IF(dms_RPT="financial",dms_fy11,dms_cy11) -> 2015-16 | T11: =IF(dms_RPT="financial",dms_fy12,dms_cy12) -> 2016-17
B12: Energisation | H12: 0 | I12: 0 | J12: 0 | K12: 0 | Q12: 0 | R12: 0 | S12: 0 | T12: 0
B13: Disconnection | H13: 226518.6808 | I13: 306326.6573 | J13: 280271.2157 | K13: 218149.5843 | Q13: 3177.609775 | R13: 4465.157953 | S13: 3952.029606 | T13: 3817.223682
B14: Reconnection | H14: 226518.6808 | I14: 306326.6573 | J14: 280271.2157 | K14: 218149.5843 | Q14: 3177.609775 | R14: 4465.157953 | S14: 3952.029606 | T14: 3817.223682
B16: Disconnection - with comms (remote change) | H16: 0 | I16: 0 | J16: 0 | K16: 0 | Q16: 0 | R16: 0 | S16: 0 | T16: 0
B17: Reconnection - with comms (remote change) | H17: 0 | I17: 0 | J17: 0 | K17: 0 | Q17: 0 | R17: 0 | S17: 0 | T17: 0
B18: Remove and Reinstate Cable | H18: 0 | I18: 0 | J18: 13458.56666 | K18: 17004.65505 | Q18: 0 | R18: 0 | S18: 33.06750559 | T18: 51.98255009
B19: Provision of three phase service | H19: 29025.58013 | I19: 34630.99379 | J19: 7124.826334 | K19: 27801.23269 | Q19: 209.74 | R19: 52.32038722 | S19: 11.69585857 | T19: 42.02244595
B20: Standard temporary builder's connection | H20: 11541.80847 | I20: 0 | J20: 0 | K20: 0 | Q20: 47.57 | R20: 0 | S20: 0 | T20: 0
B21: Temporary disconnection and reconnection | H21: 0 | I21: 20815.16302 | J21: 54897.39796 | K21: 88860.02342 | Q21: 0 | R21: 101.1371233 | S21: 362.9671539 | T21: 576.5577589
B22: Disconnection - physical disconnection of the service mains at the connection to the network (Pillar Box, Pit or Pole Top) due to action or inaction of the network user or their agent | H22: 28662.63911 | I22: 0 | J22: 0 | K22: 0 | Q22: 324 | R22: 0 | S22: 0 | T22: 0
B23: After hours attendance charge | H23: 0 | I23: 0 | J23: 4541.326878 | K23: 6368.620094 | Q23: 0 | R23: 0 | S23: 36.01489933 | T23: 61.40268973
B24: Wasted visit fee. | H24: 0 | I24: 0 | J24: 0 | K24: 0 | Q24: 0 | R24: 0 | S24: 0 | T24: 0
B25: Special Meter Test | H25: 1112.371786 | I25: 5887.359163 | J25: 3124.645003 | K25: 2560.581702 | Q25: 23.98 | R25: 28.60561644 | S25: 16.09156679 | T25: 11.99969791
B26: Exchange or Replace Meter - 3 Phase # | H26: 64590.02221 | I26: 315157.2538 | J26: 142413.9043 | K26: 155467.9885 | Q26: 259.72 | R26: 198.5676739 | S26: 267.2318184 | T26: 354.6879111
B27: Exchange or Replace Meter - Standard # | H27: 169856.1872 | I27: 512245.7935 | J27: 398687.5179 | K27: 456633.3415 | Q27: 945.21 | R27: 790.1049187 | S27: 953.1507209 | T27: 1356.856738
B28: Relocation of Meter | H28: 0 | I28: 0 | J28: 0 | K28: 325.5651919 | Q28: 0 | R28: 0 | S28: 0 | T28: 2.002483532
B29: Remove Meter - Permanent removal of connection point (meter) from meter panel | H29: 0 | I29: 0 | J29: 1353.710149 | K29: 5817.487704 | Q29: 0 | R29: 0 | S29: 4.879804759 | T29: 26.02338358
B30: General Meter Inspection | H30: 1484.869001 | I30: 1631.942658 | J30: 0 | K30: 91.44743041 | Q30: 51.58 | R30: 10.57242009 | S30: 0 | T30: 0.9999538742
B31: Special Meter Read | H31: 0 | I31: 0 | J31: 0 | K31: 0 | Q31: 0 | R31: 0 | S31: 0 | T31: 0
B32: Meter Program Change - no comms | H32: 63.37636675 | I32: 558.7494915 | J32: 302.6721897 | K32: 75.99606053 | Q32: 13.97 | R32: 15.51350294 | S32: 6.000838926 | T32: 1.869743615
B33: Meter Program Change - with comms | H33: 0 | I33: 0 | J33: 0 | K33: 0 | Q33: 0 | R33: 0 | S33: 0 | T33: 0
B34: Meter Data Processing Services | H34: 0 | I34: 0 | J34: 0 | K34: 0 | Q34: 0 | R34: 0 | S34: 0 | T34: 0
B35: Historical Data requests | H35: 1373.004115 | I35: 0 | J35: 0 | K35: 0 | Q35: 77 | R35: 0 | S35: 343.0927181 | T35: 235.2083183
B36: Standing Data requests | H36: 0 | I36: 0 | J36: 13113.96128 | K36: 50138.03209 | Q36: 0 | R36: 416.8493151 | S36: 26 | T36: 123.3554275
B37: Customer Transfers | H37: 0 | I37: 0 | J37: 0 | K37: 0 | Q37: 0 | R37: 0 | S37: 0 | T37: 0
B38: Network Tariff change request | H38: 0 | I38: 0 | J38: 0 | K38: 0 | Q38: 0 | R38: 0 | S38: 0 | T38: 0
B39: Installation of Minor Apparatus | H39: 0 | I39: 0 | J39: 0 | K39: 0 | Q39: 0 | R39: 19.54015221 | S39: 22.29135906 | T39: 4.97145638

Sheet 4.4 Quoted services
B1: REGULATORY REPORTING STATEMENT
B2: =INDEX(dms_TradingNameFull_List,MATCH(dms_TradingName,dms_TradingName_List)) -> Power and Water Corporation
B3: =(IF(dms_DataQuality="recast",INDEX(dms_Worksheet_List,MATCH(dms_Model,dms_Model_List))&" ",INDEX(dms_Worksheet_List,MATCH(dms_Model,dms_Model_List))))&" "&(IF(SUM(dms_SingleYear_Model)>0,CRY,CONCATENATE(" ",dms_CRCP_FirstYear_Result," to ",dms_CRCP_FinalYear_Result))) -> CATEGORY ANALYSIS 2008-09 to 2016-17
B4: 4.4 ANCILLARY SERVICES - QUOTED SERVICES
B6: There is ONE table on this worksheet. The COLUMNS have been 'grouped' for easy navigation. See the Instructions sheet on how to group or ungroup data.
B8: 4.4.1 - COST METRICS FOR QUOTED SERVICES
B9: SERVICE SUBCATEGORY | C9: EXPENDITURE ($0's) | L9: VOLUMES (0's)
C10: =IF(dms_RPT="financial",dms_fy4,dms_cy4) -> 2008-09 | D10: =IF(dms_RPT="financial",dms_fy5,dms_cy5) -> 2009-10 | E10: =IF(dms_RPT="financial",dms_fy6,dms_cy6) -> 2010-11 | F10: =IF(dms_RPT="financial",dms_fy7,dms_cy7) -> 2011-12 | G10: =IF(dms_RPT="financial",dms_fy8,dms_cy8) -> 2012-13 | H10: =IF(dms_RPT="financial",dms_fy9,dms_cy9) -> 2013-14 | I10: =IF(dms_RPT="financial",dms_fy10,dms_cy10) -> 2014-15 | J10: =IF(dms_RPT="financial",dms_fy11,dms_cy11) -> 2015-16 | K10: =IF(dms_RPT="financial",dms_fy12,dms_cy12) -> 2016-17 | L10: =IF(dms_RPT="financial",dms_fy4,dms_cy4) -> 2008-09 | M10: =IF(dms_RPT="financial",dms_fy5,dms_cy5) -> 2009-10 | N10: =IF(dms_RPT="financial",dms_fy6,dms_cy6) -> 2010-11 | O10: =IF(dms_RPT="financial",dms_fy7,dms_cy7) -> 2011-12 | P10: =IF(dms_RPT="financial",dms_fy8,dms_cy8) -> 2012-13 | Q10: =IF(dms_RPT="financial",dms_fy9,dms_cy9) -> 2013-14 | R10: =IF(dms_RPT="financial",dms_fy10,dms_cy10) -> 2014-15 | S10: =IF(dms_RPT="financial",dms_fy11,dms_cy11) -> 2015-16 | T10: =IF(dms_RPT="financial",dms_fy12,dms_cy12) -> 2016-17
B11: Design related services | H11: 733547.2156 | I11: 1528047.792 | J11: 923106.6349 | K11: 1401142.966 | Q11: 6355.219549 | R11: 8930.315906 | S11: 7904.059212 | T11: 7634.447365
B12: Connection applications | H12: 1921.676684 | I12: 0 | J12: 66105.56017 | K12: 8002.105046 | Q12: 16.64879502 | R12: 0 | S12: 566.0258978 | T12: 43.60129643
B13: Access permits, oversights and facilitation | H13: 5767.467537 | I13: 7590.189297 | J13: 1348.853309 | K13: 875.7668613 | Q13: 49.96750265 | R13: 44.35907606 | S13: 11.54949603 | T13: 4.771815703
B14: Notices of arrangement and completion notices | H14: 0 | I14: 0 | J14: 0 | K14: 0 | Q14: 0 | R14: 0 | S14: 0 | T14: 0
B15: Network related property services | H15: 0 | I15: 0 | J15: 0 | K15: 0 | Q15: 0 | R15: 0 | S15: 0 | T15: 0
B16: Site establishment services | H16: 0 | I16: 0 | J16: 0 | K16: 0 | Q16: 0 | R16: 0 | S16: 0 | T16: 0
B17: Network safety services | H17: 70777.93371 | I17: 92092.41101 | J17: 58598.94575 | K17: 108699.8023 | Q17: 613.1974853 | R17: 538.2124351 | S17: 501.7508481 | T17: 592.2756915
B18: Network tariff change request | H18: 0 | I18: 0 | J18: 0 | K18: 0 | Q18: 0 | R18: 0 | S18: 0 | T18: 0
B19: Planned interruption - customer request | H19: 0 | I19: 0 | J19: 0 | K19: 0 | Q19: 0 | R19: 0 | S19: 0 | T19: 0
B20: Performance of a statutory right (access prevented) | H20: 0 | I20: 0 | J20: 0 | K20: 0 | Q20: 0 | R20: 0 | S20: 0 | T20: 0
B21: Provision of network related training to third parties | H21: 0 | I21: 0 | J21: 0 | K21: 0 | Q21: 0 | R21: 0 | S21: 0 | T21: 0
B22: Non-standard reporting services | H22: 0 | I22: 0 | J22: 0 | K22: 0 | Q22: 0 | R22: 0 | S22: 0 | T22: 0
B23: Services provided for retailer of last resort event | H23: 0 | I23: 0 | J23: 0 | K23: 0 | Q23: 0 | R23: 0 | S23: 0 | T23: 0
B24: Rectification of illegal connections service | H24: 0 | I24: 0 | J24: 0 | K24: 0 | Q24: 0 | R24: 0 | S24: 0 | T24: 0
B25: Rearrangement and connection of network assets at customer request | H25: 965819.7065 | I25: 1934353.608 | J25: 2943174.006 | K25: 1077599.34 | Q25: 8167.712998 | R25: 10052.45 | S25: 13537.44 | T25: 4470.141771

Sheet 5.2 Asset Age Profile
B1: REGULATORY REPORTING STATEMENT
B2: =INDEX(dms_TradingNameFull_List,MATCH(dms_TradingName,dms_TradingName_List)) -> Power and Water Corporation
B3: =(IF(dms_DataQuality="recast",INDEX(dms_Worksheet_List,MATCH(dms_Model,dms_Model_List))&" ",INDEX(dms_Worksheet_List,MATCH(dms_Model,dms_Model_List))))&" "&(IF(SUM(dms_SingleYear_Model)>0,CRY,CONCATENATE(" ",dms_CRCP_FirstYear_Result," to ",dms_CRCP_FinalYear_Result))) -> CATEGORY ANALYSIS 2008-09 to 2016-17
B4: 5.2 ASSET AGE PROFILE
B6: There is ONE table on this worksheet. Both ROWS and COLUMNS have been 'grouped' for easy navigation. See the Instructions sheet on how to group or ungroup data.
B8: 5.2.1 - ASSET AGE PROFILE
D9: ECONOMIC LIFE (YEARS) | F9: INSTALLED ASSETS -˃ QUANTITY CURRENTLY IN COMMISSION BY YEAR
B10: ASSET GROUP | C10: ASSET CATEGORY | D10: MEAN | E10: STANDARD DEVIATION | F10: =IF(dms_RPT="financial",(VALUE(LEFT(G10,4)+1)&"-"&MID(G10,3,2)+2),VALUE(LEFT(G10,4)+1)) -> 2016-17 | G10: =IF(dms_RPT="financial",(VALUE(LEFT(H10,4)+1)&"-"&MID(H10,3,2)+2),VALUE(LEFT(H10,4)+1)) -> 2015-16 | H10: =IF(dms_RPT="financial",(VALUE(LEFT(I10,4)+1)&"-"&MID(I10,3,2)+2),VALUE(LEFT(I10,4)+1)) -> 2014-15 | I10: 2013-14 | J10: 2012-13 | K10: 2011-12 | L10: 2010-11 | M10: 2009-10 | N10: =CRY -> 2008-09 | O10: =IF(dms_RPT="financial",(VALUE(LEFT(N10,4)-1)&"-"&MID(N10,3,2)),VALUE(LEFT(N10,4)-1)) -> 2007-08 | P10: =IF(dms_RPT="financial",(VALUE(LEFT(O10,4)-1)&"-"&MID(O10,3,2)),VALUE(LEFT(O10,4)-1)) -> 2006-07 | Q10: 2005-06 | R10: 2004-05 | S10: 2003-04 | T10: 2002-03 | U10: 2001-02 | V10: 2000-01 | W10: 1999-00 | X10: 1998-99 | Y10: 1997-98 | Z10: 1996-97 | AA10: 1995-96 | AB10: 1994-95 | AC10: 1993-94 | AD10: 1992-93 | AE10: 1991-92 | AF10: 1990-91 | AG10: 1989-90 | AH10: 1988-89 | AI10: 1987-88 | AJ10: 1986-87 | AK10: 1985-86 | AL10: 1984-85 | AM10: 1983-84 | AN10: 1982-83 | AO10: 1981-82 | AP10: 1980-81 | AQ10: 1979-80 | AR10: 1978-79 | AS10: 1977-78 | AT10: 1976-77 | AU10: =IF(dms_RPT="financial",(VALUE(LEFT(AT10,4)-1)&"-"&MID(AT10,3,2)),VALUE(LEFT(AT10,4)-1)) -> 1975-76 | AV10: 1974-75 | AW10: 1973-74 | AX10: 1972-73 | AY10: 1971-72 | AZ10: 1970-71 | BA10: 1969-70 | BB10: 1968-69 | BC10: 1967-68 | BD10: 1966-67 | BE10: 1965-66 | BF10: 1964-65 | BG10: 1963-64 | BH10: 1962-63 | BI10: 1961-62 | BJ10: 1960-61 | BK10: 1959-60 | BL10: 1958-59 | BM10: 1957-58 | BN10: 1956-57 | BO10: 1955-56 | BP10: 1954-55 | BQ10: 1953-54 | BR10: 1952-53 | BS10: 1951-52 | BT10: 1950-51 | BU10: 1949-50 | BV10: 1948-49 | BW10: 1947-48 | BX10: 1946-47 | BY10: 1945-46 | BZ10: 1944-45 | CA10: =IF(dms_RPT="financial",(VALUE(LEFT(BZ10,4)-1)&"-"&MID(BZ10,3,2)),VALUE(LEFT(BZ10,4)-1)) -> 1943-44 | CB10: 1942-43 | CC10: 1941-42 | CD10: 1940-41 | CE10: 1939-40 | CF10: 1938-39 | CG10: 1937-38 | CH10: 1936-37 | CI10: 1935-36 | CJ10: 1934-35 | CK10: 1933-34 | CL10: 1932-33 | CM10: 1931-32 | CN10: 1930-31 | CO10: 1929-30 | CP10: 1928-29 | CQ10: 1927-28 | CR10: 1926-27 | CS10: 1925-26 | CT10: 1924-25 | CU10: 1923-24 | CV10: 1922-23 | CW10: 1921-22 | CX10: 1920-21 | CY10: 1919-20 | CZ10: 1918-19 | DA10: 1917-18 | DB10: 1916-17 | DC10: 1915-16 | DD10: 1914-15 | DE10: 1913-14 | DF10: 1912-13 | DG10: =IF(dms_RPT="financial",(VALUE(LEFT(DF10,4)-1)&"-"&MID(DF10,3,2)),VALUE(LEFT(DF10,4)-1)) -> 1911-12 | DH10: 1910-11 | DI10: 1909-10 | DJ10: 1908-09 | DK10: 1907-08 | DL10: 1906-07 | DM10: 1905-06 | DN10: =IF(dms_RPT="financial",(VALUE(LEFT(DM10,4)-1)&"-"&MID(DM10,3,2)),VALUE(LEFT(DM10,4)-1)) -> 1904-05 | DO10: =IF(dms_RPT="financial",(VALUE(LEFT(DN10,4)-1)&"-"&MID(DN10,3,2)),VALUE(LEFT(DN10,4)-1)) -> 1903-04 | DP10: =IF(dms_RPT="financial",(VALUE(LEFT(DO10,4)-1)&"-"&MID(DO10,3,2)),VALUE(LEFT(DO10,4)-1)) -> 1902-03 | DQ10: =IF(dms_RPT="financial",(VALUE(LEFT(DP10,4)-1)&"-"&MID(DP10,3,2)),VALUE(LEFT(DP10,4)-1)) -> 1901-02
B11: POLES BY: HIGHEST OPERATING VOLTAGE ; MATERIAL TYPE | C11: ˂ = 1 kV; Wood - Staked | D11: 0 | E11: 0 | F11: 0 | G11: 0 | H11: 0 | I11: 0 | J11: 0 | K11: 0 | L11: 0 | M11: 0 | N11: 0 | O11: 0 | P11: 0 | Q11: 0 | R11: 0 | S11: 0 | T11: 0 | U11: 0 | V11: 0 | W11: 0 | X11: 0 | Y11: 0 | Z11: 0 | AA11: 0 | AB11: 0 | AC11: 0 | AD11: 0 | AE11: 0 | AF11: 0 | AG11: 0 | AH11: 0 | AI11: 0 | AJ11: 0 | AK11: 0 | AL11: 0 | AM11: 0 | AN11: 0 | AO11: 0 | AP11: 0 | AQ11: 0 | AR11: 0 | AS11: 0 | AT11: 0 | AU11: 0 | AV11: 0 | AW11: 0 | AX11: 0 | AY11: 0 | AZ11: 0 | BA11: 0 | BB11: 0 | BC11: 0 | BD11: 0 | BE11: 0 | BF11: 0 | BG11: 0 | BH11: 0 | BI11: 0 | BJ11: 0 | BK11: 0 | BL11: 0 | BM11: 0 | BN11: 0 | BO11: 0 | BP11: 0 | BQ11: 0 | BR11: 0 | BS11: 0 | BT11: 0 | BU11: 0 | BV11: 0 | BW11: 0 | BX11: 0 | BY11: 0 | BZ11: 0 | CA11: 0 | CB11: 0 | CC11: 0 | CD11: 0 | CE11: 0 | CF11: 0 | CG11: 0 | CH11: 0 | CI11: 0 | CJ11: 0 | CK11: 0 | CL11: 0 | CM11: 0 | CN11: 0 | CO11: 0 | CP11: 0 | CQ11: 0 | CR11: 0 | CS11: 0 | CT11: 0 | CU11: 0 | CV11: 0 | CW11: 0 | CX11: 0 | CY11: 0 | CZ11: 0 | DA11: 0 | DB11: 0 | DC11: 0 | DD11: 0 | DE11: 0 | DF11: 0 | DG11: 0 | DH11: 0 | DI11: 0 | DJ11: 0 | DK11: 0 | DL11: 0 | DM11: 0 | DN11: 0 | DO11: 0 | DP11: 0 | DQ11: 0
C12: ˂ = 1 kV; Wood - Unstaked | D12: 0 | E12: 0 | F12: 0 | G12: 0 | H12: 0 | I12: 0 | J12: 0 | K12: 0 | L12: 0 | M12: 0 | N12: 0 | O12: 0 | P12: 0 | Q12: 0 | R12: 0 | S12: 0 | T12: 0 | U12: 0 | V12: 0 | W12: 0 | X12: 0 | Y12: 0 | Z12: 0 | AA12: 0 | AB12: 0 | AC12: 0 | AD12: 0 | AE12: 0 | AF12: 0 | AG12: 0 | AH12: 0 | AI12: 0 | AJ12: 0 | AK12: 0 | AL12: 0 | AM12: 0 | AN12: 0 | AO12: 0 | AP12: 0 | AQ12: 0 | AR12: 0 | AS12: 0 | AT12: 0 | AU12: 0 | AV12: 0 | AW12: 0 | AX12: 0 | AY12: 0 | AZ12: 0 | BA12: 0 | BB12: 0 | BC12: 0 | BD12: 0 | BE12: 0 | BF12: 0 | BG12: 0 | BH12: 0 | BI12: 0 | BJ12: 0 | BK12: 0 | BL12: 0 | BM12: 0 | BN12: 0 | BO12: 0 | BP12: 0 | BQ12: 0 | BR12: 0 | BS12: 0 | BT12: 0 | BU12: 0 | BV12: 0 | BW12: 0 | BX12: 0 | BY12: 0 | BZ12: 0 | CA12: 0 | CB12: 0 | CC12: 0 | CD12: 0 | CE12: 0 | CF12: 0 | CG12: 0 | CH12: 0 | CI12: 0 | CJ12: 0 | CK12: 0 | CL12: 0 | CM12: 0 | CN12: 0 | CO12: 0 | CP12: 0 | CQ12: 0 | CR12: 0 | CS12: 0 | CT12: 0 | CU12: 0 | CV12: 0 | CW12: 0 | CX12: 0 | CY12: 0 | CZ12: 0 | DA12: 0 | DB12: 0 | DC12: 0 | DD12: 0 | DE12: 0 | DF12: 0 | DG12: 0 | DH12: 0 | DI12: 0 | DJ12: 0 | DK12: 0 | DL12: 0 | DM12: 0 | DN12: 0 | DO12: 0 | DP12: 0 | DQ12: 0
C13: > 1 kV & < = 11 kV; Wood - Staked | D13: 0 | E13: 0 | F13: 0 | G13: 0 | H13: 0 | I13: 0 | J13: 0 | K13: 0 | L13: 0 | M13: 0 | N13: 0 | O13: 0 | P13: 0 | Q13: 0 | R13: 0 | S13: 0 | T13: 0 | U13: 0 | V13: 0 | W13: 0 | X13: 0 | Y13: 0 | Z13: 0 | AA13: 0 | AB13: 0 | AC13: 0 | AD13: 0 | AE13: 0 | AF13: 0 | AG13: 0 | AH13: 0 | AI13: 0 | AJ13: 0 | AK13: 0 | AL13: 0 | AM13: 0 | AN13: 0 | AO13: 0 | AP13: 0 | AQ13: 0 | AR13: 0 | AS13: 0 | AT13: 0 | AU13: 0 | AV13: 0 | AW13: 0 | AX13: 0 | AY13: 0 | AZ13: 0 | BA13: 0 | BB13: 0 | BC13: 0 | BD13: 0 | BE13: 0 | BF13: 0 | BG13: 0 | BH13: 0 | BI13: 0 | BJ13: 0 | BK13: 0 | BL13: 0 | BM13: 0 | BN13: 0 | BO13: 0 | BP13: 0 | BQ13: 0 | BR13: 0 | BS13: 0 | BT13: 0 | BU13: 0 | BV13: 0 | BW13: 0 | BX13: 0 | BY13: 0 | BZ13: 0 | CA13: 0 | CB13: 0 | CC13: 0 | CD13: 0 | CE13: 0 | CF13: 0 | CG13: 0 | CH13: 0 | CI13: 0 | CJ13: 0 | CK13: 0 | CL13: 0 | CM13: 0 | CN13: 0 | CO13: 0 | CP13: 0 | CQ13: 0 | CR13: 0 | CS13: 0 | CT13: 0 | CU13: 0 | CV13: 0 | CW13: 0 | CX13: 0 | CY13: 0 | CZ13: 0 | DA13: 0 | DB13: 0 | DC13: 0 | DD13: 0 | DE13: 0 | DF13: 0 | DG13: 0 | DH13: 0 | DI13: 0 | DJ13: 0 | DK13: 0 | DL13: 0 | DM13: 0 | DN13: 0 | DO13: 0 | DP13: 0 | DQ13: 0
C14: > 1 kV & < = 11 kV; Wood - Unstaked | D14: 0 | E14: 0 | F14: 0 | G14: 0 | H14: 0 | I14: 0 | J14: 0 | K14: 0 | L14: 0 | M14: 0 | N14: 0 | O14: 0 | P14: 0 | Q14: 0 | R14: 0 | S14: 0 | T14: 0 | U14: 0 | V14: 0 | W14: 0 | X14: 0 | Y14: 0 | Z14: 0 | AA14: 0 | AB14: 0 | AC14: 0 | AD14: 0 | AE14: 0 | AF14: 0 | AG14: 0 | AH14: 0 | AI14: 0 | AJ14: 0 | AK14: 0 | AL14: 0 | AM14: 0 | AN14: 0 | AO14: 0 | AP14: 0 | AQ14: 0 | AR14: 0 | AS14: 0 | AT14: 0 | AU14: 0 | AV14: 0 | AW14: 0 | AX14: 0 | AY14: 0 | AZ14: 0 | BA14: 0 | BB14: 0 | BC14: 0 | BD14: 0 | BE14: 0 | BF14: 0 | BG14: 0 | BH14: 0 | BI14: 0 | BJ14: 0 | BK14: 0 | BL14: 0 | BM14: 0 | BN14: 0 | BO14: 0 | BP14: 0 | BQ14: 0 | BR14: 0 | BS14: 0 | BT14: 0 | BU14: 0 | BV14: 0 | BW14: 0 | BX14: 0 | BY14: 0 | BZ14: 0 | CA14: 0 | CB14: 0 | CC14: 0 | CD14: 0 | CE14: 0 | CF14: 0 | CG14: 0 | CH14: 0 | CI14: 0 | CJ14: 0 | CK14: 0 | CL14: 0 | CM14: 0 | CN14: 0 | CO14: 0 | CP14: 0 | CQ14: 0 | CR14: 0 | CS14: 0 | CT14: 0 | CU14: 0 | CV14: 0 | CW14: 0 | CX14: 0 | CY14: 0 | CZ14: 0 | DA14: 0 | DB14: 0 | DC14: 0 | DD14: 0 | DE14: 0 | DF14: 0 | DG14: 0 | DH14: 0 | DI14: 0 | DJ14: 0 | DK14: 0 | DL14: 0 | DM14: 0 | DN14: 0 | DO14: 0 | DP14: 0 | DQ14: 0
C15: ˃ 11 kV & < = 22 kV; Wood - Staked | D15: 0 | E15: 0 | F15: 0 | G15: 0 | H15: 0 | I15: 0 | J15: 0 | K15: 0 | L15: 0 | M15: 0 | N15: 0 | O15: 0 | P15: 0 | Q15: 0 | R15: 0 | S15: 0 | T15: 0 | U15: 0 | V15: 0 | W15: 0 | X15: 0 | Y15: 0 | Z15: 0 | AA15: 0 | AB15: 0 | AC15: 0 | AD15: 0 | AE15: 0 | AF15: 0 | AG15: 0 | AH15: 0 | AI15: 0 | AJ15: 0 | AK15: 0 | AL15: 0 | AM15: 0 | AN15: 0 | AO15: 0 | AP15: 0 | AQ15: 0 | AR15: 0 | AS15: 0 | AT15: 0 | AU15: 0 | AV15: 0 | AW15: 0 | AX15: 0 | AY15: 0 | AZ15: 0 | BA15: 0 | BB15: 0 | BC15: 0 | BD15: 0 | BE15: 0 | BF15: 0 | BG15: 0 | BH15: 0 | BI15: 0 | BJ15: 0 | BK15: 0 | BL15: 0 | BM15: 0 | BN15: 0 | BO15: 0 | BP15: 0 | BQ15: 0 | BR15: 0 | BS15: 0 | BT15: 0 | BU15: 0 | BV15: 0 | BW15: 0 | BX15: 0 | BY15: 0 | BZ15: 0 | CA15: 0 | CB15: 0 | CC15: 0 | CD15: 0 | CE15: 0 | CF15: 0 | CG15: 0 | CH15: 0 | CI15: 0 | CJ15: 0 | CK15: 0 | CL15: 0 | CM15: 0 | CN15: 0 | CO15: 0 | CP15: 0 | CQ15: 0 | CR15: 0 | CS15: 0 | CT15: 0 | CU15: 0 | CV15: 0 | CW15: 0 | CX15: 0 | CY15: 0 | CZ15: 0 | DA15: 0 | DB15: 0 | DC15: 0 | DD15: 0 | DE15: 0 | DF15: 0 | DG15: 0 | DH15: 0 | DI15: 0 | DJ15: 0 | DK15: 0 | DL15: 0 | DM15: 0 | DN15: 0 | DO15: 0 | DP15: 0 | DQ15: 0
C16: ˃ 11 kV & < = 22 kV; Wood - Unstaked | D16: 0 | E16: 0 | F16: 0 | G16: 0 | H16: 0 | I16: 0 | J16: 0 | K16: 0 | L16: 0 | M16: 0 | N16: 0 | O16: 0 | P16: 0 | Q16: 0 | R16: 0 | S16: 0 | T16: 0 | U16: 0 | V16: 0 | W16: 0 | X16: 0 | Y16: 0 | Z16: 0 | AA16: 0 | AB16: 0 | AC16: 0 | AD16: 0 | AE16: 0 | AF16: 0 | AG16: 0 | AH16: 0 | AI16: 0 | AJ16: 0 | AK16: 0 | AL16: 0 | AM16: 0 | AN16: 0 | AO16: 0 | AP16: 0 | AQ16: 0 | AR16: 0 | AS16: 0 | AT16: 0 | AU16: 0 | AV16: 0 | AW16: 0 | AX16: 0 | AY16: 0 | AZ16: 0 | BA16: 0 | BB16: 0 | BC16: 0 | BD16: 0 | BE16: 0 | BF16: 0 | BG16: 0 | BH16: 0 | BI16: 0 | BJ16: 0 | BK16: 0 | BL16: 0 | BM16: 0 | BN16: 0 | BO16: 0 | BP16: 0 | BQ16: 0 | BR16: 0 | BS16: 0 | BT16: 0 | BU16: 0 | BV16: 0 | BW16: 0 | BX16: 0 | BY16: 0 | BZ16: 0 | CA16: 0 | CB16: 0 | CC16: 0 | CD16: 0 | CE16: 0 | CF16: 0 | CG16: 0 | CH16: 0 | CI16: 0 | CJ16: 0 | CK16: 0 | CL16: 0 | CM16: 0 | CN16: 0 | CO16: 0 | CP16: 0 | CQ16: 0 | CR16: 0 | CS16: 0 | CT16: 0 | CU16: 0 | CV16: 0 | CW16: 0 | CX16: 0 | CY16: 0 | CZ16: 0 | DA16: 0 | DB16: 0 | DC16: 0 | DD16: 0 | DE16: 0 | DF16: 0 | DG16: 0 | DH16: 0 | DI16: 0 | DJ16: 0 | DK16: 0 | DL16: 0 | DM16: 0 | DN16: 0 | DO16: 0 | DP16: 0 | DQ16: 0
C17: > 22 kV & < = 66 kV; Wood - Staked | D17: 0 | E17: 0 | F17: 0 | G17: 0 | H17: 0 | I17: 0 | J17: 0 | K17: 0 | L17: 0 | M17: 0 | N17: 0 | O17: 0 | P17: 0 | Q17: 0 | R17: 0 | S17: 0 | T17: 0 | U17: 0 | V17: 0 | W17: 0 | X17: 0 | Y17: 0 | Z17: 0 | AA17: 0 | AB17: 0 | AC17: 0 | AD17: 0 | AE17: 0 | AF17: 0 | AG17: 0 | AH17: 0 | AI17: 0 | AJ17: 0 | AK17: 0 | AL17: 0 | AM17: 0 | AN17: 0 | AO17: 0 | AP17: 0 | AQ17: 0 | AR17: 0 | AS17: 0 | AT17: 0 | AU17: 0 | AV17: 0 | AW17: 0 | AX17: 0 | AY17: 0 | AZ17: 0 | BA17: 0 | BB17: 0 | BC17: 0 | BD17: 0 | BE17: 0 | BF17: 0 | BG17: 0 | BH17: 0 | BI17: 0 | BJ17: 0 | BK17: 0 | BL17: 0 | BM17: 0 | BN17: 0 | BO17: 0 | BP17: 0 | BQ17: 0 | BR17: 0 | BS17: 0 | BT17: 0 | BU17: 0 | BV17: 0 | BW17: 0 | BX17: 0 | BY17: 0 | BZ17: 0 | CA17: 0 | CB17: 0 | CC17: 0 | CD17: 0 | CE17: 0 | CF17: 0 | CG17: 0 | CH17: 0 | CI17: 0 | CJ17: 0 | CK17: 0 | CL17: 0 | CM17: 0 | CN17: 0 | CO17: 0 | CP17: 0 | CQ17: 0 | CR17: 0 | CS17: 0 | CT17: 0 | CU17: 0 | CV17: 0 | CW17: 0 | CX17: 0 | CY17: 0 | CZ17: 0 | DA17: 0 | DB17: 0 | DC17: 0 | DD17: 0 | DE17: 0 | DF17: 0 | DG17: 0 | DH17: 0 | DI17: 0 | DJ17: 0 | DK17: 0 | DL17: 0 | DM17: 0 | DN17: 0 | DO17: 0 | DP17: 0 | DQ17: 0
C18: > 22 kV & < = 66 kV; Wood - Unstaked | D18: 0 | E18: 0 | F18: 0 | G18: 0 | H18: 0 | I18: 0 | J18: 0 | K18: 0 | L18: 0 | M18: 0 | N18: 0 | O18: 0 | P18: 0 | Q18: 0 | R18: 0 | S18: 0 | T18: 0 | U18: 0 | V18: 0 | W18: 0 | X18: 0 | Y18: 0 | Z18: 0 | AA18: 0 | AB18: 0 | AC18: 0 | AD18: 0 | AE18: 0 | AF18: 0 | AG18: 0 | AH18: 0 | AI18: 0 | AJ18: 0 | AK18: 0 | AL18: 0 | AM18: 0 | AN18: 0 | AO18: 0 | AP18: 0 | AQ18: 0 | AR18: 0 | AS18: 0 | AT18: 0 | AU18: 0 | AV18: 0 | AW18: 0 | AX18: 0 | AY18: 0 | AZ18: 0 | BA18: 0 | BB18: 0 | BC18: 0 | BD18: 0 | BE18: 0 | BF18: 0 | BG18: 0 | BH18: 0 | BI18: 0 | BJ18: 0 | BK18: 0 | BL18: 0 | BM18: 0 | BN18: 0 | BO18: 0 | BP18: 0 | BQ18: 0 | BR18: 0 | BS18: 0 | BT18: 0 | BU18: 0 | BV18: 0 | BW18: 0 | BX18: 0 | BY18: 0 | BZ18: 0 | CA18: 0 | CB18: 0 | CC18: 0 | CD18: 0 | CE18: 0 | CF18: 0 | CG18: 0 | CH18: 0 | CI18: 0 | CJ18: 0 | CK18: 0 | CL18: 0 | CM18: 0 | CN18: 0 | CO18: 0 | CP18: 0 | CQ18: 0 | CR18: 0 | CS18: 0 | CT18: 0 | CU18: 0 | CV18: 0 | CW18: 0 | CX18: 0 | CY18: 0 | CZ18: 0 | DA18: 0 | DB18: 0 | DC18: 0 | DD18: 0 | DE18: 0 | DF18: 0 | DG18: 0 | DH18: 0 | DI18: 0 | DJ18: 0 | DK18: 0 | DL18: 0 | DM18: 0 | DN18: 0 | DO18: 0 | DP18: 0 | DQ18: 0
C19: > 66 kV & < = 132 kV; Wood - Staked | D19: 0 | E19: 0 | F19: 0 | G19: 0 | H19: 0 | I19: 0 | J19: 0 | K19: 0 | L19: 0 | M19: 0 | N19: 0 | O19: 0 | P19: 0 | Q19: 0 | R19: 0 | S19: 0 | T19: 0 | U19: 0 | V19: 0 | W19: 0 | X19: 0 | Y19: 0 | Z19: 0 | AA19: 0 | AB19: 0 | AC19: 0 | AD19: 0 | AE19: 0 | AF19: 0 | AG19: 0 | AH19: 0 | AI19: 0 | AJ19: 0 | AK19: 0 | AL19: 0 | AM19: 0 | AN19: 0 | AO19: 0 | AP19: 0 | AQ19: 0 | AR19: 0 | AS19: 0 | AT19: 0 | AU19: 0 | AV19: 0 | AW19: 0 | AX19: 0 | AY19: 0 | AZ19: 0 | BA19: 0 | BB19: 0 | BC19: 0 | BD19: 0 | BE19: 0 | BF19: 0 | BG19: 0 | BH19: 0 | BI19: 0 | BJ19: 0 | BK19: 0 | BL19: 0 | BM19: 0 | BN19: 0 | BO19: 0 | BP19: 0 | BQ19: 0 | BR19: 0 | BS19: 0 | BT19: 0 | BU19: 0 | BV19: 0 | BW19: 0 | BX19: 0 | BY19: 0 | BZ19: 0 | CA19: 0 | CB19: 0 | CC19: 0 | CD19: 0 | CE19: 0 | CF19: 0 | CG19: 0 | CH19: 0 | CI19: 0 | CJ19: 0 | CK19: 0 | CL19: 0 | CM19: 0 | CN19: 0 | CO19: 0 | CP19: 0 | CQ19: 0 | CR19: 0 | CS19: 0 | CT19: 0 | CU19: 0 | CV19: 0 | CW19: 0 | CX19: 0 | CY19: 0 | CZ19: 0 | DA19: 0 | DB19: 0 | DC19: 0 | DD19: 0 | DE19: 0 | DF19: 0 | DG19: 0 | DH19: 0 | DI19: 0 | DJ19: 0 | DK19: 0 | DL19: 0 | DM19: 0 | DN19: 0 | DO19: 0 | DP19: 0 | DQ19: 0
C20: > 66 kV & < = 132 kV; Wood - Unstaked | D20: 0 | E20: 0 | F20: 0 | G20: 0 | H20: 0 | I20: 0 | J20: 0 | K20: 0 | L20: 0 | M20: 0 | N20: 0 | O20: 0 | P20: 0 | Q20: 0 | R20: 0 | S20: 0 | T20: 0 | U20: 0 | V20: 0 | W20: 0 | X20: 0 | Y20: 0 | Z20: 0 | AA20: 0 | AB20: 0 | AC20: 0 | AD20: 0 | AE20: 0 | AF20: 0 | AG20: 0 | AH20: 0 | AI20: 0 | AJ20: 0 | AK20: 0 | AL20: 0 | AM20: 0 | AN20: 0 | AO20: 0 | AP20: 0 | AQ20: 0 | AR20: 0 | AS20: 0 | AT20: 0 | AU20: 0 | AV20: 0 | AW20: 0 | AX20: 0 | AY20: 0 | AZ20: 0 | BA20: 0 | BB20: 0 | BC20: 0 | BD20: 0 | BE20: 0 | BF20: 0 | BG20: 0 | BH20: 0 | BI20: 0 | BJ20: 0 | BK20: 0 | BL20: 0 | BM20: 0 | BN20: 0 | BO20: 0 | BP20: 0 | BQ20: 0 | BR20: 0 | BS20: 0 | BT20: 0 | BU20: 0 | BV20: 0 | BW20: 0 | BX20: 0 | BY20: 0 | BZ20: 0 | CA20: 0 | CB20: 0 | CC20: 0 | CD20: 0 | CE20: 0 | CF20: 0 | CG20: 0 | CH20: 0 | CI20: 0 | CJ20: 0 | CK20: 0 | CL20: 0 | CM20: 0 | CN20: 0 | CO20: 0 | CP20: 0 | CQ20: 0 | CR20: 0 | CS20: 0 | CT20: 0 | CU20: 0 | CV20: 0 | CW20: 0 | CX20: 0 | CY20: 0 | CZ20: 0 | DA20: 0 | DB20: 0 | DC20: 0 | DD20: 0 | DE20: 0 | DF20: 0 | DG20: 0 | DH20: 0 | DI20: 0 | DJ20: 0 | DK20: 0 | DL20: 0 | DM20: 0 | DN20: 0 | DO20: 0 | DP20: 0 | DQ20: 0
C21: > 132 kV; Wood - Staked | D21: 0 | E21: 0 | F21: 0 | G21: 0 | H21: 0 | I21: 0 | J21: 0 | K21: 0 | L21: 0 | M21: 0 | N21: 0 | O21: 0 | P21: 0 | Q21: 0 | R21: 0 | S21: 0 | T21: 0 | U21: 0 | V21: 0 | W21: 0 | X21: 0 | Y21: 0 | Z21: 0 | AA21: 0 | AB21: 0 | AC21: 0 | AD21: 0 | AE21: 0 | AF21: 0 | AG21: 0 | AH21: 0 | AI21: 0 | AJ21: 0 | AK21: 0 | AL21: 0 | AM21: 0 | AN21: 0 | AO21: 0 | AP21: 0 | AQ21: 0 | AR21: 0 | AS21: 0 | AT21: 0 | AU21: 0 | AV21: 0 | AW21: 0 | AX21: 0 | AY21: 0 | AZ21: 0 | BA21: 0 | BB21: 0 | BC21: 0 | BD21: 0 | BE21: 0 | BF21: 0 | BG21: 0 | BH21: 0 | BI21: 0 | BJ21: 0 | BK21: 0 | BL21: 0 | BM21: 0 | BN21: 0 | BO21: 0 | BP21: 0 | BQ21: 0 | BR21: 0 | BS21: 0 | BT21: 0 | BU21: 0 | BV21: 0 | BW21: 0 | BX21: 0 | BY21: 0 | BZ21: 0 | CA21: 0 | CB21: 0 | CC21: 0 | CD21: 0 | CE21: 0 | CF21: 0 | CG21: 0 | CH21: 0 | CI21: 0 | CJ21: 0 | CK21: 0 | CL21: 0 | CM21: 0 | CN21: 0 | CO21: 0 | CP21: 0 | CQ21: 0 | CR21: 0 | CS21: 0 | CT21: 0 | CU21: 0 | CV21: 0 | CW21: 0 | CX21: 0 | CY21: 0 | CZ21: 0 | DA21: 0 | DB21: 0 | DC21: 0 | DD21: 0 | DE21: 0 | DF21: 0 | DG21: 0 | DH21: 0 | DI21: 0 | DJ21: 0 | DK21: 0 | DL21: 0 | DM21: 0 | DN21: 0 | DO21: 0 | DP21: 0 | DQ21: 0
C22: > 132 kV; Wood - Unstaked | D22: 0 | E22: 0 | F22: 0 | G22: 0 | H22: 0 | I22: 0 | J22: 0 | K22: 0 | L22: 0 | M22: 0 | N22: 0 | O22: 0 | P22: 0 | Q22: 0 | R22: 0 | S22: 0 | T22: 0 | U22: 0 | V22: 0 | W22: 0 | X22: 0 | Y22: 0 | Z22: 0 | AA22: 0 | AB22: 0 | AC22: 0 | AD22: 0 | AE22: 0 | AF22: 0 | AG22: 0 | AH22: 0 | AI22: 0 | AJ22: 0 | AK22: 0 | AL22: 0 | AM22: 0 | AN22: 0 | AO22: 0 | AP22: 0 | AQ22: 0 | AR22: 0 | AS22: 0 | AT22: 0 | AU22: 0 | AV22: 0 | AW22: 0 | AX22: 0 | AY22: 0 | AZ22: 0 | BA22: 0 | BB22: 0 | BC22: 0 | BD22: 0 | BE22: 0 | BF22: 0 | BG22: 0 | BH22: 0 | BI22: 0 | BJ22: 0 | BK22: 0 | BL22: 0 | BM22: 0 | BN22: 0 | BO22: 0 | BP22: 0 | BQ22: 0 | BR22: 0 | BS22: 0 | BT22: 0 | BU22: 0 | BV22: 0 | BW22: 0 | BX22: 0 | BY22: 0 | BZ22: 0 | CA22: 0 | CB22: 0 | CC22: 0 | CD22: 0 | CE22: 0 | CF22: 0 | CG22: 0 | CH22: 0 | CI22: 0 | CJ22: 0 | CK22: 0 | CL22: 0 | CM22: 0 | CN22: 0 | CO22: 0 | CP22: 0 | CQ22: 0 | CR22: 0 | CS22: 0 | CT22: 0 | CU22: 0 | CV22: 0 | CW22: 0 | CX22: 0 | CY22: 0 | CZ22: 0 | DA22: 0 | DB22: 0 | DC22: 0 | DD22: 0 | DE22: 0 | DF22: 0 | DG22: 0 | DH22: 0 | DI22: 0 | DJ22: 0 | DK22: 0 | DL22: 0 | DM22: 0 | DN22: 0 | DO22: 0 | DP22: 0 | DQ22: 0
C23: ˂ = 1 kV; Concrete | D23: 0 | E23: 7.745966692 | F23: 0 | G23: 0 | H23: 0 | I23: 0 | J23: 0 | K23: 0 | L23: 0 | M23: 0 | N23: 0 | O23: 0 | P23: 0 | Q23: 0 | R23: 0 | S23: 0 | T23: 0 | U23: 0 | V23: 0 | W23: 0 | X23: 0 | Y23: 0 | Z23: 0 | AA23: 0 | AB23: 0 | AC23: 0 | AD23: 0 | AE23: 0 | AF23: 0 | AG23: 0 | AH23: 0 | AI23: 0 | AJ23: 0 | AK23: 0 | AL23: 0 | AM23: 0 | AN23: 0 | AO23: 0 | AP23: 0 | AQ23: 0 | AR23: 0 | AS23: 0 | AT23: 0 | AU23: 0 | AV23: 0 | AW23: 0 | AX23: 0 | AY23: 0 | AZ23: 0 | BA23: 0 | BB23: 0 | BC23: 0 | BD23: 0 | BE23: 0 | BF23: 0 | BG23: 0 | BH23: 0 | BI23: 0 | BJ23: 0 | BK23: 0 | BL23: 0 | BM23: 0 | BN23: 0 | BO23: 0 | BP23: 0 | BQ23: 0 | BR23: 0 | BS23: 0 | BT23: 0 | BU23: 0 | BV23: 0 | BW23: 0 | BX23: 0 | BY23: 0 | BZ23: 0 | CA23: 0 | CB23: 0 | CC23: 0 | CD23: 0 | CE23: 0 | CF23: 0 | CG23: 0 | CH23: 0 | CI23: 0 | CJ23: 0 | CK23: 0 | CL23: 0 | CM23: 0 | CN23: 0 | CO23: 0 | CP23: 0 | CQ23: 0 | CR23: 0 | CS23: 0 | CT23: 0 | CU23: 0 | CV23: 0 | CW23: 0 | CX23: 0 | CY23: 0 | CZ23: 0 | DA23: 0 | DB23: 0 | DC23: 0 | DD23: 0 | DE23: 0 | DF23: 0 | DG23: 0 | DH23: 0 | DI23: 0 | DJ23: 0 | DK23: 0 | DL23: 0 | DM23: 0 | DN23: 0 | DO23: 0 | DP23: 0 | DQ23: 0
C24: > 1 kV & < = 11 kV; Concrete | D24: 0 | E24: 7.745966692 | F24: 0 | G24: 0 | H24: 0 | I24: 0 | J24: 0 | K24: 0 | L24: 0 | M24: 0 | N24: 0 | O24: 0 | P24: 0 | Q24: 0 | R24: 0 | S24: 0 | T24: 0 | U24: 0 | V24: 0 | W24: 0 | X24: 0 | Y24: 0 | Z24: 0 | AA24: 0 | AB24: 0 | AC24: 0 | AD24: 0 | AE24: 0 | AF24: 0 | AG24: 0 | AH24: 0 | AI24: 0 | AJ24: 0 | AK24: 0 | AL24: 0 | AM24: 0 | AN24: 0 | AO24: 0 | AP24: 0 | AQ24: 0 | AR24: 0 | AS24: 0 | AT24: 0 | AU24: 0 | AV24: 0 | AW24: 0 | AX24: 0 | AY24: 0 | AZ24: 0 | BA24: 0 | BB24: 0 | BC24: 0 | BD24: 0 | BE24: 0 | BF24: 0 | BG24: 0 | BH24: 0 | BI24: 0 | BJ24: 0 | BK24: 0 | BL24: 0 | BM24: 0 | BN24: 0 | BO24: 0 | BP24: 0 | BQ24: 0 | BR24: 0 | BS24: 0 | BT24: 0 | BU24: 0 | BV24: 0 | BW24: 0 | BX24: 0 | BY24: 0 | BZ24: 0 | CA24: 0 | CB24: 0 | CC24: 0 | CD24: 0 | CE24: 0 | CF24: 0 | CG24: 0 | CH24: 0 | CI24: 0 | CJ24: 0 | CK24: 0 | CL24: 0 | CM24: 0 | CN24: 0 | CO24: 0 | CP24: 0 | CQ24: 0 | CR24: 0 | CS24: 0 | CT24: 0 | CU24: 0 | CV24: 0 | CW24: 0 | CX24: 0 | CY24: 0 | CZ24: 0 | DA24: 0 | DB24: 0 | DC24: 0 | DD24: 0 | DE24: 0 | DF24: 0 | DG24: 0 | DH24: 0 | DI24: 0 | DJ24: 0 | DK24: 0 | DL24: 0 | DM24: 0 | DN24: 0 | DO24: 0 | DP24: 0 | DQ24: 0
C25: ˃ 11 kV & < = 22 kV; Concrete | D25: 0 | E25: 7.745966692 | F25: 0 | G25: 0 | H25: 0 | I25: 0 | J25: 0 | K25: 0 | L25: 0 | M25: 0 | N25: 0 | O25: 0 | P25: 0 | Q25: 0 | R25: 0 | S25: 0 | T25: 0 | U25: 0 | V25: 0 | W25: 0 | X25: 0 | Y25: 0 | Z25: 0 | AA25: 0 | AB25: 0 | AC25: 0 | AD25: 0 | AE25: 0 | AF25: 0 | AG25: 0 | AH25: 0 | AI25: 0 | AJ25: 0 | AK25: 0 | AL25: 0 | AM25: 0 | AN25: 0 | AO25: 0 | AP25: 0 | AQ25: 0 | AR25: 0 | AS25: 0 | AT25: 0 | AU25: 0 | AV25: 0 | AW25: 0 | AX25: 0 | AY25: 0 | AZ25: 0 | BA25: 0 | BB25: 0 | BC25: 0 | BD25: 0 | BE25: 0 | BF25: 0 | BG25: 0 | BH25: 0 | BI25: 0 | BJ25: 0 | BK25: 0 | BL25: 0 | BM25: 0 | BN25: 0 | BO25: 0 | BP25: 0 | BQ25: 0 | BR25: 0 | BS25: 0 | BT25: 0 | BU25: 0 | BV25: 0 | BW25: 0 | BX25: 0 | BY25: 0 | BZ25: 0 | CA25: 0 | CB25: 0 | CC25: 0 | CD25: 0 | CE25: 0 | CF25: 0 | CG25: 0 | CH25: 0 | CI25: 0 | CJ25: 0 | CK25: 0 | CL25: 0 | CM25: 0 | CN25: 0 | CO25: 0 | CP25: 0 | CQ25: 0 | CR25: 0 | CS25: 0 | CT25: 0 | CU25: 0 | CV25: 0 | CW25: 0 | CX25: 0 | CY25: 0 | CZ25: 0 | DA25: 0 | DB25: 0 | DC25: 0 | DD25: 0 | DE25: 0 | DF25: 0 | DG25: 0 | DH25: 0 | DI25: 0 | DJ25: 0 | DK25: 0 | DL25: 0 | DM25: 0 | DN25: 0 | DO25: 0 | DP25: 0 | DQ25: 0
C26: > 22 kV & < = 66 kV; Concrete | D26: 60 | E26: 7.745966692 | F26: 0 | G26: 0 | H26: 0 | I26: 0 | J26: 0 | K26: 0 | L26: 0 | M26: 0 | N26: 0 | O26: 0 | P26: 0 | Q26: 0 | R26: 0 | S26: 0 | T26: 0 | U26: 0 | V26: 0 | W26: 0 | X26: 0 | Y26: 0 | Z26: 0 | AA26: 0 | AB26: 0 | AC26: 0 | AD26: 0 | AE26: 0 | AF26: 0 | AG26: 0 | AH26: 0 | AI26: 0 | AJ26: 0 | AK26: 0 | AL26: 0 | AM26: 0 | AN26: 0 | AO26: 0 | AP26: 0 | AQ26: 0 | AR26: 0 | AS26: 0 | AT26: 0 | AU26: 0 | AV26: 68 | AW26: 0 | AX26: 0 | AY26: 0 | AZ26: 0 | BA26: 0 | BB26: 0 | BC26: 0 | BD26: 0 | BE26: 0 | BF26: 0 | BG26: 0 | BH26: 0 | BI26: 0 | BJ26: 0 | BK26: 0 | BL26: 0 | BM26: 0 | BN26: 0 | BO26: 0 | BP26: 0 | BQ26: 0 | BR26: 0 | BS26: 0 | BT26: 0 | BU26: 0 | BV26: 0 | BW26: 0 | BX26: 0 | BY26: 0 | BZ26: 0 | CA26: 0 | CB26: 0 | CC26: 0 | CD26: 0 | CE26: 0 | CF26: 0 | CG26: 0 | CH26: 0 | CI26: 0 | CJ26: 0 | CK26: 0 | CL26: 0 | CM26: 0 | CN26: 0 | CO26: 0 | CP26: 0 | CQ26: 0 | CR26: 0 | CS26: 0 | CT26: 0 | CU26: 0 | CV26: 0 | CW26: 0 | CX26: 0 | CY26: 0 | CZ26: 0 | DA26: 0 | DB26: 0 | DC26: 0 | DD26: 0 | DE26: 0 | DF26: 0 | DG26: 0 | DH26: 0 | DI26: 0 | DJ26: 0 | DK26: 0 | DL26: 0 | DM26: 0 | DN26: 0 | DO26: 0 | DP26: 0 | DQ26: 0
C27: > 66 kV & < = 132 kV; Concrete | D27: 0 | E27: 6.708203932 | F27: 0 | G27: 0 | H27: 0 | I27: 0 | J27: 0 | K27: 0 | L27: 0 | M27: 0 | N27: 0 | O27: 0 | P27: 0 | Q27: 0 | R27: 0 | S27: 0 | T27: 0 | U27: 0 | V27: 0 | W27: 0 | X27: 0 | Y27: 0 | Z27: 0 | AA27: 0 | AB27: 0 | AC27: 0 | AD27: 0 | AE27: 0 | AF27: 0 | AG27: 0 | AH27: 0 | AI27: 0 | AJ27: 0 | AK27: 0 | AL27: 0 | AM27: 0 | AN27: 0 | AO27: 0 | AP27: 0 | AQ27: 0 | AR27: 0 | AS27: 0 | AT27: 0 | AU27: 0 | AV27: 0 | AW27: 0 | AX27: 0 | AY27: 0 | AZ27: 0 | BA27: 0 | BB27: 0 | BC27: 0 | BD27: 0 | BE27: 0 | BF27: 0 | BG27: 0 | BH27: 0 | BI27: 0 | BJ27: 0 | BK27: 0 | BL27: 0 | BM27: 0 | BN27: 0 | BO27: 0 | BP27: 0 | BQ27: 0 | BR27: 0 | BS27: 0 | BT27: 0 | BU27: 0 | BV27: 0 | BW27: 0 | BX27: 0 | BY27: 0 | BZ27: 0 | CA27: 0 | CB27: 0 | CC27: 0 | CD27: 0 | CE27: 0 | CF27: 0 | CG27: 0 | CH27: 0 | CI27: 0 | CJ27: 0 | CK27: 0 | CL27: 0 | CM27: 0 | CN27: 0 | CO27: 0 | CP27: 0 | CQ27: 0 | CR27: 0 | CS27: 0 | CT27: 0 | CU27: 0 | CV27: 0 | CW27: 0 | CX27: 0 | CY27: 0 | CZ27: 0 | DA27: 0 | DB27: 0 | DC27: 0 | DD27: 0 | DE27: 0 | DF27: 0 | DG27: 0 | DH27: 0 | DI27: 0 | DJ27: 0 | DK27: 0 | DL27: 0 | DM27: 0 | DN27: 0 | DO27: 0 | DP27: 0 | DQ27: 0
C28: > 132 kV; Concrete | D28: 0 | E28: 6.708203932 | F28: 0 | G28: 0 | H28: 0 | I28: 0 | J28: 0 | K28: 0 | L28: 0 | M28: 0 | N28: 0 | O28: 0 | P28: 0 | Q28: 0 | R28: 0 | S28: 0 | T28: 0 | U28: 0 | V28: 0 | W28: 0 | X28: 0 | Y28: 0 | Z28: 0 | AA28: 0 | AB28: 0 | AC28: 0 | AD28: 0 | AE28: 0 | AF28: 0 | AG28: 0 | AH28: 0 | AI28: 0 | AJ28: 0 | AK28: 0 | AL28: 0 | AM28: 0 | AN28: 0 | AO28: 0 | AP28: 0 | AQ28: 0 | AR28: 0 | AS28: 0 | AT28: 0 | AU28: 0 | AV28: 0 | AW28: 0 | AX28: 0 | AY28: 0 | AZ28: 0 | BA28: 0 | BB28: 0 | BC28: 0 | BD28: 0 | BE28: 0 | BF28: 0 | BG28: 0 | BH28: 0 | BI28: 0 | BJ28: 0 | BK28: 0 | BL28: 0 | BM28: 0 | BN28: 0 | BO28: 0 | BP28: 0 | BQ28: 0 | BR28: 0 | BS28: 0 | BT28: 0 | BU28: 0 | BV28: 0 | BW28: 0 | BX28: 0 | BY28: 0 | BZ28: 0 | CA28: 0 | CB28: 0 | CC28: 0 | CD28: 0 | CE28: 0 | CF28: 0 | CG28: 0 | CH28: 0 | CI28: 0 | CJ28: 0 | CK28: 0 | CL28: 0 | CM28: 0 | CN28: 0 | CO28: 0 | CP28: 0 | CQ28: 0 | CR28: 0 | CS28: 0 | CT28: 0 | CU28: 0 | CV28: 0 | CW28: 0 | CX28: 0 | CY28: 0 | CZ28: 0 | DA28: 0 | DB28: 0 | DC28: 0 | DD28: 0 | DE28: 0 | DF28: 0 | DG28: 0 | DH28: 0 | DI28: 0 | DJ28: 0 | DK28: 0 | DL28: 0 | DM28: 0 | DN28: 0 | DO28: 0 | DP28: 0 | DQ28: 0
C29: ˂ = 1 kV; Steel | D29: 60 | E29: 7.745966692 | F29: 23 | G29: 99 | H29: 95 | I29: 294 | J29: 59 | K29: 134 | L29: 390 | M29: 252 | N29: 492 | O29: 156 | P29: 233 | Q29: 449 | R29: 74 | S29: 70 | T29: 75 | U29: 57 | V29: 52 | W29: 87 | X29: 129 | Y29: 26 | Z29: 80 | AA29: 68 | AB29: 91 | AC29: 60 | AD29: 55 | AE29: 64 | AF29: 6 | AG29: 95 | AH29: 101 | AI29: 63 | AJ29: 176 | AK29: 74 | AL29: 3684 | AM29: 34 | AN29: 173 | AO29: 248 | AP29: 41 | AQ29: 1231 | AR29: 76 | AS29: 158 | AT29: 88 | AU29: 178 | AV29: 597 | AW29: 463 | AX29: 97 | AY29: 353 | AZ29: 178 | BA29: 126 | BB29: 295 | BC29: 157 | BD29: 187 | BE29: 0 | BF29: 171 | BG29: 0 | BH29: 18 | BI29: 92 | BJ29: 4 | BK29: 204 | BL29: 0 | BM29: 0 | BN29: 0 | BO29: 1 | BP29: 66 | BQ29: 0 | BR29: 0 | BS29: 0 | BT29: 0 | BU29: 22 | BV29: 0 | BW29: 0 | BX29: 0 | BY29: 0 | BZ29: 0 | CA29: 0 | CB29: 0 | CC29: 0 | CD29: 0 | CE29: 0 | CF29: 0 | CG29: 0 | CH29: 0 | CI29: 0 | CJ29: 0 | CK29: 0 | CL29: 0 | CM29: 0 | CN29: 0 | CO29: 0 | CP29: 0 | CQ29: 0 | CR29: 0 | CS29: 0 | CT29: 0 | CU29: 0 | CV29: 0 | CW29: 0 | CX29: 0 | CY29: 0 | CZ29: 0 | DA29: 0 | DB29: 0 | DC29: 0 | DD29: 0 | DE29: 0 | DF29: 0 | DG29: 0 | DH29: 0 | DI29: 0 | DJ29: 0 | DK29: 0 | DL29: 0 | DM29: 0 | DN29: 0 | DO29: 0 | DP29: 0 | DQ29: 0
C30: > 1 kV & < = 11 kV; Steel | D30: 60 | E30: 7.745966692 | F30: 24 | G30: 122 | H30: 40 | I30: 46 | J30: 76 | K30: 34 | L30: 146 | M30: 112 | N30: 24 | O30: 28 | P30: 37 | Q30: 16 | R30: 21 | S30: 89 | T30: 10 | U30: 34 | V30: 8 | W30: 63 | X30: 88 | Y30: 29 | Z30: 27 | AA30: 2 | AB30: 11 | AC30: 10 | AD30: 3 | AE30: 0 | AF30: 0 | AG30: 3 | AH30: 423 | AI30: 127 | AJ30: 115 | AK30: 6 | AL30: 1089 | AM30: 0 | AN30: 6 | AO30: 713 | AP30: 19 | AQ30: 617 | AR30: 3 | AS30: 0 | AT30: 0 | AU30: 10 | AV30: 354 | AW30: 156 | AX30: 57 | AY30: 64 | AZ30: 0 | BA30: 156 | BB30: 248 | BC30: 67 | BD30: 229 | BE30: 0 | BF30: 115 | BG30: 0 | BH30: 0 | BI30: 3 | BJ30: 0 | BK30: 11 | BL30: 0 | BM30: 0 | BN30: 0 | BO30: 0 | BP30: 40 | BQ30: 0 | BR30: 0 | BS30: 0 | BT30: 0 | BU30: 0 | BV30: 0 | BW30: 0 | BX30: 0 | BY30: 0 | BZ30: 0 | CA30: 0 | CB30: 0 | CC30: 0 | CD30: 0 | CE30: 0 | CF30: 0 | CG30: 0 | CH30: 0 | CI30: 0 | CJ30: 0 | CK30: 0 | CL30: 0 | CM30: 0 | CN30: 0 | CO30: 0 | CP30: 0 | CQ30: 0 | CR30: 0 | CS30: 0 | CT30: 0 | CU30: 0 | CV30: 0 | CW30: 0 | CX30: 0 | CY30: 0 | CZ30: 0 | DA30: 0 | DB30: 0 | DC30: 0 | DD30: 0 | DE30: 0 | DF30: 0 | DG30: 0 | DH30: 0 | DI30: 0 | DJ30: 0 | DK30: 0 | DL30: 0 | DM30: 0 | DN30: 0 | DO30: 0 | DP30: 0 | DQ30: 0
C31: ˃ 11 kV & < = 22 kV; Steel | D31: 60 | E31: 7.745966692 | F31: 245 | G31: 106 | H31: 250 | I31: 688 | J31: 154 | K31: 119 | L31: 187 | M31: 216 | N31: 273 | O31: 716 | P31: 792 | Q31: 1007 | R31: 126 | S31: 272 | T31: 254 | U31: 167 | V31: 291 | W31: 296 | X31: 257 | Y31: 216 | Z31: 265 | AA31: 266 | AB31: 138 | AC31: 154 | AD31: 39 | AE31: 165 | AF31: 290 | AG31: 301 | AH31: 181 | AI31: 209 | AJ31: 455 | AK31: 103 | AL31: 5333 | AM31: 192 | AN31: 511 | AO31: 79 | AP31: 105 | AQ31: 3349 | AR31: 40 | AS31: 175 | AT31: 124 | AU31: 83 | AV31: 816 | AW31: 182 | AX31: 253 | AY31: 396 | AZ31: 187 | BA31: 229 | BB31: 249 | BC31: 23 | BD31: 89 | BE31: 0 | BF31: 81 | BG31: 0 | BH31: 375 | BI31: 140 | BJ31: 64 | BK31: 163 | BL31: 0 | BM31: 0 | BN31: 0 | BO31: 0 | BP31: 0 | BQ31: 0 | BR31: 0 | BS31: 0 | BT31: 0 | BU31: 44 | BV31: 0 | BW31: 0 | BX31: 0 | BY31: 0 | BZ31: 0 | CA31: 0 | CB31: 0 | CC31: 0 | CD31: 0 | CE31: 0 | CF31: 0 | CG31: 0 | CH31: 0 | CI31: 0 | CJ31: 0 | CK31: 0 | CL31: 0 | CM31: 0 | CN31: 0 | CO31: 0 | CP31: 0 | CQ31: 0 | CR31: 0 | CS31: 0 | CT31: 0 | CU31: 0 | CV31: 0 | CW31: 0 | CX31: 0 | CY31: 0 | CZ31: 0 | DA31: 0 | DB31: 0 | DC31: 0 | DD31: 0 | DE31: 0 | DF31: 0 | DG31: 0 | DH31: 0 | DI31: 0 | DJ31: 0 | DK31: 0 | DL31: 0 | DM31: 0 | DN31: 0 | DO31: 0 | DP31: 0 | DQ31: 0
C32: > 22 kV & < = 66 kV; Steel | D32: 45 | E32: 6.708203932 | F32: 15 | G32: 8 | H32: 53 | I32: 52 | J32: 4 | K32: 107 | L32: 252 | M32: 3 | N32: 0 | O32: 11 | P32: 0 | Q32: 0 | R32: 0 | S32: 66 | T32: 0 | U32: 0 | V32: 0 | W32: 0 | X32: 57 | Y32: 72 | Z32: 1 | AA32: 7 | AB32: 4 | AC32: 1 | AD32: 0 | AE32: 0 | AF32: 0 | AG32: 0 | AH32: 18 | AI32: 0 | AJ32: 0 | AK32: 219 | AL32: 1084 | AM32: 0 | AN32: 0 | AO32: 53 | AP32: 0 | AQ32: 19 | AR32: 0 | AS32: 0 | AT32: 0 | AU32: 0 | AV32: 67 | AW32: 0 | AX32: 0 | AY32: 126 | AZ32: 0 | BA32: 0 | BB32: 0 | BC32: 0 | BD32: 0 | BE32: 0 | BF32: 65 | BG32: 0 | BH32: 0 | BI32: 0 | BJ32: 0 | BK32: 0 | BL32: 0 | BM32: 0 | BN32: 0 | BO32: 0 | BP32: 0 | BQ32: 0 | BR32: 0 | BS32: 0 | BT32: 0 | BU32: 0 | BV32: 0 | BW32: 0 | BX32: 0 | BY32: 0 | BZ32: 0 | CA32: 0 | CB32: 0 | CC32: 0 | CD32: 0 | CE32: 0 | CF32: 0 | CG32: 0 | CH32: 0 | CI32: 0 | CJ32: 0 | CK32: 0 | CL32: 0 | CM32: 0 | CN32: 0 | CO32: 0 | CP32: 0 | CQ32: 0 | CR32: 0 | CS32: 0 | CT32: 0 | CU32: 0 | CV32: 0 | CW32: 0 | CX32: 0 | CY32: 0 | CZ32: 0 | DA32: 0 | DB32: 0 | DC32: 0 | DD32: 0 | DE32: 0 | DF32: 0 | DG32: 0 | DH32: 0 | DI32: 0 | DJ32: 0 | DK32: 0 | DL32: 0 | DM32: 0 | DN32: 0 | DO32: 0 | DP32: 0 | DQ32: 0
C33: > 66 kV & < = 132 kV; Steel | D33: 45 | E33: 6.708203932 | F33: 0 | G33: 0 | H33: 0 | I33: 0 | J33: 0 | K33: 19 | L33: 0 | M33: 0 | N33: 0 | O33: 17 | P33: 0 | Q33: 0 | R33: 0 | S33: 0 | T33: 0 | U33: 0 | V33: 0 | W33: 0 | X33: 0 | Y33: 0 | Z33: 0 | AA33: 0 | AB33: 0 | AC33: 0 | AD33: 0 | AE33: 0 | AF33: 0 | AG33: 0 | AH33: 0 | AI33: 0 | AJ33: 55 | AK33: 148 | AL33: 448 | AM33: 0 | AN33: 0 | AO33: 0 | AP33: 0 | AQ33: 32 | AR33: 0 | AS33: 0 | AT33: 0 | AU33: 0 | AV33: 128 | AW33: 0 | AX33: 0 | AY33: 0 | AZ33: 0 | BA33: 0 | BB33: 0 | BC33: 0 | BD33: 0 | BE33: 0 | BF33: 0 | BG33: 0 | BH33: 0 | BI33: 0 | BJ33: 0 | BK33: 0 | BL33: 0 | BM33: 0 | BN33: 0 | BO33: 0 | BP33: 0 | BQ33: 0 | BR33: 0 | BS33: 0 | BT33: 0 | BU33: 0 | BV33: 0 | BW33: 0 | BX33: 0 | BY33: 0 | BZ33: 0 | CA33: 0 | CB33: 0 | CC33: 0 | CD33: 0 | CE33: 0 | CF33: 0 | CG33: 0 | CH33: 0 | CI33: 0 | CJ33: 0 | CK33: 0 | CL33: 0 | CM33: 0 | CN33: 0 | CO33: 0 | CP33: 0 | CQ33: 0 | CR33: 0 | CS33: 0 | CT33: 0 | CU33: 0 | CV33: 0 | CW33: 0 | CX33: 0 | CY33: 0 | CZ33: 0 | DA33: 0 | DB33: 0 | DC33: 0 | DD33: 0 | DE33: 0 | DF33: 0 | DG33: 0 | DH33: 0 | DI33: 0 | DJ33: 0 | DK33: 0 | DL33: 0 | DM33: 0 | DN33: 0 | DO33: 0 | DP33: 0 | DQ33: 0
C34: > 132 kV; Steel | D34: 0 | E34: 0 | F34: 0 | G34: 0 | H34: 0 | I34: 0 | J34: 0 | K34: 0 | L34: 0 | M34: 0 | N34: 0 | O34: 0 | P34: 0 | Q34: 0 | R34: 0 | S34: 0 | T34: 0 | U34: 0 | V34: 0 | W34: 0 | X34: 0 | Y34: 0 | Z34: 0 | AA34: 0 | AB34: 0 | AC34: 0 | AD34: 0 | AE34: 0 | AF34: 0 | AG34: 0 | AH34: 0 | AI34: 0 | AJ34: 0 | AK34: 0 | AL34: 0 | AM34: 0 | AN34: 0 | AO34: 0 | AP34: 0 | AQ34: 0 | AR34: 0 | AS34: 0 | AT34: 0 | AU34: 0 | AV34: 0 | AW34: 0 | AX34: 0 | AY34: 0 | AZ34: 0 | BA34: 0 | BB34: 0 | BC34: 0 | BD34: 0 | BE34: 0 | BF34: 0 | BG34: 0 | BH34: 0 | BI34: 0 | BJ34: 0 | BK34: 0 | BL34: 0 | BM34: 0 | BN34: 0 | BO34: 0 | BP34: 0 | BQ34: 0 | BR34: 0 | BS34: 0 | BT34: 0 | BU34: 0 | BV34: 0 | BW34: 0 | BX34: 0 | BY34: 0 | BZ34: 0 | CA34: 0 | CB34: 0 | CC34: 0 | CD34: 0 | CE34: 0 | CF34: 0 | CG34: 0 | CH34: 0 | CI34: 0 | CJ34: 0 | CK34: 0 | CL34: 0 | CM34: 0 | CN34: 0 | CO34: 0 | CP34: 0 | CQ34: 0 | CR34: 0 | CS34: 0 | CT34: 0 | CU34: 0 | CV34: 0 | CW34: 0 | CX34: 0 | CY34: 0 | CZ34: 0 | DA34: 0 | DB34: 0 | DC34: 0 | DD34: 0 | DE34: 0 | DF34: 0 | DG34: 0 | DH34: 0 | DI34: 0 | DJ34: 0 | DK34: 0 | DL34: 0 | DM34: 0 | DN34: 0 | DO34: 0 | DP34: 0 | DQ34: 0
C35: Other | D35: 0 | E35: 0 | F35: 0 | G35: 0 | H35: 0 | I35: 0 | J35: 0 | K35: 0 | L35: 0 | M35: 0 | N35: 0 | O35: 0 | P35: 0 | Q35: 0 | R35: 0 | S35: 0 | T35: 0 | U35: 0 | V35: 0 | W35: 0 | X35: 0 | Y35: 0 | Z35: 0 | AA35: 0 | AB35: 0 | AC35: 0 | AD35: 0 | AE35: 0 | AF35: 0 | AG35: 0 | AH35: 0 | AI35: 0 | AJ35: 0 | AK35: 0 | AL35: 0 | AM35: 0 | AN35: 0 | AO35: 0 | AP35: 0 | AQ35: 0 | AR35: 0 | AS35: 0 | AT35: 0 | AU35: 0 | AV35: 0 | AW35: 0 | AX35: 0 | AY35: 0 | AZ35: 0 | BA35: 0 | BB35: 0 | BC35: 0 | BD35: 0 | BE35: 0 | BF35: 0 | BG35: 0 | BH35: 0 | BI35: 0 | BJ35: 0 | BK35: 0 | BL35: 0 | BM35: 0 | BN35: 0 | BO35: 0 | BP35: 0 | BQ35: 0 | BR35: 0 | BS35: 0 | BT35: 0 | BU35: 0 | BV35: 0 | BW35: 0 | BX35: 0 | BY35: 0 | BZ35: 0 | CA35: 0 | CB35: 0 | CC35: 0 | CD35: 0 | CE35: 0 | CF35: 0 | CG35: 0 | CH35: 0 | CI35: 0 | CJ35: 0 | CK35: 0 | CL35: 0 | CM35: 0 | CN35: 0 | CO35: 0 | CP35: 0 | CQ35: 0 | CR35: 0 | CS35: 0 | CT35: 0 | CU35: 0 | CV35: 0 | CW35: 0 | CX35: 0 | CY35: 0 | CZ35: 0 | DA35: 0 | DB35: 0 | DC35: 0 | DD35: 0 | DE35: 0 | DF35: 0 | DG35: 0 | DH35: 0 | DI35: 0 | DJ35: 0 | DK35: 0 | DL35: 0 | DM35: 0 | DN35: 0 | DO35: 0 | DP35: 0 | DQ35: 0
B36: OVERHEAD CONDUCTORS BY: HIGHEST OPERATING VOLTAGE; NUMBER OF PHASES (AT HV) | C36: ˂ = 1 kV | D36: 60 | E36: 7.745966692 | F36: 2.976596701 | G36: 3.792488593 | H36: 7.8880503 | I36: 10.21495963 | J36: 7.784437966 | K36: 7.653661689 | L36: 15.07296037 | M36: 11.7137019 | N36: 6.431314077 | O36: 20.56450863 | P36: 28.49166492 | Q36: 36.60615297 | R36: 7.130678896 | S36: 7.154011233 | T36: 10.5133451 | U36: 11.50651371 | V36: 11.040632 | W36: 36.73160603 | X36: 18.85913888 | Y36: 15.8133915 | Z36: 23.43718008 | AA36: 5.613601467 | AB36: 9.88364166 | AC36: 12.67834698 | AD36: 3.206734236 | AE36: 7.859388817 | AF36: 1.186795564 | AG36: 11.24068893 | AH36: 12.9652478 | AI36: 1.273558063 | AJ36: 12.65582877 | AK36: 3.289155918 | AL36: 319.2193355 | AM36: 29.83625455 | AN36: 21.16108146 | AO36: 28.16179583 | AP36: 4.085670851 | AQ36: 136.3116044 | AR36: 2.556822837 | AS36: 10.47947638 | AT36: 3.33935215 | AU36: 13.21538151 | AV36: 49.68526221 | AW36: 21.02609059 | AX36: 5.860123329 | AY36: 23.56958005 | AZ36: 4.95885046 | BA36: 5.164260413 | BB36: 14.29249304 | BC36: 5.186168854 | BD36: 8.410341458 | BE36: 0 | BF36: 48.10317279 | BG36: 0 | BH36: 0.3410239197 | BI36: 27.73719937 | BJ36: 0 | BK36: 7.831921215 | BL36: 0.07343303805 | BM36: 0 | BN36: 0 | BO36: 0 | BP36: 0.1967647356 | BQ36: 0 | BR36: 0 | BS36: 0 | BT36: 0 | BU36: 2.66142584 | BV36: 0 | BW36: 0 | BX36: 0 | BY36: 0 | BZ36: 0 | CA36: 0 | CB36: 0 | CC36: 0 | CD36: 0 | CE36: 0 | CF36: 0 | CG36: 0 | CH36: 0 | CI36: 0 | CJ36: 0 | CK36: 0 | CL36: 0 | CM36: 0 | CN36: 0 | CO36: 0 | CP36: 0 | CQ36: 0 | CR36: 0 | CS36: 0 | CT36: 0 | CU36: 0 | CV36: 0 | CW36: 0 | CX36: 0 | CY36: 0 | CZ36: 0 | DA36: 0 | DB36: 0 | DC36: 0 | DD36: 0 | DE36: 0 | DF36: 0 | DG36: 0 | DH36: 0 | DI36: 0 | DJ36: 0 | DK36: 0 | DL36: 0 | DM36: 0 | DN36: 0 | DO36: 0 | DP36: 0 | DQ36: 0
C37: > 1 kV & < = 11 kV | D37: 60 | E37: 7.745966692 | F37: 2.474940639 | G37: 15.25261101 | H37: 1.488080158 | I37: 2.244545317 | J37: 3.680934581 | K37: 1.276576746 | L37: 8.993854822 | M37: 6.660168789 | N37: 1.13782497 | O37: 1.642650702 | P37: 1.910504548 | Q37: 0.7509905308 | R37: 1.839800927 | S37: 4.193821355 | T37: 0.313928655 | U37: 2.293373629 | V37: 1.741993739 | W37: 4.640514549 | X37: 5.550494591 | Y37: 2.43142637 | Z37: 2.081169932 | AA37: 0.3696698105 | AB37: 1.59712395 | AC37: 0.703842081 | AD37: 0.0107046089 | AE37: 0 | AF37: 0 | AG37: 0.2121259501 | AH37: 0.8740265338 | AI37: 9.045661356 | AJ37: 7.607347459 | AK37: 0.1675317722 | AL37: 69.52247141 | AM37: 0 | AN37: 0.03977404502 | AO37: 73.82720469 | AP37: 1.24105144 | AQ37: 34.17935704 | AR37: 0.5654602543 | AS37: 0 | AT37: 0.9578694973 | AU37: 0.6502610724 | AV37: 19.80135746 | AW37: 5.928517174 | AX37: 2.042508195 | AY37: 4.977055036 | AZ37: 8.409694114 | BA37: 3.980299989 | BB37: 10.9372553 | BC37: 0 | BD37: 8.187778522 | BE37: 0 | BF37: 2.318062722 | BG37: 0 | BH37: 0 | BI37: 28.38395456 | BJ37: 0 | BK37: 0 | BL37: 0 | BM37: 0 | BN37: 0 | BO37: 0 | BP37: 0 | BQ37: 0 | BR37: 0 | BS37: 0 | BT37: 0 | BU37: 0 | BV37: 0 | BW37: 0 | BX37: 0 | BY37: 0 | BZ37: 0 | CA37: 0 | CB37: 0 | CC37: 0 | CD37: 0 | CE37: 0 | CF37: 0 | CG37: 0 | CH37: 0 | CI37: 0 | CJ37: 0 | CK37: 0 | CL37: 0 | CM37: 0 | CN37: 0 | CO37: 0 | CP37: 0 | CQ37: 0 | CR37: 0 | CS37: 0 | CT37: 0 | CU37: 0 | CV37: 0 | CW37: 0 | CX37: 0 | CY37: 0 | CZ37: 0 | DA37: 0 | DB37: 0 | DC37: 0 | DD37: 0 | DE37: 0 | DF37: 0 | DG37: 0 | DH37: 0 | DI37: 0 | DJ37: 0 | DK37: 0 | DL37: 0 | DM37: 0 | DN37: 0 | DO37: 0 | DP37: 0 | DQ37: 0
C38: ˃ 11 kV & < = 22 kV ; SWER | D38: 60 | E38: 7.745966692 | F38: 0 | G38: 0 | H38: 0 | I38: 0 | J38: 0 | K38: 0 | L38: 0 | M38: 0 | N38: 0 | O38: 0 | P38: 0.2986605164 | Q38: 0 | R38: 0 | S38: 0 | T38: 0 | U38: 0 | V38: 0 | W38: 0 | X38: 0 | Y38: 0 | Z38: 0 | AA38: 8.2815686 | AB38: 0 | AC38: 0 | AD38: 0 | AE38: 0 | AF38: 0 | AG38: 0 | AH38: 0 | AI38: 0 | AJ38: 0 | AK38: 0 | AL38: 0 | AM38: 0 | AN38: 0 | AO38: 0 | AP38: 0 | AQ38: 0 | AR38: 0 | AS38: 0 | AT38: 0 | AU38: 0 | AV38: 0 | AW38: 0 | AX38: 0 | AY38: 0 | AZ38: 0 | BA38: 0 | BB38: 0 | BC38: 0 | BD38: 0 | BE38: 0 | BF38: 0 | BG38: 0 | BH38: 0 | BI38: 0 | BJ38: 0 | BK38: 0 | BL38: 0 | BM38: 0 | BN38: 0 | BO38: 0 | BP38: 0 | BQ38: 0 | BR38: 0 | BS38: 0 | BT38: 0 | BU38: 0 | BV38: 0 | BW38: 0 | BX38: 0 | BY38: 0 | BZ38: 0 | CA38: 0 | CB38: 0 | CC38: 0 | CD38: 0 | CE38: 0 | CF38: 0 | CG38: 0 | CH38: 0 | CI38: 0 | CJ38: 0 | CK38: 0 | CL38: 0 | CM38: 0 | CN38: 0 | CO38: 0 | CP38: 0 | CQ38: 0 | CR38: 0 | CS38: 0 | CT38: 0 | CU38: 0 | CV38: 0 | CW38: 0 | CX38: 0 | CY38: 0 | CZ38: 0 | DA38: 0 | DB38: 0 | DC38: 0 | DD38: 0 | DE38: 0 | DF38: 0 | DG38: 0 | DH38: 0 | DI38: 0 | DJ38: 0 | DK38: 0 | DL38: 0 | DM38: 0 | DN38: 0 | DO38: 0 | DP38: 0 | DQ38: 0
C39: ˃ 11 kV & < = 22 kV ; Single-Phase | D39: 0 | E39: 0 | F39: 0 | G39: 0 | H39: 0 | I39: 0 | J39: 0 | K39: 0 | L39: 0 | M39: 0 | N39: 0 | O39: 0 | P39: 0 | Q39: 0 | R39: 0 | S39: 0 | T39: 0 | U39: 0 | V39: 0 | W39: 0 | X39: 0 | Y39: 0 | Z39: 0 | AA39: 0 | AB39: 0 | AC39: 0 | AD39: 0 | AE39: 0 | AF39: 0 | AG39: 0 | AH39: 0 | AI39: 0 | AJ39: 0 | AK39: 0 | AL39: 0 | AM39: 0 | AN39: 0 | AO39: 0 | AP39: 0 | AQ39: 0 | AR39: 0 | AS39: 0 | AT39: 0 | AU39: 0 | AV39: 0 | AW39: 0 | AX39: 0 | AY39: 0 | AZ39: 0 | BA39: 0 | BB39: 0 | BC39: 0 | BD39: 0 | BE39: 0 | BF39: 0 | BG39: 0 | BH39: 0 | BI39: 0 | BJ39: 0 | BK39: 0 | BL39: 0 | BM39: 0 | BN39: 0 | BO39: 0 | BP39: 0 | BQ39: 0 | BR39: 0 | BS39: 0 | BT39: 0 | BU39: 0 | BV39: 0 | BW39: 0 | BX39: 0 | BY39: 0 | BZ39: 0 | CA39: 0 | CB39: 0 | CC39: 0 | CD39: 0 | CE39: 0 | CF39: 0 | CG39: 0 | CH39: 0 | CI39: 0 | CJ39: 0 | CK39: 0 | CL39: 0 | CM39: 0 | CN39: 0 | CO39: 0 | CP39: 0 | CQ39: 0 | CR39: 0 | CS39: 0 | CT39: 0 | CU39: 0 | CV39: 0 | CW39: 0 | CX39: 0 | CY39: 0 | CZ39: 0 | DA39: 0 | DB39: 0 | DC39: 0 | DD39: 0 | DE39: 0 | DF39: 0 | DG39: 0 | DH39: 0 | DI39: 0 | DJ39: 0 | DK39: 0 | DL39: 0 | DM39: 0 | DN39: 0 | DO39: 0 | DP39: 0 | DQ39: 0
C40: ˃ 11 kV & < = 22 kV ; Multiple-Phase | D40: 60 | E40: 7.745966692 | F40: 32.221975 | G40: 9.714736567 | H40: 118.1591316 | I40: 12.66256869 | J40: 13.37906223 | K40: 7.403383716 | L40: 14.69064353 | M40: 20.77882376 | N40: 42.90529139 | O40: 115.2724372 | P40: 111.1462684 | Q40: 125.4497639 | R40: 19.06807168 | S40: 35.30506901 | T40: 38.16310995 | U40: 22.51520719 | V40: 61.70985644 | W40: 27.95090557 | X40: 92.78318805 | Y40: 34.17521888 | Z40: 39.38958915 | AA40: 40.44251918 | AB40: 21.17861083 | AC40: 13.82274197 | AD40: 4.058261498 | AE40: 48.62695149 | AF40: 46.45373159 | AG40: 30.17114228 | AH40: 22.71312169 | AI40: 18.05166453 | AJ40: 49.46936727 | AK40: 9.592383498 | AL40: 747.2516864 | AM40: 60.56625614 | AN40: 145.9249986 | AO40: 3.920722219 | AP40: 7.131052063 | AQ40: 407.1558582 | AR40: 2.647049589 | AS40: 17.14550661 | AT40: 12.9846156 | AU40: 14.68103092 | AV40: 89.46576586 | AW40: 23.4041568 | AX40: 46.03211921 | AY40: 31.33451493 | AZ40: 11.15526278 | BA40: 42.08552448 | BB40: 33.35985103 | BC40: 3.266569868 | BD40: 14.85022981 | BE40: 0 | BF40: 31.78157646 | BG40: 0 | BH40: 41.34116976 | BI40: 16.01437053 | BJ40: 0 | BK40: 8.449284391 | BL40: 0 | BM40: 0 | BN40: 0 | BO40: 0 | BP40: 0 | BQ40: 0 | BR40: 0 | BS40: 0 | BT40: 0 | BU40: 2.130719559 | BV40: 0 | BW40: 0 | BX40: 0 | BY40: 0 | BZ40: 0 | CA40: 0 | CB40: 0 | CC40: 0 | CD40: 0 | CE40: 0 | CF40: 0 | CG40: 0 | CH40: 0 | CI40: 0 | CJ40: 0 | CK40: 0 | CL40: 0 | CM40: 0 | CN40: 0 | CO40: 0 | CP40: 0 | CQ40: 0 | CR40: 0 | CS40: 0 | CT40: 0 | CU40: 0 | CV40: 0 | CW40: 0 | CX40: 0 | CY40: 0 | CZ40: 0 | DA40: 0 | DB40: 0 | DC40: 0 | DD40: 0 | DE40: 0 | DF40: 0 | DG40: 0 | DH40: 0 | DI40: 0 | DJ40: 0 | DK40: 0 | DL40: 0 | DM40: 0 | DN40: 0 | DO40: 0 | DP40: 0 | DQ40: 0
C41: > 22 kV & < = 66 kV | D41: 45 | E41: 6.708203932 | F41: 0.798029423 | G41: 6.440453816 | H41: 0 | I41: 0.8198080421 | J41: 0 | K41: 16.43194824 | L41: 39.42291712 | M41: 0 | N41: 0 | O41: 6.546404815 | P41: 0 | Q41: 0 | R41: 0.01402293296 | S41: 5.561958556 | T41: 0.08245388407 | U41: 0 | V41: 0.00452260005 | W41: 0 | X41: 0 | Y41: 6.047931862 | Z41: 13.28388447 | AA41: 0.012846626 | AB41: 0.03384832699 | AC41: 66.15618376 | AD41: 0 | AE41: 0 | AF41: 0.06434825726 | AG41: 9.964493137 | AH41: 0.1206961728 | AI41: 0 | AJ41: 0 | AK41: 39.3424357 | AL41: 88.23159614 | AM41: 0 | AN41: 0 | AO41: 23.69966323 | AP41: 0 | AQ41: 20.23585528 | AR41: 0 | AS41: 5.839511284 | AT41: 0 | AU41: 0 | AV41: 4.191293325 | AW41: 0 | AX41: 0 | AY41: 0.2095534991 | AZ41: 2.456983395 | BA41: 0 | BB41: 0 | BC41: 0 | BD41: 18.94190412 | BE41: 0 | BF41: 9.9707948 | BG41: 0 | BH41: 0 | BI41: 0 | BJ41: 0 | BK41: 0 | BL41: 0 | BM41: 0 | BN41: 0 | BO41: 0 | BP41: 0 | BQ41: 0 | BR41: 0 | BS41: 0 | BT41: 0 | BU41: 0 | BV41: 0 | BW41: 0 | BX41: 0 | BY41: 0 | BZ41: 0 | CA41: 0 | CB41: 0 | CC41: 0 | CD41: 0 | CE41: 0 | CF41: 0 | CG41: 0 | CH41: 0 | CI41: 0 | CJ41: 0 | CK41: 0 | CL41: 0 | CM41: 0 | CN41: 0 | CO41: 0 | CP41: 0 | CQ41: 0 | CR41: 0 | CS41: 0 | CT41: 0 | CU41: 0 | CV41: 0 | CW41: 0 | CX41: 0 | CY41: 0 | CZ41: 0 | DA41: 0 | DB41: 0 | DC41: 0 | DD41: 0 | DE41: 0 | DF41: 0 | DG41: 0 | DH41: 0 | DI41: 0 | DJ41: 0 | DK41: 0 | DL41: 0 | DM41: 0 | DN41: 0 | DO41: 0 | DP41: 0 | DQ41: 0
C42: > 66 kV & < = 132 kV | D42: 45 | E42: 6.708203932 | F42: 0 | G42: 0 | H42: 0.00937 | I42: 0 | J42: 0 | K42: 0 | L42: 0 | M42: 0 | N42: 0 | O42: 4.150126598 | P42: 0 | Q42: 0 | R42: 0 | S42: 0 | T42: 0 | U42: 0 | V42: 0 | W42: 0 | X42: 0 | Y42: 0 | Z42: 0 | AA42: 0 | AB42: 0 | AC42: 0 | AD42: 0 | AE42: 0 | AF42: 0 | AG42: 0 | AH42: 0 | AI42: 0.1430599735 | AJ42: 0 | AK42: 342.7872184 | AL42: 2.292644301 | AM42: 0 | AN42: 0 | AO42: 0 | AP42: 0 | AQ42: 0 | AR42: 0 | AS42: 0 | AT42: 0 | AU42: 0 | AV42: 2.826767663 | AW42: 0 | AX42: 0 | AY42: 0 | AZ42: 0 | BA42: 0 | BB42: 0 | BC42: 0 | BD42: 0 | BE42: 0 | BF42: 0 | BG42: 0 | BH42: 0 | BI42: 0 | BJ42: 0 | BK42: 0 | BL42: 0 | BM42: 0 | BN42: 0 | BO42: 0 | BP42: 0 | BQ42: 0 | BR42: 0 | BS42: 0 | BT42: 0 | BU42: 0 | BV42: 0 | BW42: 0 | BX42: 0 | BY42: 0 | BZ42: 0 | CA42: 0 | CB42: 0 | CC42: 0 | CD42: 0 | CE42: 0 | CF42: 0 | CG42: 0 | CH42: 0 | CI42: 0 | CJ42: 0 | CK42: 0 | CL42: 0 | CM42: 0 | CN42: 0 | CO42: 0 | CP42: 0 | CQ42: 0 | CR42: 0 | CS42: 0 | CT42: 0 | CU42: 0 | CV42: 0 | CW42: 0 | CX42: 0 | CY42: 0 | CZ42: 0 | DA42: 0 | DB42: 0 | DC42: 0 | DD42: 0 | DE42: 0 | DF42: 0 | DG42: 0 | DH42: 0 | DI42: 0 | DJ42: 0 | DK42: 0 | DL42: 0 | DM42: 0 | DN42: 0 | DO42: 0 | DP42: 0 | DQ42: 0
C43: > 132 kV | D43: 0 | E43: 0 | F43: 0 | G43: 0 | H43: 0 | I43: 0 | J43: 0 | K43: 0 | L43: 0 | M43: 0 | N43: 0 | O43: 0 | P43: 0 | Q43: 0 | R43: 0 | S43: 0 | T43: 0 | U43: 0 | V43: 0 | W43: 0 | X43: 0 | Y43: 0 | Z43: 0 | AA43: 0 | AB43: 0 | AC43: 0 | AD43: 0 | AE43: 0 | AF43: 0 | AG43: 0 | AH43: 0 | AI43: 0 | AJ43: 0 | AK43: 0 | AL43: 0 | AM43: 0 | AN43: 0 | AO43: 0 | AP43: 0 | AQ43: 0 | AR43: 0 | AS43: 0 | AT43: 0 | AU43: 0 | AV43: 0 | AW43: 0 | AX43: 0 | AY43: 0 | AZ43: 0 | BA43: 0 | BB43: 0 | BC43: 0 | BD43: 0 | BE43: 0 | BF43: 0 | BG43: 0 | BH43: 0 | BI43: 0 | BJ43: 0 | BK43: 0 | BL43: 0 | BM43: 0 | BN43: 0 | BO43: 0 | BP43: 0 | BQ43: 0 | BR43: 0 | BS43: 0 | BT43: 0 | BU43: 0 | BV43: 0 | BW43: 0 | BX43: 0 | BY43: 0 | BZ43: 0 | CA43: 0 | CB43: 0 | CC43: 0 | CD43: 0 | CE43: 0 | CF43: 0 | CG43: 0 | CH43: 0 | CI43: 0 | CJ43: 0 | CK43: 0 | CL43: 0 | CM43: 0 | CN43: 0 | CO43: 0 | CP43: 0 | CQ43: 0 | CR43: 0 | CS43: 0 | CT43: 0 | CU43: 0 | CV43: 0 | CW43: 0 | CX43: 0 | CY43: 0 | CZ43: 0 | DA43: 0 | DB43: 0 | DC43: 0 | DD43: 0 | DE43: 0 | DF43: 0 | DG43: 0 | DH43: 0 | DI43: 0 | DJ43: 0 | DK43: 0 | DL43: 0 | DM43: 0 | DN43: 0 | DO43: 0 | DP43: 0 | DQ43: 0
C44: Other | D44: 0 | E44: 0 | F44: 0 | G44: 0 | H44: 0 | I44: 0 | J44: 0 | K44: 0 | L44: 0 | M44: 0 | N44: 0 | O44: 0 | P44: 0 | Q44: 0 | R44: 0 | S44: 0 | T44: 0 | U44: 0 | V44: 0 | W44: 0 | X44: 0 | Y44: 0 | Z44: 0 | AA44: 0 | AB44: 0 | AC44: 0 | AD44: 0 | AE44: 0 | AF44: 0 | AG44: 0 | AH44: 0 | AI44: 0 | AJ44: 0 | AK44: 0 | AL44: 0 | AM44: 0 | AN44: 0 | AO44: 0 | AP44: 0 | AQ44: 0 | AR44: 0 | AS44: 0 | AT44: 0 | AU44: 0 | AV44: 0 | AW44: 0 | AX44: 0 | AY44: 0 | AZ44: 0 | BA44: 0 | BB44: 0 | BC44: 0 | BD44: 0 | BE44: 0 | BF44: 0 | BG44: 0 | BH44: 0 | BI44: 0 | BJ44: 0 | BK44: 0 | BL44: 0 | BM44: 0 | BN44: 0 | BO44: 0 | BP44: 0 | BQ44: 0 | BR44: 0 | BS44: 0 | BT44: 0 | BU44: 0 | BV44: 0 | BW44: 0 | BX44: 0 | BY44: 0 | BZ44: 0 | CA44: 0 | CB44: 0 | CC44: 0 | CD44: 0 | CE44: 0 | CF44: 0 | CG44: 0 | CH44: 0 | CI44: 0 | CJ44: 0 | CK44: 0 | CL44: 0 | CM44: 0 | CN44: 0 | CO44: 0 | CP44: 0 | CQ44: 0 | CR44: 0 | CS44: 0 | CT44: 0 | CU44: 0 | CV44: 0 | CW44: 0 | CX44: 0 | CY44: 0 | CZ44: 0 | DA44: 0 | DB44: 0 | DC44: 0 | DD44: 0 | DE44: 0 | DF44: 0 | DG44: 0 | DH44: 0 | DI44: 0 | DJ44: 0 | DK44: 0 | DL44: 0 | DM44: 0 | DN44: 0 | DO44: 0 | DP44: 0 | DQ44: 0
B45: UNDERGROUND CABLES BY: HIGHEST OPERATING VOLTAGE | C45: ˂ = 1 kV | D45: 55 | E45: 7.416198487 | F45: 12.03810307 | G45: 23.21427216 | H45: 28.3979765 | I45: 17.02834798 | J45: 18.92996316 | K45: 4.118574915 | L45: 21.25095459 | M45: 50.41959357 | N45: 6.853678241 | O45: 13.39328117 | P45: 25.35250072 | Q45: 15.82205283 | R45: 21.51699191 | S45: 7.911634586 | T45: 5.343923687 | U45: 4.995620116 | V45: 8.577164765 | W45: 11.63681082 | X45: 23.01157536 | Y45: 21.47089045 | Z45: 32.590928 | AA45: 7.629492465 | AB45: 4.604552963 | AC45: 1.79343781 | AD45: 10.26656896 | AE45: 1.138557454 | AF45: 0.3252017093 | AG45: 1.545545276 | AH45: 12.7661978 | AI45: 0.6447381832 | AJ45: 4.503888194 | AK45: 9.434351351 | AL45: 88.08872281 | AM45: 2.162297493 | AN45: 66.46031866 | AO45: 90.66854956 | AP45: 5.801035622 | AQ45: 7.714425184 | AR45: 0 | AS45: 0 | AT45: 1.045021453 | AU45: 0.2298531454 | AV45: 12.92244644 | AW45: 0.9541632294 | AX45: 0.02596368001 | AY45: 0.4118532183 | AZ45: 0 | BA45: 0.1624280895 | BB45: 0.0137375228 | BC45: 0 | BD45: 0 | BE45: 0 | BF45: 0.01369675598 | BG45: 0 | BH45: 0.08240505268 | BI45: 6.905700778 | BJ45: 0 | BK45: 0.003564927334 | BL45: 0 | BM45: 0 | BN45: 0 | BO45: 0 | BP45: 0.01044429057 | BQ45: 0 | BR45: 0 | BS45: 0 | BT45: 0 | BU45: 0 | BV45: 0 | BW45: 0 | BX45: 0 | BY45: 0 | BZ45: 0 | CA45: 0 | CB45: 0 | CC45: 0 | CD45: 0 | CE45: 0 | CF45: 0 | CG45: 0 | CH45: 0 | CI45: 0 | CJ45: 0 | CK45: 0 | CL45: 0 | CM45: 0 | CN45: 0 | CO45: 0 | CP45: 0 | CQ45: 0 | CR45: 0 | CS45: 0 | CT45: 0 | CU45: 0 | CV45: 0 | CW45: 0 | CX45: 0 | CY45: 0 | CZ45: 0 | DA45: 0 | DB45: 0 | DC45: 0 | DD45: 0 | DE45: 0 | DF45: 0 | DG45: 0 | DH45: 0 | DI45: 0 | DJ45: 0 | DK45: 0 | DL45: 0 | DM45: 0 | DN45: 0 | DO45: 0 | DP45: 0 | DQ45: 0
C46: > 1 kV & < = 11 kV | D46: 55 | E46: 7.416198487 | F46: 10.19466424 | G46: 33.02353823 | H46: 20.69008787 | I46: 16.59206938 | J46: 19.53491604 | K46: 20.75656219 | L46: 35.25683821 | M46: 31.78856014 | N46: 18.65689347 | O46: 15.81129149 | P46: 13.71735123 | Q46: 11.67506063 | R46: 12.09110148 | S46: 5.485010534 | T46: 11.22279475 | U46: 6.421383065 | V46: 11.04626149 | W46: 8.566877596 | X46: 9.804462071 | Y46: 18.14142313 | Z46: 26.83611838 | AA46: 11.75895735 | AB46: 0.6962531988 | AC46: 3.991676233 | AD46: 5.02754682 | AE46: 0 | AF46: 0.5160236511 | AG46: 1.407778239 | AH46: 34.1066148 | AI46: 0.9943867574 | AJ46: 1.246777214 | AK46: 4.609393454 | AL46: 47.20209602 | AM46: 1.36653111 | AN46: 33.20899192 | AO46: 205.9568438 | AP46: 2.801398461 | AQ46: 22.18685549 | AR46: 0 | AS46: 0 | AT46: 0.1212229716 | AU46: 0.2142106287 | AV46: 16.90537454 | AW46: 0.7474367245 | AX46: 0.1717401906 | AY46: 0.07818389289 | AZ46: 2.064422179 | BA46: 0.07903804115 | BB46: 0 | BC46: 0 | BD46: 0.1934876062 | BE46: 0 | BF46: 0 | BG46: 0 | BH46: 0 | BI46: 6.849625323 | BJ46: 0 | BK46: 0 | BL46: 0 | BM46: 0 | BN46: 0 | BO46: 0 | BP46: 0 | BQ46: 0 | BR46: 0 | BS46: 0 | BT46: 0 | BU46: 0 | BV46: 0 | BW46: 0 | BX46: 0 | BY46: 0 | BZ46: 0 | CA46: 0 | CB46: 0 | CC46: 0 | CD46: 0 | CE46: 0 | CF46: 0 | CG46: 0 | CH46: 0 | CI46: 0 | CJ46: 0 | CK46: 0 | CL46: 0 | CM46: 0 | CN46: 0 | CO46: 0 | CP46: 0 | CQ46: 0 | CR46: 0 | CS46: 0 | CT46: 0 | CU46: 0 | CV46: 0 | CW46: 0 | CX46: 0 | CY46: 0 | CZ46: 0 | DA46: 0 | DB46: 0 | DC46: 0 | DD46: 0 | DE46: 0 | DF46: 0 | DG46: 0 | DH46: 0 | DI46: 0 | DJ46: 0 | DK46: 0 | DL46: 0 | DM46: 0 | DN46: 0 | DO46: 0 | DP46: 0 | DQ46: 0
C47: > 11 kV & < = 22 kV | D47: 55 | E47: 7.416198487 | F47: 9.271263711 | G47: 7.477397227 | H47: 3.828676026 | I47: 0.9745344966 | J47: 15.52256741 | K47: 3.204771042 | L47: 1.24188785 | M47: 0.9653404051 | N47: 0.5023844134 | O47: 3.076331602 | P47: 0.9253778756 | Q47: 0.1882563484 | R47: 0 | S47: 1.595679665 | T47: 0.09591358436 | U47: 0.4259723554 | V47: 4.504540687 | W47: 5.320940091 | X47: 2.210281468 | Y47: 3.602542156 | Z47: 0.7259747642 | AA47: 0.07541726959 | AB47: 0 | AC47: 0.1472180668 | AD47: 0.09605411708 | AE47: 0.12844691 | AF47: 0.08856573049 | AG47: 3.073986706 | AH47: 0.7021454803 | AI47: 6.023926048 | AJ47: 0.7833026843 | AK47: 0.2947022141 | AL47: 2.093027582 | AM47: 0.7196047675 | AN47: 0 | AO47: 0.5720610042 | AP47: 0 | AQ47: 3.023366381 | AR47: 0 | AS47: 0.2751035998 | AT47: 1.106674053 | AU47: 0.003017782779 | AV47: 1.33807905 | AW47: 2.354992176 | AX47: 0.001130779475 | AY47: 0.3270037316 | AZ47: 0.1552287063 | BA47: 0.3598764305 | BB47: 0 | BC47: 0 | BD47: 0 | BE47: 0 | BF47: 0.2948010312 | BG47: 0 | BH47: 0 | BI47: 0 | BJ47: 0 | BK47: 0.2461229906 | BL47: 0 | BM47: 0 | BN47: 0 | BO47: 0 | BP47: 0 | BQ47: 0 | BR47: 0 | BS47: 0 | BT47: 0 | BU47: 0 | BV47: 0 | BW47: 0 | BX47: 0 | BY47: 0 | BZ47: 0 | CA47: 0 | CB47: 0 | CC47: 0 | CD47: 0 | CE47: 0 | CF47: 0 | CG47: 0 | CH47: 0 | CI47: 0 | CJ47: 0 | CK47: 0 | CL47: 0 | CM47: 0 | CN47: 0 | CO47: 0 | CP47: 0 | CQ47: 0 | CR47: 0 | CS47: 0 | CT47: 0 | CU47: 0 | CV47: 0 | CW47: 0 | CX47: 0 | CY47: 0 | CZ47: 0 | DA47: 0 | DB47: 0 | DC47: 0 | DD47: 0 | DE47: 0 | DF47: 0 | DG47: 0 | DH47: 0 | DI47: 0 | DJ47: 0 | DK47: 0 | DL47: 0 | DM47: 0 | DN47: 0 | DO47: 0 | DP47: 0 | DQ47: 0
C48: > 22 kV & < = 33 kV | D48: 0 | E48: 0 | F48: 0 | G48: 0 | H48: 0 | I48: 0 | J48: 0 | K48: 0 | L48: 0 | M48: 0 | N48: 0 | O48: 0 | P48: 0 | Q48: 0 | R48: 0 | S48: 0 | T48: 0 | U48: 0 | V48: 0 | W48: 0 | X48: 0 | Y48: 0 | Z48: 0 | AA48: 0 | AB48: 0 | AC48: 0 | AD48: 0 | AE48: 0 | AF48: 0 | AG48: 0 | AH48: 0 | AI48: 0 | AJ48: 0 | AK48: 0 | AL48: 0 | AM48: 0 | AN48: 0 | AO48: 0 | AP48: 0 | AQ48: 0 | AR48: 0 | AS48: 0 | AT48: 0 | AU48: 0 | AV48: 0 | AW48: 0 | AX48: 0 | AY48: 0 | AZ48: 0 | BA48: 0 | BB48: 0 | BC48: 0 | BD48: 0 | BE48: 0 | BF48: 0 | BG48: 0 | BH48: 0 | BI48: 0 | BJ48: 0 | BK48: 0 | BL48: 0 | BM48: 0 | BN48: 0 | BO48: 0 | BP48: 0 | BQ48: 0 | BR48: 0 | BS48: 0 | BT48: 0 | BU48: 0 | BV48: 0 | BW48: 0 | BX48: 0 | BY48: 0 | BZ48: 0 | CA48: 0 | CB48: 0 | CC48: 0 | CD48: 0 | CE48: 0 | CF48: 0 | CG48: 0 | CH48: 0 | CI48: 0 | CJ48: 0 | CK48: 0 | CL48: 0 | CM48: 0 | CN48: 0 | CO48: 0 | CP48: 0 | CQ48: 0 | CR48: 0 | CS48: 0 | CT48: 0 | CU48: 0 | CV48: 0 | CW48: 0 | CX48: 0 | CY48: 0 | CZ48: 0 | DA48: 0 | DB48: 0 | DC48: 0 | DD48: 0 | DE48: 0 | DF48: 0 | DG48: 0 | DH48: 0 | DI48: 0 | DJ48: 0 | DK48: 0 | DL48: 0 | DM48: 0 | DN48: 0 | DO48: 0 | DP48: 0 | DQ48: 0
C49: > 33 kV & < = 66 kV | D49: 60 | E49: 7.745966692 | F49: 0.09486 | G49: 1.0334 | H49: 0.9877146903 | I49: 2.10634 | J49: 0.70792 | K49: 1.05175 | L49: 15.83965 | M49: 0 | N49: 0 | O49: 0.92209 | P49: 0 | Q49: 0 | R49: 0 | S49: 0.00627 | T49: 0 | U49: 0 | V49: 0 | W49: 0 | X49: 0 | Y49: 0 | Z49: 0 | AA49: 0 | AB49: 0 | AC49: 0 | AD49: 0 | AE49: 0 | AF49: 0 | AG49: 0 | AH49: 0 | AI49: 0 | AJ49: 0 | AK49: 0 | AL49: 0 | AM49: 0 | AN49: 0 | AO49: 1.58782 | AP49: 7.22439 | AQ49: 0.00633 | AR49: 0 | AS49: 0 | AT49: 0 | AU49: 0 | AV49: 3.23036 | AW49: 0 | AX49: 0 | AY49: 0 | AZ49: 0 | BA49: 0 | BB49: 0 | BC49: 0 | BD49: 7.41308 | BE49: 0 | BF49: 0 | BG49: 0 | BH49: 0 | BI49: 0 | BJ49: 0 | BK49: 0 | BL49: 0 | BM49: 0 | BN49: 0 | BO49: 0 | BP49: 0 | BQ49: 0 | BR49: 0 | BS49: 0 | BT49: 0 | BU49: 0 | BV49: 0 | BW49: 0 | BX49: 0 | BY49: 0 | BZ49: 0 | CA49: 0 | CB49: 0 | CC49: 0 | CD49: 0 | CE49: 0 | CF49: 0 | CG49: 0 | CH49: 0 | CI49: 0 | CJ49: 0 | CK49: 0 | CL49: 0 | CM49: 0 | CN49: 0 | CO49: 0 | CP49: 0 | CQ49: 0 | CR49: 0 | CS49: 0 | CT49: 0 | CU49: 0 | CV49: 0 | CW49: 0 | CX49: 0 | CY49: 0 | CZ49: 0 | DA49: 0 | DB49: 0 | DC49: 0 | DD49: 0 | DE49: 0 | DF49: 0 | DG49: 0 | DH49: 0 | DI49: 0 | DJ49: 0 | DK49: 0 | DL49: 0 | DM49: 0 | DN49: 0 | DO49: 0 | DP49: 0 | DQ49: 0
C50: > 66 kV & < = 132 kV | D50: 0 | E50: 0 | F50: 0 | G50: 0 | H50: 0 | I50: 0 | J50: 0 | K50: 0 | L50: 0 | M50: 0 | N50: 0 | O50: 0 | P50: 0 | Q50: 0 | R50: 0 | S50: 0 | T50: 0 | U50: 0 | V50: 0 | W50: 0 | X50: 0 | Y50: 0 | Z50: 0 | AA50: 0 | AB50: 0 | AC50: 0 | AD50: 0 | AE50: 0 | AF50: 0 | AG50: 0 | AH50: 0 | AI50: 0 | AJ50: 0 | AK50: 0 | AL50: 0 | AM50: 0 | AN50: 0 | AO50: 0 | AP50: 0 | AQ50: 0 | AR50: 0 | AS50: 0 | AT50: 0 | AU50: 0 | AV50: 0 | AW50: 0 | AX50: 0 | AY50: 0 | AZ50: 0 | BA50: 0 | BB50: 0 | BC50: 0 | BD50: 0 | BE50: 0 | BF50: 0 | BG50: 0 | BH50: 0 | BI50: 0 | BJ50: 0 | BK50: 0 | BL50: 0 | BM50: 0 | BN50: 0 | BO50: 0 | BP50: 0 | BQ50: 0 | BR50: 0 | BS50: 0 | BT50: 0 | BU50: 0 | BV50: 0 | BW50: 0 | BX50: 0 | BY50: 0 | BZ50: 0 | CA50: 0 | CB50: 0 | CC50: 0 | CD50: 0 | CE50: 0 | CF50: 0 | CG50: 0 | CH50: 0 | CI50: 0 | CJ50: 0 | CK50: 0 | CL50: 0 | CM50: 0 | CN50: 0 | CO50: 0 | CP50: 0 | CQ50: 0 | CR50: 0 | CS50: 0 | CT50: 0 | CU50: 0 | CV50: 0 | CW50: 0 | CX50: 0 | CY50: 0 | CZ50: 0 | DA50: 0 | DB50: 0 | DC50: 0 | DD50: 0 | DE50: 0 | DF50: 0 | DG50: 0 | DH50: 0 | DI50: 0 | DJ50: 0 | DK50: 0 | DL50: 0 | DM50: 0 | DN50: 0 | DO50: 0 | DP50: 0 | DQ50: 0
C51: > 132 kV | D51: 0 | E51: 0 | F51: 0 | G51: 0 | H51: 0 | I51: 0 | J51: 0 | K51: 0 | L51: 0 | M51: 0 | N51: 0 | O51: 0 | P51: 0 | Q51: 0 | R51: 0 | S51: 0 | T51: 0 | U51: 0 | V51: 0 | W51: 0 | X51: 0 | Y51: 0 | Z51: 0 | AA51: 0 | AB51: 0 | AC51: 0 | AD51: 0 | AE51: 0 | AF51: 0 | AG51: 0 | AH51: 0 | AI51: 0 | AJ51: 0 | AK51: 0 | AL51: 0 | AM51: 0 | AN51: 0 | AO51: 0 | AP51: 0 | AQ51: 0 | AR51: 0 | AS51: 0 | AT51: 0 | AU51: 0 | AV51: 0 | AW51: 0 | AX51: 0 | AY51: 0 | AZ51: 0 | BA51: 0 | BB51: 0 | BC51: 0 | BD51: 0 | BE51: 0 | BF51: 0 | BG51: 0 | BH51: 0 | BI51: 0 | BJ51: 0 | BK51: 0 | BL51: 0 | BM51: 0 | BN51: 0 | BO51: 0 | BP51: 0 | BQ51: 0 | BR51: 0 | BS51: 0 | BT51: 0 | BU51: 0 | BV51: 0 | BW51: 0 | BX51: 0 | BY51: 0 | BZ51: 0 | CA51: 0 | CB51: 0 | CC51: 0 | CD51: 0 | CE51: 0 | CF51: 0 | CG51: 0 | CH51: 0 | CI51: 0 | CJ51: 0 | CK51: 0 | CL51: 0 | CM51: 0 | CN51: 0 | CO51: 0 | CP51: 0 | CQ51: 0 | CR51: 0 | CS51: 0 | CT51: 0 | CU51: 0 | CV51: 0 | CW51: 0 | CX51: 0 | CY51: 0 | CZ51: 0 | DA51: 0 | DB51: 0 | DC51: 0 | DD51: 0 | DE51: 0 | DF51: 0 | DG51: 0 | DH51: 0 | DI51: 0 | DJ51: 0 | DK51: 0 | DL51: 0 | DM51: 0 | DN51: 0 | DO51: 0 | DP51: 0 | DQ51: 0
C52: Other | D52: 0 | E52: 0 | F52: 0 | G52: 0 | H52: 0 | I52: 0 | J52: 0 | K52: 0 | L52: 0 | M52: 0 | N52: 0 | O52: 0 | P52: 0 | Q52: 0 | R52: 0 | S52: 0 | T52: 0 | U52: 0 | V52: 0 | W52: 0 | X52: 0 | Y52: 0 | Z52: 0 | AA52: 0 | AB52: 0 | AC52: 0 | AD52: 0 | AE52: 0 | AF52: 0 | AG52: 0 | AH52: 0 | AI52: 0 | AJ52: 0 | AK52: 0 | AL52: 0 | AM52: 0 | AN52: 0 | AO52: 0 | AP52: 0 | AQ52: 0 | AR52: 0 | AS52: 0 | AT52: 0 | AU52: 0 | AV52: 0 | AW52: 0 | AX52: 0 | AY52: 0 | AZ52: 0 | BA52: 0 | BB52: 0 | BC52: 0 | BD52: 0 | BE52: 0 | BF52: 0 | BG52: 0 | BH52: 0 | BI52: 0 | BJ52: 0 | BK52: 0 | BL52: 0 | BM52: 0 | BN52: 0 | BO52: 0 | BP52: 0 | BQ52: 0 | BR52: 0 | BS52: 0 | BT52: 0 | BU52: 0 | BV52: 0 | BW52: 0 | BX52: 0 | BY52: 0 | BZ52: 0 | CA52: 0 | CB52: 0 | CC52: 0 | CD52: 0 | CE52: 0 | CF52: 0 | CG52: 0 | CH52: 0 | CI52: 0 | CJ52: 0 | CK52: 0 | CL52: 0 | CM52: 0 | CN52: 0 | CO52: 0 | CP52: 0 | CQ52: 0 | CR52: 0 | CS52: 0 | CT52: 0 | CU52: 0 | CV52: 0 | CW52: 0 | CX52: 0 | CY52: 0 | CZ52: 0 | DA52: 0 | DB52: 0 | DC52: 0 | DD52: 0 | DE52: 0 | DF52: 0 | DG52: 0 | DH52: 0 | DI52: 0 | DJ52: 0 | DK52: 0 | DL52: 0 | DM52: 0 | DN52: 0 | DO52: 0 | DP52: 0 | DQ52: 0
B53: SERVICE LINES BY: CONNECTION VOLTAGE; CUSTOMER TYPE; CONNECTION COMPLEXITY | C53: ˂ = 11 kV ; Residential ; Simple Type | D53: 35 | E53: 5.916079783 | F53: 488 | G53: 629 | H53: 564 | I53: 645 | J53: 423 | K53: 313 | L53: 869 | M53: 1735 | N53: 627 | O53: 446 | P53: 937 | Q53: 738 | R53: 959 | S53: 281 | T53: 280 | U53: 291 | V53: 436 | W53: 556 | X53: 658 | Y53: 787 | Z53: 1370 | AA53: 289 | AB53: 359 | AC53: 129 | AD53: 370 | AE53: 46 | AF53: 2 | AG53: 186 | AH53: 764 | AI53: 216 | AJ53: 391 | AK53: 512 | AL53: 8953 | AM53: 232 | AN53: 3155 | AO53: 8867 | AP53: 343 | AQ53: 1075 | AR53: 42 | AS53: 256 | AT53: 122 | AU53: 288 | AV53: 1458 | AW53: 899 | AX53: 159 | AY53: 517 | AZ53: 267 | BA53: 84 | BB53: 366 | BC53: 109 | BD53: 189 | BE53: 0 | BF53: 516 | BG53: 1 | BH53: 4 | BI53: 718 | BJ53: 0 | BK53: 299 | BL53: 0 | BM53: 0 | BN53: 0 | BO53: 0 | BP53: 0 | BQ53: 0 | BR53: 0 | BS53: 0 | BT53: 0 | BU53: 5 | BV53: 0 | BW53: 0 | BX53: 0 | BY53: 0 | BZ53: 0 | CA53: 0 | CB53: 0 | CC53: 0 | CD53: 0 | CE53: 0 | CF53: 0 | CG53: 0 | CH53: 0 | CI53: 0 | CJ53: 0 | CK53: 0 | CL53: 0 | CM53: 0 | CN53: 0 | CO53: 0 | CP53: 0 | CQ53: 0 | CR53: 0 | CS53: 0 | CT53: 0 | CU53: 0 | CV53: 0 | CW53: 0 | CX53: 0 | CY53: 0 | CZ53: 0 | DA53: 0 | DB53: 0 | DC53: 0 | DD53: 0 | DE53: 0 | DF53: 0 | DG53: 0 | DH53: 0 | DI53: 0 | DJ53: 0 | DK53: 0 | DL53: 0 | DM53: 0 | DN53: 0 | DO53: 0 | DP53: 0 | DQ53: 0
C54: ˂ = 11 kV ; Commercial & Industrial ; Simple Type | D54: 35 | E54: 5.916079783 | F54: 37 | G54: 522 | H54: 619 | I54: 692 | J54: 299 | K54: 186 | L54: 430 | M54: 143 | N54: 268 | O54: 150 | P54: 153 | Q54: 224 | R54: 65 | S54: 104 | T54: 64 | U54: 78 | V54: 180 | W54: 153 | X54: 178 | Y54: 70 | Z54: 79 | AA54: 45 | AB54: 37 | AC54: 38 | AD54: 47 | AE54: 8 | AF54: 4 | AG54: 220 | AH54: 203 | AI54: 8 | AJ54: 61 | AK54: 67 | AL54: 937 | AM54: 39 | AN54: 91 | AO54: 173 | AP54: 24 | AQ54: 968 | AR54: 0 | AS54: 59 | AT54: 28 | AU54: 22 | AV54: 256 | AW54: 49 | AX54: 63 | AY54: 177 | AZ54: 43 | BA54: 82 | BB54: 58 | BC54: 6 | BD54: 28 | BE54: 0 | BF54: 20 | BG54: 1 | BH54: 10 | BI54: 200 | BJ54: 0 | BK54: 39 | BL54: 0 | BM54: 0 | BN54: 0 | BO54: 0 | BP54: 18 | BQ54: 0 | BR54: 0 | BS54: 0 | BT54: 0 | BU54: 30 | BV54: 0 | BW54: 0 | BX54: 0 | BY54: 0 | BZ54: 0 | CA54: 0 | CB54: 0 | CC54: 0 | CD54: 0 | CE54: 0 | CF54: 0 | CG54: 0 | CH54: 0 | CI54: 0 | CJ54: 0 | CK54: 0 | CL54: 0 | CM54: 0 | CN54: 0 | CO54: 0 | CP54: 0 | CQ54: 0 | CR54: 0 | CS54: 0 | CT54: 0 | CU54: 0 | CV54: 0 | CW54: 0 | CX54: 0 | CY54: 0 | CZ54: 0 | DA54: 0 | DB54: 0 | DC54: 0 | DD54: 0 | DE54: 0 | DF54: 0 | DG54: 0 | DH54: 0 | DI54: 0 | DJ54: 0 | DK54: 0 | DL54: 0 | DM54: 0 | DN54: 0 | DO54: 0 | DP54: 0 | DQ54: 0
C55: ˂ = 11 kV ; Residential ; Complex Type | D55: 0 | E55: 0 | F55: 0 | G55: 0 | H55: 0 | I55: 0 | J55: 0 | K55: 0 | L55: 0 | M55: 0 | N55: 0 | O55: 0 | P55: 0 | Q55: 0 | R55: 0 | S55: 0 | T55: 0 | U55: 0 | V55: 0 | W55: 0 | X55: 0 | Y55: 0 | Z55: 0 | AA55: 0 | AB55: 0 | AC55: 0 | AD55: 0 | AE55: 0 | AF55: 0 | AG55: 0 | AH55: 0 | AI55: 0 | AJ55: 0 | AK55: 0 | AL55: 0 | AM55: 0 | AN55: 0 | AO55: 0 | AP55: 0 | AQ55: 0 | AR55: 0 | AS55: 0 | AT55: 0 | AU55: 0 | AV55: 0 | AW55: 0 | AX55: 0 | AY55: 0 | AZ55: 0 | BA55: 0 | BB55: 0 | BC55: 0 | BD55: 0 | BE55: 0 | BF55: 0 | BG55: 0 | BH55: 0 | BI55: 0 | BJ55: 0 | BK55: 0 | BL55: 0 | BM55: 0 | BN55: 0 | BO55: 0 | BP55: 0 | BQ55: 0 | BR55: 0 | BS55: 0 | BT55: 0 | BU55: 0 | BV55: 0 | BW55: 0 | BX55: 0 | BY55: 0 | BZ55: 0 | CA55: 0 | CB55: 0 | CC55: 0 | CD55: 0 | CE55: 0 | CF55: 0 | CG55: 0 | CH55: 0 | CI55: 0 | CJ55: 0 | CK55: 0 | CL55: 0 | CM55: 0 | CN55: 0 | CO55: 0 | CP55: 0 | CQ55: 0 | CR55: 0 | CS55: 0 | CT55: 0 | CU55: 0 | CV55: 0 | CW55: 0 | CX55: 0 | CY55: 0 | CZ55: 0 | DA55: 0 | DB55: 0 | DC55: 0 | DD55: 0 | DE55: 0 | DF55: 0 | DG55: 0 | DH55: 0 | DI55: 0 | DJ55: 0 | DK55: 0 | DL55: 0 | DM55: 0 | DN55: 0 | DO55: 0 | DP55: 0 | DQ55: 0
C56: ˂ = 11 kV ; Commercial & Industrial ; Complex Type | D56: 0 | E56: 0 | F56: 0 | G56: 0 | H56: 0 | I56: 0 | J56: 0 | K56: 0 | L56: 0 | M56: 0 | N56: 0 | O56: 0 | P56: 0 | Q56: 0 | R56: 0 | S56: 0 | T56: 0 | U56: 0 | V56: 0 | W56: 0 | X56: 0 | Y56: 0 | Z56: 0 | AA56: 0 | AB56: 0 | AC56: 0 | AD56: 0 | AE56: 0 | AF56: 0 | AG56: 0 | AH56: 0 | AI56: 0 | AJ56: 0 | AK56: 0 | AL56: 0 | AM56: 0 | AN56: 0 | AO56: 0 | AP56: 0 | AQ56: 0 | AR56: 0 | AS56: 0 | AT56: 0 | AU56: 0 | AV56: 0 | AW56: 0 | AX56: 0 | AY56: 0 | AZ56: 0 | BA56: 0 | BB56: 0 | BC56: 0 | BD56: 0 | BE56: 0 | BF56: 0 | BG56: 0 | BH56: 0 | BI56: 0 | BJ56: 0 | BK56: 0 | BL56: 0 | BM56: 0 | BN56: 0 | BO56: 0 | BP56: 0 | BQ56: 0 | BR56: 0 | BS56: 0 | BT56: 0 | BU56: 0 | BV56: 0 | BW56: 0 | BX56: 0 | BY56: 0 | BZ56: 0 | CA56: 0 | CB56: 0 | CC56: 0 | CD56: 0 | CE56: 0 | CF56: 0 | CG56: 0 | CH56: 0 | CI56: 0 | CJ56: 0 | CK56: 0 | CL56: 0 | CM56: 0 | CN56: 0 | CO56: 0 | CP56: 0 | CQ56: 0 | CR56: 0 | CS56: 0 | CT56: 0 | CU56: 0 | CV56: 0 | CW56: 0 | CX56: 0 | CY56: 0 | CZ56: 0 | DA56: 0 | DB56: 0 | DC56: 0 | DD56: 0 | DE56: 0 | DF56: 0 | DG56: 0 | DH56: 0 | DI56: 0 | DJ56: 0 | DK56: 0 | DL56: 0 | DM56: 0 | DN56: 0 | DO56: 0 | DP56: 0 | DQ56: 0
C57: ˂ = 11 kV ; Subdivision ; Complex Type | D57: 0 | E57: 0 | F57: 0 | G57: 0 | H57: 0 | I57: 0 | J57: 0 | K57: 0 | L57: 0 | M57: 0 | N57: 0 | O57: 0 | P57: 0 | Q57: 0 | R57: 0 | S57: 0 | T57: 0 | U57: 0 | V57: 0 | W57: 0 | X57: 0 | Y57: 0 | Z57: 0 | AA57: 0 | AB57: 0 | AC57: 0 | AD57: 0 | AE57: 0 | AF57: 0 | AG57: 0 | AH57: 0 | AI57: 0 | AJ57: 0 | AK57: 0 | AL57: 0 | AM57: 0 | AN57: 0 | AO57: 0 | AP57: 0 | AQ57: 0 | AR57: 0 | AS57: 0 | AT57: 0 | AU57: 0 | AV57: 0 | AW57: 0 | AX57: 0 | AY57: 0 | AZ57: 0 | BA57: 0 | BB57: 0 | BC57: 0 | BD57: 0 | BE57: 0 | BF57: 0 | BG57: 0 | BH57: 0 | BI57: 0 | BJ57: 0 | BK57: 0 | BL57: 0 | BM57: 0 | BN57: 0 | BO57: 0 | BP57: 0 | BQ57: 0 | BR57: 0 | BS57: 0 | BT57: 0 | BU57: 0 | BV57: 0 | BW57: 0 | BX57: 0 | BY57: 0 | BZ57: 0 | CA57: 0 | CB57: 0 | CC57: 0 | CD57: 0 | CE57: 0 | CF57: 0 | CG57: 0 | CH57: 0 | CI57: 0 | CJ57: 0 | CK57: 0 | CL57: 0 | CM57: 0 | CN57: 0 | CO57: 0 | CP57: 0 | CQ57: 0 | CR57: 0 | CS57: 0 | CT57: 0 | CU57: 0 | CV57: 0 | CW57: 0 | CX57: 0 | CY57: 0 | CZ57: 0 | DA57: 0 | DB57: 0 | DC57: 0 | DD57: 0 | DE57: 0 | DF57: 0 | DG57: 0 | DH57: 0 | DI57: 0 | DJ57: 0 | DK57: 0 | DL57: 0 | DM57: 0 | DN57: 0 | DO57: 0 | DP57: 0 | DQ57: 0
C58: > 11 kV & < = 22 kV ; Commercial & Industrial | D58: 0 | E58: 0 | F58: 0 | G58: 0 | H58: 0 | I58: 0 | J58: 0 | K58: 0 | L58: 0 | M58: 0 | N58: 0 | O58: 0 | P58: 0 | Q58: 0 | R58: 0 | S58: 0 | T58: 0 | U58: 0 | V58: 0 | W58: 0 | X58: 0 | Y58: 0 | Z58: 0 | AA58: 0 | AB58: 0 | AC58: 0 | AD58: 0 | AE58: 0 | AF58: 0 | AG58: 0 | AH58: 0 | AI58: 0 | AJ58: 0 | AK58: 0 | AL58: 0 | AM58: 0 | AN58: 0 | AO58: 0 | AP58: 0 | AQ58: 0 | AR58: 0 | AS58: 0 | AT58: 0 | AU58: 0 | AV58: 0 | AW58: 0 | AX58: 0 | AY58: 0 | AZ58: 0 | BA58: 0 | BB58: 0 | BC58: 0 | BD58: 0 | BE58: 0 | BF58: 0 | BG58: 0 | BH58: 0 | BI58: 0 | BJ58: 0 | BK58: 0 | BL58: 0 | BM58: 0 | BN58: 0 | BO58: 0 | BP58: 0 | BQ58: 0 | BR58: 0 | BS58: 0 | BT58: 0 | BU58: 0 | BV58: 0 | BW58: 0 | BX58: 0 | BY58: 0 | BZ58: 0 | CA58: 0 | CB58: 0 | CC58: 0 | CD58: 0 | CE58: 0 | CF58: 0 | CG58: 0 | CH58: 0 | CI58: 0 | CJ58: 0 | CK58: 0 | CL58: 0 | CM58: 0 | CN58: 0 | CO58: 0 | CP58: 0 | CQ58: 0 | CR58: 0 | CS58: 0 | CT58: 0 | CU58: 0 | CV58: 0 | CW58: 0 | CX58: 0 | CY58: 0 | CZ58: 0 | DA58: 0 | DB58: 0 | DC58: 0 | DD58: 0 | DE58: 0 | DF58: 0 | DG58: 0 | DH58: 0 | DI58: 0 | DJ58: 0 | DK58: 0 | DL58: 0 | DM58: 0 | DN58: 0 | DO58: 0 | DP58: 0 | DQ58: 0
C59: > 11 kV & < = 22 kV ; Subdivision | D59: 0 | E59: 0 | F59: 0 | G59: 0 | H59: 0 | I59: 0 | J59: 0 | K59: 0 | L59: 0 | M59: 0 | N59: 0 | O59: 0 | P59: 0 | Q59: 0 | R59: 0 | S59: 0 | T59: 0 | U59: 0 | V59: 0 | W59: 0 | X59: 0 | Y59: 0 | Z59: 0 | AA59: 0 | AB59: 0 | AC59: 0 | AD59: 0 | AE59: 0 | AF59: 0 | AG59: 0 | AH59: 0 | AI59: 0 | AJ59: 0 | AK59: 0 | AL59: 0 | AM59: 0 | AN59: 0 | AO59: 0 | AP59: 0 | AQ59: 0 | AR59: 0 | AS59: 0 | AT59: 0 | AU59: 0 | AV59: 0 | AW59: 0 | AX59: 0 | AY59: 0 | AZ59: 0 | BA59: 0 | BB59: 0 | BC59: 0 | BD59: 0 | BE59: 0 | BF59: 0 | BG59: 0 | BH59: 0 | BI59: 0 | BJ59: 0 | BK59: 0 | BL59: 0 | BM59: 0 | BN59: 0 | BO59: 0 | BP59: 0 | BQ59: 0 | BR59: 0 | BS59: 0 | BT59: 0 | BU59: 0 | BV59: 0 | BW59: 0 | BX59: 0 | BY59: 0 | BZ59: 0 | CA59: 0 | CB59: 0 | CC59: 0 | CD59: 0 | CE59: 0 | CF59: 0 | CG59: 0 | CH59: 0 | CI59: 0 | CJ59: 0 | CK59: 0 | CL59: 0 | CM59: 0 | CN59: 0 | CO59: 0 | CP59: 0 | CQ59: 0 | CR59: 0 | CS59: 0 | CT59: 0 | CU59: 0 | CV59: 0 | CW59: 0 | CX59: 0 | CY59: 0 | CZ59: 0 | DA59: 0 | DB59: 0 | DC59: 0 | DD59: 0 | DE59: 0 | DF59: 0 | DG59: 0 | DH59: 0 | DI59: 0 | DJ59: 0 | DK59: 0 | DL59: 0 | DM59: 0 | DN59: 0 | DO59: 0 | DP59: 0 | DQ59: 0
C60: > 22 kV & < = 33 kV ; Commercial & Industrial | D60: 0 | E60: 0 | F60: 0 | G60: 0 | H60: 0 | I60: 0 | J60: 0 | K60: 0 | L60: 0 | M60: 0 | N60: 0 | O60: 0 | P60: 0 | Q60: 0 | R60: 0 | S60: 0 | T60: 0 | U60: 0 | V60: 0 | W60: 0 | X60: 0 | Y60: 0 | Z60: 0 | AA60: 0 | AB60: 0 | AC60: 0 | AD60: 0 | AE60: 0 | AF60: 0 | AG60: 0 | AH60: 0 | AI60: 0 | AJ60: 0 | AK60: 0 | AL60: 0 | AM60: 0 | AN60: 0 | AO60: 0 | AP60: 0 | AQ60: 0 | AR60: 0 | AS60: 0 | AT60: 0 | AU60: 0 | AV60: 0 | AW60: 0 | AX60: 0 | AY60: 0 | AZ60: 0 | BA60: 0 | BB60: 0 | BC60: 0 | BD60: 0 | BE60: 0 | BF60: 0 | BG60: 0 | BH60: 0 | BI60: 0 | BJ60: 0 | BK60: 0 | BL60: 0 | BM60: 0 | BN60: 0 | BO60: 0 | BP60: 0 | BQ60: 0 | BR60: 0 | BS60: 0 | BT60: 0 | BU60: 0 | BV60: 0 | BW60: 0 | BX60: 0 | BY60: 0 | BZ60: 0 | CA60: 0 | CB60: 0 | CC60: 0 | CD60: 0 | CE60: 0 | CF60: 0 | CG60: 0 | CH60: 0 | CI60: 0 | CJ60: 0 | CK60: 0 | CL60: 0 | CM60: 0 | CN60: 0 | CO60: 0 | CP60: 0 | CQ60: 0 | CR60: 0 | CS60: 0 | CT60: 0 | CU60: 0 | CV60: 0 | CW60: 0 | CX60: 0 | CY60: 0 | CZ60: 0 | DA60: 0 | DB60: 0 | DC60: 0 | DD60: 0 | DE60: 0 | DF60: 0 | DG60: 0 | DH60: 0 | DI60: 0 | DJ60: 0 | DK60: 0 | DL60: 0 | DM60: 0 | DN60: 0 | DO60: 0 | DP60: 0 | DQ60: 0
